Workbook

Sheet Data (hidden)
A1: 1 | B1: 2 | C1: 1 | D1: 4 | E1: 5 | F1: 6 | G1: 7 | H1: 8 | I1: 9 | J1: 10 | K1: 11 | L1: 12 | M1: 13 | N1: 14 | O1: 15 | P1: 16 | Q1: 17 | R1: 18 | S1: 19 | T1: 20 | U1: 21 | V1: 22 | W1: 23 | X1: 24 | Y1: 25 | Z1: 26 | AA1: 27 | AB1: 28 | AC1: 29 | AD1: 30 | AE1: 31 | AF1: 32 | AG1: 33 | AH1: 34 | AI1: 35 | AJ1: 36 | AK1: 37 | AL1: 38 | AM1: 39 | AN1: 40 | AO1: 41 | AP1: 42 | AQ1: 43 | AR1: 44 | AS1: 45 | AT1: 46 | AU1: 47 | AV1: 48 | AW1: 49 | AX1: 50 | AY1: 51 | AZ1: 52 | BA1: 53 | BB1: 54 | BC1: 55 | BD1: 56 | BE1: 57 | BF1: 58 | BG1: 59 | BH1: 60 | BI1: 61 | BJ1: 62 | BK1: 63 | BL1: 64 | BM1: 65 | BN1: 66 | BO1: 67 | BP1: 68 | BQ1: 69 | BR1: 70 | BS1: 71 | BT1: 72 | BU1: 73 | BV1: 74 | BW1: 75 | BX1: 76 | BY1: 77 | BZ1: 78 | CA1: 79 | CB1: 80
A2: final list | B2: School Name | C2: Phase | D2: F1 - Pri | E2: F1 -KS3 | F2: F1 - KS4 | G2: F2 - FSM Pri | H2: F2 - FSM Sec | I2: F2 - E6FSM Pri | J2: F2 - E6FSM Sec | K2: F2 - IDACI F - Pri | L2: F2 - IDACI E - Pri | M2: F2 - IDACI D - Pri | N2: F2 - IDACI C - Pri | O2: F2 - IDACI B - Pri | P2: F2 - IDACI A - Pri | Q2: F2 - IDACI F - Sec | R2: F2 - IDACI E - Sec | S2: F2 - IDACI D - Sec | T2: F2 - IDACI C - Sec | U2: F2 - IDACI B - Sec | V2: F2 - IDACI A - Sec | W2: F4 - EAL Pri | X2: F4 - EAL Sec | Y2: F6 - EYFS Pri | Z2: F6 - EYFS Sec | AA2: Mobility Pri | AB2: Mobility Sec | AC2: F7 - Lump Sum | AD2: F8 - Sparsity Pri | AE2: F8 - Sparsity Sec | AF2: F9 - ACA | AG2: F10 - Split Site | AH2: F11 - Rates | AI2: F12 - PFI | AJ2: F13 - Exceptional Circumstances | AK2: MFL Rate | AL2: SBS 23-24 | AM2: Protected Grants 23-24 | AN2: Rates - 23-24 | AO2: Pupils - Oct 22 | AR2: Early Years - Base Rate | AS2: Early Years - QTS | AT2: Early Years - Disadvantage | AV2: AWPU | AW2: IDACI | AX2: Ever 6 FSM | AY2: Low Cost, high Incidence SEN | AZ2: English as an additional language | BA2: Mobility | BB2: Element of Lump Sum | BC2: Area Cost Adjustment-London Fringe | BD2: Minimum Per-Pupil Level Funding (MPPL) | BE2: Minimum Funding Guarantee (MFG) | BF2: NOR
A3: 2692 | B3: The Churchill School | C3: 1 | D3: 361 | E3: 0 | F3: 0 | G3: 0.2520775623 | H3: 0 | I3: 0.2520775623 | J3: 0 | K3: 0.2194444444 | L3: 0.025 | M3: 0.02777777778 | N3: 0.01944444444 | O3: 0.04722222222 | P3: 0.005555555556 | Q3: 0 | R3: 0 | S3: 0 | T3: 0 | U3: 0 | V3: 0 | W3: 0.03833865815 | X3: 0 | Y3: 0.1932647924 | Z3: 0 | AA3: 0.06094182825 | AB3: 0 | AC3: 132163.3716 | AD3: 0 | AE3: 0 | AF3: 1 | AG3: 0 | AH3: 12595 | AI3: 0 | AJ3: 0 | AK3: 4568.51 | AL3: 1611501.519 | AM3: 57003.2871 | AN3: 12595 | AO3: 363 | AR3: 0 | AS3: 0 | AT3: 0 | AV3: 63224.14455 | AW3: 26982.37986 | AX3: 51364.74368 | AY3: 80270.81063 | AZ3: 0 | BA3: 224.6777317 | BB3: 0 | BC3: 0 | BD3: 3522.471696 | BE3: 2519.436361 | BF3: =SUM(D3:F3) -> 361 | CC3: 0
A4: 5208 | B4: Ditton Church of England Junior School | C4: 1 | D4: 206 | E4: 0 | F4: 0 | G4: 0.2281553398 | H4: 0 | I4: 0.2330097087 | J4: 0 | K4: 0.4126213592 | L4: 0.02912621359 | M4: 0 | N4: 0.1504854369 | O4: 0.009708737864 | P4: 0 | Q4: 0 | R4: 0 | S4: 0 | T4: 0 | U4: 0 | V4: 0 | W4: 0.0487804878 | X4: 0 | Y4: 0.2193548272 | Z4: 0 | AA4: 0.06310679612 | AB4: 0 | AC4: 132163.3716 | AD4: 0 | AE4: 0 | AF4: 1 | AG4: 0 | AH4: 4864 | AI4: 0 | AJ4: 0 | AK4: 4568.51 | AL4: 904995.6843 | AM4: 31837.5012 | AN4: 4864 | AO4: 191 | AR4: 0 | AS4: 0 | AT4: 0 | AV4: 36078.04371 | AW4: 25985.24623 | AX4: 27093.49117 | AY4: 51989.07839 | AZ4: 0 | BA4: 422.922789 | BB4: 0 | BC4: 0 | BD4: 0 | BE4: 0 | BF4: =SUM(D4:F4) -> 206 | CC4: 0
A5: 2001 | B5: Horizon Primary Academy | C5: 1 | D5: 207 | E5: 0 | F5: 0 | G5: 0.4541062802 | H5: 0 | I5: 0.4589371981 | J5: 0 | K5: 0.07246376812 | L5: 0.1884057971 | M5: 0 | N5: 0.2173913043 | O5: 0.3961352657 | P5: 0 | Q5: 0 | R5: 0 | S5: 0 | T5: 0 | U5: 0 | V5: 0 | W5: 0.09039548023 | X5: 0 | Y5: 0.2387794198 | Z5: 0 | AA5: 0.05314009662 | AB5: 0 | AC5: 132163.3716 | AD5: 0 | AE5: 0 | AF5: 1.0375 | AG5: 0 | AH5: 4889.6 | AI5: 0 | AJ5: 0 | AK5: 4568.51 | AL5: 1069125.12 | AM5: 39134.1695 | AN5: 4889.6 | AO5: 201 | AR5: 0 | AS5: 0 | AT5: 0 | AV5: 36253.17984 | AW5: 54169.77357 | AX5: 53622.53461 | AY5: 56867.60528 | AZ5: 0 | BA5: 0 | BB5: 0 | BC5: 7534.240999 | BD5: 0 | BE5: 0 | BF5: 207 | CC5: 0
A6: 2003 | B6: Oaks Primary Academy | C6: 1 | D6: 188 | E6: 0 | F6: 0 | G6: 0.4095744681 | H6: 0 | I6: 0.4095744681 | J6: 0 | K6: 0.123655914 | L6: 0.03225806452 | M6: 0.04301075269 | N6: 0.4032258065 | O6: 0.1720430108 | P6: 0 | Q6: 0 | R6: 0 | S6: 0 | T6: 0 | U6: 0 | V6: 0 | W6: 0.07547169811 | X6: 0 | Y6: 0.2481857765 | Z6: 0 | AA6: 0.03783783784 | AB6: 0 | AC6: 132163.3716 | AD6: 0 | AE6: 0 | AF6: 1 | AG6: 0 | AH6: 3891.2 | AI6: 0 | AJ6: 0 | AK6: 4568.51 | AL6: 998088.0321 | AM6: 36060.4858 | AN6: 3891.2 | AO6: 195 | AR6: 0 | AS6: 1.2 | AT6: 0 | AV6: 32925.59328 | AW6: 44201.15735 | AX6: 43462.47542 | AY6: 53682.46381 | AZ6: 0 | BA6: 0 | BB6: 0 | BC6: 0 | BD6: 0 | BE6: 0 | BF6: 188 | CC6: 0
A7: 2004 | B7: Tree Tops Primary Academy | C7: 1 | D7: 298 | E7: 0 | F7: 0 | G7: 0.466442953 | H7: 0 | I7: 0.466442953 | J7: 0 | K7: 0.03355704698 | L7: 0.003355704698 | M7: 0.01677852349 | N7: 0.1241610738 | O7: 0.4261744966 | P7: 0 | Q7: 0 | R7: 0 | S7: 0 | T7: 0 | U7: 0 | V7: 0 | W7: 0.1176470588 | X7: 0 | Y7: 0.3357238076 | Z7: 0 | AA7: 0.138047138 | AB7: 0 | AC7: 132163.3716 | AD7: 0 | AE7: 0 | AF7: 1 | AG7: 0 | AH7: 6860.8 | AI7: 0 | AJ7: 0 | AK7: 4568.51 | AL7: 1531376.619 | AM7: 55566.2715 | AN7: 6860.8 | AO7: 295 | AR7: 0 | AS7: 1.2 | AT7: 0 | AV7: 52190.56808 | AW7: 60719.43232 | AX7: 78458.23485 | AY7: 115105.5081 | AZ7: 0 | BA7: 15369.30963 | BB7: 0 | BC7: 0 | BD7: 0 | BE7: 1264.735551 | BF7: 298 | CC7: 0
A8: 2006 | B8: St James the Great Academy | C8: 1 | D8: 189 | E8: 0 | F8: 0 | G8: 0.4761904762 | H8: 0 | I8: 0.4814814815 | J8: 0 | K8: 0.05319148936 | L8: 0.005319148936 | M8: 0.01063829787 | N8: 0.3085106383 | O8: 0.4255319149 | P8: 0 | Q8: 0 | R8: 0 | S8: 0 | T8: 0 | U8: 0 | V8: 0 | W8: 0.0350877193 | X8: 0 | Y8: 0.2817729831 | Z8: 0 | AA8: 0.05291005291 | AB8: 0 | AC8: 132163.3716 | AD8: 0 | AE8: 0 | AF8: 1 | AG8: 0 | AH8: 7270.4 | AI8: 0 | AJ8: 0 | AK8: 4568.51 | AL8: 947958.9414 | AM8: 34229.1915 | AN8: 7270.4 | AO8: 177 | AR8: 0 | AS8: 1.2 | AT8: 0 | AV8: 33100.72942 | AW8: 50416.55863 | AX8: 51364.74368 | AY8: 61271.5485 | AZ8: 0 | BA8: 0 | BB8: 0 | BC8: 0 | BD8: 0 | BE8: 0 | BF8: 189 | CC8: 0
A9: 2007 | B9: Molehill Primary Academy | C9: 1 | D9: 270 | E9: 0 | F9: 0 | G9: 0.437037037 | H9: 0 | I9: 0.4444444444 | J9: 0 | K9: 0.1148148148 | L9: 0.04074074074 | M9: 0.1074074074 | N9: 0.1888888889 | O9: 0.1555555556 | P9: 0 | Q9: 0 | R9: 0 | S9: 0 | T9: 0 | U9: 0 | V9: 0 | W9: 0.1956521739 | X9: 0 | Y9: 0.2567767626 | Z9: 0 | AA9: 0.08888888889 | AB9: 0 | AC9: 132163.3716 | AD9: 0 | AE9: 0 | AF9: 1 | AG9: 0 | AH9: 6553.6 | AI9: 0 | AJ9: 0 | AK9: 4568.51 | AL9: 1375011.466 | AM9: 50507.6964 | AN9: 6553.6 | AO9: 270 | AR9: 0 | AS9: 0 | AT9: 0 | AV9: 47286.75631 | AW9: 47971.17377 | AX9: 67733.72793 | AY9: 79765.88454 | AZ9: 0 | BA9: 5154.371491 | BB9: 0 | BC9: 0 | BD9: 0 | BE9: 3256.21205 | BF9: 270 | CC9: 0
A10: 2008 | B10: Tiger Primary School | C10: 1 | D10: 408 | E10: 0 | F10: 0 | G10: 0.3676470588 | H10: 0 | I10: 0.3700980392 | J10: 0 | K10: 0.2205882353 | L10: 0.04901960784 | M10: 0.04901960784 | N10: 0.1519607843 | O10: 0.0931372549 | P10: 0 | Q10: 0 | R10: 0 | S10: 0 | T10: 0 | U10: 0 | V10: 0 | W10: 0.09946236559 | X10: 0 | Y10: 0.3379398216 | Z10: 0 | AA10: 0.05882352941 | AB10: 0 | AC10: 132163.3716 | AD10: 0 | AE10: 0 | AF10: 1 | AG10: 0 | AH10: 7577.6 | AI10: 0 | AJ10: 0 | AK10: 4568.51 | AL10: 2008486.075 | AM10: 70646.9298 | AN10: 7577.6 | AO10: 433 | AR10: 0 | AS10: 0 | AT10: 0 | AV10: 71455.54287 | AW10: 58778.2828 | AX10: 85231.60764 | AY10: 158634.3509 | AZ10: 0 | BA10: 0 | BB10: 0 | BC10: 0 | BD10: 0 | BE10: 0 | BF10: 408 | CC10: Recoupment Academy
A11: 2009 | B11: Northdown Primary School | C11: 1 | D11: 310 | E11: 0 | F11: 0 | G11: 0.7419354839 | H11: 0 | I11: 0.7483870968 | J11: 0 | K11: 0.02258064516 | L11: 0.05483870968 | M11: 0.009677419355 | N11: 0.1129032258 | O11: 0.3838709677 | P11: 0.3290322581 | Q11: 0 | R11: 0 | S11: 0 | T11: 0 | U11: 0 | V11: 0 | W11: 0.1111111111 | X11: 0 | Y11: 0.4331800495 | Z11: 0 | AA11: 0.09677419355 | AB11: 0 | AC11: 132163.3716 | AD11: 0 | AE11: 0 | AF11: 1 | AG11: 0 | AH11: 8704 | AI11: 0 | AJ11: 0 | AK11: 4568.51 | AL11: 1807836.558 | AM11: 66883.2698 | AN11: 8704 | AO11: 314 | AR11: 0 | AS11: 0 | AT11: 0 | AV11: 54292.20169 | AW11: 107000.7047 | AX11: 130951.874 | AY11: 154499.7719 | AZ11: 0 | BA11: 7533.312179 | BB11: 0 | BC11: 0 | BD11: 0 | BE11: 0 | BF11: 310 | CC11: Recoupment Academy
A12: 2010 | B12: Newlands Primary School | C12: 1 | D12: 255 | E12: 0 | F12: 0 | G12: 0.6352941176 | H12: 0 | I12: 0.6431372549 | J12: 0 | K12: 0.0431372549 | L12: 0.1843137255 | M12: 0.02745098039 | N12: 0.231372549 | O12: 0.2431372549 | P12: 0.02352941176 | Q12: 0 | R12: 0 | S12: 0 | T12: 0 | U12: 0 | V12: 0 | W12: 0.08849557522 | X12: 0 | Y12: 0.4405913978 | Z12: 0 | AA12: 0.0862745098 | AB12: 0 | AC12: 132163.3716 | AD12: 0 | AE12: 0 | AF12: 1 | AG12: 0 | AH12: 8243.2 | AI12: 0 | AJ12: 0 | AK12: 4568.51 | AL12: 1519866.915 | AM12: 56129.6697 | AN12: 8243.2 | AO12: 284 | AR12: 0 | AS12: 0 | AT12: 0 | AV12: 44659.7143 | AW12: 57628.73681 | AX12: 92569.42817 | AY12: 129262.9004 | AZ12: 0 | BA12: 4427.472947 | BB12: 0 | BC12: 0 | BD12: 0 | BE12: 0 | BF12: 255 | CC12: Recoupment Academy
A13: 2011 | B13: Salmestone Primary School | C13: 1 | D13: 200 | E13: 0 | F13: 0 | G13: 0.52 | H13: 0 | I13: 0.535 | J13: 0 | K13: 0.285 | L13: 0.08 | M13: 0.065 | N13: 0.21 | O13: 0.235 | P13: 0.05 | Q13: 0 | R13: 0 | S13: 0 | T13: 0 | U13: 0 | V13: 0 | W13: 0.07471264368 | X13: 0 | Y13: 0.4347826087 | Z13: 0 | AA13: 0.065 | AB13: 0 | AC13: 132163.3716 | AD13: 0 | AE13: 0 | AF13: 1 | AG13: 0 | AH13: 8448 | AI13: 0 | AJ13: 0 | AK13: 4568.51 | AL13: 1081396.379 | AM13: 37592.5686 | AN13: 8448 | AO13: 200 | AR13: 0 | AS13: 0 | AT13: 0 | AV13: 35027.2269 | AW13: 51705.47737 | AX13: 60395.9074 | AY13: 100046.0305 | AZ13: 0 | BA13: 660.8168578 | BB13: 0 | BC13: 0 | BD13: 0 | BE13: 0 | BF13: 200 | CC13: Recoupment Academy
A14: 2013 | B14: Water Meadows Primary School | C14: 1 | D14: 165 | E14: 0 | F14: 0 | G14: 0.4121212121 | H14: 0 | I14: 0.4181818182 | J14: 0 | K14: 0.4727272727 | L14: 0.0303030303 | M14: 0 | N14: 0.01818181818 | O14: 0.05454545455 | P14: 0 | Q14: 0 | R14: 0 | S14: 0 | T14: 0 | U14: 0 | V14: 0 | W14: 0.1111111111 | X14: 0 | Y14: 0.3303085803 | Z14: 0 | AA14: 0.1393939394 | AB14: 0 | AC14: 132163.3716 | AD14: 0 | AE14: 0 | AF14: 1 | AG14: 0 | AH14: 5785.6 | AI14: 0 | AJ14: 0 | AK14: 4568.51 | AL14: 796874.573 | AM14: 28768.3321 | AN14: 5785.6 | AO14: 146 | AR14: 0 | AS14: 0 | AT14: 0 | AV14: 28897.46219 | AW14: 17790.42884 | AX14: 38946.89356 | AY14: 62704.90321 | AZ14: 0 | BA14: 8656.700838 | BB14: 0 | BC14: 0 | BD14: 0 | BE14: 1547.117758 | BF14: 165 | CC14: Recoupment Academy
A15: 2014 | B15: St Laurence In Thanet Church of England Junior Academy | C15: 1 | D15: 154 | E15: 0 | F15: 0 | G15: 0.6038961039 | H15: 0 | I15: 0.6233766234 | J15: 0 | K15: 0.1568627451 | L15: 0.1241830065 | M15: 0.09803921569 | N15: 0.2222222222 | O15: 0.1307189542 | P15: 0.1176470588 | Q15: 0 | R15: 0 | S15: 0 | T15: 0 | U15: 0 | V15: 0 | W15: 0.04575163399 | X15: 0 | Y15: 0.4335007043 | Z15: 0 | AA15: 0.08441558442 | AB15: 0 | AC15: 132163.3716 | AD15: 0 | AE15: 0 | AF15: 1 | AG15: 0 | AH15: 5171.2 | AI15: 0 | AJ15: 0 | AK15: 4568.51 | AL15: 976772.3961 | AM15: 36057.4837 | AN15: 5171.2 | AO15: 174 | AR15: 0 | AS15: 0 | AT15: 0 | AV15: 26970.96471 | AW15: 39326.1614 | AX15: 54186.98234 | AY15: 76808.31371 | AZ15: 0 | BA15: 2484.671385 | BB15: 0 | BC15: 0 | BD15: 0 | BE15: 0 | BF15: 154 | CC15: Recoupment Academy
A16: 2015 | B16: Dame Janet Primary Academy | C16: 1 | D16: 337 | E16: 0 | F16: 0 | G16: 0.6439169139 | H16: 0 | I16: 0.6557863501 | J16: 0 | K16: 0.05389221557 | L16: 0.119760479 | M16: 0.1976047904 | N16: 0.1377245509 | O16: 0.08682634731 | P16: 0.2784431138 | Q16: 0 | R16: 0 | S16: 0 | T16: 0 | U16: 0 | V16: 0 | W16: 0.0472972973 | X16: 0 | Y16: 0.4362670202 | Z16: 0 | AA16: 0.1008902077 | AB16: 0 | AC16: 132163.3716 | AD16: 0 | AE16: 0 | AF16: 1 | AG16: 56303.75395 | AH16: 10342.4 | AI16: 0 | AJ16: 0 | AK16: 4568.51 | AL16: 1823687.866 | AM16: 65340.1792 | AN16: 10342.4 | AO16: 336 | AR16: 0 | AS16: 1.2 | AT16: 0 | AV16: 59020.87732 | AW16: 101044.2333 | AX16: 124742.9489 | AY16: 169153.1099 | AZ16: 0 | BA16: 9106.056301 | BB16: 0 | BC16: 0 | BD16: 0 | BE16: 0 | BF16: 337 | CC16: Recoupment Academy
A17: 2017 | B17: Drapers Mills Primary Academy | C17: 1 | D17: 277 | E17: 0 | F17: 0 | G17: 0.6606498195 | H17: 0 | I17: 0.678700361 | J17: 0 | K17: 0.04347826087 | L17: 0.1884057971 | M17: 0.05797101449 | N17: 0.1920289855 | O17: 0.2101449275 | P17: 0.2536231884 | Q17: 0 | R17: 0 | S17: 0 | T17: 0 | U17: 0 | V17: 0 | W17: 0.2559055118 | X17: 0 | Y17: 0.4330180981 | Z17: 0 | AA17: 0.1516245487 | AB17: 0 | AC17: 132163.3716 | AD17: 0 | AE17: 0 | AF17: 1 | AG17: 0 | AH17: 11776 | AI17: 0 | AJ17: 0 | AK17: 4568.51 | AL17: 1866545.107 | AM17: 66662.1135 | AN17: 11776 | AO17: 327 | AR17: 0 | AS17: 1.2 | AT17: 0 | AV17: 48512.70925 | AW17: 88383.24466 | AX17: 106116.1738 | AY17: 138001.4086 | AZ17: 0 | BA17: 16771.53185 | BB17: 0 | BC17: 0 | BD17: 0 | BE17: 0 | BF17: 277 | CC17: Recoupment Academy
A18: 2018 | B18: Temple Grove Academy | C18: 1 | D18: 191 | E18: 0 | F18: 0 | G18: 0.5183246073 | H18: 0 | I18: 0.5183246073 | J18: 0 | K18: 0.3769633508 | L18: 0 | M18: 0 | N18: 0.2931937173 | O18: 0 | P18: 0 | Q18: 0 | R18: 0 | S18: 0 | T18: 0 | U18: 0 | V18: 0 | W18: 0.1538461538 | X18: 0 | Y18: 0.4087521174 | Z18: 0 | AA18: 0.1570680628 | AB18: 0 | AC18: 132163.3716 | AD18: 0 | AE18: 0 | AF18: 1 | AG18: 0 | AH18: 6689.59 | AI18: 0 | AJ18: 0 | AK18: 4568.51 | AL18: 1006370.082 | AM18: 36223.6011 | AN18: 6689.59 | AO18: 192 | AR18: 0 | AS18: 0 | AT18: 0 | AV18: 33451.00169 | AW18: 30342.50739 | AX18: 55880.32554 | AY18: 89823.72988 | AZ18: 0 | BA18: 12251.54454 | BB18: 0 | BC18: 0 | BD18: 0 | BE18: 0 | BF18: 191 | CC18: Recoupment Academy
A19: 2019 | B19: Chantry Community Academy | C19: 1 | D19: 408 | E19: 0 | F19: 0 | G19: 0.4460784314 | H19: 0 | I19: 0.4583333333 | J19: 0 | K19: 0.3604938272 | L19: 0.3086419753 | M19: 0.02222222222 | N19: 0.0962962963 | O19: 0.01234567901 | P19: 0 | Q19: 0 | R19: 0 | S19: 0 | T19: 0 | U19: 0 | V19: 0 | W19: 0.3371428571 | X19: 0 | Y19: 0.3820303121 | Z19: 0 | AA19: 0.1053921569 | AB19: 0 | AC19: 132163.3716 | AD19: 0 | AE19: 0 | AF19: 1 | AG19: 0 | AH19: 13209.6 | AI19: 0 | AJ19: 0 | AK19: 4568.51 | AL19: 2006305.658 | AM19: 69616.2013 | AN19: 13209.6 | AO19: 399 | AR19: 0 | AS19: 1.2 | AT19: 0 | AV19: 71455.54287 | AW19: 66175.91337 | AX19: 105551.726 | AY19: 179331.1315 | AZ19: 0 | BA19: 12238.32821 | BB19: 0 | BC19: 0 | BD19: 0 | BE19: 0 | BF19: 408 | CC19: Recoupment Academy
A20: 2020 | B20: Christ Church Church of England Junior School, Ramsgate | C20: 1 | D20: 224 | E20: 0 | F20: 0 | G20: 0.4598214286 | H20: 0 | I20: 0.4776785714 | J20: 0 | K20: 0.1428571429 | L20: 0.1383928571 | M20: 0.1339285714 | N20: 0.1741071429 | O20: 0.1026785714 | P20: 0.01785714286 | Q20: 0 | R20: 0 | S20: 0 | T20: 0 | U20: 0 | V20: 0 | W20: 0.08482142857 | X20: 0 | Y20: 0.4625401956 | Z20: 0 | AA20: 0.1428571429 | AB20: 0 | AC20: 132163.3716 | AD20: 0 | AE20: 0 | AF20: 1 | AG20: 0 | AH20: 7884.8 | AI20: 0 | AJ20: 0 | AK20: 4568.51 | AL20: 1072614.524 | AM20: 37384.4215 | AN20: 7884.8 | AO20: 200 | AR20: 0 | AS20: 0 | AT20: 0 | AV20: 39230.49413 | AW20: 43493.45121 | AX20: 60395.9074 | AY20: 119205.1999 | AZ20: 0 | BA20: 12264.76088 | BB20: 0 | BC20: 0 | BD20: 0 | BE20: 0 | BF20: 224 | CC20: Recoupment Academy
A21: 2021 | B21: Kemsley Primary Academy | C21: 1 | D21: 197 | E21: 0 | F21: 0 | G21: 0.3654822335 | H21: 0 | I21: 0.3756345178 | J21: 0 | K21: 0.6974358974 | L21: 0.005128205128 | M21: 0.02564102564 | N21: 0.005128205128 | O21: 0 | P21: 0.03076923077 | Q21: 0 | R21: 0 | S21: 0 | T21: 0 | U21: 0 | V21: 0 | W21: 0.04191616766 | X21: 0 | Y21: 0.2686480186 | Z21: 0 | AA21: 0.03571428571 | AB21: 0 | AC21: 132163.3716 | AD21: 0 | AE21: 0 | AF21: 1 | AG21: 0 | AH21: 9472 | AI21: 0 | AJ21: 0 | AK21: 4568.51 | AL21: 992298.3351 | AM21: 35332.9716 | AN21: 9472 | AO21: 202 | AR21: 0 | AS21: 1.2 | AT21: 0 | AV21: 34501.8185 | AW21: 27145.36459 | AX21: 41769.13222 | AY21: 60890.2238 | AZ21: 0 | BA21: 0 | BB21: 0 | BC21: 0 | BD21: 0 | BE21: 0 | BF21: 197 | CC21: Recoupment Academy
A22: 2022 | B22: Milton Court Primary Academy | C22: 1 | D22: 205 | E22: 0 | F22: 0 | G22: 0.6146341463 | H22: 0 | I22: 0.6146341463 | J22: 0 | K22: 0.1674876847 | L22: 0.1330049261 | M22: 0.3990147783 | N22: 0.02955665025 | O22: 0.004926108374 | P22: 0.0197044335 | Q22: 0 | R22: 0 | S22: 0 | T22: 0 | U22: 0 | V22: 0 | W22: 0.05747126437 | X22: 0 | Y22: 0.30860264 | Z22: 0 | AA22: 0.1024390244 | AB22: 0 | AC22: 132163.3716 | AD22: 0 | AE22: 0 | AF22: 1 | AG22: 0 | AH22: 5836.8 | AI22: 0 | AJ22: 0 | AK22: 4568.51 | AL22: 1112059.919 | AM22: 41979.6692 | AN22: 5836.8 | AO22: 208 | AR22: 0 | AS22: 1.2 | AT22: 0 | AV22: 35902.90757 | AW22: 40230.80361 | AX22: 71120.41432 | AY22: 72786.56097 | AZ22: 0 | BA22: 5749.106663 | BB22: 0 | BC22: 0 | BD22: 0 | BE22: 0 | BF22: 205 | CC22: Recoupment Academy
A23: 2023 | B23: Temple Ewell Church of England Primary School | C23: 1 | D23: 152 | E23: 0 | F23: 0 | G23: 0.2171052632 | H23: 0 | I23: 0.2171052632 | J23: 0 | K23: 0.06578947368 | L23: 0.06578947368 | M23: 0.07236842105 | N23: 0.01315789474 | O23: 0 | P23: 0.02631578947 | Q23: 0 | R23: 0 | S23: 0 | T23: 0 | U23: 0 | V23: 0 | W23: 0 | X23: 0 | Y23: 0.1780208096 | Z23: 0 | AA23: 0.05263157895 | AB23: 0 | AC23: 132163.3716 | AD23: 0 | AE23: 0 | AF23: 1 | AG23: 0 | AH23: 1228.8 | AI23: 0 | AJ23: 0 | AK23: 4568.51 | AL23: 678002.7559 | AM23: 24471.2951 | AN23: 1228.8 | AO23: 144 | AR23: 0 | AS23: 0 | AT23: 0 | AV23: 26620.69244 | AW23: 9488.917068 | AX23: 18626.77518 | AY23: 31132.3613 | AZ23: 0 | BA23: 0 | BB23: 0 | BC23: 0 | BD23: 0 | BE23: 0 | BF23: 152 | CC23: Recoupment Academy
A24: 2024 | B24: Copperfield Academy | C24: 1 | D24: 414 | E24: 0 | F24: 0 | G24: 0.345410628 | H24: 0 | I24: 0.3502415459 | J24: 0 | K24: 0.2028985507 | L24: 0.152173913 | M24: 0.0652173913 | N24: 0.0193236715 | O24: 0.07487922705 | P24: 0 | Q24: 0 | R24: 0 | S24: 0 | T24: 0 | U24: 0 | V24: 0 | W24: 0.2861111111 | X24: 0 | Y24: 0.280550402 | Z24: 0 | AA24: 0.1289537713 | AB24: 0 | AC24: 132163.3716 | AD24: 0 | AE24: 0 | AF24: 1 | AG24: 0 | AH24: 7782.4 | AI24: 0 | AJ24: 0 | AK24: 4568.51 | AL24: 1943897.694 | AM24: 67446.668 | AN24: 7782.4 | AO24: 407 | AR24: 0 | AS24: 1.2 | AT24: 0 | AV24: 72506.35968 | AW24: 47878.2464 | AX24: 81844.92125 | AY24: 133631.5293 | AZ24: 0 | BA24: 18864.24719 | BB24: 0 | BC24: 0 | BD24: 0 | BE24: 0 | BF24: 414 | CC24: Recoupment Academy
A25: 2025 | B25: The Wells Free School | C25: 1 | D25: 210 | E25: 0 | F25: 0 | G25: 0.1619047619 | H25: 0 | I25: 0.1714285714 | J25: 0 | K25: 0.03349282297 | L25: 0 | M25: 0 | N25: 0.00956937799 | O25: 0 | P25: 0 | Q25: 0 | R25: 0 | S25: 0 | T25: 0 | U25: 0 | V25: 0 | W25: 0.3370165746 | X25: 0 | Y25: 0.213281093 | Z25: 0 | AA25: 0.1238095238 | AB25: 0 | AC25: 132163.3716 | AD25: 0 | AE25: 0 | AF25: 1 | AG25: 0 | AH25: 1258.4 | AI25: 0 | AJ25: 0 | AK25: 4568.51 | AL25: 921889.3187 | AM25: 30901.8399 | AN25: 1258.4 | AO25: 198 | AR25: 0 | AS25: 0 | AT25: 0 | AV25: 36778.58824 | AW25: 1808.650207 | AX25: 20320.11838 | AY25: 51531.09307 | AZ25: 0 | BA25: 8854.945895 | BB25: 0 | BC25: 0 | BD25: 0 | BE25: 0 | BF25: 210 | CC25: Recoupment Academy
A26: 2026 | B26: Petham Primary School | C26: 1 | D26: 106 | E26: 0 | F26: 0 | G26: 0.1603773585 | H26: 0 | I26: 0.1698113208 | J26: 0 | K26: 0 | L26: 0.02830188679 | M26: 0 | N26: 0.009433962264 | O26: 0 | P26: 0 | Q26: 0 | R26: 0 | S26: 0 | T26: 0 | U26: 0 | V26: 0 | W26: 0.02150537634 | X26: 0 | Y26: 0.1907625272 | Z26: 0 | AA26: 0.05660377358 | AB26: 0 | AC26: 132163.3716 | AD26: 32835.24352 | AE26: 0 | AF26: 1 | AG26: 0 | AH26: 3452.4 | AI26: 0 | AJ26: 0 | AK26: 4568.51 | AL26: 547943.061 | AM26: 18652.1825 | AN26: 3452.4 | AO26: 103 | AR26: 0 | AS26: 0 | AT26: 0 | AV26: 18564.43026 | AW26: 922.3901974 | AX26: 10160.05919 | AY26: 23264.65598 | AZ26: 0 | BA26: 0 | BB26: 0 | BC26: 0 | BD26: 0 | BE26: 0 | BF26: 106 | CC26: Recoupment Academy
A27: 2027 | B27: Archbishop Courtenay Primary School | C27: 1 | D27: 312 | E27: 0 | F27: 0 | G27: 0.391025641 | H27: 0 | I27: 0.391025641 | J27: 0 | K27: 0.08333333333 | L27: 0.04487179487 | M27: 0.009615384615 | N27: 0 | O27: 0.1858974359 | P27: 0 | Q27: 0 | R27: 0 | S27: 0 | T27: 0 | U27: 0 | V27: 0 | W27: 0.2490566038 | X27: 0 | Y27: 0.319523049 | Z27: 0 | AA27: 0.1125401929 | AB27: 0 | AC27: 132163.3716 | AD27: 0 | AE27: 0 | AF27: 1 | AG27: 0 | AH27: 13004.8 | AI27: 0 | AJ27: 0 | AK27: 4568.51 | AL27: 1522457.965 | AM27: 53620.8966 | AN27: 13004.8 | AO27: 311 | AR27: 0 | AS27: 0 | AT27: 0 | AV27: 54642.47396 | AW27: 28432.33366 | AX27: 68862.62339 | AY27: 114697.6416 | AZ27: 0 | BA27: 10832.4669 | BB27: 0 | BC27: 0 | BD27: 0 | BE27: 0 | BF27: 312 | CC27: Recoupment Academy
A28: 2028 | B28: Cliftonville Primary School | C28: 1 | D28: 797 | E28: 0 | F28: 0 | G28: 0.4981179423 | H28: 0 | I28: 0.5081555834 | J28: 0 | K28: 0.01767676768 | L28: 0.1174242424 | M28: 0.06818181818 | N28: 0.1515151515 | O28: 0.2133838384 | P28: 0.2095959596 | Q28: 0 | R28: 0 | S28: 0 | T28: 0 | U28: 0 | V28: 0 | W28: 0.1666666667 | X28: 0 | Y28: 0.4044550077 | Z28: 0 | AA28: 0.06649937265 | AB28: 0 | AC28: 132163.3716 | AD28: 0 | AE28: 0 | AF28: 1 | AG28: 0 | AH28: 16793.6 | AI28: 0 | AJ28: 0 | AK28: 4568.51 | AL28: 4071035.474 | AM28: 145009.4856 | AN28: 16793.6 | AO28: 811 | AR28: 0 | AS28: 1.2 | AT28: 0 | AV28: 139583.4992 | AW28: 216079.7597 | AX28: 228601.3318 | AY28: 370873.8738 | AZ28: 0 | BA28: 3423.031324 | BB28: 0 | BC28: 0 | BD28: 0 | BE28: 0 | BF28: 797 | CC28: Recoupment Academy
A29: 2029 | B29: Tymberwood Academy | C29: 1 | D29: 347 | E29: 0 | F29: 0 | G29: 0.4610951009 | H29: 0 | I29: 0.4668587896 | J29: 0 | K29: 0.1729106628 | L29: 0.1123919308 | M29: 0.1412103746 | N29: 0.2017291066 | O29: 0.01729106628 | P29: 0 | Q29: 0 | R29: 0 | S29: 0 | T29: 0 | U29: 0 | V29: 0 | W29: 0.1456953642 | X29: 0 | Y29: 0.3027618748 | Z29: 0 | AA29: 0.1354466859 | AB29: 0 | AC29: 132163.3716 | AD29: 0 | AE29: 0 | AF29: 1 | AG29: 0 | AH29: 7270.4 | AI29: 0 | AJ29: 0 | AK29: 4568.51 | AL29: 1707156.745 | AM29: 62947.4882 | AN29: 7270.4 | AO29: 343 | AR29: 0 | AS29: 1.2 | AT29: 0 | AV29: 60772.23867 | AW29: 57862.77611 | AX29: 91440.5327 | AY29: 120872.7389 | AZ29: 0 | BA29: 17300.18534 | BB29: 0 | BC29: 0 | BD29: 0 | BE29: 0 | BF29: 347 | CC29: Recoupment Academy
A30: 2030 | B30: Valley Invicta Primary School At Aylesford | C30: 1 | D30: 386 | E30: 0 | F30: 0 | G30: 0.225388601 | H30: 0 | I30: 0.2357512953 | J30: 0 | K30: 0.1554404145 | L30: 0.007772020725 | M30: 0.00518134715 | N30: 0.189119171 | O30: 0.0103626943 | P30: 0 | Q30: 0 | R30: 0 | S30: 0 | T30: 0 | U30: 0 | V30: 0 | W30: 0.01201201201 | X30: 0 | Y30: 0.2594532173 | Z30: 0 | AA30: 0.07772020725 | AB30: 0 | AC30: 132163.3716 | AD30: 0 | AE30: 0 | AF30: 1 | AG30: 0 | AH30: 4531.2 | AI30: 0 | AJ30: 0 | AK30: 4568.51 | AL30: 1686036.681 | AM30: 58552.382 | AN30: 4531.2 | AO30: 383 | AR30: 0 | AS30: 0 | AT30: 0 | AV30: 67602.54791 | AW30: 36695.98614 | AX30: 51364.74368 | AY30: 115224.2971 | AZ30: 0 | BA30: 4519.987308 | BB30: 0 | BC30: 0 | BD30: 0 | BE30: 0 | BF30: 386 | CC30: Recoupment Academy
A31: 2034 | B31: Thistle Hill Academy | C31: 1 | D31: 348 | E31: 0 | F31: 0 | G31: 0.4511494253 | H31: 0 | I31: 0.4511494253 | J31: 0 | K31: 0.6781609195 | L31: 0.02586206897 | M31: 0.02586206897 | N31: 0.02873563218 | O31: 0.1235632184 | P31: 0.0316091954 | Q31: 0 | R31: 0 | S31: 0 | T31: 0 | U31: 0 | V31: 0 | W31: 0.04885993485 | X31: 0 | Y31: 0.2643616118 | Z31: 0 | AA31: 0.06051873199 | AB31: 0 | AC31: 132163.3716 | AD31: 0 | AE31: 0 | AF31: 1 | AG31: 0 | AH31: 13004.8 | AI31: 0 | AJ31: 0 | AK31: 4568.51 | AL31: 1739552.388 | AM31: 64080.2888 | AN31: 13004.8 | AO31: 363 | AR31: 0 | AS31: 0 | AT31: 0 | AV31: 60947.3748 | AW31: 66429.30298 | AX31: 88618.29404 | AY31: 105846.2162 | AZ31: 0 | BA31: 119.2898213 | BB31: 0 | BC31: 0 | BD31: 0 | BE31: 0 | BF31: 348 | CC31: Recoupment Academy
A32: 2036 | B32: Valley Invicta Primary School At Leybourne Chase | C32: 1 | D32: 220 | E32: 0 | F32: 0 | G32: 0.1045454545 | H32: 0 | I32: 0.1090909091 | J32: 0 | K32: 0.07305936073 | L32: 0.02739726027 | M32: 0 | N32: 0.01826484018 | O32: 0.009132420091 | P32: 0 | Q32: 0 | R32: 0 | S32: 0 | T32: 0 | U32: 0 | V32: 0 | W32: 0.03723404255 | X32: 0 | Y32: 0.2397979737 | Z32: 0 | AA32: 0.05 | AB32: 0 | AC32: 132163.3716 | AD32: 0 | AE32: 0 | AF32: 1 | AG32: 0 | AH32: 8243.2 | AI32: 0 | AJ32: 0 | AK32: 4568.51 | AL32: 999027.2 | AM32: 34028.0494 | AN32: 8243.2 | AO32: 226 | AR32: 0 | AS32: 0 | AT32: 0 | AV32: 38529.94959 | AW32: 5836.209768 | AX32: 13546.74559 | AY32: 60696.81354 | AZ32: 0 | BA32: 0 | BB32: 0 | BC32: 0 | BD32: 0 | BE32: 0 | BF32: 220 | CC32: Recoupment Academy
A33: 2037 | B33: Valley Invicta Primary School at Holborough Lakes | C33: 1 | D33: 228 | E33: 0 | F33: 0 | G33: 0.1140350877 | H33: 0 | I33: 0.1140350877 | J33: 0 | K33: 0.7268722467 | L33: 0.07929515419 | M33: 0.004405286344 | N33: 0.02202643172 | O33: 0.008810572687 | P33: 0 | Q33: 0 | R33: 0 | S33: 0 | T33: 0 | U33: 0 | V33: 0 | W33: 0.07692307692 | X33: 0 | Y33: 0.2452610575 | Z33: 0 | AA33: 0.03524229075 | AB33: 0 | AC33: 132163.3716 | AD33: 0 | AE33: 0 | AF33: 1 | AG33: 0 | AH33: 9420.8 | AI33: 0 | AJ33: 0 | AK33: 4568.51 | AL33: 1039926.763 | AM33: 34905.6696 | AN33: 9420.8 | AO33: 229 | AR33: 0 | AS33: 0 | AT33: 0 | AV33: 39931.03866 | AW33: 33051.57753 | AX33: 14675.64105 | AY33: 64337.05032 | AZ33: 0 | BA33: 0 | BB33: 0 | BC33: 0 | BD33: 0 | BE33: 0 | BF33: 228 | CC33: Recoupment Academy
A34: 2038 | B34: Valley Invicta Primary School At Kings Hill | C34: 1 | D34: 218 | E34: 0 | F34: 0 | G34: 0.128440367 | H34: 0 | I34: 0.128440367 | J34: 0 | K34: 0.1055045872 | L34: 0.009174311927 | M34: 0 | N34: 0.03669724771 | O34: 0.004587155963 | P34: 0 | Q34: 0 | R34: 0 | S34: 0 | T34: 0 | U34: 0 | V34: 0 | W34: 0.08064516129 | X34: 0 | Y34: 0.2279005525 | Z34: 0 | AA34: 0.1009174312 | AB34: 0 | AC34: 132163.3716 | AD34: 0 | AE34: 0 | AF34: 1 | AG34: 0 | AH34: 3891.2 | AI34: 0 | AJ34: 0 | AK34: 4568.51 | AL34: 982912.8337 | AM34: 33968.0069 | AN34: 3891.2 | AO34: 222 | AR34: 0 | AS34: 0 | AT34: 0 | AV34: 38179.67732 | AW34: 7138.198766 | AX34: 15804.53652 | AY34: 57160.96788 | AZ34: 0 | BA34: 5894.486372 | BB34: 0 | BC34: 0 | BD34: 0 | BE34: 0 | BF34: 218 | CC34: Recoupment Academy
A35: 2039 | B35: Martello Primary | C35: 1 | D35: 158 | E35: 0 | F35: 0 | G35: 0.664556962 | H35: 0 | I35: 0.664556962 | J35: 0 | K35: 0.1075949367 | L35: 0.1139240506 | M35: 0.1139240506 | N35: 0.08860759494 | O35: 0.417721519 | P35: 0.06329113924 | Q35: 0 | R35: 0 | S35: 0 | T35: 0 | U35: 0 | V35: 0 | W35: 0.1818181818 | X35: 0 | Y35: 0.4235690236 | Z35: 0 | AA35: 0.1464968153 | AB35: 0 | AC35: 132163.3716 | AD35: 0 | AE35: 0 | AF35: 1 | AG35: 0 | AH35: 8908.8 | AI35: 0 | AJ35: 0 | AK35: 4568.51 | AL35: 1026345.003 | AM35: 36607.8727 | AN35: 8908.8 | AO35: 176 | AR35: 0 | AS35: 0 | AT35: 0 | AV35: 27671.50925 | AW35: 44546.62808 | AX35: 59267.01194 | AY35: 76997.9178 | AZ35: 0 | BA35: 9031.051483 | BB35: 0 | BC35: 0 | BD35: 0 | BE35: 0 | BF35: 158 | CC35: Recoupment Academy
A36: 2041 | B36: The Holy Family Catholic Primary School | C36: 1 | D36: 209 | E36: 0 | F36: 0 | G36: 0.5741626794 | H36: 0 | I36: 0.5789473684 | J36: 0 | K36: 0.03349282297 | L36: 0.02392344498 | M36: 0.06220095694 | N36: 0.2392344498 | O36: 0.3349282297 | P36: 0 | Q36: 0 | R36: 0 | S36: 0 | T36: 0 | U36: 0 | V36: 0 | W36: 0.1333333333 | X36: 0 | Y36: 0.4028259473 | Z36: 0 | AA36: 0.1387559809 | AB36: 0 | AC36: 132163.3716 | AD36: 0 | AE36: 0 | AF36: 1 | AG36: 0 | AH36: 4096 | AI36: 0 | AJ36: 0 | AK36: 4568.51 | AL36: 1126407.328 | AM36: 40165.3869 | AN36: 4096 | AO36: 205 | AR36: 0 | AS36: 0 | AT36: 0 | AV36: 36603.45211 | AW36: 47602.90605 | AX36: 68298.17566 | AY36: 96863.78281 | AZ36: 0 | BA36: 10877.04548 | BB36: 0 | BC36: 0 | BD36: 0 | BE36: 0 | BF36: 209 | CC36: Recoupment Academy
A37: 2043 | B37: Jubilee Primary School | C37: 1 | D37: 326 | E37: 0 | F37: 0 | G37: 0.2147239264 | H37: 0 | I37: 0.217791411 | J37: 0 | K37: 0.06748466258 | L37: 0.1717791411 | M37: 0.003067484663 | N37: 0.006134969325 | O37: 0.0245398773 | P37: 0 | Q37: 0 | R37: 0 | S37: 0 | T37: 0 | U37: 0 | V37: 0 | W37: 0.1940298507 | X37: 0 | Y37: 0.2367393169 | Z37: 0 | AA37: 0.0736196319 | AB37: 0 | AC37: 132163.3716 | AD37: 0 | AE37: 0 | AF37: 1 | AG37: 0 | AH37: 4736 | AI37: 0 | AJ37: 0 | AK37: 4568.51 | AL37: 1360842.372 | AM37: 48178.0499 | AN37: 4736 | AO37: 302 | AR37: 0 | AS37: 0 | AT37: 0 | AV37: 57094.37985 | AW37: 18354.87658 | AX37: 40075.78902 | AY37: 88794.4236 | AZ37: 0 | BA37: 2934.026849 | BB37: 0 | BC37: 0 | BD37: 0 | BE37: 0 | BF37: 326 | CC37: Recoupment Academy
A38: 2044 | B38: Loose Primary School | C38: 1 | D38: 663 | E38: 0 | F38: 0 | G38: 0.08597285068 | H38: 0 | I38: 0.0874811463 | J38: 0 | K38: 0.1900452489 | L38: 0.01055806938 | M38: 0.004524886878 | N38: 0.02714932127 | O38: 0.01055806938 | P38: 0 | Q38: 0 | R38: 0 | S38: 0 | T38: 0 | U38: 0 | V38: 0 | W38: 0.04712041885 | X38: 0 | Y38: 0.230164563 | Z38: 0 | AA38: 0.02111613876 | AB38: 0 | AC38: 132163.3716 | AD38: 0 | AE38: 0 | AF38: 1 | AG38: 0 | AH38: 11980.8 | AI38: 0 | AJ38: 0 | AK38: 4568.51 | AL38: 2887884.8 | AM38: 88356.446 | AN38: 11980.8 | AO38: 656 | AR38: 0 | AS38: 0 | AT38: 0 | AV38: 116115.2572 | AW38: 31165.08671 | AX38: 32737.9685 | AY38: 175569.7495 | AZ38: 0 | BA38: 0 | BB38: 0 | BC38: 0 | BD38: 112661.3893 | BE38: 0 | BF38: 663 | CC38: Recoupment Academy
A39: 2045 | B39: Skinners' Kent Primary School | C39: 1 | D39: 210 | E39: 0 | F39: 0 | G39: 0.1666666667 | H39: 0 | I39: 0.1666666667 | J39: 0 | K39: 0.1100478469 | L39: 0 | M39: 0.00956937799 | N39: 0.03349282297 | O39: 0 | P39: 0 | Q39: 0 | R39: 0 | S39: 0 | T39: 0 | U39: 0 | V39: 0 | W39: 0.07777777778 | X39: 0 | Y39: 0.3854748603 | Z39: 0 | AA39: 0.01428571429 | AB39: 0 | AC39: 132163.3716 | AD39: 0 | AE39: 0 | AF39: 1 | AG39: 0 | AH39: 10854.4 | AI39: 0 | AJ39: 0 | AK39: 4568.51 | AL39: 971826.7783 | AM39: 33267.5119 | AN39: 10854.4 | AO39: 210 | AR39: 0 | AS39: 0 | AT39: 0 | AV39: 36778.58824 | AW39: 6702.034609 | AX39: 19755.67065 | AY39: 93135.02956 | AZ39: 0 | BA39: 0 | BB39: 0 | BC39: 0 | BD39: 0 | BE39: 0 | BF39: 210 | CC39: Recoupment Academy
A40: 2048 | B40: Reculver Church of England Primary School | C40: 1 | D40: 458 | E40: 0 | F40: 0 | G40: 0.1986899563 | H40: 0 | I40: 0.2205240175 | J40: 0 | K40: 0.04366812227 | L40: 0.01091703057 | M40: 0.01310043668 | N40: 0.02401746725 | O40: 0.01528384279 | P40: 0.002183406114 | Q40: 0 | R40: 0 | S40: 0 | T40: 0 | U40: 0 | V40: 0 | W40: 0.01256281407 | X40: 0 | Y40: 0.2303639847 | Z40: 0 | AA40: 0.04157549234 | AB40: 0 | AC40: 132163.3716 | AD40: 0 | AE40: 0 | AF40: 1 | AG40: 0 | AH40: 12595.2 | AI40: 0 | AJ40: 0 | AK40: 4568.51 | AL40: 2168966.422 | AM40: 73688.0791 | AN40: 12595.2 | AO40: 490 | AR40: 0 | AS40: 0 | AT40: 0 | AV40: 80212.3496 | AW40: 12675.98171 | AX40: 57009.22101 | AY40: 121388.5608 | AZ40: 0 | BA40: 0 | BB40: 0 | BC40: 0 | BD40: 37772.13918 | BE40: 4506.711931 | BF40: 458 | CC40: Recoupment Academy
A41: 2051 | B41: St Mary of Charity CofE (Aided) Primary School | C41: 1 | D41: 210 | E41: 0 | F41: 0 | G41: 0.4333333333 | H41: 0 | I41: 0.4333333333 | J41: 0 | K41: 0.2775119617 | L41: 0.3684210526 | M41: 0.03349282297 | N41: 0 | O41: 0.05741626794 | P41: 0 | Q41: 0 | R41: 0 | S41: 0 | T41: 0 | U41: 0 | V41: 0 | W41: 0.03867403315 | X41: 0 | Y41: 0.377769216 | Z41: 0 | AA41: 0.07142857143 | AB41: 0 | AC41: 132163.3716 | AD41: 0 | AE41: 0 | AF41: 1 | AG41: 0 | AH41: 5427.2 | AI41: 0 | AJ41: 0 | AK41: 4568.51 | AL41: 1038121.134 | AM41: 36895.0756 | AN41: 5427.2 | AO41: 209 | AR41: 0 | AS41: 0 | AT41: 0 | AV41: 36778.58824 | AW41: 31034.08596 | AX41: 51364.74368 | AY41: 91273.25986 | AZ41: 0 | BA41: 1585.960459 | BB41: 0 | BC41: 0 | BD41: 0 | BE41: 0 | BF41: 210 | CC41: Recoupment Academy
A42: 2052 | B42: Kennington Church of England Academy | C42: 1 | D42: 350 | E42: 0 | F42: 0 | G42: 0.26 | H42: 0 | I42: 0.2714285714 | J42: 0 | K42: 0.02601156069 | L42: 0.08092485549 | M42: 0.112716763 | N42: 0.09537572254 | O42: 0.008670520231 | P42: 0.00289017341 | Q42: 0 | R42: 0 | S42: 0 | T42: 0 | U42: 0 | V42: 0 | W42: 0.05714285714 | X42: 0 | Y42: 0.233146337 | Z42: 0 | AA42: 0.07142857143 | AB42: 0 | AC42: 132163.3716 | AD42: 0 | AE42: 0 | AF42: 1 | AG42: 0 | AH42: 5990.4 | AI42: 0 | AJ42: 0 | AK42: 4568.51 | AL42: 1540310.242 | AM42: 56197.7178 | AN42: 5990.4 | AO42: 344 | AR42: 0 | AS42: 0 | AT42: 0 | AV42: 61297.64707 | AW42: 31807.38175 | AX42: 53622.53461 | AY42: 93884.59629 | AZ42: 0 | BA42: 2643.267431 | BB42: 0 | BC42: 0 | BD42: 0 | BE42: 0 | BF42: 350 | CC42: Recoupment Academy
A43: 2054 | B43: St Edward's Catholic Primary School | C43: 1 | D43: 200 | E43: 0 | F43: 0 | G43: 0.475 | H43: 0 | I43: 0.485 | J43: 0 | K43: 0.07537688442 | L43: 0.07537688442 | M43: 0.01005025126 | N43: 0.1256281407 | O43: 0.3165829146 | P43: 0.3618090452 | Q43: 0 | R43: 0 | S43: 0 | T43: 0 | U43: 0 | V43: 0 | W43: 0.1058823529 | X43: 0 | Y43: 0.367024151 | Z43: 0 | AA43: 0.075 | AB43: 0 | AC43: 132163.3716 | AD43: 0 | AE43: 0 | AF43: 1 | AG43: 0 | AH43: 4838.4 | AI43: 0 | AJ43: 0 | AK43: 4568.51 | AL43: 1113957.728 | AM43: 38410.1464 | AN43: 4838.4 | AO43: 199 | AR43: 0 | AS43: 0 | AT43: 0 | AV43: 35027.2269 | AW43: 70716.8124 | AX43: 54751.43008 | AY43: 84454.41162 | AZ43: 0 | BA43: 1982.450574 | BB43: 0 | BC43: 0 | BD43: 0 | BE43: 188.2921985 | BF43: 200 | CC43: Recoupment Academy
A44: 2055 | B44: Lansdowne Primary School | C44: 1 | D44: 409 | E44: 0 | F44: 0 | G44: 0.3178484108 | H44: 0 | I44: 0.3227383863 | J44: 0 | K44: 0.03950617284 | L44: 0.4395061728 | M44: 0.05925925926 | N44: 0.004938271605 | O44: 0 | P44: 0.1160493827 | Q44: 0 | R44: 0 | S44: 0 | T44: 0 | U44: 0 | V44: 0 | W44: 0.1228571429 | X44: 0 | Y44: 0.2481580635 | Z44: 0 | AA44: 0.08557457213 | AB44: 0 | AC44: 132163.3716 | AD44: 0 | AE44: 0 | AF44: 1 | AG44: 0 | AH44: 4608 | AI44: 0 | AJ44: 0 | AK44: 4568.51 | AL44: 1863756.909 | AM44: 66106.721 | AN44: 4608 | AO44: 394 | AR44: 0 | AS44: 0 | AT44: 0 | AV44: 71630.67901 | AW44: 68194.15819 | AX44: 74507.10072 | AY44: 116774.8725 | AZ44: 0 | BA44: 6912.144333 | BB44: 0 | BC44: 0 | BD44: 0 | BE44: 6772.014528 | BF44: 409 | CC44: Recoupment Academy
A45: 2058 | B45: Charlton Church of England Primary School | C45: 1 | D45: 199 | E45: 0 | F45: 0 | G45: 0.4020100503 | H45: 0 | I45: 0.4070351759 | J45: 0 | K45: 0.05583756345 | L45: 0.2081218274 | M45: 0.3401015228 | N45: 0.04060913706 | O45: 0.07614213198 | P45: 0.01015228426 | Q45: 0 | R45: 0 | S45: 0 | T45: 0 | U45: 0 | V45: 0 | W45: 0.1271676301 | X45: 0 | Y45: 0.2646706587 | Z45: 0 | AA45: 0.07575757576 | AB45: 0 | AC45: 132163.3716 | AD45: 0 | AE45: 0 | AF45: 1 | AG45: 0 | AH45: 2304 | AI45: 0 | AJ45: 0 | AK45: 4568.51 | AL45: 980758.7066 | AM45: 34975.7191 | AN45: 2304 | AO45: 199 | AR45: 0 | AS45: 0 | AT45: 0 | AV45: 34852.09076 | AW45: 39669.10293 | AX45: 45720.26635 | AY45: 60597.76086 | AZ45: 0 | BA45: 2072.161468 | BB45: 0 | BC45: 0 | BD45: 0 | BE45: 0 | BF45: 199 | CC45: Recoupment Academy
A46: 2059 | B46: Lydd Primary School | C46: 1 | D46: 240 | E46: 0 | F46: 0 | G46: 0.4666666667 | H46: 0 | I46: 0.4708333333 | J46: 0 | K46: 0.3958333333 | L46: 0.02083333333 | M46: 0.008333333333 | N46: 0.5125 | O46: 0 | P46: 0.008333333333 | Q46: 0 | R46: 0 | S46: 0 | T46: 0 | U46: 0 | V46: 0 | W46: 0.00487804878 | X46: 0 | Y46: 0.2959298871 | Z46: 0 | AA46: 0.0625 | AB46: 0 | AC46: 132163.3716 | AD46: 0 | AE46: 0 | AF46: 1 | AG46: 0 | AH46: 5493.6 | AI46: 0 | AJ46: 0 | AK46: 4568.51 | AL46: 1289855.242 | AM46: 48021.9396 | AN46: 5493.6 | AO46: 250 | AR46: 0 | AS46: 1.2 | AT46: 0 | AV46: 42032.67228 | AW46: 58960.69579 | AX46: 63782.5938 | AY46: 81714.24501 | AZ46: 0 | BA46: 396.4901147 | BB46: 0 | BC46: 0 | BD46: 0 | BE46: 2169.28561 | BF46: 240 | CC46: Recoupment Academy
A47: 2060 | B47: Beaver Green Primary School | C47: 1 | D47: 408 | E47: 0 | F47: 0 | G47: 0.443627451 | H47: 0 | I47: 0.443627451 | J47: 0 | K47: 0.05147058824 | L47: 0.08333333333 | M47: 0.08578431373 | N47: 0 | O47: 0.4240196078 | P47: 0 | Q47: 0 | R47: 0 | S47: 0 | T47: 0 | U47: 0 | V47: 0 | W47: 0.1058495822 | X47: 0 | Y47: 0.3140036763 | Z47: 0 | AA47: 0.05392156863 | AB47: 0 | AC47: 132163.3716 | AD47: 0 | AE47: 0 | AF47: 1 | AG47: 0 | AH47: 10956.8 | AI47: 0 | AJ47: 0 | AK47: 4568.51 | AL47: 2024937.677 | AM47: 73364.8507 | AN47: 10956.8 | AO47: 413 | AR47: 0 | AS47: 1.2 | AT47: 0 | AV47: 71455.54287 | AW47: 82116.81985 | AX47: 102165.0396 | AY47: 147398.3419 | AZ47: 0 | BA47: 0 | BB47: 0 | BC47: 0 | BD47: 0 | BE47: 0 | BF47: 408 | CC47: Recoupment Academy
A48: 2061 | B48: Finberry Primary School | C48: 1 | D48: 347 | E48: 0 | F48: 0 | G48: 0.2132564841 | H48: 0 | I48: 0.2219020173 | J48: 0 | K48: 0.01169590643 | L48: 0.0350877193 | M48: 0 | N48: 0.002923976608 | O48: 0.02046783626 | P48: 0 | Q48: 0 | R48: 0 | S48: 0 | T48: 0 | U48: 0 | V48: 0 | W48: 0.1289198606 | X48: 0 | Y48: 0.2470425749 | Z48: 0 | AA48: 0.08645533141 | AB48: 0 | AC48: 132163.3716 | AD48: 0 | AE48: 0 | AF48: 1 | AG48: 0 | AH48: 15462.4 | AI48: 0 | AJ48: 0 | AK48: 4568.51 | AL48: 1343406.789 | AM48: 48252.1022 | AN48: 15462.4 | AO48: 300 | AR48: 0 | AS48: 0 | AT48: 0 | AV48: 60772.23867 | AW48: 5901.602551 | AX48: 43462.47542 | AY48: 98627.71746 | AZ48: 0 | BA48: 6066.298755 | BB48: 0 | BC48: 0 | BD48: 0 | BE48: 0 | BF48: 347 | CC48: Recoupment Academy
A49: 2062 | B49: Greenlands Primary School | C49: 1 | D49: 191 | E49: 0 | F49: 0 | G49: 0.4293193717 | H49: 0 | I49: 0.4397905759 | J49: 0 | K49: 0.07329842932 | L49: 0.2513089005 | M49: 0.03141361257 | N49: 0 | O49: 0.01570680628 | P49: 0 | Q49: 0 | R49: 0 | S49: 0 | T49: 0 | U49: 0 | V49: 0 | W49: 0.1676646707 | X49: 0 | Y49: 0.3625671321 | Z49: 0 | AA49: 0.1937172775 | AB49: 0 | AC49: 132163.3716 | AD49: 0 | AE49: 0 | AF49: 1.0375 | AG49: 0 | AH49: 3174.4 | AI49: 0 | AJ49: 0 | AK49: 4568.51 | AL49: 982943.3689 | AM49: 35582.6541 | AN49: 3174.4 | AO49: 181 | AR49: 0 | AS49: 0 | AT49: 0 | AV49: 33451.00169 | AW49: 14582.71368 | AX49: 47413.60955 | AY49: 79674.52828 | AZ49: 0 | BA49: 16877.26255 | BB49: 0 | BC49: 7199.96684 | BD49: 0 | BE49: 0 | BF49: 191 | CC49: Recoupment Academy
A50: 2063 | B50: Istead Rise Primary School | C50: 1 | D50: 207 | E50: 0 | F50: 0 | G50: 0.1449275362 | H50: 0 | I50: 0.1449275362 | J50: 0 | K50: 0.02898550725 | L50: 0.08212560386 | M50: 0.0193236715 | N50: 0.05314009662 | O50: 0 | P50: 0 | Q50: 0 | R50: 0 | S50: 0 | T50: 0 | U50: 0 | V50: 0 | W50: 0.01129943503 | X50: 0 | Y50: 0.1146085553 | Z50: 0 | AA50: 0.02898550725 | AB50: 0 | AC50: 132163.3716 | AD50: 0 | AE50: 0 | AF50: 1 | AG50: 0 | AH50: 5529.6 | AI50: 0 | AJ50: 0 | AK50: 4568.51 | AL50: 1071473.755 | AM50: 37509.5099 | AN50: 5529.6 | AO50: 243 | AR50: 0 | AS50: 0 | AT50: 0 | AV50: 36253.17984 | AW50: 9203.251447 | AX50: 16933.43198 | AY50: 27295.12489 | AZ50: 0 | BA50: 0 | BB50: 0 | BC50: 0 | BD50: 3443.850294 | BE50: 7746.112009 | BF50: 207 | CC50: Recoupment Academy
A51: 2064 | B51: Ramsgate Arts Primary School | C51: 1 | D51: 381 | E51: 0 | F51: 0 | G51: 0.2992125984 | H51: 0 | I51: 0.2992125984 | J51: 0 | K51: 0.1207349081 | L51: 0.1233595801 | M51: 0.1627296588 | N51: 0.1076115486 | O51: 0.1469816273 | P51: 0.1128608924 | Q51: 0 | R51: 0 | S51: 0 | T51: 0 | U51: 0 | V51: 0 | W51: 0.0125 | X51: 0 | Y51: 0.2491731655 | Z51: 0 | AA51: 0.02362204724 | AB51: 0 | AC51: 132163.3716 | AD51: 0 | AE51: 0 | AF51: 1 | AG51: 0 | AH51: 12288 | AI51: 0 | AJ51: 0 | AK51: 4568.51 | AL51: 1649620.723 | AM51: 57938.9484 | AN51: 12288 | AO51: 356 | AR51: 0 | AS51: 0 | AT51: 0 | AV51: 66726.86724 | AW51: 89320.41195 | AX51: 64347.04153 | AY51: 109225.4764 | AZ51: 0 | BA51: 0 | BB51: 0 | BC51: 0 | BD51: 0 | BE51: 0 | BF51: 381 | CC51: Recoupment Academy
A52: 2066 | B52: Maypole Primary School | C52: 1 | D52: 419 | E52: 0 | F52: 0 | G52: 0.1193317422 | H52: 0 | I52: 0.1193317422 | J52: 0 | K52: 0.06205250597 | L52: 0.01431980907 | M52: 0.02386634845 | N52: 0.01193317422 | O52: 0.009546539379 | P52: 0 | Q52: 0 | R52: 0 | S52: 0 | T52: 0 | U52: 0 | V52: 0 | W52: 0.06442577031 | X52: 0 | Y52: 0.2813169686 | Z52: 0 | AA52: 0.05741626794 | AB52: 0 | AC52: 132163.3716 | AD52: 0 | AE52: 0 | AF52: 1.0375 | AG52: 0 | AH52: 38144 | AI52: 0 | AJ52: 0 | AK52: 4568.51 | AL52: 1870656 | AM52: 61954.214 | AN52: 38144 | AO52: 418 | AR52: 0 | AS52: 0 | AT52: 0 | AV52: 73382.04035 | AW52: 11533.31922 | AX52: 28222.38664 | AY52: 135614.9769 | AZ52: 0 | BA52: 0 | BB52: 0 | BC52: 9328.227115 | BD52: 5822.190425 | BE52: 0 | BF52: 419 | CC52: Recoupment Academy
A53: 2069 | B53: Dartford Primary Academy | C53: 1 | D53: 631 | E53: 0 | F53: 0 | G53: 0.1933438986 | H53: 0 | I53: 0.1965134707 | J53: 0 | K53: 0.06656101426 | L53: 0.004754358162 | M53: 0.03169572108 | N53: 0.01426307448 | O53: 0.07131537242 | P53: 0 | Q53: 0 | R53: 0 | S53: 0 | T53: 0 | U53: 0 | V53: 0 | W53: 0.2232472325 | X53: 0 | Y53: 0.2126207121 | Z53: 0 | AA53: 0.07923930269 | AB53: 0 | AC53: 132163.3716 | AD53: 0 | AE53: 0 | AF53: 1.0375 | AG53: 65858.12056 | AH53: 9395.2 | AI53: 0 | AJ53: 0 | AK53: 4568.51 | AL53: 2835003.2 | AM53: 95389.3435 | AN53: 9395.2 | AO53: 637 | AR53: 0 | AS53: 1.2 | AT53: 0 | AV53: 110510.9009 | AW53: 32466.0699 | AX53: 69991.51886 | AY53: 154359.2393 | AZ53: 0 | BA53: 8022.316654 | BB53: 0 | BC53: 14075.62671 | BD53: 0 | BE53: 0 | BF53: 631 | CC53: Recoupment Academy
A54: 2073 | B54: Langley Park Primary Academy | C54: 1 | D54: 420 | E54: 0 | F54: 0 | G54: 0.1952380952 | H54: 0 | I54: 0.1952380952 | J54: 0 | K54: 0.01428571429 | L54: 0.007142857143 | M54: 0.03095238095 | N54: 0.1357142857 | O54: 0.09047619048 | P54: 0 | Q54: 0 | R54: 0 | S54: 0 | T54: 0 | U54: 0 | V54: 0 | W54: 0.08888888889 | X54: 0 | Y54: 0.2313816127 | Z54: 0 | AA54: 0.05714285714 | AB54: 0 | AC54: 132163.3716 | AD54: 0 | AE54: 0 | AF54: 1 | AG54: 0 | AH54: 10035.2 | AI54: 0 | AJ54: 0 | AK54: 4568.51 | AL54: 1846931.2 | AM54: 61486.4556 | AN54: 10035.2 | AO54: 419 | AR54: 0 | AS54: 0 | AT54: 0 | AV54: 73557.17649 | AW54: 38041.71213 | AX54: 46284.71408 | AY54: 111808.7614 | AZ54: 0 | BA54: 0 | BB54: 0 | BC54: 0 | BD54: 9468.928822 | BE54: 0 | BF54: 420 | CC54: Recoupment Academy
A55: 2076 | B55: Cherry Orchard Primary Academy | C55: 1 | D55: 421 | E55: 0 | F55: 0 | G55: 0.1401425178 | H55: 0 | I55: 0.1401425178 | J55: 0 | K55: 0.05727923628 | L55: 0.05250596659 | M55: 0.00477326969 | N55: 0.007159904535 | O55: 0.02863961814 | P55: 0 | Q55: 0 | R55: 0 | S55: 0 | T55: 0 | U55: 0 | V55: 0 | W55: 0.1169916435 | X55: 0 | Y55: 0.255862069 | Z55: 0 | AA55: 0.06428571429 | AB55: 0 | AC55: 132163.3716 | AD55: 0 | AE55: 0 | AF55: 1.0375 | AG55: 0 | AH55: 12697.6 | AI55: 0 | AJ55: 0 | AK55: 4568.51 | AL55: 1862777.807 | AM55: 63049.7838 | AN55: 12697.6 | AO55: 419 | AR55: 0 | AS55: 0 | AT55: 0 | AV55: 73732.31262 | AW55: 14133.59347 | AX55: 33302.41623 | AY55: 123932.6413 | AZ55: 0 | BA55: 1192.302416 | BB55: 0 | BC55: 9235.997475 | BD55: 0 | BE55: 1577.270175 | BF55: 421 | CC55: Recoupment Academy
A56: 2077 | B56: Westgate Primary School | C56: 1 | D56: 212 | E56: 0 | F56: 0 | G56: 0.25 | H56: 0 | I56: 0.25 | J56: 0 | K56: 0.08962264151 | L56: 0.004716981132 | M56: 0.01886792453 | N56: 0.2264150943 | O56: 0.06132075472 | P56: 0 | Q56: 0 | R56: 0 | S56: 0 | T56: 0 | U56: 0 | V56: 0 | W56: 0.2802197802 | X56: 0 | Y56: 0.1960563302 | Z56: 0 | AA56: 0.06603773585 | AB56: 0 | AC56: 132163.3716 | AD56: 0 | AE56: 0 | AF56: 1.0375 | AG56: 0 | AH56: 6297.6 | AI56: 0 | AJ56: 0 | AK56: 4568.51 | AL56: 1037108.176 | AM56: 35386.3861 | AN56: 6297.6 | AO56: 210 | AR56: 0 | AS56: 0 | AT56: 0 | AV56: 37128.86051 | AW56: 25128.24937 | AX56: 29915.72983 | AY56: 47820.5352 | AZ56: 0 | BA56: 845.845578 | BB56: 0 | BC56: 5281.470769 | BD56: 0 | BE56: 0 | BF56: 212 | CC56: Recoupment Academy
A57: 2078 | B57: St Nicholas Church of England Primary Academy | C57: 1 | D57: 402 | E57: 0 | F57: 0 | G57: 0.3582089552 | H57: 0 | I57: 0.3656716418 | J57: 0 | K57: 0.1770573566 | L57: 0.02244389027 | M57: 0.3067331671 | N57: 0.04239401496 | O57: 0 | P57: 0 | Q57: 0 | R57: 0 | S57: 0 | T57: 0 | U57: 0 | V57: 0 | W57: 0.02046783626 | X57: 0 | Y57: 0.315489122 | Z57: 0 | AA57: 0.0671641791 | AB57: 0 | AC57: 132163.3716 | AD57: 0 | AE57: 0 | AF57: 1 | AG57: 0 | AH57: 7219.2 | AI57: 0 | AJ57: 0 | AK57: 4568.51 | AL57: 1803155.693 | AM57: 64886.8589 | AN57: 7219.2 | AO57: 389 | AR57: 0 | AS57: 0 | AT57: 0 | AV57: 70404.72607 | AW57: 56744.24883 | AX57: 82973.81671 | AY57: 145917.7569 | AZ57: 0 | BA57: 1903.152551 | BB57: 0 | BC57: 0 | BD57: 0 | BE57: 0 | BF57: 402 | CC57: Recoupment Academy
A58: 2080 | B58: Barming Primary School | C58: 1 | D58: 419 | E58: 0 | F58: 0 | G58: 0.2195704057 | H58: 0 | I58: 0.2243436754 | J58: 0 | K58: 0.1060240964 | L58: 0.1325301205 | M58: 0 | N58: 0.01686746988 | O58: 0 | P58: 0 | Q58: 0 | R58: 0 | S58: 0 | T58: 0 | U58: 0 | V58: 0 | W58: 0.06963788301 | X58: 0 | Y58: 0.3186461277 | Z58: 0 | AA58: 0.0692124105 | AB58: 0 | AC58: 132163.3716 | AD58: 0 | AE58: 0 | AF58: 1 | AG58: 0 | AH58: 7680 | AI58: 0 | AJ58: 0 | AK58: 4568.51 | AL58: 1887764.121 | AM58: 66437.9551 | AN58: 7680 | AO58: 423 | AR58: 0 | AS58: 0 | AT58: 0 | AV58: 73382.04035 | AW58: 20439.52652 | AX58: 53058.08688 | AY58: 153610.3117 | AZ58: 0 | BA58: 2550.753071 | BB58: 0 | BC58: 0 | BD58: 0 | BE58: 6466.135283 | BF58: 419 | CC58: Recoupment Academy
A59: 2081 | B59: Brenzett Church of England Primary School | C59: 1 | D59: 86 | E59: 0 | F59: 0 | G59: 0.4186046512 | H59: 0 | I59: 0.4302325581 | J59: 0 | K59: 0.1162790698 | L59: 0.02325581395 | M59: 0.3255813953 | N59: 0.06976744186 | O59: 0.08139534884 | P59: 0 | Q59: 0 | R59: 0 | S59: 0 | T59: 0 | U59: 0 | V59: 0 | W59: 0 | X59: 0 | Y59: 0.234989648 | Z59: 0 | AA59: 0.09302325581 | AB59: 0 | AC59: 132163.3716 | AD59: 47828.5054 | AE59: 0 | AF59: 1 | AG59: 0 | AH59: 3891.2 | AI59: 0 | AJ59: 0 | AK59: 4568.51 | AL59: 556545.8797 | AM59: 18381.9915 | AN59: 3891.2 | AO59: 85 | AR59: 0 | AS59: 0 | AT59: 0 | AV59: 15061.70757 | AW59: 15071.44281 | AX59: 20884.56611 | AY59: 23251.1739 | AZ59: 0 | BA59: 1876.719876 | BB59: 0 | BC59: 0 | BD59: 0 | BE59: 750.3605994 | BF59: 86 | CC59: Recoupment Academy
A60: 2085 | B60: Royal Rise Primary School | C60: 1 | D60: 190 | E60: 0 | F60: 0 | G60: 0.3684210526 | H60: 0 | I60: 0.3789473684 | J60: 0 | K60: 0.4 | L60: 0 | M60: 0.2210526316 | N60: 0.01052631579 | O60: 0 | P60: 0 | Q60: 0 | R60: 0 | S60: 0 | T60: 0 | U60: 0 | V60: 0 | W60: 0.2588235294 | X60: 0 | Y60: 0.2853627357 | Z60: 0 | AA60: 0.1631578947 | AB60: 0 | AC60: 132163.3716 | AD60: 0 | AE60: 0 | AF60: 1 | AG60: 0 | AH60: 4812.8 | AI60: 0 | AJ60: 0 | AK60: 4568.51 | AL60: 1006520 | AM60: 34990.7297 | AN60: 4812.8 | AO60: 200 | AR60: 0 | AS60: 0 | AT60: 0 | AV60: 33275.86555 | AW60: 25826.92553 | AX60: 40640.23676 | AY60: 62380.45857 | AZ60: 0 | BA60: 12952.01041 | BB60: 0 | BC60: 0 | BD60: 0 | BE60: 0 | BF60: 190 | CC60: Recoupment Academy
A61: 2086 | B61: Bishop Chavasse Primary School | C61: 1 | D61: 355 | E61: 0 | F61: 0 | G61: 0.2253521127 | H61: 0 | I61: 0.2338028169 | J61: 0 | K61: 0.2901408451 | L61: 0.005633802817 | M61: 0.2647887324 | N61: 0 | O61: 0 | P61: 0 | Q61: 0 | R61: 0 | S61: 0 | T61: 0 | U61: 0 | V61: 0 | W61: 0.1128526646 | X61: 0 | Y61: 0.2119904801 | Z61: 0 | AA61: 0.07042253521 | AB61: 0 | AC61: 132163.3716 | AD61: 0 | AE61: 0 | AF61: 1 | AG61: 0 | AH61: 5734.4 | AI61: 0 | AJ61: 0 | AK61: 4568.51 | AL61: 1469580.037 | AM61: 51746.0694 | AN61: 5734.4 | AO61: 329.1666667 | AR61: 0 | AS61: 0 | AT61: 0 | AV61: 62173.32775 | AW61: 45847.61127 | AX61: 46849.16182 | AY61: 86584.95064 | AZ61: 0 | BA61: 2445.022374 | BB61: 0 | BC61: 0 | BD61: 0 | BE61: 0 | BF61: 355 | CC61: Recoupment Academy
A62: 2087 | B62: Morehall Primary School and Nursery | C62: 1 | D62: 195 | E62: 0 | F62: 0 | G62: 0.2717948718 | H62: 0 | I62: 0.2769230769 | J62: 0 | K62: 0.5025641026 | L62: 0.06666666667 | M62: 0.005128205128 | N62: 0.01538461538 | O62: 0.05128205128 | P62: 0.01538461538 | Q62: 0 | R62: 0 | S62: 0 | T62: 0 | U62: 0 | V62: 0 | W62: 0.06666666667 | X62: 0 | Y62: 0.1462546117 | Z62: 0 | AA62: 0.08205128205 | AB62: 0 | AC62: 132163.3716 | AD62: 0 | AE62: 0 | AF62: 1 | AG62: 0 | AH62: 5632 | AI62: 0 | AJ62: 0 | AK62: 4568.51 | AL62: 905148.6831 | AM62: 33160.4362 | AN62: 5632 | AO62: 189 | AR62: 0 | AS62: 0 | AT62: 0 | AV62: 34151.54623 | AW62: 24660.17076 | AX62: 30480.17757 | AY62: 32812.69357 | AZ62: 0 | BA62: 2841.512489 | BB62: 0 | BC62: 0 | BD62: 0 | BE62: 0 | BF62: 195 | CC62: Recoupment Academy
A63: 2090 | B63: Richmond Primary School | C63: 1 | D63: 277 | E63: 0 | F63: 0 | G63: 0.7220216606 | H63: 0 | I63: 0.7364620939 | J63: 0 | K63: 0.02166064982 | L63: 0.01444043321 | M63: 0.02888086643 | N63: 0.06859205776 | O63: 0.4512635379 | P63: 0.3826714801 | Q63: 0 | R63: 0 | S63: 0 | T63: 0 | U63: 0 | V63: 0 | W63: 0.05416666667 | X63: 0 | Y63: 0.3699486092 | Z63: 0 | AA63: 0.1605839416 | AB63: 0 | AC63: 132163.3716 | AD63: 0 | AE63: 0 | AF63: 1 | AG63: 0 | AH63: 9318.4 | AI63: 0 | AJ63: 0 | AK63: 4568.51 | AL63: 1494746.626 | AM63: 54224.3231 | AN63: 9318.4 | AO63: 268 | AR63: 0 | AS63: 1.2 | AT63: 0 | AV63: 48512.70925 | AW63: 104477.8986 | AX63: 115147.3375 | AY63: 117901.3751 | AZ63: 0 | BA63: 18411.51529 | BB63: 0 | BC63: 0 | BD63: 0 | BE63: 0 | BF63: 277 | CC63: Recoupment Academy
A64: 2092 | B64: Knockhall Primary School | C64: 1 | D64: 366 | E64: 0 | F64: 0 | G64: 0.3333333333 | H64: 0 | I64: 0.3333333333 | J64: 0 | K64: 0.260989011 | L64: 0.03846153846 | M64: 0.02472527473 | N64: 0.008241758242 | O64: 0.02747252747 | P64: 0 | Q64: 0 | R64: 0 | S64: 0 | T64: 0 | U64: 0 | V64: 0 | W64: 0.2218844985 | X64: 0 | Y64: 0.3504046311 | Z64: 0 | AA64: 0.150273224 | AB64: 0 | AC64: 132163.3716 | AD64: 0 | AE64: 0 | AF64: 1.0375 | AG64: 0 | AH64: 11468.8 | AI64: 0 | AJ64: 0 | AK64: 4568.51 | AL64: 1705619.875 | AM64: 60245.9558 | AN64: 11468.8 | AO64: 343 | AR64: 0 | AS64: 1.2 | AT64: 0 | AV64: 64099.82522 | AW64: 25557.01255 | AX64: 68862.62339 | AY64: 147553.1975 | AZ64: 0 | BA64: 21833.38898 | BB64: 0 | BC64: 12296.47679 | BD64: 0 | BE64: 0 | BF64: 366 | CC64: Recoupment Academy
A65: 2093 | B65: Chilmington Green Primary School | C65: 1 | D65: 212 | E65: 0 | F65: 0 | G65: 0.2311320755 | H65: 0 | I65: 0.2452830189 | J65: 0 | K65: 0.0141509434 | L65: 0.03773584906 | M65: 0.0141509434 | N65: 0 | O65: 0.108490566 | P65: 0 | Q65: 0 | R65: 0 | S65: 0 | T65: 0 | U65: 0 | V65: 0 | W65: 0.1091954023 | X65: 0 | Y65: 0.3110500352 | Z65: 0 | AA65: 0.2169811321 | AB65: 0 | AC65: 132163.3716 | AD65: 0 | AE65: 0 | AF65: 1 | AG65: 0 | AH65: 2534.4 | AI65: 0 | AJ65: 0 | AK65: 4568.51 | AL65: 858355.6612 | AM65: 29768.0386 | AN65: 2534.4 | AO65: 171 | AR65: 0 | AS65: 0 | AT65: 0 | AV65: 37128.86051 | AW65: 11127.19219 | AX65: 29351.2821 | AY65: 75868.90536 | AZ65: 0 | BA65: 21991.98503 | BB65: 0 | BC65: 0 | BD65: 0 | BE65: 0 | BF65: 212 | CC65: Recoupment Academy
A66: 2096 | B66: Riverview Junior School | C66: 1 | D66: 498 | E66: 0 | F66: 0 | G66: 0.2610441767 | H66: 0 | I66: 0.2630522088 | J66: 0 | K66: 0.1004016064 | L66: 0.03413654618 | M66: 0.08835341365 | N66: 0.1465863454 | O66: 0 | P66: 0 | Q66: 0 | R66: 0 | S66: 0 | T66: 0 | U66: 0 | V66: 0 | W66: 0.06827309237 | X66: 0 | Y66: 0.2789556739 | Z66: 0 | AA66: 0.03815261044 | AB66: 0 | AC66: 132163.3716 | AD66: 0 | AE66: 0 | AF66: 1 | AG66: 0 | AH66: 7321.6 | AI66: 0 | AJ66: 0 | AK66: 4568.51 | AL66: 2199321.6 | AM66: 76856.3183 | AN66: 7321.6 | AO66: 500 | AR66: 0 | AS66: 0 | AT66: 0 | AV66: 87217.79498 | AW66: 49272.15696 | AX66: 73942.65299 | AY66: 159831.4518 | AZ66: 0 | BA66: 0 | BB66: 0 | BC66: 0 | BD66: 0 | BE66: 0 | BF66: 498 | CC66: Recoupment Academy
A67: 2098 | B67: Pilgrims' Way Primary School | C67: 1 | D67: 350 | E67: 0 | F67: 0 | G67: 0.4285714286 | H67: 0 | I67: 0.4285714286 | J67: 0 | K67: 0.005714285714 | L67: 0.3171428571 | M67: 0.05714285714 | N67: 0.1571428571 | O67: 0.05714285714 | P67: 0 | Q67: 0 | R67: 0 | S67: 0 | T67: 0 | U67: 0 | V67: 0 | W67: 0.4327868852 | X67: 0 | Y67: 0.4321820175 | Z67: 0 | AA67: 0.26 | AB67: 0 | AC67: 132163.3716 | AD67: 0 | AE67: 0 | AF67: 1 | AG67: 0 | AH67: 7493.6 | AI67: 0 | AJ67: 0 | AK67: 4568.51 | AL67: 1482832.662 | AM67: 53466.7877 | AN67: 7493.6 | AO67: 273 | AR67: 0 | AS67: 1.2 | AT67: 0 | AV67: 61297.64707 | AW67: 53677.60268 | AX67: 84667.15991 | AY67: 174033.3336 | AZ67: 0 | BA67: 46257.18005 | BB67: 0 | BC67: 0 | BD67: 0 | BE67: 0 | BF67: 350 | CC67: Recoupment Academy
A68: 2099 | B68: Edenbridge Primary School | C68: 1 | D68: 379 | E68: 0 | F68: 0 | G68: 0.3878627968 | H68: 0 | I68: 0.3931398417 | J68: 0 | K68: 0.2142857143 | L68: 0.002645502646 | M68: 0.1904761905 | N68: 0 | O68: 0 | P68: 0 | Q68: 0 | R68: 0 | S68: 0 | T68: 0 | U68: 0 | V68: 0 | W68: 0.0534591195 | X68: 0 | Y68: 0.3143631436 | Z68: 0 | AA68: 0.06860158311 | AB68: 0 | AC68: 132163.3716 | AD68: 0 | AE68: 0 | AF68: 1.0375 | AG68: 0 | AH68: 9625.6 | AI68: 0 | AJ68: 0 | AK68: 4568.51 | AL68: 1774953.635 | AM68: 65865.0348 | AN68: 9625.6 | AO68: 364 | AR68: 0 | AS68: 1.2 | AT68: 0 | AV68: 66376.59497 | AW68: 35447.23021 | AX68: 84102.71218 | AY68: 137078.2449 | AZ68: 0 | BA68: 2154.262957 | BB68: 0 | BC68: 12193.4642 | BD68: 0 | BE68: 0 | BF68: =SUM(D68:F68) -> 379 | CC68: Recoupment Academy
A69: 2107 | B69: Rosherville Church of England Academy | C69: 1 | D69: 140 | E69: 0 | F69: 0 | G69: 0.4285714286 | H69: 0 | I69: 0.4285714286 | J69: 0 | K69: 0.4071428571 | L69: 0.09285714286 | M69: 0.1857142857 | N69: 0 | O69: 0.03571428571 | P69: 0 | Q69: 0 | R69: 0 | S69: 0 | T69: 0 | U69: 0 | V69: 0 | W69: 0.2148760331 | X69: 0 | Y69: 0.3551642264 | Z69: 0 | AA69: 0.1071428571 | AB69: 0 | AC69: 132163.3716 | AD69: 0 | AE69: 0 | AF69: 1 | AG69: 0 | AH69: 1561.6 | AI69: 0 | AJ69: 0 | AK69: 4568.51 | AL69: 754635.4304 | AM69: 27117.1651 | AN69: 1561.6 | AO69: 140 | AR69: 0 | AS69: 0 | AT69: 0 | AV69: 24519.05883 | AW69: 21507.52367 | AX69: 33866.86396 | AY69: 57207.76134 | AZ69: 0 | BA69: 4361.391262 | BB69: 0 | BC69: 0 | BD69: 0 | BE69: 0 | BF69: 140 | CC69: Recoupment Academy
A70: 2110 | B70: Culverstone Green Primary School | C70: 1 | D70: 213 | E70: 0 | F70: 0 | G70: 0.0985915493 | H70: 0 | I70: 0.1079812207 | J70: 0 | K70: 0.004716981132 | L70: 0.004716981132 | M70: 0 | N70: 0.004716981132 | O70: 0 | P70: 0 | Q70: 0 | R70: 0 | S70: 0 | T70: 0 | U70: 0 | V70: 0 | W70: 0.005494505495 | X70: 0 | Y70: 0.2813473819 | Z70: 0 | AA70: 0.06103286385 | AB70: 0 | AC70: 132163.3716 | AD70: 0 | AE70: 0 | AF70: 1 | AG70: 0 | AH70: 7731.2 | AI70: 0 | AJ70: 0 | AK70: 4568.51 | AL70: 922495.9909 | AM70: 31542.2926 | AN70: 7731.2 | AO70: 206 | AR70: 0 | AS70: 0 | AT70: 0 | AV70: 37303.99665 | AW70: 695.0558209 | AX70: 12982.29785 | AY70: 68947.76358 | AZ70: 0 | BA70: 145.3797087 | BB70: 0 | BC70: 0 | BD70: 0 | BE70: 191.6136955 | BF70: 213 | CC70: Recoupment Academy
A71: 2112 | B71: River Mill Primary School | C71: 1 | D71: 333 | E71: 0 | F71: 0 | G71: 0.08053691275 | H71: 0 | I71: 0.08053691275 | J71: 0 | K71: 0.01006711409 | L71: 0 | M71: 0.01342281879 | N71: 0.003355704698 | O71: 0.7348993289 | P71: 0 | Q71: 0 | R71: 0 | S71: 0 | T71: 0 | U71: 0 | V71: 0 | W71: 0.309623431 | X71: 0 | Y71: 0.2445215603 | Z71: 0 | AA71: 0.04362416107 | AB71: 0 | AC71: 132163.3716 | AD71: 0 | AE71: 0 | AF71: 1.0375 | AG71: 0 | AH71: 0 | AI71: 0 | AJ71: 0 | AK71: 4568.51 | AL71: 1334827.045 | AM71: 40704.4739 | AN71: 0 | AO71: 273.4166667 | AR71: 0 | AS71: 0 | AT71: 0 | AV71: 58320.33279 | AW71: 89038.45372 | AX71: 15137.80631 | AY71: 93682.63426 | AZ71: 0 | BA71: 0 | BB71: 0 | BC71: 9606.721015 | BD71: 0 | BE71: 0 | BF71: 333 | CC71: Recoupment Academy
A72: 2114 | B72: Cage Green Primary School | C72: 1 | D72: 206 | E72: 0 | F72: 0 | G72: 0.4757281553 | H72: 0 | I72: 0.4757281553 | J72: 0 | K72: 0.3155339806 | L72: 0 | M72: 0.2233009709 | N72: 0 | O72: 0 | P72: 0 | Q72: 0 | R72: 0 | S72: 0 | T72: 0 | U72: 0 | V72: 0 | W72: 0.09340659341 | X72: 0 | Y72: 0.4545141756 | Z72: 0 | AA72: 0.1024390244 | AB72: 0 | AC72: 132163.3716 | AD72: 0 | AE72: 0 | AF72: 1 | AG72: 0 | AH72: 7731.2 | AI72: 0 | AJ72: 0 | AK72: 4568.51 | AL72: 1113000.93 | AM72: 40256.4513 | AN72: 7731.2 | AO72: 218 | AR72: 0 | AS72: 0 | AT72: 0 | AV72: 36078.04371 | AW72: 24605.10269 | AX72: 55315.87781 | AY72: 107723.9713 | AZ72: 0 | BA72: 5777.151086 | BB72: 0 | BC72: 0 | BD72: 0 | BE72: 0 | BF72: 206 | CC72: Recoupment Academy
A73: 2117 | B73: Dartford Bridge Community Primary School | C73: 1 | D73: 420 | E73: 0 | F73: 0 | G73: 0.09523809524 | H73: 0 | I73: 0.1 | J73: 0 | K73: 0 | L73: 0 | M73: 0.1452380952 | N73: 0.002380952381 | O73: 0.002380952381 | P73: 0 | Q73: 0 | R73: 0 | S73: 0 | T73: 0 | U73: 0 | V73: 0 | W73: 0.2805555556 | X73: 0 | Y73: 0.2501822556 | Z73: 0 | AA73: 0.06904761905 | AB73: 0 | AC73: 132163.3716 | AD73: 0 | AE73: 0 | AF73: 1.0375 | AG73: 0 | AH73: 6912 | AI73: 0 | AJ73: 0 | AK73: 4568.51 | AL73: 1839461.925 | AM73: 60071.4954 | AN73: 6912 | AO73: 415 | AR73: 0 | AS73: 1.2 | AT73: 0 | AV73: 73557.17649 | AW73: 19373.6359 | AX73: 23706.80477 | AY73: 120893.6518 | AZ73: 0 | BA73: 2511.10406 | BB73: 0 | BC73: 9001.588988 | BD73: 0 | BE73: 0 | BF73: 420 | CC73: Recoupment Academy
A74: 2118 | B74: St Katherine's School & Nursery | C74: 1 | D74: 449 | E74: 0 | F74: 0 | G74: 0.2538975501 | H74: 0 | I74: 0.2538975501 | J74: 0 | K74: 0.2053571429 | L74: 0.3794642857 | M74: 0 | N74: 0.002232142857 | O74: 0 | P74: 0 | Q74: 0 | R74: 0 | S74: 0 | T74: 0 | U74: 0 | V74: 0 | W74: 0.04724409449 | X74: 0 | Y74: 0.2630771591 | Z74: 0 | AA74: 0.05803571429 | AB74: 0 | AC74: 132163.3716 | AD74: 0 | AE74: 0 | AF74: 1 | AG74: 0 | AH74: 14131.2 | AI74: 0 | AJ74: 0 | AK74: 4568.51 | AL74: 2127747.316 | AM74: 76556.1061 | AN74: 14131.2 | AO74: 480 | AR74: 0 | AS74: 0 | AT74: 0 | AV74: 78636.12439 | AW74: 48675.00488 | AX74: 64347.04153 | AY74: 135902.4189 | AZ74: 0 | BA74: 0 | BB74: 0 | BC74: 0 | BD74: 0 | BE74: 0 | BF74: 449 | CC74: Recoupment Academy
A75: 2119 | B75: Shears Green Infant School | C75: 1 | D75: 322 | E75: 0 | F75: 0 | G75: 0.3043478261 | H75: 0 | I75: 0.3074534161 | J75: 0 | K75: 0.1149068323 | L75: 0.3447204969 | M75: 0.006211180124 | N75: 0.01552795031 | O75: 0.01552795031 | P75: 0 | Q75: 0 | R75: 0 | S75: 0 | T75: 0 | U75: 0 | V75: 0 | W75: 0.2179487179 | X75: 0 | Y75: 0.1902654867 | Z75: 0 | AA75: 0.02795031056 | AB75: 0 | AC75: 132163.3716 | AD75: 0 | AE75: 0 | AF75: 1 | AG75: 0 | AH75: 21760 | AI75: 0 | AJ75: 0 | AK75: 4568.51 | AL75: 1538462.047 | AM75: 52123.8386 | AN75: 21760 | AO75: 343 | AR75: 0 | AS75: 0 | AT75: 0 | AV75: 56393.83531 | AW75: 31815.5783 | AX75: 55880.32554 | AY75: 70487.74066 | AZ75: 0 | BA75: 0 | BB75: 0 | BC75: 0 | BD75: 0 | BE75: 0 | BF75: 322 | CC75: Recoupment Academy
A76: 2126 | B76: Sunny Bank Primary School | C76: 1 | D76: 173 | E76: 0 | F76: 0 | G76: 0.5433526012 | H76: 0 | I76: 0.5433526012 | J76: 0 | K76: 0.04046242775 | L76: 0.549132948 | M76: 0.08092485549 | N76: 0 | O76: 0.01156069364 | P76: 0.1791907514 | Q76: 0 | R76: 0 | S76: 0 | T76: 0 | U76: 0 | V76: 0 | W76: 0.1597222222 | X76: 0 | Y76: 0.3248677249 | Z76: 0 | AA76: 0.08670520231 | AB76: 0 | AC76: 132163.3716 | AD76: 0 | AE76: 0 | AF76: 1 | AG76: 0 | AH76: 24202 | AI76: 0 | AJ76: 0 | AK76: 4568.51 | AL76: 996955.1332 | AM76: 36013.4525 | AN76: 24202 | AO76: 178 | AR76: 0 | AS76: 1.2 | AT76: 0 | AV76: 30298.55127 | AW76: 39277.30199 | AX76: 53058.08688 | AY76: 64662.18449 | AZ76: 0 | BA76: 3052.973883 | BB76: 0 | BC76: 0 | BD76: 0 | BE76: 0 | BF76: 173 | CC76: Recoupment Academy
A77: 2127 | B77: Paddock Wood Primary Academy | C77: 1 | D77: 616 | E77: 0 | F77: 0 | G77: 0.1980519481 | H77: 0 | I77: 0.2012987013 | J77: 0 | K77: 0.125 | L77: 0.00487012987 | M77: 0 | N77: 0.003246753247 | O77: 0.001623376623 | P77: 0 | Q77: 0 | R77: 0 | S77: 0 | T77: 0 | U77: 0 | V77: 0 | W77: 0.07590132827 | X77: 0 | Y77: 0.2498898209 | Z77: 0 | AA77: 0.05844155844 | AB77: 0 | AC77: 132163.3716 | AD77: 0 | AE77: 0 | AF77: 1 | AG77: 0 | AH77: 13312 | AI77: 0 | AJ77: 0 | AK77: 4568.51 | AL77: 2670016 | AM77: 88334.4305 | AN77: 13312 | AO77: 606 | AR77: 0 | AS77: 0 | AT77: 0 | AV77: 107883.8588 | AW77: 14066.45051 | AX77: 69991.51886 | AY77: 177103.4332 | AZ77: 0 | BA77: 0 | BB77: 0 | BC77: 0 | BD77: 60743.3856 | BE77: 0 | BF77: 616 | CC77: Recoupment Academy
A78: 2129 | B78: Springhead Park Primary School | C78: 1 | D78: 332 | E78: 0 | F78: 0 | G78: 0.2018072289 | H78: 0 | I78: 0.2108433735 | J78: 0 | K78: 0.05722891566 | L78: 0.6656626506 | M78: 0.03614457831 | N78: 0.01204819277 | O78: 0.01807228916 | P78: 0 | Q78: 0 | R78: 0 | S78: 0 | T78: 0 | U78: 0 | V78: 0 | W78: 0.2407407407 | X78: 0 | Y78: 0.2267615859 | Z78: 0 | AA78: 0.1295180723 | AB78: 0 | AC78: 132163.3716 | AD78: 0 | AE78: 0 | AF78: 1 | AG78: 0 | AH78: 0 | AI78: 0 | AJ78: 0 | AK78: 4568.51 | AL78: 1409751.1 | AM78: 47092.2825 | AN78: 0 | AO78: 299 | AR78: 0 | AS78: 0 | AT78: 0 | AV78: 58145.19665 | AW78: 53567.46654 | AX78: 39511.34129 | AY78: 86617.42557 | AZ78: 0 | BA78: 15251.65308 | BB78: 0 | BC78: 0 | BD78: 0 | BE78: 0 | BF78: 332 | CC78: Recoupment Academy
A79: 2131 | B79: Bearsted Primary Academy | C79: 1 | D79: 325.5833333 | E79: 0 | F79: 0 | G79: 0.1081081081 | H79: 0 | I79: 0.1148648649 | J79: 0 | K79: 0.0813559322 | L79: 0.04406779661 | M79: 0.006779661017 | N79: 0.02711864407 | O79: 0.02033898305 | P79: 0 | Q79: 0 | R79: 0 | S79: 0 | T79: 0 | U79: 0 | V79: 0 | W79: 0.2109704641 | X79: 0 | Y79: 0.2105403247 | Z79: 0 | AA79: 0.1587837838 | AB79: 0 | AC79: 132163.3716 | AD79: 0 | AE79: 0 | AF79: 1 | AG79: 0 | AH79: 30464 | AI79: 0 | AJ79: 0 | AK79: 4568.51 | AL79: 1184502.912 | AM79: 37185.225 | AN79: 30464 | AO79: 252.5833333 | AR79: 0 | AS79: 0 | AT79: 0 | AV79: 57021.40646 | AW79: 13070.87636 | AX79: 21109.26462 | AY79: 78866.96999 | AZ79: 0 | BA79: 21253.42545 | BB79: 0 | BC79: 0 | BD79: 0 | BE79: 7168.783118 | BF79: 325.5833333 | CC79: Recoupment Academy
A80: 2133 | B80: Halstead Community Primary School | C80: 1 | D80: 55 | E80: 0 | F80: 0 | G80: 0.2727272727 | H80: 0 | I80: 0.2727272727 | J80: 0 | K80: 0.07272727273 | L80: 0.07272727273 | M80: 0 | N80: 0 | O80: 0.01818181818 | P80: 0 | Q80: 0 | R80: 0 | S80: 0 | T80: 0 | U80: 0 | V80: 0 | W80: 0.04347826087 | X80: 0 | Y80: 0.2933333333 | Z80: 0 | AA80: 0.07272727273 | AB80: 0 | AC80: 132163.3716 | AD80: 39445.21044 | AE80: 0 | AF80: 1.0375 | AG80: 0 | AH80: 9481 | AI80: 0 | AJ80: 0 | AK80: 4568.51 | AL80: 415366.2245 | AM80: 13331.6829 | AN80: 9481 | AO80: 56 | AR80: 0 | AS80: 0 | AT80: 0 | AV80: 9632.487397 | AW80: 1786.270569 | AX80: 8466.715991 | AY80: 18561.87352 | AZ80: 0 | BA80: 462.5718005 | BB80: 0 | BC80: 1459.121973 | BD80: 0 | BE80: 0 | BF80: 55 | CC80: Recoupment Academy
A81: 2134 | B81: Four Elms Primary School | C81: 1 | D81: 102 | E81: 0 | F81: 0 | G81: 0.08823529412 | H81: 0 | I81: 0.08823529412 | J81: 0 | K81: 0.1176470588 | L81: 0 | M81: 0.2058823529 | N81: 0 | O81: 0 | P81: 0 | Q81: 0 | R81: 0 | S81: 0 | T81: 0 | U81: 0 | V81: 0 | W81: 0 | X81: 0 | Y81: 0.2915282392 | Z81: 0 | AA81: 0.04901960784 | AB81: 0 | AC81: 132163.3716 | AD81: 35833.8959 | AE81: 0 | AF81: 1.0375 | AG81: 0 | AH81: 13348 | AI81: 0 | AJ81: 0 | AK81: 4568.51 | AL81: 615479.2997 | AM81: 19032.7998 | AN81: 13348 | AO81: 110 | AR81: 0 | AS81: 0 | AT81: 0 | AV81: 17863.88572 | AW81: 8373.78862 | AX81: 5080.029595 | AY81: 34212.00317 | AZ81: 0 | BA81: 0 | BB81: 0 | BC81: 2457.364016 | BD81: 0 | BE81: 0 | BF81: 102 | CC81: Recoupment Academy
A82: 2135 | B82: Horsmonden Primary Academy | C82: 1 | D82: 188 | E82: 0 | F82: 0 | G82: 0.1010638298 | H82: 0 | I82: 0.1010638298 | J82: 0 | K82: 0 | L82: 0.1117021277 | M82: 0 | N82: 0 | O82: 0 | P82: 0 | Q82: 0 | R82: 0 | S82: 0 | T82: 0 | U82: 0 | V82: 0 | W82: 0.05696202532 | X82: 0 | Y82: 0.2300556586 | Z82: 0 | AA82: 0.1117021277 | AB82: 0 | AC82: 132163.3716 | AD82: 0 | AE82: 0 | AF82: 1 | AG82: 0 | AH82: 3840 | AI82: 0 | AJ82: 0 | AK82: 4568.51 | AL82: 767015.7821 | AM82: 26199.5165 | AN82: 3840 | AO82: 169 | AR82: 0 | AS82: 0 | AT82: 0 | AV82: 32925.59328 | AW82: 4119.780098 | AX82: 10724.50692 | AY82: 49760.92806 | AZ82: 0 | BA82: 6423.139858 | BB82: 0 | BC82: 0 | BD82: 0 | BE82: 0 | BF82: 188 | CC82: Recoupment Academy
A83: 2140 | B83: Ebbsfleet Green Primary School | C83: 1 | D83: 308 | E83: 0 | F83: 0 | G83: 0.08833922261 | H83: 0 | I83: 0.09187279152 | J83: 0 | K83: 0.02482269504 | L83: 0.02127659574 | M83: 0 | N83: 0.01418439716 | O83: 0.01063829787 | P83: 0 | Q83: 0 | R83: 0 | S83: 0 | T83: 0 | U83: 0 | V83: 0 | W83: 0.1244019139 | X83: 0 | Y83: 0.224537037 | Z83: 0 | AA83: 0.1378091873 | AB83: 0 | AC83: 132163.3716 | AD83: 0 | AE83: 0 | AF83: 1.0375 | AG83: 0 | AH83: 0 | AI83: 0 | AJ83: 0 | AK83: 4568.51 | AL83: 1163482.369 | AM83: 37079.8804 | AN83: 0 | AO83: 247.5833333 | AR83: 0 | AS83: 0 | AT83: 0 | AV83: 53941.92942 | AW83: 5142.420548 | AX83: 15972.07577 | AY83: 79567.62704 | AZ83: 0 | BA83: 15836.62778 | BB83: 0 | BC83: 6392.275521 | BD83: 0 | BE83: 15602.88516 | BF83: 308 | CC83: Recoupment Academy
A84: 2141 | B84: Amherst School | C84: 1 | D84: 378 | E84: 0 | F84: 0 | G84: 0.07936507937 | H84: 0 | I84: 0.08994708995 | J84: 0 | K84: 0 | L84: 0 | M84: 0 | N84: 0 | O84: 0 | P84: 0 | Q84: 0 | R84: 0 | S84: 0 | T84: 0 | U84: 0 | V84: 0 | W84: 0.04232804233 | X84: 0 | Y84: 0.1219640052 | Z84: 0 | AA84: 0.03439153439 | AB84: 0 | AC84: 132163.3716 | AD84: 0 | AE84: 0 | AF84: 1.0375 | AG84: 0 | AH84: 5580.8 | AI84: 0 | AJ84: 0 | AK84: 4568.51 | AL84: 1675884.8 | AM84: 54249.9177 | AN84: 5580.8 | AO84: 381 | AR84: 0 | AS84: 0 | AT84: 0 | AV84: 66201.45884 | AW84: 0 | AX84: 19191.22291 | AY84: 53042.15738 | AZ84: 0 | BA84: 0 | BB84: 0 | BC84: 5191.306467 | BD84: 46437.068 | BE84: 0 | BF84: 378 | CC84: Recoupment Academy
A85: 2143 | B85: Folkestone Primary | C85: 1 | D85: 375 | E85: 0 | F85: 0 | G85: 0.2693333333 | H85: 0 | I85: 0.272 | J85: 0 | K85: 0.08533333333 | L85: 0.1066666667 | M85: 0.056 | N85: 0.08266666667 | O85: 0.1253333333 | P85: 0.024 | Q85: 0 | R85: 0 | S85: 0 | T85: 0 | U85: 0 | V85: 0 | W85: 0.03726708075 | X85: 0 | Y85: 0.1929950275 | Z85: 0 | AA85: 0.06666666667 | AB85: 0 | AC85: 132163.3716 | AD85: 0 | AE85: 0 | AF85: 1 | AG85: 0 | AH85: 0 | AI85: 0 | AJ85: 0 | AK85: 4568.51 | AL85: 1675615.735 | AM85: 59949.3693 | AN85: 0 | AO85: 379 | AR85: 0 | AS85: 0 | AT85: 0 | AV85: 65676.05044 | AW85: 50679.83454 | AX85: 57573.66874 | AY85: 83267.41637 | AZ85: 0 | BA85: 1652.042145 | BB85: 0 | BC85: 0 | BD85: 0 | BE85: 0 | BF85: 375 | CC85: Recoupment Academy
A86: 2144 | B86: St. Clement’s CE Primary School | C86: 1 | D86: 185 | E86: 0 | F86: 0 | G86: 0.572972973 | H86: 0 | I86: 0.5945945946 | J86: 0 | K86: 0.005405405405 | L86: 0.005405405405 | M86: 0 | N86: 0.5243243243 | O86: 0.4108108108 | P86: 0.02162162162 | Q86: 0 | R86: 0 | S86: 0 | T86: 0 | U86: 0 | V86: 0 | W86: 0.0127388535 | X86: 0 | Y86: 0.4381935484 | Z86: 0 | AA86: 0.03243243243 | AB86: 0 | AC86: 132163.3716 | AD86: 0 | AE86: 0 | AF86: 1 | AG86: 0 | AH86: 0 | AI86: 0 | AJ86: 0 | AK86: 4568.51 | AL86: 0 | AM86: 0 | AN86: 0 | AO86: 0 | AR86: 0 | AS86: 0 | AT86: 0 | AV86: 32400.18488 | AW86: 61555.77866 | AX86: 62089.2506 | AY86: 93268.58966 | AZ86: 0 | BA86: 0 | BB86: 0 | BC86: 0 | BD86: 0 | BE86: 0 | BF86: 185 | CC86: Recoupment Academy
A87: 2172 | B87: Valley Invicta Primary School At East Borough | C87: 1 | D87: 439 | E87: 0 | F87: 0 | G87: 0.1936218679 | H87: 0 | I87: 0.1958997722 | J87: 0 | K87: 0.2608695652 | L87: 0.1235697941 | M87: 0 | N87: 0.0114416476 | O87: 0.009153318078 | P87: 0 | Q87: 0 | R87: 0 | S87: 0 | T87: 0 | U87: 0 | V87: 0 | W87: 0.2374670185 | X87: 0 | Y87: 0.2838753388 | Z87: 0 | AA87: 0.0410022779 | AB87: 0 | AC87: 132163.3716 | AD87: 0 | AE87: 0 | AF87: 1 | AG87: 0 | AH87: 10188.8 | AI87: 0 | AJ87: 0 | AK87: 4568.51 | AL87: 2079436.8 | AM87: 70711.9758 | AN87: 10188.8 | AO87: 472 | AR87: 0 | AS87: 0 | AT87: 0 | AV87: 76884.76304 | AW87: 32268.90541 | AX87: 48542.50502 | AY87: 143380.4331 | AZ87: 0 | BA87: 0 | BB87: 0 | BC87: 0 | BD87: 0 | BE87: 0 | BF87: 439 | CC87: Recoupment Academy
A88: 2180 | B88: South Borough Primary School | C88: 1 | D88: 447 | E88: 0 | F88: 0 | G88: 0.25950783 | H88: 0 | I88: 0.2617449664 | J88: 0 | K88: 0.1233183857 | L88: 0.07623318386 | M88: 0.004484304933 | N88: 0.0134529148 | O88: 0.197309417 | P88: 0 | Q88: 0 | R88: 0 | S88: 0 | T88: 0 | U88: 0 | V88: 0 | W88: 0.1839378238 | X88: 0 | Y88: 0.2224020019 | Z88: 0 | AA88: 0.0581655481 | AB88: 0 | AC88: 132163.3716 | AD88: 0 | AE88: 0 | AF88: 1 | AG88: 0 | AH88: 11980.8 | AI88: 0 | AJ88: 0 | AK88: 4568.51 | AL88: 2133786.571 | AM88: 73269.7835 | AN88: 11980.8 | AO88: 476 | AR88: 0 | AS88: 1.2 | AT88: 0 | AV88: 78285.85212 | AW88: 49489.56626 | AX88: 66040.38473 | AY88: 114378.3738 | AZ88: 0 | BA88: 0 | BB88: 0 | BC88: 0 | BD88: 0 | BE88: 0 | BF88: 447 | CC88: Recoupment Academy
A89: 2183 | B89: Marden Primary Academy | C89: 1 | D89: 290 | E89: 0 | F89: 0 | G89: 0.2793103448 | H89: 0 | I89: 0.2896551724 | J89: 0 | K89: 0.01724137931 | L89: 0.4137931034 | M89: 0.003448275862 | N89: 0 | O89: 0 | P89: 0 | Q89: 0 | R89: 0 | S89: 0 | T89: 0 | U89: 0 | V89: 0 | W89: 0.0243902439 | X89: 0 | Y89: 0.240495045 | Z89: 0 | AA89: 0.04482758621 | AB89: 0 | AC89: 132163.3716 | AD89: 0 | AE89: 0 | AF89: 1 | AG89: 0 | AH89: 26624 | AI89: 0 | AJ89: 0 | AK89: 4568.51 | AL89: 1298060.999 | AM89: 46494.8603 | AN89: 26624 | AO89: 280 | AR89: 0 | AS89: 0 | AT89: 0 | AV89: 50789.479 | AW89: 24656.72901 | AX89: 47413.60955 | AY89: 80242.01632 | AZ89: 0 | BA89: 0 | BB89: 0 | BC89: 0 | BD89: 0 | BE89: 0 | BF89: 290 | CC89: Recoupment Academy
A90: 2223 | B90: Bobbing Village School | C90: 1 | D90: 209 | E90: 0 | F90: 0 | G90: 0.07655502392 | H90: 0 | I90: 0.07655502392 | J90: 0 | K90: 0.08133971292 | L90: 0.1770334928 | M90: 0.00956937799 | N90: 0.01435406699 | O90: 0 | P90: 0.01435406699 | Q90: 0 | R90: 0 | S90: 0 | T90: 0 | U90: 0 | V90: 0 | W90: 0.04444444444 | X90: 0 | Y90: 0.209470305 | Z90: 0 | AA90: 0.03827751196 | AB90: 0 | AC90: 132163.3716 | AD90: 0 | AE90: 0 | AF90: 1 | AG90: 0 | AH90: 1126.4 | AI90: 0 | AJ90: 0 | AK90: 4568.51 | AL90: 913735.4844 | AM90: 30843.7989 | AN90: 1126.4 | AO90: 208 | AR90: 0 | AS90: 0 | AT90: 0 | AV90: 36603.45211 | AW90: 13027.04066 | AX90: 9031.163724 | AY90: 50369.3624 | AZ90: 0 | BA90: 0 | BB90: 0 | BC90: 0 | BD90: 0 | BE90: 0 | BF90: 209 | CC90: Recoupment Academy
A91: 2229 | B91: Graveney Primary School | C91: 1 | D91: 106 | E91: 0 | F91: 0 | G91: 0.179245283 | H91: 0 | I91: 0.1886792453 | J91: 0 | K91: 0.3396226415 | L91: 0.1509433962 | M91: 0 | N91: 0.03773584906 | O91: 0.07547169811 | P91: 0 | Q91: 0 | R91: 0 | S91: 0 | T91: 0 | U91: 0 | V91: 0 | W91: 0.04395604396 | X91: 0 | Y91: 0.1996168582 | Z91: 0 | AA91: 0.05660377358 | AB91: 0 | AC91: 132163.3716 | AD91: 23723.46344 | AE91: 0 | AF91: 1 | AG91: 0 | AH91: 952.32 | AI91: 0 | AJ91: 0 | AK91: 4568.51 | AL91: 533615.8591 | AM91: 18056.7616 | AN91: 952.32 | AO91: 98 | AR91: 0 | AS91: 0 | AT91: 0 | AV91: 18564.43026 | AW91: 13133.73505 | AX91: 11288.95465 | AY91: 24344.49576 | AZ91: 0 | BA91: 0 | BB91: 0 | BC91: 0 | BD91: 0 | BE91: 0 | BF91: 106 | CC91: Recoupment Academy
A92: 2230 | B92: Iwade School | C92: 1 | D92: 625 | E92: 0 | F92: 0 | G92: 0.128 | H92: 0 | I92: 0.136 | J92: 0 | K92: 0.1072 | L92: 0.0352 | M92: 0.0208 | N92: 0.0112 | O92: 0.0112 | P92: 0.0016 | Q92: 0 | R92: 0 | S92: 0 | T92: 0 | U92: 0 | V92: 0 | W92: 0.02425373134 | X92: 0 | Y92: 0.2223176882 | Z92: 0 | AA92: 0.0384 | AB92: 0 | AC92: 132163.3716 | AD92: 0 | AE92: 0 | AF92: 1 | AG92: 0 | AH92: 13926.4 | AI92: 0 | AJ92: 0 | AK92: 4568.51 | AL92: 2701318.4 | AM92: 86045.813 | AN92: 13926.4 | AO92: 613 | AR92: 0 | AS92: 0 | AT92: 0 | AV92: 109460.0841 | AW92: 24422.6897 | AX92: 47978.05728 | AY92: 159864.3909 | AZ92: 0 | BA92: 0 | BB92: 0 | BC92: 0 | BD92: 96026.43441 | BE92: 0 | BF92: 625 | CC92: Recoupment Academy
A93: 2232 | B93: Luddenham School | C93: 1 | D93: 200 | E93: 0 | F93: 0 | G93: 0.245 | H93: 0 | I93: 0.245 | J93: 0 | K93: 0.32 | L93: 0.045 | M93: 0.065 | N93: 0.01 | O93: 0.115 | P93: 0 | Q93: 0 | R93: 0 | S93: 0 | T93: 0 | U93: 0 | V93: 0 | W93: 0.005882352941 | X93: 0 | Y93: 0.4032121724 | Z93: 0 | AA93: 0.065 | AB93: 0 | AC93: 132163.3716 | AD93: 0 | AE93: 0 | AF93: 1 | AG93: 0 | AH93: 5273.6 | AI93: 0 | AJ93: 0 | AK93: 4568.51 | AL93: 959023.433 | AM93: 33206.4687 | AN93: 5273.6 | AO93: 199 | AR93: 0 | AS93: 0 | AT93: 0 | AV93: 35027.2269 | AW93: 24921.7441 | AX93: 27657.9389 | AY93: 92781.48779 | AZ93: 0 | BA93: 660.8168578 | BB93: 0 | BC93: 0 | BD93: 0 | BE93: 0 | BF93: 200 | CC93: Recoupment Academy
A94: 2233 | B94: Lynsted and Norton Primary School | C94: 1 | D94: 83 | E94: 0 | F94: 0 | G94: 0.5180722892 | H94: 0 | I94: 0.5301204819 | J94: 0 | K94: 0.5542168675 | L94: 0.01204819277 | M94: 0 | N94: 0 | O94: 0.02409638554 | P94: 0 | Q94: 0 | R94: 0 | S94: 0 | T94: 0 | U94: 0 | V94: 0 | W94: 0.1029411765 | X94: 0 | Y94: 0.2341452206 | Z94: 0 | AA94: 0.1204819277 | AB94: 0 | AC94: 132163.3716 | AD94: 0 | AE94: 0 | AF94: 1 | AG94: 0 | AH94: 3225.6 | AI94: 0 | AJ94: 0 | AK94: 4568.51 | AL94: 443557.9361 | AM94: 15778.1512 | AN94: 3225.6 | AO94: 71 | AR94: 0 | AS94: 0 | AT94: 0 | AV94: 14536.29916 | AW94: 8346.254585 | AX94: 24835.70024 | AY94: 22359.44873 | AZ94: 0 | BA94: 3317.300626 | BB94: 0 | BC94: 0 | BD94: 0 | BE94: 0 | BF94: 83 | CC94: Recoupment Academy
A95: 2235 | B95: Minster in Sheppey Primary School | C95: 1 | D95: 608 | E95: 0 | F95: 0 | G95: 0.2598684211 | H95: 0 | I95: 0.2664473684 | J95: 0 | K95: 0.3404958678 | L95: 0.05950413223 | M95: 0.08595041322 | N95: 0.03966942149 | O95: 0.1454545455 | P95: 0.05454545455 | Q95: 0 | R95: 0 | S95: 0 | T95: 0 | U95: 0 | V95: 0 | W95: 0.01156069364 | X95: 0 | Y95: 0.1813571098 | Z95: 0 | AA95: 0.02467105263 | AB95: 0 | AC95: 132163.3716 | AD95: 0 | AE95: 0 | AF95: 1 | AG95: 0 | AH95: 20400 | AI95: 0 | AJ95: 0 | AK95: 4568.51 | AL95: 2580656 | AM95: 89253.0797 | AN95: 20400 | AO95: 584 | AR95: 0 | AS95: 0 | AT95: 0 | AV95: 106482.7698 | AW95: 111519.3073 | AX95: 91440.5327 | AY95: 126863.2601 | AZ95: 0 | BA95: 0 | BB95: 0 | BC95: 0 | BD95: 8092.504105 | BE95: 0 | BF95: 608 | CC95: Recoupment Academy
A96: 2237 | B96: Queenborough School and Nursery | C96: 1 | D96: 415 | E96: 0 | F96: 0 | G96: 0.3807228916 | H96: 0 | I96: 0.3855421687 | J96: 0 | K96: 0.221686747 | L96: 0.01204819277 | M96: 0.01686746988 | N96: 0.009638554217 | O96: 0.3518072289 | P96: 0.3253012048 | Q96: 0 | R96: 0 | S96: 0 | T96: 0 | U96: 0 | V96: 0 | W96: 0.03107344633 | X96: 0 | Y96: 0.3104338843 | Z96: 0 | AA96: 0.04578313253 | AB96: 0 | AC96: 132163.3716 | AD96: 0 | AE96: 0 | AF96: 1 | AG96: 0 | AH96: 6809.6 | AI96: 0 | AJ96: 0 | AK96: 4568.51 | AL96: 2050113.688 | AM96: 71254.3591 | AN96: 6809.6 | AO96: 418 | AR96: 0 | AS96: 1.2 | AT96: 0 | AV96: 72681.49582 | AW96: 134290.3758 | AX96: 90311.63724 | AY96: 148222.7676 | AZ96: 0 | BA96: 0 | BB96: 0 | BC96: 0 | BD96: 0 | BE96: 0 | BF96: 415 | CC96: Recoupment Academy
A97: 2246 | B97: Sheldwich Primary School | C97: 1 | D97: 216 | E97: 0 | F97: 0 | G97: 0.06944444444 | H97: 0 | I97: 0.07407407407 | J97: 0 | K97: 0.06481481481 | L97: 0.04166666667 | M97: 0.02777777778 | N97: 0 | O97: 0.009259259259 | P97: 0.00462962963 | Q97: 0 | R97: 0 | S97: 0 | T97: 0 | U97: 0 | V97: 0 | W97: 0.005376344086 | X97: 0 | Y97: 0.1892436792 | Z97: 0 | AA97: 0.03240740741 | AB97: 0 | AC97: 132163.3716 | AD97: 0 | AE97: 0 | AF97: 1 | AG97: 0 | AH97: 4966.4 | AI97: 0 | AJ97: 0 | AK97: 4568.51 | AL97: 956294.4 | AM97: 32019.6299 | AN97: 4966.4 | AO97: 217 | AR97: 0 | AS97: 0 | AT97: 0 | AV97: 37829.40505 | AW97: 7045.271396 | AX97: 9031.163724 | AY97: 47029.76798 | AZ97: 0 | BA97: 0 | BB97: 0 | BC97: 0 | BD97: 8664.13022 | BE97: 0 | BF97: 216 | CC97: Recoupment Academy
A98: 2249 | B98: Regis Manor Primary School | C98: 1 | D98: 558 | E98: 0 | F98: 0 | G98: 0.2580645161 | H98: 0 | I98: 0.2598566308 | J98: 0 | K98: 0.2010771993 | L98: 0.131059246 | M98: 0.3177737882 | N98: 0.001795332136 | O98: 0 | P98: 0.007181328546 | Q98: 0 | R98: 0 | S98: 0 | T98: 0 | U98: 0 | V98: 0 | W98: 0.09635974304 | X98: 0 | Y98: 0.2682168101 | Z98: 0 | AA98: 0.04856115108 | AB98: 0 | AC98: 132163.3716 | AD98: 0 | AE98: 0 | AF98: 1 | AG98: 0 | AH98: 11468.8 | AI98: 0 | AJ98: 0 | AK98: 4568.51 | AL98: 2317452.8 | AM98: 80785.095 | AN98: 11468.8 | AO98: 526 | AR98: 0 | AS98: 1.2 | AT98: 0 | AV98: 97725.96305 | AW98: 89022.19659 | AX98: 81844.92125 | AY98: 172193.9523 | AZ98: 0 | BA98: 0 | BB98: 0 | BC98: 0 | BD98: 0 | BE98: 0 | BF98: 558 | CC98: Recoupment Academy
A99: 2259 | B99: Chartham Primary School | C99: 1 | D99: 395 | E99: 0 | F99: 0 | G99: 0.2632911392 | H99: 0 | I99: 0.2658227848 | J99: 0 | K99: 0.005063291139 | L99: 0.00253164557 | M99: 0.005063291139 | N99: 0.01012658228 | O99: 0.04303797468 | P99: 0 | Q99: 0 | R99: 0 | S99: 0 | T99: 0 | U99: 0 | V99: 0 | W99: 0.05621301775 | X99: 0 | Y99: 0.3047490066 | Z99: 0 | AA99: 0.06329113924 | AB99: 0 | AC99: 132163.3716 | AD99: 0 | AE99: 0 | AF99: 1 | AG99: 0 | AH99: 32512 | AI99: 0 | AJ99: 0 | AK99: 4568.51 | AL99: 1716808.906 | AM99: 61377.3785 | AN99: 32512 | AO99: 384 | AR99: 0 | AS99: 0 | AT99: 0 | AV99: 69178.77313 | AW99: 8494.250027 | AX99: 59267.01194 | AY99: 138495.9573 | AZ99: 0 | BA99: 859.0619152 | BB99: 0 | BC99: 0 | BD99: 0 | BE99: 0 | BF99: 395 | CC99: Recoupment Academy
A100: 2264 | B100: Hampton Primary School | C100: 1 | D100: 643 | E100: 0 | F100: 0 | G100: 0.3032659409 | H100: 0 | I100: 0.3094867807 | J100: 0 | K100: 0.02177293935 | L100: 0.06376360809 | M100: 0.1850699844 | N100: 0.03888024883 | O100: 0.04354587869 | P100: 0 | Q100: 0 | R100: 0 | S100: 0 | T100: 0 | U100: 0 | V100: 0 | W100: 0.03074141049 | X100: 0 | Y100: 0.2590173015 | Z100: 0 | AA100: 0.04043545879 | AB100: 0 | AC100: 132163.3716 | AD100: 0 | AE100: 0 | AF100: 1 | AG100: 0 | AH100: 16998.4 | AI100: 0 | AJ100: 0 | AK100: 4568.51 | AL100: 2867533.563 | AM100: 100933.3348 | AN100: 16998.4 | AO100: 648 | AR100: 0 | AS100: 1.2 | AT100: 0 | AV100: 112612.5345 | AW100: 65031.95067 | AX100: 112325.0988 | AY100: 191618.5059 | AZ100: 0 | BA100: 0 | BB100: 0 | BC100: 0 | BD100: 1171.304402 | BE100: 2644.683422 | BF100: 643 | CC100: Recoupment Academy
A101: 2272 | B101: East Stour Primary School | C101: 1 | D101: 377 | E101: 0 | F101: 0 | G101: 0.3978779841 | H101: 0 | I101: 0.4031830239 | J101: 0 | K101: 0.163538874 | L101: 0.2493297587 | M101: 0.002680965147 | N101: 0 | O101: 0.02144772118 | P101: 0 | Q101: 0 | R101: 0 | S101: 0 | T101: 0 | U101: 0 | V101: 0 | W101: 0.1788856305 | X101: 0 | Y101: 0.3310045918 | Z101: 0 | AA101: 0.09814323607 | AB101: 0 | AC101: 132163.3716 | AD101: 0 | AE101: 0 | AF101: 1 | AG101: 0 | AH101: 53760 | AI101: 0 | AJ101: 0 | AK101: 4568.51 | AL101: 1872980.64 | AM101: 67325.5824 | AN101: 53760 | AO101: 392 | AR101: 0 | AS101: 1.2 | AT101: 0 | AV101: 66026.3227 | AW101: 31589.742 | AX101: 85796.05538 | AY101: 143573.0978 | AZ101: 0 | BA101: 9502.546416 | BB101: 0 | BC101: 0 | BD101: 0 | BE101: 0 | BF101: 377 | CC101: Recoupment Academy
A102: 2286 | B102: Hamstreet Primary Academy | C102: 1 | D102: 267 | E102: 0 | F102: 0 | G102: 0.1573033708 | H102: 0 | I102: 0.1685393258 | J102: 0 | K102: 0.01526717557 | L102: 0.003816793893 | M102: 0.0572519084 | N102: 0 | O102: 0.007633587786 | P102: 0 | Q102: 0 | R102: 0 | S102: 0 | T102: 0 | U102: 0 | V102: 0 | W102: 0.04329004329 | X102: 0 | Y102: 0.3114990391 | Z102: 0 | AA102: 0.07116104869 | AB102: 0 | AC102: 132163.3716 | AD102: 0 | AE102: 0 | AF102: 1 | AG102: 0 | AH102: 4480 | AI102: 0 | AJ102: 0 | AK102: 4568.51 | AL102: 1199538.092 | AM102: 41260.1607 | AN102: 4480 | AO102: 271 | AR102: 0 | AS102: 0 | AT102: 0 | AV102: 46761.34791 | AW102: 6264.282134 | AX102: 25400.14797 | AY102: 95689.80617 | AZ102: 0 | BA102: 1969.234236 | BB102: 0 | BC102: 0 | BD102: 0 | BE102: 0 | BF102: 267 | CC102: Recoupment Academy
A103: 2287 | B103: Rolvenden Primary School | C103: 1 | D103: 82 | E103: 0 | F103: 0 | G103: 0.2682926829 | H103: 0 | I103: 0.2682926829 | J103: 0 | K103: 0.6707317073 | L103: 0.0487804878 | M103: 0.01219512195 | N103: 0 | O103: 0 | P103: 0 | Q103: 0 | R103: 0 | S103: 0 | T103: 0 | U103: 0 | V103: 0 | W103: 0 | X103: 0 | Y103: 0.3268668831 | Z103: 0 | AA103: 0.0487804878 | AB103: 0 | AC103: 132163.3716 | AD103: 50827.15778 | AE103: 0 | AF103: 1 | AG103: 0 | AH103: 2560 | AI103: 0 | AJ103: 0 | AK103: 4568.51 | AL103: 513240.1877 | AM103: 16062.3521 | AN103: 2560 | AO103: 83 | AR103: 0 | AS103: 0 | AT103: 0 | AV103: 14361.16303 | AW103: 9987.971466 | AX103: 12417.85012 | AY103: 30837.73531 | AZ103: 0 | BA103: 0 | BB103: 0 | BC103: 0 | BD103: 0 | BE103: 0 | BF103: 82 | CC103: Recoupment Academy
A104: 2288 | B104: Smarden Primary School | C104: 1 | D104: 140 | E104: 0 | F104: 0 | G104: 0.09285714286 | H104: 0 | I104: 0.09285714286 | J104: 0 | K104: 0 | L104: 0.007194244604 | M104: 0.09352517986 | N104: 0 | O104: 0 | P104: 0 | Q104: 0 | R104: 0 | S104: 0 | T104: 0 | U104: 0 | V104: 0 | W104: 0.009009009009 | X104: 0 | Y104: 0.107486631 | Z104: 0 | AA104: 0.04285714286 | AB104: 0 | AC104: 132163.3716 | AD104: 7346.698322 | AE104: 0 | AF104: 1 | AG104: 0 | AH104: 3379.2 | AI104: 0 | AJ104: 0 | AK104: 4568.51 | AL104: 644224.4033 | AM104: 22626.9917 | AN104: 3379.2 | AO104: 139 | AR104: 0 | AS104: 0 | AT104: 0 | AV104: 24519.05883 | AW104: 4208.349564 | AX104: 7337.820526 | AY104: 17313.31333 | AZ104: 0 | BA104: 0 | BB104: 0 | BC104: 0 | BD104: 0 | BE104: 0 | BF104: 140 | CC104: Recoupment Academy
A105: 2290 | B105: Tenterden Infant School | C105: 1 | D105: 149 | E105: 0 | F105: 0 | G105: 0.255033557 | H105: 0 | I105: 0.255033557 | J105: 0 | K105: 0.02721088435 | L105: 0.2448979592 | M105: 0 | N105: 0 | O105: 0 | P105: 0 | Q105: 0 | R105: 0 | S105: 0 | T105: 0 | U105: 0 | V105: 0 | W105: 0.01941747573 | X105: 0 | Y105: 0.362745098 | Z105: 0 | AA105: 0.02684563758 | AB105: 0 | AC105: 132163.3716 | AD105: 0 | AE105: 0 | AF105: 1 | AG105: 0 | AH105: 4864 | AI105: 0 | AJ105: 0 | AK105: 4568.51 | AL105: 743434.7423 | AM105: 25825.252 | AN105: 4864 | AO105: 151 | AR105: 0 | AS105: 0 | AT105: 0 | AV105: 26095.28404 | AW105: 7814.421573 | AX105: 21449.01384 | AY105: 62184.98344 | AZ105: 0 | BA105: 0 | BB105: 0 | BC105: 0 | BD105: 0 | BE105: 0 | BF105: 149 | CC105: Recoupment Academy
A106: 2296 | B106: Mundella Primary School | C106: 1 | D106: 173 | E106: 0 | F106: 0 | G106: 0.5260115607 | H106: 0 | I106: 0.5375722543 | J106: 0 | K106: 0.06936416185 | L106: 0.1329479769 | M106: 0.1502890173 | N106: 0.2369942197 | O106: 0.2658959538 | P106: 0.08670520231 | Q106: 0 | R106: 0 | S106: 0 | T106: 0 | U106: 0 | V106: 0 | W106: 0.2156862745 | X106: 0 | Y106: 0.5108380592 | Z106: 0 | AA106: 0.1791907514 | AB106: 0 | AC106: 132163.3716 | AD106: 0 | AE106: 0 | AF106: 1 | AG106: 0 | AH106: 16908.28 | AI106: 0 | AJ106: 0 | AK106: 4568.51 | AL106: 994368.8486 | AM106: 34361.2849 | AN106: 16908.28 | AO106: 165 | AR106: 0 | AS106: 0 | AT106: 0 | AV106: 30298.55127 | AW106: 51433.57877 | AX106: 52493.63914 | AY106: 101678.0132 | AZ106: 0 | BA106: 13626.04361 | BB106: 0 | BC106: 0 | BD106: 0 | BE106: 0 | BF106: 173 | CC106: Recoupment Academy
A107: 2307 | B107: Warden House Primary School | C107: 1 | D107: 394 | E107: 0 | F107: 0 | G107: 0.4010152284 | H107: 0 | I107: 0.4035532995 | J107: 0 | K107: 0.1581632653 | L107: 0.1096938776 | M107: 0.1198979592 | N107: 0.3010204082 | O107: 0.1198979592 | P107: 0 | Q107: 0 | R107: 0 | S107: 0 | T107: 0 | U107: 0 | V107: 0 | W107: 0.02058823529 | X107: 0 | Y107: 0.2308346624 | Z107: 0 | AA107: 0.03299492386 | AB107: 0 | AC107: 132163.3716 | AD107: 0 | AE107: 0 | AF107: 1 | AG107: 0 | AH107: 1007.6 | AI107: 0 | AJ107: 0 | AK107: 4568.51 | AL107: 2089308.011 | AM107: 75139.1046 | AN107: 1007.6 | AO107: 448 | AR107: 0 | AS107: 0 | AT107: 0 | AV107: 69003.63699 | AW107: 89371.38855 | AX107: 89747.1895 | AY107: 104639.3294 | AZ107: 0 | BA107: 0 | BB107: 0 | BC107: 0 | BD107: 0 | BE107: 0 | BF107: 394 | CC107: Recoupment Academy
A108: 2309 | B108: Priory Fields School | C108: 1 | D108: 350 | E108: 0 | F108: 0 | G108: 0.5914285714 | H108: 0 | I108: 0.5942857143 | J108: 0 | K108: 0.06571428571 | L108: 0.3 | M108: 0.2571428571 | N108: 0.1542857143 | O108: 0.1285714286 | P108: 0.008571428571 | Q108: 0 | R108: 0 | S108: 0 | T108: 0 | U108: 0 | V108: 0 | W108: 0.1672025723 | X108: 0 | Y108: 0.3427694361 | Z108: 0 | AA108: 0.1057142857 | AB108: 0 | AC108: 132163.3716 | AD108: 0 | AE108: 0 | AF108: 1 | AG108: 0 | AH108: 6041.6 | AI108: 0 | AJ108: 0 | AK108: 4568.51 | AL108: 1888914.188 | AM108: 69671.2402 | AN108: 6041.6 | AO108: 368 | AR108: 0 | AS108: 0 | AT108: 0 | AV108: 61297.64707 | AW108: 87272.56804 | AX108: 117405.1284 | AY108: 138028.2039 | AZ108: 0 | BA108: 10573.06973 | BB108: 0 | BC108: 0 | BD108: 0 | BE108: 0 | BF108: 350 | CC108: Recoupment Academy
A109: 2310 | B109: Barton Junior School | C109: 1 | D109: 218 | E109: 0 | F109: 0 | G109: 0.5229357798 | H109: 0 | I109: 0.5229357798 | J109: 0 | K109: 0.08755760369 | L109: 0.1198156682 | M109: 0.33640553 | N109: 0.1474654378 | O109: 0.05529953917 | P109: 0.05069124424 | Q109: 0 | R109: 0 | S109: 0 | T109: 0 | U109: 0 | V109: 0 | W109: 0.04608294931 | X109: 0 | Y109: 0.1884621033 | Z109: 0 | AA109: 0.05963302752 | AB109: 0 | AC109: 132163.3716 | AD109: 0 | AE109: 0 | AF109: 1 | AG109: 0 | AH109: 3942.4 | AI109: 0 | AJ109: 0 | AK109: 4568.51 | AL109: 1131644.938 | AM109: 43185.5214 | AN109: 3942.4 | AO109: 219 | AR109: 0 | AS109: 0 | AT109: 0 | AV109: 38179.67732 | AW109: 50854.60271 | AX109: 64347.04153 | AY109: 47269.19753 | AZ109: 0 | BA109: 0 | BB109: 0 | BC109: 0 | BD109: 0 | BE109: 1271.117549 | BF109: 218 | CC109: Recoupment Academy
A110: 2313 | B110: St Martin's School | C110: 1 | D110: 193 | E110: 0 | F110: 0 | G110: 0.2176165803 | H110: 0 | I110: 0.2279792746 | J110: 0 | K110: 0.2797927461 | L110: 0.0621761658 | M110: 0.03626943005 | N110: 0.08808290155 | O110: 0.0414507772 | P110: 0.00518134715 | Q110: 0 | R110: 0 | S110: 0 | T110: 0 | U110: 0 | V110: 0 | W110: 0.01162790698 | X110: 0 | Y110: 0.2790697674 | Z110: 0 | AA110: 0.0518134715 | AB110: 0 | AC110: 132163.3716 | AD110: 0 | AE110: 0 | AF110: 1 | AG110: 0 | AH110: 4096 | AI110: 0 | AJ110: 0 | AK110: 4568.51 | AL110: 907068.6129 | AM110: 31496.26 | AN110: 4096 | AO110: 196 | AR110: 0 | AS110: 0 | AT110: 0 | AV110: 33801.27396 | AW110: 22213.08334 | AX110: 24835.70024 | AY110: 61968.04596 | AZ110: 0 | BA110: 0 | BB110: 0 | BC110: 0 | BD110: 0 | BE110: 0 | BF110: 193 | CC110: Recoupment Academy
A111: 2315 | B111: White Cliffs Primary and Nursery School | C111: 1 | D111: 250 | E111: 0 | F111: 0 | G111: 0.716 | H111: 0 | I111: 0.72 | J111: 0 | K111: 0.032 | L111: 0.052 | M111: 0.336 | N111: 0.048 | O111: 0.032 | P111: 0.396 | Q111: 0 | R111: 0 | S111: 0 | T111: 0 | U111: 0 | V111: 0 | W111: 0.03964757709 | X111: 0 | Y111: 0.2918393709 | Z111: 0 | AA111: 0.052 | AB111: 0 | AC111: 132163.3716 | AD111: 0 | AE111: 0 | AF111: 1 | AG111: 0 | AH111: 5836.8 | AI111: 0 | AJ111: 0 | AK111: 4568.51 | AL111: 1500307.236 | AM111: 57318.5099 | AN111: 5836.8 | AO111: 280 | AR111: 0 | AS111: 0 | AT111: 0 | AV111: 43784.03362 | AW111: 82756.98618 | AX111: 101600.5919 | AY111: 83942.44047 | AZ111: 0 | BA111: 0 | BB111: 0 | BC111: 0 | BD111: 0 | BE111: 0 | BF111: 250 | CC111: Recoupment Academy
A112: 2316 | B112: Shatterlocks Infant and Nursery School | C112: 1 | D112: 147 | E112: 0 | F112: 0 | G112: 0.4149659864 | H112: 0 | I112: 0.4217687075 | J112: 0 | K112: 0.1172413793 | L112: 0.1931034483 | M112: 0.2827586207 | N112: 0.08275862069 | O112: 0.1034482759 | P112: 0.03448275862 | Q112: 0 | R112: 0 | S112: 0 | T112: 0 | U112: 0 | V112: 0 | W112: 0.1121495327 | X112: 0 | Y112: 0.2476190476 | Z112: 0 | AA112: 0.01360544218 | AB112: 0 | AC112: 132163.3716 | AD112: 0 | AE112: 0 | AF112: 1 | AG112: 0 | AH112: 6912 | AI112: 0 | AJ112: 0 | AK112: 4568.51 | AL112: 881052.7466 | AM112: 31789.4672 | AN112: 6912 | AO112: 167 | AR112: 0 | AS112: 1.2 | AT112: 0 | AV112: 25745.01177 | AW112: 32913.87776 | AX112: 34995.75943 | AY112: 41879.26837 | AZ112: 0 | BA112: 0 | BB112: 0 | BC112: 0 | BD112: 0 | BE112: 0 | BF112: 147 | CC112: Recoupment Academy
A113: 2327 | B113: Worth Primary School | C113: 1 | D113: 67 | E113: 0 | F113: 0 | G113: 0.1940298507 | H113: 0 | I113: 0.223880597 | J113: 0 | K113: 0.1492537313 | L113: 0 | M113: 0.01492537313 | N113: 0.02985074627 | O113: 0.01492537313 | P113: 0 | Q113: 0 | R113: 0 | S113: 0 | T113: 0 | U113: 0 | V113: 0 | W113: 0 | X113: 0 | Y113: 0.2091836735 | Z113: 0 | AA113: 0.1194029851 | AB113: 0 | AC113: 132163.3716 | AD113: 3228.61153 | AE113: 0 | AF113: 1 | AG113: 0 | AH113: 3393.2 | AI113: 0 | AJ113: 0 | AK113: 4568.51 | AL113: 400546.2537 | AM113: 13472.5217 | AN113: 3393.2 | AO113: 63 | AR113: 0 | AS113: 0 | AT113: 0 | AV113: 11734.12101 | AW113: 2946.141825 | AX113: 8466.715991 | AY113: 16125.02105 | AZ113: 0 | BA113: 2630.051094 | BB113: 0 | BC113: 0 | BD113: 0 | BE113: 7327.007307 | BF113: 67 | CC113: Recoupment Academy
A114: 2435 | B114: South Avenue Primary School | C114: 1 | D114: 414 | E114: 0 | F114: 0 | G114: 0.3405797101 | H114: 0 | I114: 0.3405797101 | J114: 0 | K114: 0.2469733656 | L114: 0.2711864407 | M114: 0.08232445521 | N114: 0.007263922518 | O114: 0.002421307506 | P114: 0.07748184019 | Q114: 0 | R114: 0 | S114: 0 | T114: 0 | U114: 0 | V114: 0 | W114: 0.104519774 | X114: 0 | Y114: 0.3335079906 | Z114: 0 | AA114: 0.04842615012 | AB114: 0 | AC114: 132163.3716 | AD114: 0 | AE114: 0 | AF114: 1 | AG114: 0 | AH114: 7884.8 | AI114: 0 | AJ114: 0 | AK114: 4568.51 | AL114: 1863123.045 | AM114: 66599.069 | AN114: 7884.8 | AO114: 406 | AR114: 0 | AS114: 0 | AT114: 0 | AV114: 72506.35968 | AW114: 65379.16786 | AX114: 79587.13032 | AY114: 158856.243 | AZ114: 0 | BA114: 0 | BB114: 0 | BC114: 0 | BD114: 0 | BE114: 0 | BF114: 414 | CC114: Recoupment Academy
A115: 2438 | B115: Joydens Wood Junior School | C115: 1 | D115: 309 | E115: 0 | F115: 0 | G115: 0.1100323625 | H115: 0 | I115: 0.1100323625 | J115: 0 | K115: 0.04854368932 | L115: 0.02912621359 | M115: 0.02265372168 | N115: 0.01294498382 | O115: 0.01294498382 | P115: 0 | Q115: 0 | R115: 0 | S115: 0 | T115: 0 | U115: 0 | V115: 0 | W115: 0.05825242718 | X115: 0 | Y115: 0.2295742906 | Z115: 0 | AA115: 0.02588996764 | AB115: 0 | AC115: 132163.3716 | AD115: 0 | AE115: 0 | AF115: 1.0375 | AG115: 0 | AH115: 2668.932 | AI115: 0 | AJ115: 0 | AK115: 4568.51 | AL115: 1304785.66 | AM115: 44069.9452 | AN115: 2668.932 | AO115: 296 | AR115: 0 | AS115: 0 | AT115: 0 | AV115: 54117.06556 | AW115: 9089.67355 | AX115: 19191.22291 | AY115: 81616.77548 | AZ115: 0 | BA115: 0 | BB115: 0 | BC115: 6150.552656 | BD115: 0 | BE115: 0 | BF115: 309 | CC115: Recoupment Academy
A116: 2462 | B116: Riverview Infant School | C116: 1 | D116: 332 | E116: 0 | F116: 0 | G116: 0.1445783133 | H116: 0 | I116: 0.1506024096 | J116: 0 | K116: 0.1114457831 | L116: 0.01807228916 | M116: 0.0843373494 | N116: 0.1475903614 | O116: 0 | P116: 0 | Q116: 0 | R116: 0 | S116: 0 | T116: 0 | U116: 0 | V116: 0 | W116: 0.2253521127 | X116: 0 | Y116: 0.3842364532 | Z116: 0 | AA116: 0.02710843373 | AB116: 0 | AC116: 132163.3716 | AD116: 0 | AE116: 0 | AF116: 1 | AG116: 0 | AH116: 4121.6 | AI116: 0 | AJ116: 0 | AK116: 4568.51 | AL116: 1443259.645 | AM116: 48329.1567 | AN116: 4121.6 | AO116: 319 | AR116: 0 | AS116: 0 | AT116: 0 | AV116: 58145.19665 | AW116: 32097.80217 | AX116: 28222.38664 | AY116: 146769.0052 | AZ116: 0 | BA116: 0 | BB116: 0 | BC116: 0 | BD116: 0 | BE116: 0 | BF116: 332 | CC116: Recoupment Academy
A117: 2463 | B117: Minterne Junior School | C117: 1 | D117: 374 | E117: 0 | F117: 0 | G117: 0.1871657754 | H117: 0 | I117: 0.192513369 | J117: 0 | K117: 0.1336898396 | L117: 0.09625668449 | M117: 0.1336898396 | N117: 0.002673796791 | O117: 0.002673796791 | P117: 0.002673796791 | Q117: 0 | R117: 0 | S117: 0 | T117: 0 | U117: 0 | V117: 0 | W117: 0.0320855615 | X117: 0 | Y117: 0.2724224621 | Z117: 0 | AA117: 0.04278074866 | AB117: 0 | AC117: 132163.3716 | AD117: 0 | AE117: 0 | AF117: 1 | AG117: 0 | AH117: 6246.4 | AI117: 0 | AJ117: 0 | AK117: 4568.51 | AL117: 1641478.4 | AM117: 55071.9221 | AN117: 6246.4 | AO117: 373 | AR117: 0 | AS117: 0 | AT117: 0 | AV117: 65500.9143 | AW117: 31622.84005 | AX117: 40640.23676 | AY117: 117222.8344 | AZ117: 0 | BA117: 0 | BB117: 0 | BC117: 0 | BD117: 2276.38121 | BE117: 0 | BF117: 374 | CC117: Recoupment Academy
A118: 2500 | B118: Joydens Wood Infant School | C118: 1 | D118: 235 | E118: 0 | F118: 0 | G118: 0.05957446809 | H118: 0 | I118: 0.05957446809 | J118: 0 | K118: 0.05957446809 | L118: 0.03829787234 | M118: 0.0170212766 | N118: 0.008510638298 | O118: 0.03829787234 | P118: 0 | Q118: 0 | R118: 0 | S118: 0 | T118: 0 | U118: 0 | V118: 0 | W118: 0.1677018634 | X118: 0 | Y118: 0.264516129 | Z118: 0 | AA118: 0.03829787234 | AB118: 0 | AC118: 132163.3716 | AD118: 0 | AE118: 0 | AF118: 1.0375 | AG118: 0 | AH118: 2688 | AI118: 0 | AJ118: 0 | AK118: 4568.51 | AL118: 1087088.36 | AM118: 35390.5399 | AN118: 2688 | AO118: 238 | AR118: 0 | AS118: 0 | AT118: 0 | AV118: 41156.99161 | AW118: 9113.765831 | AX118: 7902.268258 | AY118: 71518.38899 | AZ118: 0 | BA118: 0 | BB118: 0 | BC118: 4863.428051 | BD118: 0 | BE118: 0 | BF118: 235 | CC118: Recoupment Academy
A119: 2511 | B119: Hartley Primary Academy | C119: 1 | D119: 418 | E119: 0 | F119: 0 | G119: 0.07894736842 | H119: 0 | I119: 0.07894736842 | J119: 0 | K119: 0.002392344498 | L119: 0.007177033493 | M119: 0.1459330144 | N119: 0 | O119: 0.002392344498 | P119: 0 | Q119: 0 | R119: 0 | S119: 0 | T119: 0 | U119: 0 | V119: 0 | W119: 0.01675977654 | X119: 0 | Y119: 0.1912350598 | Z119: 0 | AA119: 0.02392344498 | AB119: 0 | AC119: 132163.3716 | AD119: 0 | AE119: 0 | AF119: 1.0375 | AG119: 0 | AH119: 5632 | AI119: 0 | AJ119: 0 | AK119: 4568.51 | AL119: 1818063.753 | AM119: 59716.3438 | AN119: 5632 | AO119: 413 | AR119: 0 | AS119: 0 | AT119: 0 | AV119: 73206.90422 | AW119: 19790.08819 | AX119: 18626.77518 | AY119: 91969.00754 | AZ119: 0 | BA119: 0 | BB119: 0 | BC119: 7634.729067 | BD119: 34573.36491 | BE119: 0 | BF119: 418 | CC119: Recoupment Academy
A120: 2513 | B120: The Oaks Infant School | C120: 1 | D120: 274 | E120: 0 | F120: 0 | G120: 0.1240875912 | H120: 0 | I120: 0.1240875912 | J120: 0 | K120: 0.1204379562 | L120: 0.1058394161 | M120: 0.09854014599 | N120: 0.003649635036 | O120: 0.01459854015 | P120: 0.01824817518 | Q120: 0 | R120: 0 | S120: 0 | T120: 0 | U120: 0 | V120: 0 | W120: 0.06557377049 | X120: 0 | Y120: 0.2802197802 | Z120: 0 | AA120: 0.01459854015 | AB120: 0 | AC120: 132163.3716 | AD120: 0 | AE120: 0 | AF120: 1 | AG120: 0 | AH120: 4736 | AI120: 0 | AJ120: 0 | AK120: 4568.51 | AL120: 1225677.422 | AM120: 41929.6338 | AN120: 4736 | AO120: 274 | AR120: 0 | AS120: 1.2 | AT120: 0 | AV120: 47987.30085 | AW120: 23390.16336 | AX120: 19191.22291 | AY120: 88337.89641 | AZ120: 0 | BA120: 0 | BB120: 0 | BC120: 0 | BD120: 0 | BE120: 275.0977259 | BF120: 274 | CC120: Recoupment Academy
A121: 2523 | B121: Upton Junior School | C121: 1 | D121: 508 | E121: 0 | F121: 0 | G121: 0.2244094488 | H121: 0 | I121: 0.2460629921 | J121: 0 | K121: 0.0688976378 | L121: 0.09448818898 | M121: 0.05511811024 | N121: 0.01968503937 | O121: 0.04330708661 | P121: 0.01968503937 | Q121: 0 | R121: 0 | S121: 0 | T121: 0 | U121: 0 | V121: 0 | W121: 0.03937007874 | X121: 0 | Y121: 0.2751929558 | Z121: 0 | AA121: 0.04339250493 | AB121: 0 | AC121: 132163.3716 | AD121: 0 | AE121: 0 | AF121: 1 | AG121: 0 | AH121: 14868.48 | AI121: 0 | AJ121: 0 | AK121: 4568.51 | AL121: 2259476.48 | AM121: 77973.1076 | AN121: 14868.48 | AO121: 512 | AR121: 0 | AS121: 0 | AT121: 0 | AV121: 88969.15632 | AW121: 39473.48199 | AX121: 70555.96659 | AY121: 160841.727 | AZ121: 0 | BA121: 0 | BB121: 0 | BC121: 0 | BD121: 10619.23606 | BE121: 0 | BF121: 508 | CC121: Recoupment Academy
A122: 2531 | B122: Vale View Community School | C122: 1 | D122: 180 | E122: 0 | F122: 0 | G122: 0.5833333333 | H122: 0 | I122: 0.6 | J122: 0 | K122: 0.1111111111 | L122: 0.1388888889 | M122: 0.1388888889 | N122: 0.2333333333 | O122: 0.2111111111 | P122: 0.005555555556 | Q122: 0 | R122: 0 | S122: 0 | T122: 0 | U122: 0 | V122: 0 | W122: 0.1257861635 | X122: 0 | Y122: 0.3649308208 | Z122: 0 | AA122: 0.08888888889 | AB122: 0 | AC122: 132163.3716 | AD122: 0 | AE122: 0 | AF122: 1 | AG122: 0 | AH122: 3865.6 | AI122: 0 | AJ122: 0 | AK122: 4568.51 | AL122: 1040291.492 | AM122: 38765.3975 | AN122: 3865.6 | AO122: 188 | AR122: 0 | AS122: 0 | AT122: 0 | AV122: 31524.50421 | AW122: 43758.4663 | AX122: 60960.35514 | AY122: 75575.45166 | AZ122: 0 | BA122: 3436.247661 | BB122: 0 | BC122: 0 | BD122: 0 | BE122: 0 | BF122: 180 | CC122: Recoupment Academy
A123: 2534 | B123: Bysing Wood Primary School | C123: 1 | D123: 224 | E123: 0 | F123: 0 | G123: 0.4598214286 | H123: 0 | I123: 0.4598214286 | J123: 0 | K123: 0.1210762332 | L123: 0.008968609865 | M123: 0.197309417 | N123: 0 | O123: 0.3273542601 | P123: 0 | Q123: 0 | R123: 0 | S123: 0 | T123: 0 | U123: 0 | V123: 0 | W123: 0.06842105263 | X123: 0 | Y123: 0.4525711857 | Z123: 0 | AA123: 0.2098214286 | AB123: 0 | AC123: 132163.3716 | AD123: 0 | AE123: 0 | AF123: 1 | AG123: 0 | AH123: 10188.8 | AI123: 0 | AJ123: 0 | AK123: 4568.51 | AL123: 1108151.286 | AM123: 38232.0205 | AN123: 10188.8 | AO123: 201 | AR123: 0 | AS123: 0 | AT123: 0 | AV123: 39230.49413 | AW123: 44314.2402 | AX123: 58138.11647 | AY123: 116636.0009 | AZ123: 0 | BA123: 22177.01375 | BB123: 0 | BC123: 0 | BD123: 0 | BE123: 0 | BF123: 224 | CC123: Recoupment Academy
A124: 2569 | B124: Briary Primary School | C124: 1 | D124: 278 | E124: 0 | F124: 0 | G124: 0.3669064748 | H124: 0 | I124: 0.3669064748 | J124: 0 | K124: 0.01438848921 | L124: 0.2338129496 | M124: 0.07194244604 | N124: 0.02877697842 | O124: 0.03956834532 | P124: 0 | Q124: 0 | R124: 0 | S124: 0 | T124: 0 | U124: 0 | V124: 0 | W124: 0.08154506438 | X124: 0 | Y124: 0.4058870875 | Z124: 0 | AA124: 0.1155234657 | AB124: 0 | AC124: 132163.3716 | AD124: 0 | AE124: 0 | AF124: 1 | AG124: 0 | AH124: 9523.2 | AI124: 0 | AJ124: 0 | AK124: 4568.51 | AL124: 1401714.655 | AM124: 50317.562 | AN124: 9523.2 | AO124: 292 | AR124: 0 | AS124: 0 | AT124: 0 | AV124: 48687.84539 | AW124: 26095.38238 | AX124: 57573.66874 | AY124: 129821.832 | AZ124: 0 | BA124: 10200.05412 | BB124: 0 | BC124: 0 | BD124: 0 | BE124: 0 | BF124: 278 | CC124: Recoupment Academy
A125: 2595 | B125: Grove Park Primary School | C125: 1 | D125: 417 | E125: 0 | F125: 0 | G125: 0.2206235012 | H125: 0 | I125: 0.2278177458 | J125: 0 | K125: 0.07673860911 | L125: 0.2350119904 | M125: 0.03836930456 | N125: 0 | O125: 0.01199040767 | P125: 0.009592326139 | Q125: 0 | R125: 0 | S125: 0 | T125: 0 | U125: 0 | V125: 0 | W125: 0.07262569832 | X125: 0 | Y125: 0.3136096297 | Z125: 0 | AA125: 0.06024096386 | AB125: 0 | AC125: 132163.3716 | AD125: 0 | AE125: 0 | AF125: 1 | AG125: 0 | AH125: 11366.4 | AI125: 0 | AJ125: 0 | AK125: 4568.51 | AL125: 1788917.035 | AM125: 61172.2335 | AN125: 11366.4 | AO125: 405 | AR125: 0 | AS125: 0 | AT125: 0 | AV125: 73031.76808 | AW125: 32947.91552 | AX125: 53622.53461 | AY125: 150460.7239 | AZ125: 0 | BA125: 66.40015174 | BB125: 0 | BC125: 0 | BD125: 0 | BE125: 0 | BF125: 417 | CC125: Recoupment Academy
A126: 2596 | B126: Chilton Primary School | C126: 1 | D126: 418 | E126: 0 | F126: 0 | G126: 0.1626794258 | H126: 0 | I126: 0.1650717703 | J126: 0 | K126: 0.2846889952 | L126: 0.03827751196 | M126: 0.07177033493 | N126: 0.03110047847 | O126: 0.02870813397 | P126: 0.02870813397 | Q126: 0 | R126: 0 | S126: 0 | T126: 0 | U126: 0 | V126: 0 | W126: 0.01117318436 | X126: 0 | Y126: 0.1861550181 | Z126: 0 | AA126: 0.02153110048 | AB126: 0 | AC126: 132163.3716 | AD126: 0 | AE126: 0 | AF126: 1 | AG126: 0 | AH126: 7526.4 | AI126: 0 | AJ126: 0 | AK126: 4568.51 | AL126: 1848891.921 | AM126: 61709.6133 | AN126: 7526.4 | AO126: 420 | AR126: 0 | AS126: 0 | AT126: 0 | AV126: 73206.90422 | AW126: 45789.10144 | AX126: 38946.89356 | AY126: 89525.90746 | AZ126: 0 | BA126: 0 | BB126: 0 | BC126: 0 | BD126: 28931.78387 | BE126: 0 | BF126: 418 | CC126: Recoupment Academy
A127: 2608 | B127: St Stephen's Junior School | C127: 1 | D127: 400 | E127: 0 | F127: 0 | G127: 0.3425 | H127: 0 | I127: 0.3475 | J127: 0 | K127: 0.1125 | L127: 0.1725 | M127: 0.0225 | N127: 0.11 | O127: 0.28 | P127: 0 | Q127: 0 | R127: 0 | S127: 0 | T127: 0 | U127: 0 | V127: 0 | W127: 0.1625 | X127: 0 | Y127: 0.2606032764 | Z127: 0 | AA127: 0.0525 | AB127: 0 | AC127: 132163.3716 | AD127: 0 | AE127: 0 | AF127: 1 | AG127: 0 | AH127: 8294.4 | AI127: 0 | AJ127: 0 | AK127: 4568.51 | AL127: 1887882.961 | AM127: 65632.3858 | AN127: 8294.4 | AO127: 404 | AR127: 0 | AS127: 0 | AT127: 0 | AV127: 70054.4538 | AW127: 77966.06396 | AX127: 78458.23485 | AY127: 119932.6874 | AZ127: 0 | BA127: 0 | BB127: 0 | BC127: 0 | BD127: 0 | BE127: 0 | BF127: 400 | CC127: Recoupment Academy
A128: 2611 | B128: St Stephen's Infant School | C128: 1 | D128: 266 | E128: 0 | F128: 0 | G128: 0.2593984962 | H128: 0 | I128: 0.2631578947 | J128: 0 | K128: 0.1240601504 | L128: 0.1015037594 | M128: 0.02631578947 | N128: 0.1353383459 | O128: 0.3045112782 | P128: 0 | Q128: 0 | R128: 0 | S128: 0 | T128: 0 | U128: 0 | V128: 0 | W128: 0.2944444444 | X128: 0 | Y128: 0.2764705882 | Z128: 0 | AA128: 0.02631578947 | AB128: 0 | AC128: 132163.3716 | AD128: 0 | AE128: 0 | AF128: 1 | AG128: 0 | AH128: 24950 | AI128: 0 | AJ128: 0 | AK128: 4568.51 | AL128: 1337105.544 | AM128: 44248.2725 | AN128: 24950 | AO128: 269 | AR128: 0 | AS128: 0 | AT128: 0 | AV128: 46586.21178 | AW128: 53512.39847 | AX128: 39511.34129 | AY128: 84611.28201 | AZ128: 0 | BA128: 0 | BB128: 0 | BC128: 0 | BD128: 0 | BE128: 0 | BF128: 266 | CC128: Recoupment Academy
A129: 2625 | B129: Godinton Primary School | C129: 1 | D129: 418 | E129: 0 | F129: 0 | G129: 0.1531100478 | H129: 0 | I129: 0.1531100478 | J129: 0 | K129: 0.04306220096 | L129: 0.03349282297 | M129: 0.01435406699 | N129: 0.007177033493 | O129: 0.05741626794 | P129: 0 | Q129: 0 | R129: 0 | S129: 0 | T129: 0 | U129: 0 | V129: 0 | W129: 0.04166666667 | X129: 0 | Y129: 0.3146008901 | Z129: 0 | AA129: 0.04066985646 | AB129: 0 | AC129: 132163.3716 | AD129: 0 | AE129: 0 | AF129: 1 | AG129: 0 | AH129: 10086.4 | AI129: 0 | AJ129: 0 | AK129: 4568.51 | AL129: 1833830.4 | AM129: 59464.0263 | AN129: 10086.4 | AO129: 416 | AR129: 0 | AS129: 0 | AT129: 0 | AV129: 73206.90422 | AW129: 17005.70883 | AX129: 36124.65489 | AY129: 151298.2592 | AZ129: 0 | BA129: 0 | BB129: 0 | BC129: 0 | BD129: 19433.41916 | BE129: 0 | BF129: 418 | CC129: Recoupment Academy
A130: 2626 | B130: Sandwich Infant School | C130: 1 | D130: 138 | E130: 0 | F130: 0 | G130: 0.2028985507 | H130: 0 | I130: 0.2101449275 | J130: 0 | K130: 0.08088235294 | L130: 0.007352941176 | M130: 0.007352941176 | N130: 0.03676470588 | O130: 0 | P130: 0 | Q130: 0 | R130: 0 | S130: 0 | T130: 0 | U130: 0 | V130: 0 | W130: 0.09708737864 | X130: 0 | Y130: 0.3689320388 | Z130: 0 | AA130: 0.07246376812 | AB130: 0 | AC130: 132163.3716 | AD130: 0 | AE130: 0 | AF130: 1 | AG130: 0 | AH130: 2892.8 | AI130: 0 | AJ130: 0 | AK130: 4568.51 | AL130: 728843.8847 | AM130: 25452.9889 | AN130: 2892.8 | AO130: 147 | AR130: 0 | AS130: 0 | AT130: 0 | AV130: 24168.78656 | AW130: 4009.239043 | AX130: 16368.98425 | AY130: 58576.46519 | AZ130: 0 | BA130: 1136.604995 | BB130: 0 | BC130: 0 | BD130: 0 | BE130: 0 | BF130: 138 | CC130: Recoupment Academy
A131: 2629 | B131: Holywell Primary School | C131: 1 | D131: 198 | E131: 0 | F131: 0 | G131: 0.1363636364 | H131: 0 | I131: 0.1363636364 | J131: 0 | K131: 0.06565656566 | L131: 0.0101010101 | M131: 0.01515151515 | N131: 0.0202020202 | O131: 0 | P131: 0.005050505051 | Q131: 0 | R131: 0 | S131: 0 | T131: 0 | U131: 0 | V131: 0 | W131: 0.03571428571 | X131: 0 | Y131: 0.1497485139 | Z131: 0 | AA131: 0.06565656566 | AB131: 0 | AC131: 132163.3716 | AD131: 0 | AE131: 0 | AF131: 1 | AG131: 0 | AH131: 4838.4 | AI131: 0 | AJ131: 0 | AK131: 4568.51 | AL131: 863260.775 | AM131: 30425.5033 | AN131: 4838.4 | AO131: 194 | AR131: 0 | AS131: 0 | AT131: 0 | AV131: 34676.95463 | AW131: 5217.699773 | AX131: 15240.08878 | AY131: 34113.43198 | AZ131: 0 | BA131: 740.1148808 | BB131: 0 | BC131: 0 | BD131: 0 | BE131: 472.953953 | BF131: 198 | CC131: Recoupment Academy
A132: 2650 | B132: Dymchurch Primary School | C132: 1 | D132: 159 | E132: 0 | F132: 0 | G132: 0.3899371069 | H132: 0 | I132: 0.3899371069 | J132: 0 | K132: 0.572327044 | L132: 0.0251572327 | M132: 0.03773584906 | N132: 0.03773584906 | O132: 0 | P132: 0 | Q132: 0 | R132: 0 | S132: 0 | T132: 0 | U132: 0 | V132: 0 | W132: 0.02112676056 | X132: 0 | Y132: 0.2769281079 | Z132: 0 | AA132: 0.06918238994 | AB132: 0 | AC132: 132163.3716 | AD132: 0 | AE132: 0 | AF132: 1 | AG132: 0 | AH132: 4359.6 | AI132: 0 | AJ132: 0 | AK132: 4568.51 | AL132: 812955.5952 | AM132: 29424.796 | AN132: 4359.6 | AO132: 162 | AR132: 0 | AS132: 0 | AT132: 0 | AV132: 27846.64538 | AW132: 19346.10186 | AX132: 34995.75943 | AY132: 50659.61266 | AZ132: 0 | BA132: 964.7926124 | BB132: 0 | BC132: 0 | BD132: 0 | BE132: 0 | BF132: =SUM(D132:F132) -> 159 | CC132: Recoupment Academy
A133: 2654 | B133: The Canterbury Primary School | C133: 1 | D133: 417 | E133: 0 | F133: 0 | G133: 0.4244604317 | H133: 0 | I133: 0.4292565947 | J133: 0 | K133: 0.04567307692 | L133: 0.1418269231 | M133: 0.01682692308 | N133: 0.3149038462 | O133: 0.1153846154 | P133: 0.004807692308 | Q133: 0 | R133: 0 | S133: 0 | T133: 0 | U133: 0 | V133: 0 | W133: 0.137254902 | X133: 0 | Y133: 0.3618971351 | Z133: 0 | AA133: 0.08872901679 | AB133: 0 | AC133: 132163.3716 | AD133: 0 | AE133: 0 | AF133: 1 | AG133: 0 | AH133: 16281.6 | AI133: 0 | AJ133: 0 | AK133: 4568.51 | AL133: 2005987.906 | AM133: 71580.5897 | AN133: 16281.6 | AO133: 412 | AR133: 0 | AS133: 0 | AT133: 0 | AV133: 73031.76808 | AW133: 78667.53654 | AX133: 101036.1442 | AY133: 173627.656 | AZ133: 0 | BA133: 7916.585957 | BB133: 0 | BC133: 0 | BD133: 0 | BE133: 0 | BF133: 417 | CC133: Recoupment Academy
A134: 2656 | B134: Meopham Community Academy | C134: 1 | D134: 423 | E134: 0 | F134: 0 | G134: 0.0756501182 | H134: 0 | I134: 0.0780141844 | J134: 0 | K134: 0.0355450237 | L134: 0.01895734597 | M134: 0.007109004739 | N134: 0.01421800948 | O134: 0 | P134: 0 | Q134: 0 | R134: 0 | S134: 0 | T134: 0 | U134: 0 | V134: 0 | W134: 0.01608579088 | X134: 0 | Y134: 0.2663760535 | Z134: 0 | AA134: 0.03546099291 | AB134: 0 | AC134: 132163.3716 | AD134: 0 | AE134: 0 | AF134: 1 | AG134: 0 | AH134: 6553.6 | AI134: 0 | AJ134: 0 | AK134: 4568.51 | AL134: 1887289.6 | AM134: 58722.5022 | AN134: 6553.6 | AO134: 429 | AR134: 0 | AS134: 0 | AT134: 0 | AV134: 74082.58489 | AW134: 6934.319671 | AX134: 18626.77518 | AY134: 129638.2769 | AZ134: 0 | BA134: 0 | BB134: 0 | BC134: 0 | BD134: 57251.81302 | BE134: 0 | BF134: 423 | CC134: Recoupment Academy
A135: 2657 | B135: Temple Hill Primary Academy | C135: 1 | D135: 807 | E135: 0 | F135: 0 | G135: 0.4027261462 | H135: 0 | I135: 0.405204461 | J135: 0 | K135: 0.1140024783 | L135: 0.01610904585 | M135: 0.1548946716 | N135: 0.007434944238 | O135: 0.2949194548 | P135: 0 | Q135: 0 | R135: 0 | S135: 0 | T135: 0 | U135: 0 | V135: 0 | W135: 0.2209631728 | X135: 0 | Y135: 0.5067722712 | Z135: 0 | AA135: 0.09045848823 | AB135: 0 | AC135: 132163.3716 | AD135: 0 | AE135: 0 | AF135: 1.0375 | AG135: 0 | AH135: 9574.4 | AI135: 0 | AJ135: 0 | AK135: 4568.51 | AL135: 4155573.757 | AM135: 142304.6549 | AN135: 9574.4 | AO135: 827 | AR135: 0 | AS135: 1.2 | AT135: 0 | AV135: 141334.8605 | AW135: 142096.275 | AX135: 184574.4086 | AY135: 470526.4923 | AZ135: 0 | BA135: 16242.87837 | BB135: 0 | BC135: 35804.0593 | BD135: 0 | BE135: 0 | BF135: 807 | CC135: Recoupment Academy
A136: 2658 | B136: Westcourt Primary School | C136: 1 | D136: 320 | E136: 0 | F136: 0 | G136: 0.440625 | H136: 0 | I136: 0.4625 | J136: 0 | K136: 0.141955836 | L136: 0.08201892744 | M136: 0.2429022082 | N136: 0.3154574132 | O136: 0.006309148265 | P136: 0 | Q136: 0 | R136: 0 | S136: 0 | T136: 0 | U136: 0 | V136: 0 | W136: 0.1201413428 | X136: 0 | Y136: 0.28655846 | Z136: 0 | AA136: 0.13125 | AB136: 0 | AC136: 132163.3716 | AD136: 0 | AE136: 0 | AF136: 1 | AG136: 0 | AH136: 4787.2 | AI136: 0 | AJ136: 0 | AK136: 4568.51 | AL136: 1652403.87 | AM136: 58812.5658 | AN136: 4787.2 | AO136: 331 | AR136: 0 | AS136: 0.3 | AT136: 0 | AV136: 56043.56304 | AW136: 70723.38569 | AX136: 83538.26444 | AY136: 105502.0541 | AZ136: 0 | BA136: 15066.62436 | BB136: 0 | BC136: 0 | BD136: 0 | BE136: 0 | BF136: 320 | CC136: Recoupment Academy
A137: 2659 | B137: Sandown School | C137: 1 | D137: 365 | E137: 0 | F137: 0 | G137: 0.3095890411 | H137: 0 | I137: 0.3150684932 | J137: 0 | K137: 0.3581267218 | L137: 0.02479338843 | M137: 0.0303030303 | N137: 0.1873278237 | O137: 0.03305785124 | P137: 0.005509641873 | Q137: 0 | R137: 0 | S137: 0 | T137: 0 | U137: 0 | V137: 0 | W137: 0.03154574132 | X137: 0 | Y137: 0.2571848291 | Z137: 0 | AA137: 0.07945205479 | AB137: 0 | AC137: 132163.3716 | AD137: 0 | AE137: 0 | AF137: 1 | AG137: 0 | AH137: 7610.4 | AI137: 0 | AJ137: 0 | AK137: 4568.51 | AL137: 1686707.326 | AM137: 61093.1777 | AN137: 7610.4 | AO137: 372 | AR137: 0 | AS137: 0 | AT137: 0 | AV137: 63924.68909 | AW137: 54354.02595 | AX137: 64911.48926 | AY137: 108003.0235 | AZ137: 0 | BA137: 4691.799691 | BB137: 0 | BC137: 0 | BD137: 0 | BE137: 0 | BF137: 365 | CC137: Recoupment Academy
A138: 2666 | B138: Wrotham Road Primary School | C138: 1 | D138: 414 | E138: 0 | F138: 0 | G138: 0.3115942029 | H138: 0 | I138: 0.3164251208 | J138: 0 | K138: 0.08937198068 | L138: 0.3961352657 | M138: 0.007246376812 | N138: 0.02415458937 | O138: 0.004830917874 | P138: 0 | Q138: 0 | R138: 0 | S138: 0 | T138: 0 | U138: 0 | V138: 0 | W138: 0.2322946176 | X138: 0 | Y138: 0.4017482319 | Z138: 0 | AA138: 0.07246376812 | AB138: 0 | AC138: 132163.3716 | AD138: 0 | AE138: 0 | AF138: 1 | AG138: 0 | AH138: 5529.6 | AI138: 0 | AJ138: 0 | AK138: 4568.51 | AL138: 1923763.656 | AM138: 65603.3653 | AN138: 5529.6 | AO138: 409 | AR138: 0 | AS138: 1.2 | AT138: 0 | AV138: 72506.35968 | AW138: 43125.18348 | AX138: 73942.65299 | AY138: 191360.3768 | AZ138: 0 | BA138: 3409.814986 | BB138: 0 | BC138: 0 | BD138: 0 | BE138: 0 | BF138: 414 | CC138: Recoupment Academy
A139: 2672 | B139: Palm Bay Primary School | C139: 1 | D139: 418 | E139: 0 | F139: 0 | G139: 0.2416267943 | H139: 0 | I139: 0.2511961722 | J139: 0 | K139: 0.00956937799 | L139: 0.05263157895 | M139: 0.01196172249 | N139: 0.06698564593 | O139: 0.1387559809 | P139: 0.03110047847 | Q139: 0 | R139: 0 | S139: 0 | T139: 0 | U139: 0 | V139: 0 | W139: 0.04189944134 | X139: 0 | Y139: 0.3302170521 | Z139: 0 | AA139: 0.05980861244 | AB139: 0 | AC139: 132163.3716 | AD139: 0 | AE139: 0 | AF139: 1 | AG139: 0 | AH139: 54272 | AI139: 0 | AJ139: 0 | AK139: 4568.51 | AL139: 1907861.281 | AM139: 65679.419 | AN139: 54272 | AO139: 421 | AR139: 0 | AS139: 0 | AT139: 0 | AV139: 73206.90422 | AW139: 42488.45891 | AX139: 59267.01194 | AY139: 158808.4036 | AZ139: 0 | BA139: 0 | BB139: 0 | BC139: 0 | BD139: 0 | BE139: 0 | BF139: 418 | CC139: Recoupment Academy
A140: 2676 | B140: West Hill Primary Academy | C140: 1 | D140: 525 | E140: 0 | F140: 0 | G140: 0.1276190476 | H140: 0 | I140: 0.1333333333 | J140: 0 | K140: 0.009523809524 | L140: 0.01523809524 | M140: 0.007619047619 | N140: 0.01142857143 | O140: 0.02476190476 | P140: 0 | Q140: 0 | R140: 0 | S140: 0 | T140: 0 | U140: 0 | V140: 0 | W140: 0.2644444444 | X140: 0 | Y140: 0.2240215027 | Z140: 0 | AA140: 0.08396946565 | AB140: 0 | AC140: 132163.3716 | AD140: 0 | AE140: 0 | AF140: 1.0375 | AG140: 0 | AH140: 5734.4 | AI140: 0 | AJ140: 0 | AK140: 4568.51 | AL140: 2326656.872 | AM140: 77831.1496 | AN140: 5734.4 | AO140: 529 | AR140: 0 | AS140: 0 | AT140: 0 | AV140: 91946.47061 | AW140: 10215.12726 | AX140: 39511.34129 | AY140: 135315.2398 | AZ140: 0 | BA140: 8315.699161 | BB140: 0 | BC140: 10698.89543 | BD140: 4291.07765 | BE140: 0 | BF140: 525 | CC140: Recoupment Academy
A141: 2677 | B141: Coxheath Primary School | C141: 1 | D141: 431 | E141: 0 | F141: 0 | G141: 0.211136891 | H141: 0 | I141: 0.2157772622 | J141: 0 | K141: 0.3526682135 | L141: 0.009280742459 | M141: 0.006960556845 | N141: 0.006960556845 | O141: 0.03016241299 | P141: 0 | Q141: 0 | R141: 0 | S141: 0 | T141: 0 | U141: 0 | V141: 0 | W141: 0.04312668464 | X141: 0 | Y141: 0.2439733585 | Z141: 0 | AA141: 0.0626450116 | AB141: 0 | AC141: 132163.3716 | AD141: 0 | AE141: 0 | AF141: 1 | AG141: 0 | AH141: 5324.8 | AI141: 0 | AJ141: 0 | AK141: 4568.51 | AL141: 1904519.014 | AM141: 64922.8843 | AN141: 5324.8 | AO141: 433 | AR141: 0 | AS141: 0 | AT141: 0 | AV141: 75483.67397 | AW141: 31901.62216 | AX141: 52493.63914 | AY141: 120981.0577 | AZ141: 0 | BA141: 753.3312179 | BB141: 0 | BC141: 0 | BD141: 12872.87617 | BE141: 0 | BF141: 431 | CC141: Recoupment Academy
A142: 2679 | B142: The Brent Primary School | C142: 1 | D142: 650 | E142: 0 | F142: 0 | G142: 0.2523076923 | H142: 0 | I142: 0.2553846154 | J142: 0 | K142: 0.2777777778 | L142: 0.02314814815 | M142: 0.1543209877 | N142: 0.001543209877 | O142: 0.007716049383 | P142: 0 | Q142: 0 | R142: 0 | S142: 0 | T142: 0 | U142: 0 | V142: 0 | W142: 0.1339285714 | X142: 0 | Y142: 0.3109892427 | Z142: 0 | AA142: 0.05076923077 | AB142: 0 | AC142: 132163.3716 | AD142: 0 | AE142: 0 | AF142: 1.0375 | AG142: 0 | AH142: 8140.8 | AI142: 0 | AJ142: 0 | AK142: 4568.51 | AL142: 2969145.469 | AM142: 102750.9496 | AN142: 8140.8 | AO142: 652 | AR142: 0 | AS142: 0 | AT142: 0 | AV142: 113838.4874 | AW142: 64997.90492 | AX142: 93698.32363 | AY142: 232571.4634 | AZ142: 0 | BA142: 0 | BB142: 0 | BC142: 18941.48173 | BD142: 0 | BE142: 0 | BF142: 650 | CC142: Recoupment Academy
A143: 2684 | B143: Wentworth Primary School | C143: 1 | D143: 651 | E143: 0 | F143: 0 | G143: 0.1689708141 | H143: 0 | I143: 0.1689708141 | J143: 0 | K143: 0.2043010753 | L143: 0.009216589862 | M143: 0 | N143: 0.009216589862 | O143: 0.00153609831 | P143: 0 | Q143: 0 | R143: 0 | S143: 0 | T143: 0 | U143: 0 | V143: 0 | W143: 0.139084507 | X143: 0 | Y143: 0.2608384537 | Z143: 0 | AA143: 0.03379416283 | AB143: 0 | AC143: 132163.3716 | AD143: 0 | AE143: 0 | AF143: 1.0375 | AG143: 0 | AH143: 7680 | AI143: 0 | AJ143: 0 | AK143: 4568.51 | AL143: 2835360 | AM143: 94433.9651 | AN143: 7680 | AO143: 645 | AR143: 0 | AS143: 0 | AT143: 0 | AV143: 114013.6236 | AW143: 25049.08902 | AX143: 62089.2506 | AY143: 195366.5952 | AZ143: 0 | BA143: 0 | BB143: 0 | BC143: 14869.44594 | BD143: 12840.21867 | BE143: 0 | BF143: 651 | CC143: Recoupment Academy
A144: 2685 | B144: The Gateway Primary Academy | C144: 1 | D144: 210 | E144: 0 | F144: 0 | G144: 0.1333333333 | H144: 0 | I144: 0.1380952381 | J144: 0 | K144: 0.1961722488 | L144: 0.004784688995 | M144: 0.02392344498 | N144: 0.004784688995 | O144: 0.01913875598 | P144: 0 | Q144: 0 | R144: 0 | S144: 0 | T144: 0 | U144: 0 | V144: 0 | W144: 0.1444444444 | X144: 0 | Y144: 0.2200697404 | Z144: 0 | AA144: 0.02380952381 | AB144: 0 | AC144: 132163.3716 | AD144: 0 | AE144: 0 | AF144: 1.0375 | AG144: 0 | AH144: 5376 | AI144: 0 | AJ144: 0 | AK144: 4568.51 | AL144: 969297.5722 | AM144: 33102.824 | AN144: 5376 | AO144: 209 | AR144: 0 | AS144: 0 | AT144: 0 | AV144: 36778.58824 | AW144: 10160.2568 | AX144: 16368.98425 | AY144: 53171.30606 | AZ144: 0 | BA144: 0 | BB144: 0 | BC144: 4367.967576 | BD144: 0 | BE144: 0 | BF144: 210 | CC144: Recoupment Academy
A145: 2686 | B145: Furley Park Primary Academy | C145: 1 | D145: 521 | E145: 0 | F145: 0 | G145: 0.2034548944 | H145: 0 | I145: 0.2207293666 | J145: 0 | K145: 0.0289017341 | L145: 0.009633911368 | M145: 0.01348747592 | N145: 0.003853564547 | O145: 0.04816955684 | P145: 0 | Q145: 0 | R145: 0 | S145: 0 | T145: 0 | U145: 0 | V145: 0 | W145: 0.03854875283 | X145: 0 | Y145: 0.2484258402 | Z145: 0 | AA145: 0.1113243762 | AB145: 0 | AC145: 132163.3716 | AD145: 0 | AE145: 0 | AF145: 1 | AG145: 0 | AH145: 14233.6 | AI145: 0 | AJ145: 0 | AK145: 4568.51 | AL145: 2456567.531 | AM145: 81354.4974 | AN145: 14233.6 | AO145: 557 | AR145: 0 | AS145: 0 | AT145: 0 | AV145: 91245.92607 | AW145: 15139.88665 | AX145: 64911.48926 | AY145: 148912.856 | AZ145: 0 | BA145: 17670.24278 | BB145: 0 | BC145: 0 | BD145: 30903.54342 | BE145: 47.53861163 | BF145: 521 | CC145: Recoupment Academy
A146: 3019 | B146: Shorne Church of England Primary School | C146: 1 | D146: 208 | E146: 0 | F146: 0 | G146: 0.04807692308 | H146: 0 | I146: 0.04807692308 | J146: 0 | K146: 0.004807692308 | L146: 0.01442307692 | M146: 0.03365384615 | N146: 0.02403846154 | O146: 0 | P146: 0 | Q146: 0 | R146: 0 | S146: 0 | T146: 0 | U146: 0 | V146: 0 | W146: 0.02808988764 | X146: 0 | Y146: 0.2348314607 | Z146: 0 | AA146: 0.04326923077 | AB146: 0 | AC146: 132163.3716 | AD146: 0 | AE146: 0 | AF146: 1 | AG146: 0 | AH146: 4096 | AI146: 0 | AJ146: 0 | AK146: 4568.51 | AL146: 924736 | AM146: 30561.5994 | AN146: 4096 | AO146: 210 | AR146: 0 | AS146: 0 | AT146: 0 | AV146: 36428.31597 | AW146: 4563.766424 | AX146: 5644.477327 | AY146: 56197.5415 | AZ146: 0 | BA146: 0 | BB146: 0 | BC146: 0 | BD146: 4528.485453 | BE146: 0 | BF146: 208 | CC146: Recoupment Academy
A147: 3020 | B147: Sedley's Church of England Primary School | C147: 1 | D147: 101 | E147: 0 | F147: 0 | G147: 0.09900990099 | H147: 0 | I147: 0.1287128713 | J147: 0 | K147: 0.07 | L147: 0.1 | M147: 0.03 | N147: 0 | O147: 0.01 | P147: 0 | Q147: 0 | R147: 0 | S147: 0 | T147: 0 | U147: 0 | V147: 0 | W147: 0.03370786517 | X147: 0 | Y147: 0.2377873563 | Z147: 0 | AA147: 0.08910891089 | AB147: 0 | AC147: 132163.3716 | AD147: 8962.971953 | AE147: 0 | AF147: 1.0375 | AG147: 0 | AH147: 5863 | AI147: 0 | AJ147: 0 | AK147: 4568.51 | AL147: 537305.2356 | AM147: 18213.4589 | AN147: 5863 | AO147: 99 | AR147: 0 | AS147: 0 | AT147: 0 | AV147: 17688.74958 | AW147: 4411.262284 | AX147: 7337.820526 | AY147: 27631.7146 | AZ147: 0 | BA147: 1942.801562 | BB147: 0 | BC147: 2212.963071 | BD147: 0 | BE147: 0 | BF147: 101 | CC147: Recoupment Academy
A148: 3021 | B148: Stone St Mary's CofE Primary School | C148: 1 | D148: 642 | E148: 0 | F148: 0 | G148: 0.1869158879 | H148: 0 | I148: 0.191588785 | J148: 0 | K148: 0.05928237129 | L148: 0.02028081123 | M148: 0.0655226209 | N148: 0 | O148: 0.009360374415 | P148: 0 | Q148: 0 | R148: 0 | S148: 0 | T148: 0 | U148: 0 | V148: 0 | W148: 0.125 | X148: 0 | Y148: 0.290862568 | Z148: 0 | AA148: 0.07009345794 | AB148: 0 | AC148: 132163.3716 | AD148: 0 | AE148: 0 | AF148: 1.0375 | AG148: 0 | AH148: 11059.2 | AI148: 0 | AJ148: 0 | AK148: 4568.51 | AL148: 2803281.738 | AM148: 95913.7632 | AN148: 11059.2 | AO148: 636 | AR148: 0 | AS148: 0 | AT148: 0 | AV148: 112437.3983 | AW148: 23726.55325 | AX148: 69427.07113 | AY148: 214842.6816 | AZ148: 0 | BA148: 4282.093239 | BB148: 0 | BC148: 15926.84241 | BD148: 0 | BE148: 0 | BF148: 642 | CC148: Recoupment Academy
A149: 3025 | B149: Chiddingstone Church of England School | C149: 1 | D149: 210 | E149: 0 | F149: 0 | G149: 0.04761904762 | H149: 0 | I149: 0.04761904762 | J149: 0 | K149: 0.05263157895 | L149: 0 | M149: 0.01913875598 | N149: 0 | O149: 0 | P149: 0 | Q149: 0 | R149: 0 | S149: 0 | T149: 0 | U149: 0 | V149: 0 | W149: 0.01666666667 | X149: 0 | Y149: 0.1239829523 | Z149: 0 | AA149: 0.03333333333 | AB149: 0 | AC149: 132163.3716 | AD149: 0 | AE149: 0 | AF149: 1.0375 | AG149: 0 | AH149: 2534.4 | AI149: 0 | AJ149: 0 | AK149: 4568.51 | AL149: 924383.2676 | AM149: 31714.4099 | AN149: 2534.4 | AO149: 210 | AR149: 0 | AS149: 0 | AT149: 0 | AV149: 36778.58824 | AW149: 3019.027974 | AX149: 5644.477327 | AY149: 29955.66539 | AZ149: 0 | BA149: 0 | BB149: 0 | BC149: 2827.41596 | BD149: 3477.155561 | BE149: 0 | BF149: 210 | CC149: Recoupment Academy
A150: 3035 | B150: Seal Church of England Voluntary Controlled Primary School | C150: 1 | D150: 361 | E150: 0 | F150: 0 | G150: 0.2105263158 | H150: 0 | I150: 0.216066482 | J150: 0 | K150: 0.02216066482 | L150: 0 | M150: 0.002770083102 | N150: 0.002770083102 | O150: 0 | P150: 0 | Q150: 0 | R150: 0 | S150: 0 | T150: 0 | U150: 0 | V150: 0 | W150: 0.02950819672 | X150: 0 | Y150: 0.2018995411 | Z150: 0 | AA150: 0.09418282548 | AB150: 0 | AC150: 132163.3716 | AD150: 0 | AE150: 0 | AF150: 1.0375 | AG150: 0 | AH150: 17839 | AI150: 0 | AJ150: 0 | AK150: 4568.51 | AL150: 1565539.464 | AM150: 56930.1696 | AN150: 17839 | AO150: 352 | AR150: 0 | AS150: 0 | AT150: 0 | AV150: 63224.14455 | AW150: 1934.266011 | AX150: 44026.92315 | AY150: 83857.17658 | AZ150: 0 | BA150: 8154.480026 | BB150: 0 | BC150: 7544.887137 | BD150: 0 | BE150: 0 | BF150: 361 | CC150: Recoupment Academy
A151: 3059 | B151: St Mark's Church of England Primary School, Eccles | C151: 1 | D151: 135 | E151: 0 | F151: 0 | G151: 0.2296296296 | H151: 0 | I151: 0.2296296296 | J151: 0 | K151: 0.04444444444 | L151: 0.01481481481 | M151: 0 | N151: 0.05185185185 | O151: 0 | P151: 0 | Q151: 0 | R151: 0 | S151: 0 | T151: 0 | U151: 0 | V151: 0 | W151: 0.01694915254 | X151: 0 | Y151: 0.2969202899 | Z151: 0 | AA151: 0.05970149254 | AB151: 0 | AC151: 132163.3716 | AD151: 0 | AE151: 0 | AF151: 1 | AG151: 0 | AH151: 4582.4 | AI151: 0 | AJ151: 0 | AK151: 4568.51 | AL151: 619705.5369 | AM151: 21614.2759 | AN151: 4582.4 | AO151: 127 | AR151: 0 | AS151: 0 | AT151: 0 | AV151: 23643.37816 | AW151: 3699.886053 | AX151: 17497.87971 | AY151: 46118.09362 | AZ151: 0 | BA151: 0 | BB151: 0 | BC151: 0 | BD151: 0 | BE151: 0 | BF151: 135 | CC151: Recoupment Academy
A152: 3086 | B152: West Malling Church of England Primary School and McGinty Speech and Language Srp | C152: 1 | D152: 206 | E152: 0 | F152: 0 | G152: 0.2766990291 | H152: 0 | I152: 0.2766990291 | J152: 0 | K152: 0.2281553398 | L152: 0.01941747573 | M152: 0.004854368932 | N152: 0.145631068 | O152: 0.03398058252 | P152: 0 | Q152: 0 | R152: 0 | S152: 0 | T152: 0 | U152: 0 | V152: 0 | W152: 0.04469273743 | X152: 0 | Y152: 0.351755102 | Z152: 0 | AA152: 0.1262135922 | AB152: 0 | AC152: 132163.3716 | AD152: 0 | AE152: 0 | AF152: 1 | AG152: 0 | AH152: 5273.6 | AI152: 0 | AJ152: 0 | AK152: 4568.51 | AL152: 966843.7048 | AM152: 33325.5529 | AN152: 5273.6 | AO152: 200 | AR152: 0 | AS152: 0 | AT152: 0 | AV152: 36078.04371 | AW152: 21190.88226 | AX152: 32173.52077 | AY152: 83369.14125 | AZ152: 0 | BA152: 9013.541941 | BB152: 0 | BC152: 0 | BD152: 0 | BE152: 0 | BF152: 206 | CC152: Recoupment Academy
A153: 3106 | B153: Eastchurch Church of England Primary School | C153: 1 | D153: 123 | E153: 0 | F153: 0 | G153: 0.4715447154 | H153: 0 | I153: 0.5040650407 | J153: 0 | K153: 0.04098360656 | L153: 0 | M153: 0.008196721311 | N153: 0.7213114754 | O153: 0.1721311475 | P153: 0.01639344262 | Q153: 0 | R153: 0 | S153: 0 | T153: 0 | U153: 0 | V153: 0 | W153: 0.05607476636 | X153: 0 | Y153: 0.5400632216 | Z153: 0 | AA153: 0.07317073171 | AB153: 0 | AC153: 132163.3716 | AD153: 20090.97092 | AE153: 0 | AF153: 1 | AG153: 0 | AH153: 15564.8 | AI153: 0 | AJ153: 0 | AK153: 4568.51 | AL153: 1861964.651 | AM153: 63572.9302 | AN153: 15564.8 | AO153: 350 | AR153: 0 | AS153: 1.2 | AT153: 0 | AV153: 21541.74454 | AW153: 39193.26111 | AX153: 34995.75943 | AY153: 76427.10628 | AZ153: 0 | BA153: 1070.52331 | BB153: 0 | BC153: 0 | BD153: 0 | BE153: 0 | BF153: 123 | CC153: Recoupment Academy
A154: 3110 | B154: Milstead and Frinsted Church of England Primary School | C154: 1 | D154: 60 | E154: 0 | F154: 0 | G154: 0.25 | H154: 0 | I154: 0.25 | J154: 0 | K154: 0.1016949153 | L154: 0.1355932203 | M154: 0 | N154: 0.01694915254 | O154: 0 | P154: 0 | Q154: 0 | R154: 0 | S154: 0 | T154: 0 | U154: 0 | V154: 0 | W154: 0.01754385965 | X154: 0 | Y154: 0.3685950413 | Z154: 0 | AA154: 0.08333333333 | AB154: 0 | AC154: 132163.3716 | AD154: 56149.76575 | AE154: 0 | AF154: 1 | AG154: 0 | AH154: 15564.8 | AI154: 0 | AJ154: 0 | AK154: 4568.51 | AL154: 512987.1937 | AM154: 16612.7411 | AN154: 1132.436 | AO154: 85 | AR154: 0 | AS154: 0 | AT154: 0 | AV154: 10508.16807 | AW154: 2922.574557 | AX154: 8466.715991 | AY154: 25444.76481 | AZ154: 0 | BA154: 925.143601 | BB154: 0 | BC154: 0 | BD154: 0 | BE154: 0 | BF154: 60 | CC154: Recoupment Academy
A155: 3112 | B155: Selling Church of England Primary School | C155: 1 | D155: 111 | E155: 0 | F155: 0 | G155: 0.2882882883 | H155: 0 | I155: 0.2882882883 | J155: 0 | K155: 0.0990990991 | L155: 0.04504504505 | M155: 0 | N155: 0 | O155: 0.02702702703 | P155: 0 | Q155: 0 | R155: 0 | S155: 0 | T155: 0 | U155: 0 | V155: 0 | W155: 0.112244898 | X155: 0 | Y155: 0.3378958121 | Z155: 0 | AA155: 0.1531531532 | AB155: 0 | AC155: 132163.3716 | AD155: 29086.92805 | AE155: 0 | AF155: 1 | AG155: 0 | AH155: 2142 | AI155: 0 | AJ155: 0 | AK155: 4568.51 | AL155: 637972.1611 | AM155: 21881.4648 | AN155: 2142 | AO155: 124 | AR155: 0 | AS155: 0 | AT155: 0 | AV155: 19440.11093 | AW155: 3823.789214 | AX155: 18062.32745 | AY155: 43152.25447 | AZ155: 0 | BA155: 6832.84631 | BB155: 0 | BC155: 0 | BD155: 0 | BE155: 0 | BF155: 111 | CC155: Recoupment Academy
A156: 3119 | B156: Adisham Church of England Primary School | C156: 1 | D156: 103 | E156: 0 | F156: 0 | G156: 0.2038834951 | H156: 0 | I156: 0.2038834951 | J156: 0 | K156: 0.4174757282 | L156: 0.05825242718 | M156: 0 | N156: 0 | O156: 0 | P156: 0 | Q156: 0 | R156: 0 | S156: 0 | T156: 0 | U156: 0 | V156: 0 | W156: 0.01136363636 | X156: 0 | Y156: 0.1853146853 | Z156: 0 | AA156: 0.02912621359 | AB156: 0 | AC156: 132163.3716 | AD156: 27014.85926 | AE156: 0 | AF156: 1 | AG156: 0 | AH156: 2867.2 | AI156: 0 | AJ156: 0 | AK156: 4568.51 | AL156: 517686.805 | AM156: 17595.4356 | AN156: 2867.2 | AO156: 95 | AR156: 0 | AS156: 0 | AT156: 0 | AV156: 18039.02185 | AW156: 8132.865808 | AX156: 11853.40239 | AY156: 21960.62841 | AZ156: 0 | BA156: 0 | BB156: 0 | BC156: 0 | BD156: 0 | BE156: 0 | BF156: 103 | CC156: Recoupment Academy
A157: 3128 | B157: Sturry Church of England Primary School | C157: 1 | D157: 412 | E157: 0 | F157: 0 | G157: 0.2427184466 | H157: 0 | I157: 0.2475728155 | J157: 0 | K157: 0.0880195599 | L157: 0.293398533 | M157: 0.002444987775 | N157: 0.0684596577 | O157: 0.04645476773 | P157: 0 | Q157: 0 | R157: 0 | S157: 0 | T157: 0 | U157: 0 | V157: 0 | W157: 0.01704545455 | X157: 0 | Y157: 0.2365762892 | Z157: 0 | AA157: 0.04611650485 | AB157: 0 | AC157: 132163.3716 | AD157: 0 | AE157: 0 | AF157: 1 | AG157: 0 | AH157: 8243.2 | AI157: 0 | AJ157: 0 | AK157: 4568.51 | AL157: 1789632.722 | AM157: 64502.5873 | AN157: 8243.2 | AO157: 405 | AR157: 0 | AS157: 0 | AT157: 0 | AV157: 72156.08741 | AW157: 46090.29282 | AX157: 57573.66874 | AY157: 112141.4413 | AZ157: 0 | BA157: 0 | BB157: 0 | BC157: 0 | BD157: 0 | BE157: 0 | BF157: 412 | CC157: Recoupment Academy
A158: 3134 | B158: John Mayne Church of England Primary School | C158: 1 | D158: 100 | E158: 0 | F158: 0 | G158: 0.21 | H158: 0 | I158: 0.21 | J158: 0 | K158: 0 | L158: 0.01 | M158: 0.04 | N158: 0 | O158: 0 | P158: 0 | Q158: 0 | R158: 0 | S158: 0 | T158: 0 | U158: 0 | V158: 0 | W158: 0.02272727273 | X158: 0 | Y158: 0.3310123784 | Z158: 0 | AA158: 0.06 | AB158: 0 | AC158: 132163.3716 | AD158: 37333.22209 | AE158: 0 | AF158: 1 | AG158: 0 | AH158: 14222 | AI158: 0 | AJ158: 0 | AK158: 4568.51 | AL158: 599329.8492 | AM158: 19500.7822 | AN158: 14222 | AO158: 111 | AR158: 0 | AS158: 0 | AT158: 0 | AV158: 17513.61345 | AW158: 1421.444595 | AX158: 11853.40239 | AY158: 38083.94568 | AZ158: 0 | BA158: 0 | BB158: 0 | BC158: 0 | BD158: 0 | BE158: 0 | BF158: 100 | CC158: Recoupment Academy
A159: 3140 | B159: Kingsnorth Church of England Primary School | C159: 1 | D159: 419 | E159: 0 | F159: 0 | G159: 0.1193317422 | H159: 0 | I159: 0.1193317422 | J159: 0 | K159: 0.02386634845 | L159: 0.01670644391 | M159: 0.002386634845 | N159: 0 | O159: 0.05250596659 | P159: 0 | Q159: 0 | R159: 0 | S159: 0 | T159: 0 | U159: 0 | V159: 0 | W159: 0.05817174515 | X159: 0 | Y159: 0.2377909615 | Z159: 0 | AA159: 0.01909307876 | AB159: 0 | AC159: 132163.3716 | AD159: 0 | AE159: 0 | AF159: 1 | AG159: 0 | AH159: 8089.6 | AI159: 0 | AJ159: 0 | AK159: 4568.51 | AL159: 1853753.6 | AM159: 59435.0058 | AN159: 8089.6 | AO159: 421 | AR159: 0 | AS159: 0 | AT159: 0 | AV159: 73382.04035 | AW159: 11096.2164 | AX159: 28222.38664 | AY159: 114632.3164 | AZ159: 0 | BA159: 0 | BB159: 0 | BC159: 0 | BD159: 45307.4489 | BE159: 0 | BF159: 419 | CC159: Recoupment Academy
A160: 3142 | B160: Pluckley Church of England Primary School | C160: 1 | D160: 89 | E160: 0 | F160: 0 | G160: 0.191011236 | H160: 0 | I160: 0.191011236 | J160: 0 | K160: 0 | L160: 0.04494382022 | M160: 0.02247191011 | N160: 0 | O160: 0 | P160: 0 | Q160: 0 | R160: 0 | S160: 0 | T160: 0 | U160: 0 | V160: 0 | W160: 0.01282051282 | X160: 0 | Y160: 0.1926847662 | Z160: 0 | AA160: 0.08988764045 | AB160: 0 | AC160: 132163.3716 | AD160: 45579.51612 | AE160: 0 | AF160: 1 | AG160: 0 | AH160: 1971.2 | AI160: 0 | AJ160: 0 | AK160: 4568.51 | AL160: 526546.133 | AM160: 17506.3726 | AN160: 1971.2 | AO160: 96 | AR160: 0 | AS160: 0 | AT160: 0 | AV160: 15587.11597 | AW160: 1397.352314 | AX160: 9595.611456 | AY160: 19730.36363 | AZ160: 0 | BA160: 1757.772842 | BB160: 0 | BC160: 0 | BD160: 0 | BE160: 0 | BF160: 89 | CC160: Recoupment Academy
A161: 3143 | B161: St Michael's Church of England Primary School | C161: 1 | D161: 169 | E161: 0 | F161: 0 | G161: 0.2721893491 | H161: 0 | I161: 0.2840236686 | J161: 0 | K161: 0 | L161: 0.1065088757 | M161: 0 | N161: 0 | O161: 0.005917159763 | P161: 0 | Q161: 0 | R161: 0 | S161: 0 | T161: 0 | U161: 0 | V161: 0 | W161: 0.08391608392 | X161: 0 | Y161: 0.3502894654 | Z161: 0 | AA161: 0.1065088757 | AB161: 0 | AC161: 132163.3716 | AD161: 0 | AE161: 0 | AF161: 1 | AG161: 0 | AH161: 3635.2 | AI161: 0 | AJ161: 0 | AK161: 4568.51 | AL161: 792954.4701 | AM161: 27997.7875 | AN161: 3635.2 | AO161: 164 | AR161: 0 | AS161: 0 | AT161: 0 | AV161: 29598.00673 | AW161: 3885.740794 | AX161: 27093.49117 | AY161: 68110.09459 | AZ161: 0 | BA161: 5194.020503 | BB161: 0 | BC161: 0 | BD161: 0 | BE161: 0 | BF161: 169 | CC161: Recoupment Academy
A162: 3144 | B162: Tenterden Church of England Junior School | C162: 1 | D162: 191 | E162: 0 | F162: 0 | G162: 0.3089005236 | H162: 0 | I162: 0.3141361257 | J162: 0 | K162: 0.03141361257 | L162: 0.1884816754 | M162: 0 | N162: 0.01047120419 | O162: 0 | P162: 0 | Q162: 0 | R162: 0 | S162: 0 | T162: 0 | U162: 0 | V162: 0 | W162: 0.01047120419 | X162: 0 | Y162: 0.3174018707 | Z162: 0 | AA162: 0.04188481675 | AB162: 0 | AC162: 132163.3716 | AD162: 0 | AE162: 0 | AF162: 1 | AG162: 0 | AH162: 5222.4 | AI162: 0 | AJ162: 0 | AK162: 4568.51 | AL162: 933679.5215 | AM162: 33770.8676 | AN162: 5222.4 | AO162: 195 | AR162: 0 | AS162: 0 | AT162: 0 | AV162: 33451.00169 | AW162: 8700.755295 | AX162: 33866.86396 | AY162: 69749.41212 | AZ162: 0 | BA162: 0 | BB162: 0 | BC162: 0 | BD162: 0 | BE162: 0 | BF162: 191 | CC162: Recoupment Academy
A163: 3148 | B163: Christ Church Cep Academy, Folkestone | C163: 1 | D163: 426 | E163: 0 | F163: 0 | G163: 0.485915493 | H163: 0 | I163: 0.485915493 | J163: 0 | K163: 0.03051643192 | L163: 0.1877934272 | M163: 0.09624413146 | N163: 0.1525821596 | O163: 0.2042253521 | P163: 0.1690140845 | Q163: 0 | R163: 0 | S163: 0 | T163: 0 | U163: 0 | V163: 0 | W163: 0.1393442623 | X163: 0 | Y163: 0.2978375333 | Z163: 0 | AA163: 0.05176470588 | AB163: 0 | AC163: 132163.3716 | AD163: 0 | AE163: 0 | AF163: 1 | AG163: 0 | AH163: 8687.5984 | AI163: 0 | AJ163: 0 | AK163: 4568.51 | AL163: 2082935.892 | AM163: 75031.0283 | AN163: 8687.5984 | AO163: 420 | AR163: 0 | AS163: 0 | AT163: 0 | AV163: 74607.99329 | AW163: 116599.7579 | AX163: 116840.6807 | AY163: 145977.7709 | AZ163: 0 | BA163: 0 | BB163: 0 | BC163: 0 | BD163: 0 | BE163: 0 | BF163: 426 | CC163: Recoupment Academy
A164: 3163 | B164: The Downs Church of England Primary School | C164: 1 | D164: 307 | E164: 0 | F164: 0 | G164: 0.3680781759 | H164: 0 | I164: 0.3680781759 | J164: 0 | K164: 0.2280130293 | L164: 0.09771986971 | M164: 0.01954397394 | N164: 0.07491856678 | O164: 0.06840390879 | P164: 0 | Q164: 0 | R164: 0 | S164: 0 | T164: 0 | U164: 0 | V164: 0 | W164: 0.07220216606 | X164: 0 | Y164: 0.3541269297 | Z164: 0 | AA164: 0.06840390879 | AB164: 0 | AC164: 132163.3716 | AD164: 0 | AE164: 0 | AF164: 1 | AG164: 0 | AH164: 7986.6 | AI164: 0 | AJ164: 0 | AK164: 4568.51 | AL164: 1508277.367 | AM164: 53621.8973 | AN164: 7986.6 | AO164: 318 | AR164: 0 | AS164: 0 | AT164: 0 | AV164: 53766.79329 | AW164: 34169.73836 | AX164: 63782.5938 | AY164: 125082.0619 | AZ164: 0 | BA164: 1704.907493 | BB164: 0 | BC164: 0 | BD164: 0 | BE164: 0 | BF164: 307 | CC164: Recoupment Academy
A165: 3172 | B165: Northbourne Church of England Primary School | C165: 1 | D165: 132 | E165: 0 | F165: 0 | G165: 0.07575757576 | H165: 0 | I165: 0.07575757576 | J165: 0 | K165: 0.04545454545 | L165: 0.04545454545 | M165: 0.06060606061 | N165: 0.05303030303 | O165: 0.007575757576 | P165: 0 | Q165: 0 | R165: 0 | S165: 0 | T165: 0 | U165: 0 | V165: 0 | W165: 0.008928571429 | X165: 0 | Y165: 0.1045972443 | Z165: 0 | AA165: 0.02272727273 | AB165: 0 | AC165: 132163.3716 | AD165: 13344.00307 | AE165: 0 | AF165: 1 | AG165: 0 | AH165: 3854.4 | AI165: 0 | AJ165: 0 | AK165: 4568.51 | AL165: 625269.3711 | AM165: 21407.1295 | AN165: 3854.4 | AO165: 134 | AR165: 0 | AS165: 0 | AT165: 0 | AV165: 23117.96975 | AW165: 7289.635963 | AX165: 5644.477327 | AY165: 15885.17034 | AZ165: 0 | BA165: 0 | BB165: 0 | BC165: 0 | BD165: 0 | BE165: 0 | BF165: 132 | CC165: Recoupment Academy
A166: 3173 | B166: Kingsdown and Ringwould Church of England Primary School | C166: 1 | D166: 214 | E166: 0 | F166: 0 | G166: 0.1401869159 | H166: 0 | I166: 0.1401869159 | J166: 0 | K166: 0.09813084112 | L166: 0.03738317757 | M166: 0.004672897196 | N166: 0.01869158879 | O166: 0.009345794393 | P166: 0 | Q166: 0 | R166: 0 | S166: 0 | T166: 0 | U166: 0 | V166: 0 | W166: 0 | X166: 0 | Y166: 0.05927419355 | Z166: 0 | AA166: 0.04205607477 | AB166: 0 | AC166: 132163.3716 | AD166: 0 | AE166: 0 | AF166: 1 | AG166: 0 | AH166: 21706.5 | AI166: 0 | AJ166: 0 | AK166: 4568.51 | AL166: 956497.1573 | AM166: 33104.3966 | AN166: 21706.5 | AO166: 213 | AR166: 0 | AS166: 0 | AT166: 0 | AV166: 37479.13278 | AW166: 7317.169999 | AX166: 16933.43198 | AY166: 14594.09368 | AZ166: 0 | BA166: 0 | BB166: 0 | BC166: 0 | BD166: 13855.43129 | BE166: 0 | BF166: 214 | CC166: Recoupment Academy
A167: 3306 | B167: Brenchley and Matfield Church of England Primary School | C167: 1 | D167: 195 | E167: 0 | F167: 0 | G167: 0.1025641026 | H167: 0 | I167: 0.1025641026 | J167: 0 | K167: 0.01030927835 | L167: 0.01030927835 | M167: 0.005154639175 | N167: 0.005154639175 | O167: 0 | P167: 0 | Q167: 0 | R167: 0 | S167: 0 | T167: 0 | U167: 0 | V167: 0 | W167: 0.01818181818 | X167: 0 | Y167: 0.2132113821 | Z167: 0 | AA167: 0.09230769231 | AB167: 0 | AC167: 132163.3716 | AD167: 0 | AE167: 0 | AF167: 1 | AG167: 0 | AH167: 4326.4 | AI167: 0 | AJ167: 0 | AK167: 4568.51 | AL167: 852912.6406 | AM167: 29473.8307 | AN167: 4326.4 | AO167: 193 | AR167: 0 | AS167: 0 | AT167: 0 | AV167: 34151.54623 | AW167: 1363.041215 | AX167: 11288.95465 | AY167: 47834.66084 | AZ167: 0 | BA167: 4163.146204 | BB167: 0 | BC167: 0 | BD167: 0 | BE167: 0 | BF167: 195 | CC167: Recoupment Academy
A168: 3313 | B168: Fordcombe Church of England Primary School | C168: 1 | D168: 57 | E168: 0 | F168: 0 | G168: 0.350877193 | H168: 0 | I168: 0.350877193 | J168: 0 | K168: 0.1052631579 | L168: 0 | M168: 0 | N168: 0 | O168: 0 | P168: 0 | Q168: 0 | R168: 0 | S168: 0 | T168: 0 | U168: 0 | V168: 0 | W168: 0.07692307692 | X168: 0 | Y168: 0.2756410256 | Z168: 0 | AA168: 0.2631578947 | AB168: 0 | AC168: 132163.3716 | AD168: 56149.76575 | AE168: 0 | AF168: 1.0375 | AG168: 0 | AH168: 2816 | AI168: 0 | AJ168: 0 | AK168: 4568.51 | AL168: 490528.2851 | AM168: 15648.4755 | AN168: 2816 | AO168: 73 | AR168: 0 | AS168: 0 | AT168: 0 | AV168: 9982.759666 | AW168: 970.5747599 | AX168: 11288.95465 | AY168: 18076.58614 | AZ168: 0 | BA168: 7652.259214 | BB168: 0 | BC168: 1798.917541 | BD168: 0 | BE168: 0 | BF168: 57 | CC168: Recoupment Academy
A169: 3324 | B169: Leybourne, St Peter and St Paul Church of England Primary Academy | C169: 1 | D169: 211 | E169: 0 | F169: 0 | G169: 0.06161137441 | H169: 0 | I169: 0.0663507109 | J169: 0 | K169: 0.03791469194 | L169: 0.01421800948 | M169: 0 | N169: 0.009478672986 | O169: 0 | P169: 0 | Q169: 0 | R169: 0 | S169: 0 | T169: 0 | U169: 0 | V169: 0 | W169: 0.01648351648 | X169: 0 | Y169: 0.2404350829 | Z169: 0 | AA169: 0.02843601896 | AB169: 0 | AC169: 132163.3716 | AD169: 0 | AE169: 0 | AF169: 1 | AG169: 0 | AH169: 4864 | AI169: 0 | AJ169: 0 | AK169: 4568.51 | AL169: 943529.0913 | AM169: 31350.1568 | AN169: 4864 | AO169: 214 | AR169: 0 | AS169: 0 | AT169: 0 | AV169: 36953.72438 | AW169: 2550.340061 | AX169: 7902.268258 | AY169: 58368.42777 | AZ169: 0 | BA169: 0 | BB169: 0 | BC169: 0 | BD169: 4788.113841 | BE169: 0 | BF169: 211 | CC169: Recoupment Academy
A170: 3329 | B170: Borden Church of England Primary School | C170: 1 | D170: 122 | E170: 0 | F170: 0 | G170: 0.237704918 | H170: 0 | I170: 0.2540983607 | J170: 0 | K170: 0.1557377049 | L170: 0.1557377049 | M170: 0.03278688525 | N170: 0.02459016393 | O170: 0 | P170: 0 | Q170: 0 | R170: 0 | S170: 0 | T170: 0 | U170: 0 | V170: 0 | W170: 0.05454545455 | X170: 0 | Y170: 0.3213096559 | Z170: 0 | AA170: 0.04098360656 | AB170: 0 | AC170: 132163.3716 | AD170: 0 | AE170: 0 | AF170: 1 | AG170: 0 | AH170: 1254.4 | AI170: 0 | AJ170: 0 | AK170: 4568.51 | AL170: 611494.3511 | AM170: 21510.2024 | AN170: 1254.4 | AO170: 127 | AR170: 0 | AS170: 0 | AT170: 0 | AV170: 21366.60841 | AW170: 9027.721969 | AX170: 17497.87971 | AY170: 45100.49516 | AZ170: 0 | BA170: 0 | BB170: 0 | BC170: 0 | BD170: 0 | BE170: 0 | BF170: 122 | CC170: Recoupment Academy
A171: 3330 | B171: Bredgar Church of England Primary School | C171: 1 | D171: 98 | E171: 0 | F171: 0 | G171: 0.1224489796 | H171: 0 | I171: 0.1326530612 | J171: 0 | K171: 0.1326530612 | L171: 0.07142857143 | M171: 0.01020408163 | N171: 0.01020408163 | O171: 0 | P171: 0 | Q171: 0 | R171: 0 | S171: 0 | T171: 0 | U171: 0 | V171: 0 | W171: 0.02272727273 | X171: 0 | Y171: 0.1124031008 | Z171: 0 | AA171: 0.02040816327 | AB171: 0 | AC171: 132163.3716 | AD171: 38832.54827 | AE171: 0 | AF171: 1 | AG171: 0 | AH171: 1147.42 | AI171: 0 | AJ171: 7940 | AK171: 4568.51 | AL171: 558544.0198 | AM171: 18623.1619 | AN171: 1147.42 | AO171: 108 | AR171: 0 | AS171: 0 | AT171: 0 | AV171: 17163.34118 | AW171: 4116.338344 | AX171: 7337.820526 | AY171: 12673.66052 | AZ171: 0 | BA171: 0 | BB171: 0 | BC171: 0 | BD171: 0 | BE171: 0 | BF171: 98 | CC171: Recoupment Academy
A172: 3343 | B172: Charing Church of England Primary School | C172: 1 | D172: 162 | E172: 0 | F172: 0 | G172: 0.4074074074 | H172: 0 | I172: 0.4197530864 | J172: 0 | K172: 0.006211180124 | L172: 0.2857142857 | M172: 0.0248447205 | N172: 0.0248447205 | O172: 0.006211180124 | P172: 0 | Q172: 0 | R172: 0 | S172: 0 | T172: 0 | U172: 0 | V172: 0 | W172: 0.1094890511 | X172: 0 | Y172: 0.2491325468 | Z172: 0 | AA172: 0.1604938272 | AB172: 0 | AC172: 132163.3716 | AD172: 0 | AE172: 0 | AF172: 1 | AG172: 0 | AH172: 3276.8 | AI172: 0 | AJ172: 0 | AK172: 4568.51 | AL172: 756372.8162 | AM172: 26373.6396 | AN172: 3276.8 | AO172: 139 | AR172: 0 | AS172: 0 | AT172: 0 | AV172: 28372.05379 | AW172: 12176.3715 | AX172: 38382.44583 | AY172: 46434.75779 | AZ172: 0 | BA172: 10758.09845 | BB172: 0 | BC172: 0 | BD172: 0 | BE172: 6287.693123 | BF172: 162 | CC172: Recoupment Academy
A173: 3348 | B173: St Eanswythe's Church of England Primary School | C173: 1 | D173: 211 | E173: 0 | F173: 0 | G173: 0.2511848341 | H173: 0 | I173: 0.2559241706 | J173: 0 | K173: 0.06161137441 | L173: 0.1421800948 | M173: 0.06161137441 | N173: 0.1516587678 | O173: 0.2701421801 | P173: 0.07582938389 | Q173: 0 | R173: 0 | S173: 0 | T173: 0 | U173: 0 | V173: 0 | W173: 0.1491712707 | X173: 0 | Y173: 0.2435254804 | Z173: 0 | AA173: 0.04285714286 | AB173: 0 | AC173: 132163.3716 | AD173: 0 | AE173: 0 | AF173: 1 | AG173: 0 | AH173: 4353 | AI173: 0 | AJ173: 0 | AK173: 4568.51 | AL173: 1057921.119 | AM173: 35513.0989 | AN173: 4353 | AO173: 214 | AR173: 0 | AS173: 0 | AT173: 0 | AV173: 36953.72438 | AW173: 50349.42611 | AX173: 30480.17757 | AY173: 59118.6579 | AZ173: 0 | BA173: 0 | BB173: 0 | BC173: 0 | BD173: 0 | BE173: 0 | BF173: 211 | CC173: Recoupment Academy
A174: 3349 | B174: Folkestone St. Mary's Church of England Primary Academy | C174: 1 | D174: 386 | E174: 0 | F174: 0 | G174: 0.3704663212 | H174: 0 | I174: 0.3730569948 | J174: 0 | K174: 0.225388601 | L174: 0.08808290155 | M174: 0.09585492228 | N174: 0.1010362694 | O174: 0.3367875648 | P174: 0.03367875648 | Q174: 0 | R174: 0 | S174: 0 | T174: 0 | U174: 0 | V174: 0 | W174: 0.02346041056 | X174: 0 | Y174: 0.249213338 | Z174: 0 | AA174: 0.05194805195 | AB174: 0 | AC174: 132163.3716 | AD174: 0 | AE174: 0 | AF174: 1 | AG174: 0 | AH174: 9984 | AI174: 0 | AJ174: 0 | AK174: 4568.51 | AL174: 1863886.343 | AM174: 65958.6163 | AN174: 9984 | AO174: 398 | AR174: 0 | AS174: 1.2 | AT174: 0 | AV174: 67602.54791 | AW174: 97267.42302 | AX174: 81280.47351 | AY174: 110676.7223 | AZ174: 0 | BA174: 0 | BB174: 0 | BC174: 0 | BD174: 0 | BE174: 0 | BF174: 386 | CC174: Recoupment Academy
A175: 3353 | B175: Deal Parochial Church of England Primary School | C175: 1 | D175: 194 | E175: 0 | F175: 0 | G175: 0.3969072165 | H175: 0 | I175: 0.4072164948 | J175: 0 | K175: 0.3298969072 | L175: 0.1082474227 | M175: 0.02577319588 | N175: 0.06701030928 | O175: 0.1546391753 | P175: 0 | Q175: 0 | R175: 0 | S175: 0 | T175: 0 | U175: 0 | V175: 0 | W175: 0.06976744186 | X175: 0 | Y175: 0.2533073086 | Z175: 0 | AA175: 0.07216494845 | AB175: 0 | AC175: 132163.3716 | AD175: 0 | AE175: 0 | AF175: 1 | AG175: 0 | AH175: 1612.8 | AI175: 0 | AJ175: 0 | AK175: 4568.51 | AL175: 945151.9366 | AM175: 34989.729 | AN175: 1612.8 | AO175: 193 | AR175: 0 | AS175: 0 | AT175: 0 | AV175: 33976.41009 | AW175: 30979.23197 | AX175: 44591.37089 | AY175: 56538.8737 | AZ175: 0 | BA175: 1559.527784 | BB175: 0 | BC175: 0 | BD175: 0 | BE175: 0 | BF175: 194 | CC175: Recoupment Academy
A176: 3358 | B176: Sholden Church of England Primary School | C176: 1 | D176: 82 | E176: 0 | F176: 0 | G176: 0.2804878049 | H176: 0 | I176: 0.2926829268 | J176: 0 | K176: 0.1975308642 | L176: 0.1234567901 | M176: 0.08641975309 | N176: 0.3209876543 | O176: 0.02469135802 | P176: 0 | Q176: 0 | R176: 0 | S176: 0 | T176: 0 | U176: 0 | V176: 0 | W176: 0.01449275362 | X176: 0 | Y176: 0.1956043956 | Z176: 0 | AA176: 0.03658536585 | AB176: 0 | AC176: 132163.3716 | AD176: 0 | AE176: 0 | AF176: 1 | AG176: 0 | AH176: 181.4 | AI176: 0 | AJ176: 0 | AK176: 4568.51 | AL176: 528014.3311 | AM176: 18488.0665 | AN176: 181.4 | AO176: 99 | AR176: 0 | AS176: 0 | AT176: 0 | AV176: 14361.16303 | AW176: 16281.87812 | AX176: 13546.74559 | AY176: 18453.98506 | AZ176: 0 | BA176: 0 | BB176: 0 | BC176: 0 | BD176: 0 | BE176: 0 | BF176: 82 | CC176: Recoupment Academy
A177: 3372 | B177: Maidstone, St John's Church of England Primary School | C177: 1 | D177: 436 | E177: 0 | F177: 0 | G177: 0.07110091743 | H177: 0 | I177: 0.07110091743 | J177: 0 | K177: 0.01376146789 | L177: 0.004587155963 | M177: 0 | N177: 0 | O177: 0 | P177: 0 | Q177: 0 | R177: 0 | S177: 0 | T177: 0 | U177: 0 | V177: 0 | W177: 0.04787234043 | X177: 0 | Y177: 0.2131177418 | Z177: 0 | AA177: 0.004587155963 | AB177: 0 | AC177: 132163.3716 | AD177: 0 | AE177: 0 | AF177: 1 | AG177: 0 | AH177: 9062.4 | AI177: 0 | AJ177: 0 | AK177: 4568.51 | AL177: 1938022.4 | AM177: 60760.9429 | AN177: 9062.4 | AO177: 440 | AR177: 0 | AS177: 0 | AT177: 0 | AV177: 76359.35464 | AW177: 1362.934769 | AX177: 17497.87971 | AY177: 106906.4226 | AZ177: 0 | BA177: 0 | BB177: 0 | BC177: 0 | BD177: 73797.67191 | BE177: 0 | BF177: 436 | CC177: Recoupment Academy
A178: 3708 | B178: St John's Catholic Primary School, Gravesend | C178: 1 | D178: 815 | E178: 0 | F178: 0 | G178: 0.1901840491 | H178: 0 | I178: 0.1914110429 | J178: 0 | K178: 0.3022113022 | L178: 0.0601965602 | M178: 0.05651105651 | N178: 0.1953316953 | O178: 0.01842751843 | P178: 0 | Q178: 0 | R178: 0 | S178: 0 | T178: 0 | U178: 0 | V178: 0 | W178: 0.1877667141 | X178: 0 | Y178: 0.2399293083 | Z178: 0 | AA178: 0.06012269939 | AB178: 0 | AC178: 132163.3716 | AD178: 0 | AE178: 0 | AF178: 1 | AG178: 0 | AH178: 9850.88 | AI178: 0 | AJ178: 0 | AK178: 4568.51 | AL178: 3644186.88 | AM178: 118012.4054 | AN178: 9850.88 | AO178: 829 | AR178: 0 | AS178: 1.2 | AT178: 0 | AV178: 142735.9496 | AW178: 122046.3681 | AX178: 88053.84631 | AY178: 224977.2547 | AZ178: 0 | BA178: 66.08168578 | BB178: 0 | BC178: 0 | BD178: 20539.9381 | BE178: 0 | BF178: 815 | CC178: Recoupment Academy
A179: 3714 | B179: St Peter's Catholic Primary School | C179: 1 | D179: 209 | E179: 0 | F179: 0 | G179: 0.1052631579 | H179: 0 | I179: 0.1052631579 | J179: 0 | K179: 0.1770334928 | L179: 0.1578947368 | M179: 0.1004784689 | N179: 0.004784688995 | O179: 0 | P179: 0.00956937799 | Q179: 0 | R179: 0 | S179: 0 | T179: 0 | U179: 0 | V179: 0 | W179: 0.1049723757 | X179: 0 | Y179: 0.2963601533 | Z179: 0 | AA179: 0.09134615385 | AB179: 0 | AC179: 132163.3716 | AD179: 0 | AE179: 0 | AF179: 1 | AG179: 0 | AH179: 488.07 | AI179: 0 | AJ179: 0 | AK179: 4568.51 | AL179: 967335.1575 | AM179: 32256.7975 | AN179: 488.07 | AO179: 212 | AR179: 0 | AS179: 0 | AT179: 0 | AV179: 36603.45211 | AW179: 20161.79767 | AX179: 12417.85012 | AY179: 71262.95043 | AZ179: 0 | BA179: 4329.23998 | BB179: 0 | BC179: 0 | BD179: 0 | BE179: 0 | BF179: 209 | CC179: Recoupment Academy
A180: 3715 | B180: St Mary's Catholic Primary School, Whitstable | C180: 1 | D180: 344 | E180: 0 | F180: 0 | G180: 0.1337209302 | H180: 0 | I180: 0.1337209302 | J180: 0 | K180: 0.02623906706 | L180: 0.00583090379 | M180: 0.04664723032 | N180: 0.02623906706 | O180: 0.00583090379 | P180: 0 | Q180: 0 | R180: 0 | S180: 0 | T180: 0 | U180: 0 | V180: 0 | W180: 0.04530744337 | X180: 0 | Y180: 0.23425 | Z180: 0 | AA180: 0.02325581395 | AB180: 0 | AC180: 132163.3716 | AD180: 0 | AE180: 0 | AF180: 1 | AG180: 0 | AH180: 8448 | AI180: 0 | AJ180: 0 | AK180: 4568.51 | AL180: 1664661.085 | AM180: 54091.229 | AN180: 8448 | AO180: 377 | AR180: 0 | AS180: 0 | AT180: 0 | AV180: 60246.83027 | AW180: 10493.43776 | AX180: 25964.59571 | AY180: 92711.95614 | AZ180: 0 | BA180: 0 | BB180: 0 | BC180: 0 | BD180: 25140.00755 | BE180: 3352.805642 | BF180: 344 | CC180: Recoupment Academy
A181: 3716 | B181: St Teresa's Catholic Primary School | C181: 1 | D181: 217 | E181: 0 | F181: 0 | G181: 0.133640553 | H181: 0 | I181: 0.133640553 | J181: 0 | K181: 0.07407407407 | L181: 0.06944444444 | M181: 0.03240740741 | N181: 0.00462962963 | O181: 0.05555555556 | P181: 0 | Q181: 0 | R181: 0 | S181: 0 | T181: 0 | U181: 0 | V181: 0 | W181: 0.1497326203 | X181: 0 | Y181: 0.2548707588 | Z181: 0 | AA181: 0.05069124424 | AB181: 0 | AC181: 132163.3716 | AD181: 0 | AE181: 0 | AF181: 1 | AG181: 0 | AH181: 5120 | AI181: 0 | AJ181: 0 | AK181: 4568.51 | AL181: 977760.7512 | AM181: 33357.5755 | AN181: 5120 | AO181: 216 | AR181: 0 | AS181: 0 | AT181: 0 | AV181: 38004.54119 | AW181: 12319.74418 | AX181: 16368.98425 | AY181: 63632.27464 | AZ181: 0 | BA181: 0 | BB181: 0 | BC181: 0 | BD181: 0 | BE181: 0 | BF181: 217 | CC181: Recoupment Academy
A182: 3718 | B182: St Augustine's Catholic Primary School | C182: 1 | D182: 185 | E182: 0 | F182: 0 | G182: 0.1675675676 | H182: 0 | I182: 0.172972973 | J182: 0 | K182: 0.1081081081 | L182: 0.05945945946 | M182: 0.07027027027 | N182: 0.005405405405 | O182: 0.04864864865 | P182: 0 | Q182: 0 | R182: 0 | S182: 0 | T182: 0 | U182: 0 | V182: 0 | W182: 0.01840490798 | X182: 0 | Y182: 0.2070633769 | Z182: 0 | AA182: 0.0972972973 | AB182: 0 | AC182: 132163.3716 | AD182: 0 | AE182: 0 | AF182: 1 | AG182: 0 | AH182: 7014 | AI182: 0 | AJ182: 0 | AK182: 4568.51 | AL182: 915919.5458 | AM182: 31274.103 | AN182: 7014 | AO182: 202 | AR182: 0 | AS182: 0 | AT182: 0 | AV182: 32400.18488 | AW182: 12899.69575 | AX182: 18062.32745 | AY182: 44073.01112 | AZ182: 0 | BA182: 4559.636319 | BB182: 0 | BC182: 0 | BD182: 0 | BE182: 0 | BF182: 185 | CC182: Recoupment Academy
A183: 3719 | B183: St Joseph's Catholic Primary School, Aylesham | C183: 1 | D183: 123 | E183: 0 | F183: 0 | G183: 0.3495934959 | H183: 0 | I183: 0.3495934959 | J183: 0 | K183: 0.5528455285 | L183: 0.2926829268 | M183: 0 | N183: 0 | O183: 0 | P183: 0 | Q183: 0 | R183: 0 | S183: 0 | T183: 0 | U183: 0 | V183: 0 | W183: 0.1132075472 | X183: 0 | Y183: 0.3422011662 | Z183: 0 | AA183: 0.0406504065 | AB183: 0 | AC183: 132163.3716 | AD183: 0 | AE183: 0 | AF183: 1 | AG183: 0 | AH183: 2534.4 | AI183: 0 | AJ183: 0 | AK183: 4568.51 | AL183: 709607.632 | AM183: 25704.1664 | AN183: 2534.4 | AO183: 136 | AR183: 0 | AS183: 0 | AT183: 0 | AV183: 21541.74454 | AW183: 18062.32745 | AX183: 24271.25251 | AY183: 48426.63572 | AZ183: 0 | BA183: 0 | BB183: 0 | BC183: 0 | BD183: 0 | BE183: 0 | BF183: 123 | CC183: Recoupment Academy
A184: 3720 | B184: St Mary's Catholic Primary School | C184: 1 | D184: 190 | E184: 0 | F184: 0 | G184: 0.2684210526 | H184: 0 | I184: 0.2684210526 | J184: 0 | K184: 0.3789473684 | L184: 0.1526315789 | M184: 0.03684210526 | N184: 0.06315789474 | O184: 0.06842105263 | P184: 0 | Q184: 0 | R184: 0 | S184: 0 | T184: 0 | U184: 0 | V184: 0 | W184: 0 | X184: 0 | Y184: 0.2629589978 | Z184: 0 | AA184: 0.05789473684 | AB184: 0 | AC184: 132163.3716 | AD184: 0 | AE184: 0 | AF184: 1 | AG184: 0 | AH184: 2688 | AI184: 0 | AJ184: 0 | AK184: 4568.51 | AL184: 879301.059 | AM184: 30691.6914 | AN184: 2688 | AO184: 184 | AR184: 0 | AS184: 0 | AT184: 0 | AV184: 33275.86555 | AW184: 28095.04172 | AX184: 28786.83437 | AY184: 57482.98855 | AZ184: 0 | BA184: 0 | BB184: 0 | BC184: 0 | BD184: 0 | BE184: 0 | BF184: 190 | CC184: Recoupment Academy
A185: 3740 | B185: St Richard's Catholic Primary School | C185: 1 | D185: 187 | E185: 0 | F185: 0 | G185: 0.3475935829 | H185: 0 | I185: 0.3636363636 | J185: 0 | K185: 0.1397849462 | L185: 0.1989247312 | M185: 0.2096774194 | N185: 0.04838709677 | O185: 0.1505376344 | P185: 0.05376344086 | Q185: 0 | R185: 0 | S185: 0 | T185: 0 | U185: 0 | V185: 0 | W185: 0.19375 | X185: 0 | Y185: 0.2265795207 | Z185: 0 | AA185: 0.08602150538 | AB185: 0 | AC185: 132163.3716 | AD185: 0 | AE185: 0 | AF185: 1 | AG185: 0 | AH185: 5478.4 | AI185: 0 | AJ185: 0 | AK185: 4568.51 | AL185: 935477.4443 | AM185: 32803.1837 | AN185: 5478.4 | AO185: 186 | AR185: 0 | AS185: 0 | AT185: 0 | AV185: 32750.45715 | AW185: 41242.82135 | AX185: 38382.44583 | AY185: 48748.35471 | AZ185: 0 | BA185: 3215.549041 | BB185: 0 | BC185: 0 | BD185: 0 | BE185: 0 | BF185: 187 | CC185: Recoupment Academy
A186: 3743 | B186: St Simon of England Roman Catholic Primary School, Ashford | C186: 1 | D186: 205 | E186: 0 | F186: 0 | G186: 0.1756097561 | H186: 0 | I186: 0.1756097561 | J186: 0 | K186: 0.07317073171 | L186: 0.1170731707 | M186: 0.0487804878 | N186: 0.00487804878 | O186: 0.3512195122 | P186: 0 | Q186: 0 | R186: 0 | S186: 0 | T186: 0 | U186: 0 | V186: 0 | W186: 0.2584269663 | X186: 0 | Y186: 0.300040568 | Z186: 0 | AA186: 0.08780487805 | AB186: 0 | AC186: 132163.3716 | AD186: 0 | AE186: 0 | AF186: 1 | AG186: 0 | AH186: 4224 | AI186: 0 | AJ186: 0 | AK186: 4568.51 | AL186: 1021276.437 | AM186: 33014.3329 | AN186: 4224 | AO186: 207 | AR186: 0 | AS186: 0 | AT186: 0 | AV186: 35902.90757 | AW186: 36055.81981 | AX186: 20320.11838 | AY186: 70767.12336 | AZ186: 0 | BA186: 3766.65609 | BB186: 0 | BC186: 0 | BD186: 0 | BE186: 0 | BF186: 205 | CC186: Recoupment Academy
A187: 3744 | B187: St Margaret Clitherow Catholic Primary School | C187: 1 | D187: 381 | E187: 0 | F187: 0 | G187: 0.08661417323 | H187: 0 | I187: 0.09448818898 | J187: 0 | K187: 0.2480211082 | L187: 0.007915567282 | M187: 0.1240105541 | N187: 0 | O187: 0.002638522427 | P187: 0 | Q187: 0 | R187: 0 | S187: 0 | T187: 0 | U187: 0 | V187: 0 | W187: 0.1343283582 | X187: 0 | Y187: 0.1908045977 | Z187: 0 | AA187: 0.07086614173 | AB187: 0 | AC187: 132163.3716 | AD187: 0 | AE187: 0 | AF187: 1 | AG187: 0 | AH187: 7577.6 | AI187: 0 | AJ187: 0 | AK187: 4568.51 | AL187: 1739257.6 | AM187: 54257.3464 | AN187: 7577.6 | AO187: 395 | AR187: 0 | AS187: 0 | AT187: 0 | AV187: 66726.86724 | AW187: 30706.76125 | AX187: 20320.11838 | AY187: 83639.51645 | AZ187: 0 | BA187: 2735.781791 | BB187: 0 | BC187: 0 | BD187: 29181.60666 | BE187: 0 | BF187: 381 | CC187: Recoupment Academy
A188: 3745 | B188: More Park Catholic Primary School | C188: 1 | D188: 200 | E188: 0 | F188: 0 | G188: 0.115 | H188: 0 | I188: 0.115 | J188: 0 | K188: 0.265 | L188: 0.035 | M188: 0 | N188: 0.1 | O188: 0.05 | P188: 0 | Q188: 0 | R188: 0 | S188: 0 | T188: 0 | U188: 0 | V188: 0 | W188: 0.05 | X188: 0 | Y188: 0.1998376518 | Z188: 0 | AA188: 0.05 | AB188: 0 | AC188: 132163.3716 | AD188: 0 | AE188: 0 | AF188: 1 | AG188: 0 | AH188: 4889.6 | AI188: 0 | AJ188: 0 | AK188: 4568.51 | AL188: 903609.6 | AM188: 30694.6935 | AN188: 4889.6 | AO188: 205 | AR188: 0 | AS188: 0 | AT188: 0 | AV188: 35027.2269 | AW188: 20168.68118 | AX188: 12982.29785 | AY188: 45983.81675 | AZ188: 0 | BA188: 0 | BB188: 0 | BC188: 0 | BD188: 0 | BE188: 0 | BF188: 200 | CC188: Recoupment Academy
A189: 3751 | B189: St Thomas' Catholic Primary School, Sevenoaks | C189: 1 | D189: 201 | E189: 0 | F189: 0 | G189: 0.08955223881 | H189: 0 | I189: 0.09452736318 | J189: 0 | K189: 0.005 | L189: 0 | M189: 0 | N189: 0 | O189: 0 | P189: 0 | Q189: 0 | R189: 0 | S189: 0 | T189: 0 | U189: 0 | V189: 0 | W189: 0.1403508772 | X189: 0 | Y189: 0.2751831502 | Z189: 0 | AA189: 0.09452736318 | AB189: 0 | AC189: 132163.3716 | AD189: 0 | AE189: 0 | AF189: 1.0375 | AG189: 0 | AH189: 5222.4 | AI189: 0 | AJ189: 0 | AK189: 4568.51 | AL189: 916102.5025 | AM189: 30754.8777 | AN189: 5222.4 | AO189: 190 | AR189: 0 | AS189: 0 | AT189: 0 | AV189: 35202.36303 | AW189: 162.5712723 | AX189: 10724.50692 | AY189: 63637.86451 | AZ189: 0 | BA189: 4586.068993 | BB189: 0 | BC189: 4286.751552 | BD189: 0 | BE189: 4283.644224 | BF189: 201 | CC189: Recoupment Academy
A190: 3754 | B190: St Augustine's Catholic Primary School | C190: 1 | D190: 270 | E190: 0 | F190: 0 | G190: 0.1925925926 | H190: 0 | I190: 0.1962962963 | J190: 0 | K190: 0.1417910448 | L190: 0.003731343284 | M190: 0 | N190: 0.05223880597 | O190: 0 | P190: 0 | Q190: 0 | R190: 0 | S190: 0 | T190: 0 | U190: 0 | V190: 0 | W190: 0.3211382114 | X190: 0 | Y190: 0.2893898265 | Z190: 0 | AA190: 0.1148148148 | AB190: 0 | AC190: 132163.3716 | AD190: 0 | AE190: 0 | AF190: 1 | AG190: 0 | AH190: 5836.8 | AI190: 0 | AJ190: 0 | AK190: 4568.51 | AL190: 1255404.027 | AM190: 41959.655 | AN190: 5836.8 | AO190: 276 | AR190: 0 | AS190: 0 | AT190: 0 | AV190: 47286.75631 | AW190: 11099.27289 | AX190: 29915.72983 | AY190: 89896.90208 | AZ190: 0 | BA190: 9780.089496 | BB190: 0 | BC190: 0 | BD190: 0 | BE190: 0 | BF190: 270 | CC190: Recoupment Academy
A191: 3889 | B191: St Gregory's Catholic Primary School, Margate | C191: 1 | D191: 279 | E191: 0 | F191: 0 | G191: 0.3369175627 | H191: 0 | I191: 0.3369175627 | J191: 0 | K191: 0.3369175627 | L191: 0.09318996416 | M191: 0.02150537634 | N191: 0.146953405 | O191: 0.1612903226 | P191: 0.07885304659 | Q191: 0 | R191: 0 | S191: 0 | T191: 0 | U191: 0 | V191: 0 | W191: 0.132 | X191: 0 | Y191: 0.314176004 | Z191: 0 | AA191: 0.1039426523 | AB191: 0 | AC191: 132163.3716 | AD191: 0 | AE191: 0 | AF191: 1 | AG191: 0 | AH191: 7782.4 | AI191: 0 | AJ191: 0 | AK191: 4568.51 | AL191: 1368053.218 | AM191: 48324.1532 | AN191: 7782.4 | AO191: 284 | AR191: 0 | AS191: 0 | AT191: 0 | AV191: 48862.98152 | AW191: 62082.36709 | AX191: 53058.08688 | AY191: 100849.7712 | AZ191: 0 | BA191: 8101.614677 | BB191: 0 | BC191: 0 | BD191: 0 | BE191: 0 | BF191: 279 | CC191: Recoupment Academy
A192: 3890 | B192: St Joseph's Catholic Primary School, Broadstairs | C192: 1 | D192: 186 | E192: 0 | F192: 0 | G192: 0.311827957 | H192: 0 | I192: 0.3172043011 | J192: 0 | K192: 0.05945945946 | L192: 0.1351351351 | M192: 0.07567567568 | N192: 0.02702702703 | O192: 0.1135135135 | P192: 0.005405405405 | Q192: 0 | R192: 0 | S192: 0 | T192: 0 | U192: 0 | V192: 0 | W192: 0.1294117647 | X192: 0 | Y192: 0.3556566356 | Z192: 0 | AA192: 0.1075268817 | AB192: 0 | AC192: 132163.3716 | AD192: 0 | AE192: 0 | AF192: 1 | AG192: 0 | AH192: 3072 | AI192: 0 | AJ192: 0 | AK192: 4568.51 | AL192: 947038.4786 | AM192: 33041.352 | AN192: 3072 | AO192: 188 | AR192: 0 | AS192: 0 | AT192: 0 | AV192: 32575.32102 | AW192: 20665.26124 | AX192: 33302.41623 | AY192: 76109.97203 | AZ192: 0 | BA192: 5841.621023 | BB192: 0 | BC192: 0 | BD192: 0 | BE192: 0 | BF192: 186 | CC192: Recoupment Academy
A193: 3900 | B193: Whitehill Primary School | C193: 1 | D193: 566 | E193: 0 | F193: 0 | G193: 0.3109540636 | H193: 0 | I193: 0.332155477 | J193: 0 | K193: 0.1185840708 | L193: 0.1592920354 | M193: 0.03185840708 | N193: 0.2424778761 | O193: 0.008849557522 | P193: 0 | Q193: 0 | R193: 0 | S193: 0 | T193: 0 | U193: 0 | V193: 0 | W193: 0.09126984127 | X193: 0 | Y193: 0.2818276881 | Z193: 0 | AA193: 0.09363957597 | AB193: 0 | AC193: 132163.3716 | AD193: 0 | AE193: 0 | AF193: 1 | AG193: 0 | AH193: 10649.6 | AI193: 0 | AJ193: 0 | AK193: 4568.51 | AL193: 2590543.421 | AM193: 94278.6315 | AN193: 10649.6 | AO193: 586 | AR193: 0 | AS193: 1.2 | AT193: 0 | AV193: 99127.05212 | AW193: 81662.23414 | AX193: 106116.1738 | AY193: 183526.0813 | AZ193: 0 | BA193: 12581.95297 | BB193: 0 | BC193: 0 | BD193: 0 | BE193: 0 | BF193: 566 | CC193: Recoupment Academy
A194: 3911 | B194: Hornbeam Primary School | C194: 1 | D194: 236 | E194: 0 | F194: 0 | G194: 0.2923728814 | H194: 0 | I194: 0.3177966102 | J194: 0 | K194: 0.2457627119 | L194: 0.2330508475 | M194: 0.04661016949 | N194: 0.1228813559 | O194: 0.05084745763 | P194: 0 | Q194: 0 | R194: 0 | S194: 0 | T194: 0 | U194: 0 | V194: 0 | W194: 0.0145631068 | X194: 0 | Y194: 0.4020745725 | Z194: 0 | AA194: 0.08898305085 | AB194: 0 | AC194: 132163.3716 | AD194: 0 | AE194: 0 | AF194: 1 | AG194: 0 | AH194: 4566.4 | AI194: 0 | AJ194: 0 | AK194: 4568.51 | AL194: 1164564.847 | AM194: 40571.6741 | AN194: 4566.4 | AO194: 239 | AR194: 0 | AS194: 0 | AT194: 0 | AV194: 41332.12774 | AW194: 37477.2644 | AX194: 42333.57996 | AY194: 109173.2688 | AZ194: 0 | BA194: 4519.987308 | BB194: 0 | BC194: 0 | BD194: 0 | BE194: 0 | BF194: 236 | CC194: Recoupment Academy
A195: 3912 | B195: Westlands Primary School | C195: 1 | D195: 518 | E195: 0 | F195: 0 | G195: 0.3088803089 | H195: 0 | I195: 0.3108108108 | J195: 0 | K195: 0.1795366795 | L195: 0.138996139 | M195: 0.1409266409 | N195: 0 | O195: 0.007722007722 | P195: 0.009652509653 | Q195: 0 | R195: 0 | S195: 0 | T195: 0 | U195: 0 | V195: 0 | W195: 0.06331877729 | X195: 0 | Y195: 0.2228714078 | Z195: 0 | AA195: 0.1083172147 | AB195: 0 | AC195: 132163.3716 | AD195: 0 | AE195: 0 | AF195: 1 | AG195: 0 | AH195: 13619.2 | AI195: 0 | AJ195: 0 | AK195: 4568.51 | AL195: 2534419.2 | AM195: 91719.8231 | AN195: 13619.2 | AO195: 575 | AR195: 0 | AS195: 0 | AT195: 0 | AV195: 90720.51767 | AW195: 55288.34377 | AX195: 90876.08497 | AY195: 132825.6098 | AZ195: 0 | BA195: 16539.13394 | BB195: 0 | BC195: 0 | BD195: 0 | BE195: 0 | BF195: 518 | CC195: Recoupment Academy
A196: 3914 | B196: Oakfield Primary Academy | C196: 1 | D196: 654 | E196: 0 | F196: 0 | G196: 0.3012232416 | H196: 0 | I196: 0.3073394495 | J196: 0 | K196: 0.1574923547 | L196: 0.01987767584 | M196: 0.01376146789 | N196: 0.1070336391 | O196: 0.03669724771 | P196: 0 | Q196: 0 | R196: 0 | S196: 0 | T196: 0 | U196: 0 | V196: 0 | W196: 0.1985815603 | X196: 0 | Y196: 0.2545243829 | Z196: 0 | AA196: 0.04594180704 | AB196: 0 | AC196: 132163.3716 | AD196: 0 | AE196: 0 | AF196: 1.0375 | AG196: 0 | AH196: 13107.2 | AI196: 0 | AJ196: 0 | AK196: 4568.51 | AL196: 2950334.487 | AM196: 105743.7764 | AN196: 13107.2 | AO196: 650 | AR196: 0 | AS196: 1.2 | AT196: 0 | AV196: 114539.032 | AW196: 53846.24865 | AX196: 113453.9943 | AY196: 191515.9035 | AZ196: 0 | BA196: 0 | BB196: 0 | BC196: 17750.81919 | BD196: 0 | BE196: 0 | BF196: =SUM(D196:F196) -> 654 | CC196: Recoupment Academy
A197: 3915 | B197: Manor Community Primary School | C197: 1 | D197: 630 | E197: 0 | F197: 0 | G197: 0.3174603175 | H197: 0 | I197: 0.319047619 | J197: 0 | K197: 0.2829888712 | L197: 0.06677265501 | M197: 0.01430842607 | N197: 0.01112877583 | O197: 0.1637519873 | P197: 0 | Q197: 0 | R197: 0 | S197: 0 | T197: 0 | U197: 0 | V197: 0 | W197: 0.1322160149 | X197: 0 | Y197: 0.3109198425 | Z197: 0 | AA197: 0.06984126984 | AB197: 0 | AC197: 132163.3716 | AD197: 0 | AE197: 0 | AF197: 1.0375 | AG197: 0 | AH197: 21913.6 | AI197: 0 | AJ197: 0 | AK197: 4568.51 | AL197: 2919992.283 | AM197: 103333.5228 | AN197: 21913.6 | AO197: 627 | AR197: 0 | AS197: 1.2 | AT197: 0 | AV197: 110335.7647 | AW197: 78765.67271 | AX197: 113453.9943 | AY197: 225365.1148 | AZ197: 0 | BA197: 4097.064519 | BB197: 0 | BC197: 19950.66042 | BD197: 0 | BE197: 0 | BF197: 630 | CC197: Recoupment Academy
A198: 4000 | B198: St Augustine Academy | C198: 2 | D198: 0 | E198: 292 | F198: 311 | G198: 0 | H198: 0.311774461 | I198: 0 | J198: 0.3233830846 | K198: 0 | L198: 0 | M198: 0 | N198: 0 | O198: 0 | P198: 0 | Q198: 0.1575456053 | R198: 0.07131011609 | S198: 0.01160862355 | T198: 0.04311774461 | U198: 0.04809286899 | V198: 0 | W198: 0 | X198: 0.06440677966 | Y198: 0 | Z198: 0.2954009975 | AA198: 0 | AB198: 0.08652246256 | AC198: 132163.3716 | AD198: 0 | AE198: 0 | AF198: 1 | AG198: 0 | AH198: 32693.68 | AI198: 0 | AJ198: 0 | AK198: 5996.541 | AL198: 4924969.915 | AM198: 181468.2529 | AN198: 32693.68 | AO198: 770 | AR198: 0 | AS198: 0 | AT198: 0 | AV198: 158664.6351 | AW198: 65709.9763 | AX198: 161074.1091 | AY198: 310913.4197 | AZ198: 0 | BA198: 15192.18094 | BB198: 0 | BC198: 0 | BD198: 0 | BE198: 0 | BF198: 603 | CC198: Recoupment Academy
A199: 4001 | B199: The Ebbsfleet Academy | C199: 2 | D199: 0 | E199: 453 | F199: 283 | G199: 0 | H199: 0.3355978261 | I199: 0 | J199: 0.3641304348 | K199: 0 | L199: 0 | M199: 0 | N199: 0 | O199: 0 | P199: 0 | Q199: 0.1671195652 | R199: 0.1385869565 | S199: 0.04211956522 | T199: 0.02717391304 | U199: 0.129076087 | V199: 0 | W199: 0 | X199: 0.07843137255 | Y199: 0 | Z199: 0.2691378774 | AA199: 0 | AB199: 0.1346153846 | AC199: 132163.3716 | AD199: 0 | AE199: 0 | AF199: 1.0375 | AG199: 0 | AH199: 25088 | AI199: 1654251.96 | AJ199: 0 | AK199: 5941.045 | AL199: 6236672.114 | AM199: 171683.5799 | AN199: 25088 | AO199: 683 | AR199: 0 | AS199: 0 | AT199: 0 | AV199: 190625.4555 | AW199: 131715.9435 | AX199: 221373.6474 | AY199: 345750.5146 | AZ199: 0 | BA199: 52166.91604 | BB199: 0 | BC199: 35311.21789 | BD199: 0 | BE199: 0 | BF199: 736 | CC199: Recoupment Academy
A200: 4002 | B200: The Sittingbourne School | C200: 2 | D200: 0 | E200: 890 | F200: 529 | G200: 0 | H200: 0.3657505285 | I200: 0 | J200: 0.4009866103 | K200: 0 | L200: 0 | M200: 0 | N200: 0 | O200: 0 | P200: 0 | Q200: 0.2376586742 | R200: 0.182651622 | S200: 0.08039492243 | T200: 0.03526093089 | U200: 0.1008462623 | V200: 0.1142454161 | W200: 0 | X200: 0.01063829787 | Y200: 0 | Z200: 0.2792335378 | AA200: 0 | AB200: 0.05296610169 | AC200: 132163.3716 | AD200: 0 | AE200: 0 | AF200: 1 | AG200: 0 | AH200: 62617.6 | AI200: 0 | AJ200: 0 | AK200: 5941.045 | AL200: 9250555.899 | AM200: 338525.2531 | AN200: 62617.6 | AO200: 1405 | AR200: 0 | AS200: 0 | AT200: 0 | AV200: 367001.6049 | AW200: 410794.4346 | AX200: 470005.9901 | AY200: 691608.261 | AZ200: 0 | BA200: 0 | BB200: 0 | BC200: 0 | BD200: 0 | BE200: 0 | BF200: 1419 | CC200: Recoupment Academy
... 95 more rows

Sheet EYIDACI (hidden)
A1: pcd | B1: lsoa11 | C1: Ranks | D1: Band
A2: BR11AA | B2: E01000675 | C2: 26797 | D2: D
A3: BR11AB | B3: E01000676 | C3: 8468 | D3: D
A4: BR11AD | B4: E01000675 | C4: 26797 | D4: D
A5: BR11AE | B5: E01000677 | C5: 20928 | D5: D
A6: BR11AF | B6: E01000675 | C6: 26797 | D6: D
A7: BR11AG | B7: E01000675 | C7: 26797 | D7: D
A8: BR11AH | B8: E01000675 | C8: 26797 | D8: D
A9: BR11AJ | B9: E01000675 | C9: 26797 | D9: D
A10: BR11AL | B10: E01000676 | C10: 8468 | D10: D
A11: BR11AN | B11: E01000675 | C11: 26797 | D11: D
A12: BR11AX | B12: E01000676 | C12: 8468 | D12: D
A13: BR11BA | B13: E01000670 | C13: 26601 | D13: D
A14: BR11BB | B14: E01000670 | C14: 26601 | D14: D
A15: BR11BP | B15: E01000674 | C15: 17363 | D15: D
A16: BR11BQ | B16: E01000675 | C16: 26797 | D16: D
A17: BR11BS | B17: E01000676 | C17: 8468 | D17: D
A18: BR11BT | B18: E01000829 | C18: 25853 | D18: D
A19: BR11BU | B19: E01000674 | C19: 17363 | D19: D
A20: BR11BW | B20: E01000670 | C20: 26601 | D20: D
A21: BR11BX | B21: E01000676 | C21: 8468 | D21: D
A22: BR11BY | B22: E01000676 | C22: 8468 | D22: D
A23: BR11BZ | B23: E01000676 | C23: 8468 | D23: D
A24: BR11DA | B24: E01000675 | C24: 26797 | D24: D
A25: BR11DB | B25: E01000676 | C25: 8468 | D25: D
A26: BR11DD | B26: E01000676 | C26: 8468 | D26: D
A27: BR11DE | B27: E01000674 | C27: 17363 | D27: D
A28: BR11DF | B28: E01000674 | C28: 17363 | D28: D
A29: BR11DG | B29: E01000674 | C29: 17363 | D29: D
A30: BR11DH | B30: E01000674 | C30: 17363 | D30: D
A31: BR11DJ | B31: E01000676 | C31: 8468 | D31: D
A32: BR11DL | B32: E01000674 | C32: 17363 | D32: D
A33: BR11DN | B33: E01000676 | C33: 8468 | D33: D
A34: BR11DP | B34: E01000670 | C34: 26601 | D34: D
A35: BR11DQ | B35: E01000674 | C35: 17363 | D35: D
A36: BR11DR | B36: E01000670 | C36: 26601 | D36: D
A37: BR11DS | B37: E01000675 | C37: 26797 | D37: D
A38: BR11DT | B38: E01000674 | C38: 17363 | D38: D
A39: BR11DU | B39: E01000670 | C39: 26601 | D39: D
A40: BR11DW | B40: E01000677 | C40: 20928 | D40: D
A41: BR11DX | B41: E01000676 | C41: 8468 | D41: D
A42: BR11EA | B42: E01000675 | C42: 26797 | D42: D
A43: BR11EE | B43: E01000675 | C43: 26797 | D43: D
A44: BR11EG | B44: E01000675 | C44: 26797 | D44: D
A45: BR11EH | B45: E01000676 | C45: 8468 | D45: D
A46: BR11EJ | B46: E01000675 | C46: 26797 | D46: D
A47: BR11EL | B47: E01000675 | C47: 26797 | D47: D
A48: BR11EN | B48: E01000675 | C48: 26797 | D48: D
A49: BR11EP | B49: E01000675 | C49: 26797 | D49: D
A50: BR11ER | B50: E01000675 | C50: 26797 | D50: D
A51: BR11ES | B51: E01000677 | C51: 20928 | D51: D
A52: BR11EU | B52: E01000677 | C52: 20928 | D52: D
A53: BR11EW | B53: E01000677 | C53: 20928 | D53: D
A54: BR11EX | B54: E01000677 | C54: 20928 | D54: D
A55: BR11EY | B55: E01000677 | C55: 20928 | D55: D
A56: BR11EZ | B56: E01000677 | C56: 20928 | D56: D
A57: BR11GA | B57: E01000677 | C57: 20928 | D57: D
A58: BR11HA | B58: E01000677 | C58: 20928 | D58: D
A59: BR11HB | B59: E01000677 | C59: 20928 | D59: D
A60: BR11HD | B60: E01000676 | C60: 8468 | D60: D
A61: BR11HE | B61: E01000677 | C61: 20928 | D61: D
A62: BR11HF | B62: E01000677 | C62: 20928 | D62: D
A63: BR11HG | B63: E01000677 | C63: 20928 | D63: D
A64: BR11HH | B64: E01000676 | C64: 8468 | D64: D
A65: BR11HJ | B65: E01000677 | C65: 20928 | D65: D
A66: BR11HL | B66: E01000677 | C66: 20928 | D66: D
A67: BR11HN | B67: E01000675 | C67: 26797 | D67: D
A68: BR11HP | B68: E01000675 | C68: 26797 | D68: D
A69: BR11HQ | B69: E01000677 | C69: 20928 | D69: D
A70: BR11HR | B70: E01000675 | C70: 26797 | D70: D
A71: BR11HS | B71: E01000675 | C71: 26797 | D71: D
A72: BR11HT | B72: E01000675 | C72: 26797 | D72: D
A73: BR11HU | B73: E01000675 | C73: 26797 | D73: D
A74: BR11HW | B74: E01000675 | C74: 26797 | D74: D
A75: BR11HX | B75: E01000675 | C75: 26797 | D75: D
A76: BR11HY | B76: E01000675 | C76: 26797 | D76: D
A77: BR11HZ | B77: E01000675 | C77: 26797 | D77: D
A78: BR11JA | B78: E01000675 | C78: 26797 | D78: D
A79: BR11JB | B79: E01000677 | C79: 20928 | D79: D
A80: BR11JD | B80: E01000676 | C80: 8468 | D80: D
A81: BR11JF | B81: E01000676 | C81: 8468 | D81: D
A82: BR11JG | B82: E01000676 | C82: 8468 | D82: D
A83: BR11JH | B83: E01000676 | C83: 8468 | D83: D
A84: BR11JJ | B84: E01000677 | C84: 20928 | D84: D
A85: BR11JL | B85: E01000676 | C85: 8468 | D85: D
A86: BR11JN | B86: E01000675 | C86: 26797 | D86: D
A87: BR11JP | B87: E01000675 | C87: 26797 | D87: D
A88: BR11JQ | B88: E01000675 | C88: 26797 | D88: D
A89: BR11JR | B89: E01000675 | C89: 26797 | D89: D
A90: BR11JS | B90: E01000677 | C90: 20928 | D90: D
A91: BR11JT | B91: E01000675 | C91: 26797 | D91: D
A92: BR11JU | B92: E01000675 | C92: 26797 | D92: D
A93: BR11JW | B93: E01000675 | C93: 26797 | D93: D
A94: BR11JX | B94: E01000675 | C94: 26797 | D94: D
A95: BR11JY | B95: E01000675 | C95: 26797 | D95: D
A96: BR11LA | B96: E01000675 | C96: 26797 | D96: D
A97: BR11LB | B97: E01000676 | C97: 8468 | D97: D
A98: BR11LD | B98: E01000675 | C98: 26797 | D98: D
A99: BR11LE | B99: E01000675 | C99: 26797 | D99: D
A100: BR11LF | B100: E01000675 | C100: 26797 | D100: D
A101: BR11LG | B101: E01000675 | C101: 26797 | D101: D
A102: BR11LH | B102: E01000675 | C102: 26797 | D102: D
A103: BR11LJ | B103: E01000675 | C103: 26797 | D103: D
A104: BR11LL | B104: E01000675 | C104: 26797 | D104: D
A105: BR11LN | B105: E01000675 | C105: 26797 | D105: D
A106: BR11LP | B106: E01000675 | C106: 26797 | D106: D
A107: BR11LQ | B107: E01000675 | C107: 26797 | D107: D
A108: BR11LR | B108: E01000675 | C108: 26797 | D108: D
A109: BR11LS | B109: E01000675 | C109: 26797 | D109: D
A110: BR11LT | B110: E01000675 | C110: 26797 | D110: D
A111: BR11LU | B111: E01000675 | C111: 26797 | D111: D
A112: BR11LW | B112: E01000675 | C112: 26797 | D112: D
A113: BR11LX | B113: E01000675 | C113: 26797 | D113: D
A114: BR11LY | B114: E01000676 | C114: 8468 | D114: D
A115: BR11LZ | B115: E01000675 | C115: 26797 | D115: D
A116: BR11NA | B116: E01000676 | C116: 8468 | D116: D
A117: BR11NB | B117: E01000677 | C117: 20928 | D117: D
A118: BR11ND | B118: E01000676 | C118: 8468 | D118: D
A119: BR11NE | B119: E01000676 | C119: 8468 | D119: D
A120: BR11NF | B120: E01000676 | C120: 8468 | D120: D
A121: BR11NG | B121: E01000676 | C121: 8468 | D121: D
A122: BR11NH | B122: E01000675 | C122: 26797 | D122: D
A123: BR11NJ | B123: E01000676 | C123: 8468 | D123: D
A124: BR11NL | B124: E01000676 | C124: 8468 | D124: D
A125: BR11NN | B125: E01000676 | C125: 8468 | D125: D
A126: BR11NP | B126: E01000676 | C126: 8468 | D126: D
A127: BR11NQ | B127: E01000676 | C127: 8468 | D127: D
A128: BR11NR | B128: E01000675 | C128: 26797 | D128: D
A129: BR11NS | B129: E01000675 | C129: 26797 | D129: D
A130: BR11NT | B130: E01000675 | C130: 26797 | D130: D
A131: BR11NU | B131: E01000675 | C131: 26797 | D131: D
A132: BR11NW | B132: E01000675 | C132: 26797 | D132: D
A133: BR11NX | B133: E01000675 | C133: 26797 | D133: D
A134: BR11NY | B134: E01000676 | C134: 8468 | D134: D
A135: BR11NZ | B135: E01000676 | C135: 8468 | D135: D
A136: BR11PA | B136: E01000676 | C136: 8468 | D136: D
A137: BR11PB | B137: E01000676 | C137: 8468 | D137: D
A138: BR11PD | B138: E01000676 | C138: 8468 | D138: D
A139: BR11PE | B139: E01000676 | C139: 8468 | D139: D
A140: BR11PF | B140: E01000676 | C140: 8468 | D140: D
A141: BR11PG | B141: E01000676 | C141: 8468 | D141: D
A142: BR11PH | B142: E01000676 | C142: 8468 | D142: D
A143: BR11PJ | B143: E01000676 | C143: 8468 | D143: D
A144: BR11PL | B144: E01000676 | C144: 8468 | D144: D
A145: BR11PN | B145: E01000676 | C145: 8468 | D145: D
A146: BR11PP | B146: E01000675 | C146: 26797 | D146: D
A147: BR11PQ | B147: E01000676 | C147: 8468 | D147: D
A148: BR11PR | B148: E01000676 | C148: 8468 | D148: D
A149: BR11PS | B149: E01000676 | C149: 8468 | D149: D
A150: BR11PT | B150: E01000674 | C150: 17363 | D150: D
A151: BR11PU | B151: E01000676 | C151: 8468 | D151: D
A152: BR11PW | B152: E01000676 | C152: 8468 | D152: D
A153: BR11PX | B153: E01000676 | C153: 8468 | D153: D
A154: BR11PY | B154: E01000676 | C154: 8468 | D154: D
A155: BR11PZ | B155: E01000676 | C155: 8468 | D155: D
A156: BR11QA | B156: E01000676 | C156: 8468 | D156: D
A157: BR11QB | B157: E01000676 | C157: 8468 | D157: D
A158: BR11QD | B158: E01000677 | C158: 20928 | D158: D
A159: BR11QE | B159: E01000675 | C159: 26797 | D159: D
A160: BR11QF | B160: E01000676 | C160: 8468 | D160: D
A161: BR11QG | B161: E01000676 | C161: 8468 | D161: D
A162: BR11QH | B162: E01000675 | C162: 26797 | D162: D
A163: BR11QJ | B163: E01000675 | C163: 26797 | D163: D
A164: BR11QL | B164: E01000675 | C164: 26797 | D164: D
A165: BR11QN | B165: E01000675 | C165: 26797 | D165: D
A166: BR11QP | B166: E01000675 | C166: 26797 | D166: D
A167: BR11QQ | B167: E01000675 | C167: 26797 | D167: D
A168: BR11QR | B168: E01000675 | C168: 26797 | D168: D
A169: BR11QS | B169: E01000676 | C169: 8468 | D169: D
A170: BR11QT | B170: E01000675 | C170: 26797 | D170: D
A171: BR11QU | B171: E01000675 | C171: 26797 | D171: D
A172: BR11QW | B172: E01000675 | C172: 26797 | D172: D
A173: BR11QX | B173: E01000676 | C173: 8468 | D173: D
A174: BR11QY | B174: E01000677 | C174: 20928 | D174: D
A175: BR11RA | B175: E01000676 | C175: 8468 | D175: D
A176: BR11RB | B176: E01000675 | C176: 26797 | D176: D
A177: BR11RD | B177: E01000676 | C177: 8468 | D177: D
A178: BR11RE | B178: E01000676 | C178: 8468 | D178: D
A179: BR11RF | B179: E01000675 | C179: 26797 | D179: D
A180: BR11RG | B180: E01000675 | C180: 26797 | D180: D
A181: BR11RH | B181: E01000675 | C181: 26797 | D181: D
A182: BR11RJ | B182: E01000676 | C182: 8468 | D182: D
A183: BR11RL | B183: E01000676 | C183: 8468 | D183: D
A184: BR11RN | B184: E01000676 | C184: 8468 | D184: D
A185: BR11RP | B185: E01000675 | C185: 26797 | D185: D
A186: BR11RQ | B186: E01000675 | C186: 26797 | D186: D
A187: BR11RR | B187: E01000676 | C187: 8468 | D187: D
A188: BR11RS | B188: E01000676 | C188: 8468 | D188: D
A189: BR11RT | B189: E01000676 | C189: 8468 | D189: D
A190: BR11RU | B190: E01000676 | C190: 8468 | D190: D
A191: BR11RW | B191: E01000676 | C191: 8468 | D191: D
A192: BR11RX | B192: E01000676 | C192: 8468 | D192: D
A193: BR11RY | B193: E01000676 | C193: 8468 | D193: D
A194: BR11RZ | B194: E01000676 | C194: 8468 | D194: D
A195: BR11SA | B195: E01000676 | C195: 8468 | D195: D
A196: BR11SB | B196: E01000675 | C196: 26797 | D196: D
A197: BR11SD | B197: E01000675 | C197: 26797 | D197: D
A198: BR11SE | B198: E01000675 | C198: 26797 | D198: D
A199: BR11SG | B199: E01000675 | C199: 26797 | D199: D
A200: BR11SH | B200: E01000676 | C200: 8468 | D200: D
... 4300 more rows

Sheet TestArea (hidden)
A1: MI DfE no | B1: School Name | D1: Macro School Name | E1: Data Calc | F1: =SUM(F2:F302) -> 301 | H1: Macro F1 | I1: Data Calc F1 | J1: =SUM(J2:J566) -> -0.02288411555 | L1: Macro F2 | M1: Data Calc F2 | N1: =SUM(N2:N566) -> 0.06457284367 | P1: Macro F4 | Q1: Data Calc F4 | R1: =SUM(R2:R566) -> 0.05899511623 | T1: Macro F6 | U1: Data Calc F6 | V1: =SUM(V2:V566) -> -0.03813954367 | X1: Macro F? | Y1: Data Calc F? | Z1: =SUM(Z2:Z566) -> 0.03231286915 | AB1: Macro F7 | AC1: Data Calc F7 | AD1: =SUM(AD2:AD566) -> -0.8805786459 | AF1: Macro F8 | AG1: Data Calc F8 | AH1: =SUM(AH2:AH566) -> 0.01271477748 | AJ1: Macro F9 | AK1: Data Calc F9 | AL1: =SUM(AL2:AL566) -> 0.06147677135 | AN1: Macro F10 | AO1: Data Calc F10 | AP1: =SUM(AP2:AP566) -> 0.01530333069 | AR1: Macro F11 | AS1: Data Calc F11 | AT1: =SUM(AT2:AT566) -> -0.0004000000004 | AV1: Macro F12 | AW1: Data Calc F12 | AX1: =SUM(AX2:AX566) -> 0 | AZ1: Macro F13 | BA1: Data Calc F13 | BB1: =SUM(BB2:BB566) -> 0 | BD1: Macro F14 | BE1: Data Calc F14 | BF1: =SUM(BF2:BF566) -> -0.002549291057 | BH1: Macro FFT | BI1: Data Calc FFT | BJ1: =SUM(BJ2:BJ566) -> 0.08082415507 | BL1: Macro MFG | BM1: Data Calc MFG | BN1: =SUM(BN2:BN566) -> -0.01746721873 | BP1: Macro SBS | BQ1: Data Calc SBS | BR1: =SUM(BR2:BR566) -> 0.05335693411 | BT1: Early years rate | BV1: =SUM(BV2:BV566) -> 0 | BX1: Macro Notional SEN | BY1: Data Calc | BZ1: =SUM(BZ2:BZ566) -> 0 | CB1: Macro De-Delegation | CC1: Data Calc | CD1: =SUM(CD2:CD566) -> 0 | CF1: Year 2 | CG1: Data Calc | CH1: =SUM(CH2:CH566) -> 1271657372 | CJ1: Year 3 | CK1: Data Calc | CL1: =SUM(CL2:CL566) -> 1287800368
A2: 1001 | B2: Northfleet Nursery | D2: Northfleet Nursery | F2: =IF(E2=D2,0,1) -> 1 | H2: 0 | I2: 0 | J2: =H2-I2 -> 0 | L2: 0 | M2: 0 | N2: =L2-M2 -> 0 | P2: 0 | Q2: 0 | R2: =P2-Q2 -> 0 | T2: 0 | U2: 0 | V2: =T2-U2 -> 0 | X2: 0 | Y2: 0 | Z2: =X2-Y2 -> 0 | AB2: 0 | AC2: 0 | AD2: =AB2-AC2 -> 0 | AF2: 0 | AG2: 0 | AH2: =AF2-AG2 -> 0 | AJ2: 0 | AK2: 0 | AL2: =AJ2-AK2 -> 0 | AN2: 0 | AO2: 0 | AP2: =AN2-AO2 -> 0 | AR2: 0 | AS2: 0 | AT2: =AR2-AS2 -> 0 | AV2: 0 | AW2: 0 | AX2: =AV2-AW2 -> 0 | AZ2: 0 | BA2: 0 | BB2: =AZ2-BA2 -> 0 | BD2: 0 | BE2: 0 | BF2: =BD2-BE2 -> 0 | BH2: 0 | BI2: 0 | BJ2: =BH2-BI2 -> 0 | BL2: 0 | BM2: 0 | BN2: =BL2-BM2 -> 0 | BP2: 0 | BQ2: 0 | BR2: =BP2-BQ2 -> 0 | BV2: =BT2-BU2 -> 0 | BX2: 0 | BY2: 0 | BZ2: =ROUND(BX2-BY2,0) -> 0 | CB2: 0 | CC2: 0 | CD2: =IF(E2="Recoupment Academy",0,ROUND(CB2-CC2,0)) -> 0 | CF2: 0 | CH2: =ROUND(CF2-CG2,0) -> 0 | CJ2: 0 | CL2: =ROUND(CJ2-CK2,0) -> 0
A3: 2000 | B3: St Johns Church of England Primary School | D3: St Johns Church of England Primary School | E3: 0 | F3: 1 | H3: 1415099.97 | I3: 1415099.967 | J3: 0.003284559119 | L3: 376095.26 | M3: 376095.2611 | N3: -0.001082318253 | P3: 79680.45 | Q3: 79680.44629 | R3: 0.003706297663 | T3: 188390.47 | U3: 188390.465 | V3: 0.00495535144 | X3: 14025.15 | Y3: 14025.15263 | Z3: -0.002628763999 | AB3: 132163.37 | AC3: 132163.3716 | AD3: -0.001566865918 | AF3: 0 | AG3: 0 | AH3: 0 | AJ3: 0 | AK3: 0 | AL3: 0 | AN3: 0 | AO3: 0 | AP3: 0 | AR3: 24576 | AS3: 24576 | AT3: 0 | AV3: 0 | AW3: 0 | AX3: 0 | AZ3: 0 | BA3: 0 | BB3: 0 | BD3: 0 | BE3: 0 | BF3: 0 | BH3: 2230030.66 | BI3: 2230030.663 | BJ3: -0.003331740387 | BL3: 16236.76 | BM3: 16236.76276 | BN3: -0.002755986536 | BP3: 2246267.43 | BQ3: 2246267.426 | BR3: 0.003912273329 | BV3: 0 | BX3: 472765.05 | BY3: 472765.0492 | BZ3: 0 | CB3: 9433.4 | CC3: 9433.4 | CD3: =IF(E3="Recoupment Academy",0,ROUND(CB3-CC3,0)) -> 0 | CF3: 2263112.48 | CH3: 2263112 | CI3: =(CF3-BQ3)/BQ3 -> 0.007499131099 | CJ3: 2296690.53 | CL3: 2296691 | CM3: =(CJ3-CF3)/CF3 -> 0.01483711053
A4: 2002 | B4: Repton Manor Primary School | D4: Repton Manor Primary School | E4: 0 | F4: 1 | H4: 1562214.32 | I4: 1562214.32 | J4: 0.0003091916442 | L4: 134602.1 | M4: 134602.1004 | N4: -0.0004469688283 | P4: 14634.29 | Q4: 14634.2945 | R4: -0.004495009951 | T4: 116354.49 | U4: 116354.4916 | V4: -0.0016095014 | X4: 0 | Y4: 0 | Z4: 0 | AB4: 132163.37 | AC4: 132163.3716 | AD4: -0.001566865918 | AF4: 0 | AG4: 0 | AH4: 0 | AJ4: 0 | AK4: 0 | AL4: 0 | AN4: 0 | AO4: 0 | AP4: 0 | AR4: 10650 | AS4: 10650 | AT4: 0 | AV4: 0 | AW4: 0 | AX4: 0 | AZ4: 0 | BA4: 0 | BB4: 0 | BD4: 77586.88 | BE4: 77586.88219 | BF4: -0.002190845698 | BH4: 2048205.46 | BI4: 2048205.46 | BJ4: 0 | BL4: 3152.51 | BM4: 3152.514252 | BN4: -0.004252079418 | BP4: 2051357.97 | BQ4: 2051357.974 | BR4: -0.004252079641 | BV4: 0 | BX4: 295409.39 | BY4: 295409.3875 | BZ4: 0 | CB4: 10414.1 | CC4: 10414.1 | CD4: 0 | CF4: 2060890.79 | CH4: 2060891 | CI4: =(CF4-BQ4)/BQ4 -> 0.004647075677 | CJ4: 2070461.2 | CL4: 2070461 | CM4: =(CJ4-CF4)/CF4 -> 0.004643822005
A5: 2065 | B5: The Discovery School | D5: The Discovery School | E5: 0 | F5: 1 | H5: 2192704.4 | I5: 2192704.404 | J5: -0.003870955668 | L5: 87587.73 | M5: 87587.73442 | N5: -0.004415630523 | P5: 16660.26 | Q5: 16660.25682 | R5: 0.003182576238 | T5: 131372.57 | U5: 131372.5739 | V5: -0.003913267516 | X5: 0 | Y5: 0 | Z5: 0 | AB5: 132163.37 | AC5: 132163.3716 | AD5: -0.001566865918 | AF5: 0 | AG5: 0 | AH5: 0 | AJ5: 0 | AK5: 0 | AL5: 0 | AN5: 0 | AO5: 0 | AP5: 0 | AR5: 75264 | AS5: 75264 | AT5: 0 | AV5: 0 | AW5: 0 | AX5: 0 | AZ5: 0 | BA5: 0 | BB5: 0 | BD5: 299398.92 | BE5: 299398.9194 | BF5: 0.0005841430393 | BH5: 2935151.26 | BI5: 2935151.26 | BJ5: 0 | BL5: 0 | BM5: 0 | BN5: 0 | BP5: 2935151.26 | BQ5: 2935151.26 | BR5: 0 | BV5: 0 | BX5: 414196.15 | BY5: 414196.1467 | BZ5: 0 | CB5: 14617.1 | CC5: 14617.1 | CD5: 0 | CF5: 2949450.7 | CH5: 2949451 | CI5: 0.00487178981 | CJ5: 2963821.63 | CL5: 2963822 | CM5: 0.004872408954
A6: 2079 | B6: Woodlands Primary School | D6: Woodlands Primary School | E6: 0 | F6: 1 | H6: 2073611.83 | I6: 2073611.832 | J6: -0.002414705465 | L6: 240524.55 | M6: 240524.5526 | N6: -0.002592243807 | P6: 13870.8 | Q6: 13870.80001 | R6: -6.272517567e-06 | T6: 162393.36 | U6: 162393.3618 | V6: -0.001767092472 | X6: 0 | Y6: 0 | Z6: 0 | AB6: 132163.37 | AC6: 132163.3716 | AD6: -0.001566865918 | AF6: 0 | AG6: 0 | AH6: 0 | AJ6: 0 | AK6: 0 | AL6: 0 | AN6: 0 | AO6: 0 | AP6: 0 | AR6: 57856 | AS6: 57856 | AT6: 0 | AV6: 0 | AW6: 0 | AX6: 0 | AZ6: 0 | BA6: 0 | BB6: 0 | BD6: 81994 | BE6: 81994.00165 | BF6: -0.001652819745 | BH6: 2762413.92 | BI6: 2762413.92 | BJ6: 0 | BL6: 847.48 | BM6: 847.4768809 | BN6: 0.003119069636 | BP6: 2763261.4 | BQ6: 2763261.397 | BR6: 0.003119069617 | BV6: 0 | BX6: 422167.52 | BY6: 422167.5208 | BZ6: 0 | CB6: 13823.2 | CC6: 13823.2 | CD6: 0 | CF6: 2776117.69 | CH6: 2776118 | CI6: 0.004652579424 | CJ6: 2789527.11 | CL6: 2789527 | CM6: 0.004830277927
A7: 2088 | B7: Crockenhill Primary School | D7: Crockenhill Primary School | E7: 0 | F7: 1 | H7: 672522.76 | I7: 672522.7565 | J7: 0.003541176673 | L7: 95853.12 | M7: 95853.12071 | N7: -0.0007091881271 | P7: 5181.16 | Q7: 5181.15543 | R7: 0.004569803934 | T7: 73441.37 | U7: 73441.37157 | V7: -0.001572646623 | X7: 0 | Y7: 0 | Z7: 0 | AB7: 132163.37 | AC7: 132163.3716 | AD7: -0.001566865918 | AF7: 0 | AG7: 0 | AH7: 0 | AJ7: 36718.57 | AK7: 36718.56659 | AL7: 0.003409835495 | AN7: 0 | AO7: 0 | AP7: 0 | AR7: 23827 | AS7: 23827 | AT7: 0 | AV7: 0 | AW7: 0 | AX7: 0 | AZ7: 0 | BA7: 0 | BB7: 0 | BD7: 0 | BE7: 0 | BF7: 0 | BH7: 1039707.34 | BI7: 1039707.342 | BJ7: -0.00232788478 | BL7: 0 | BM7: 0 | BN7: 0 | BP7: 1039707.34 | BQ7: 1039707.342 | BR7: -0.00232788478 | BV7: 0 | BX7: 160049.39 | BY7: 160049.3872 | BZ7: 0 | CB7: 4651.32 | CC7: 4651.32 | CD7: 0 | CF7: 1054945.55 | CH7: 1054946 | CI7: 0.01465624705 | CJ7: 1070412.33 | CL7: 1070412 | CM7: 0.01466121166
A8: 2089 | B8: The Anthony Roper Primary School | D8: The Anthony Roper Primary School | E8: 0 | F8: 1 | H8: 952740.57 | I8: 952740.5716 | J8: -0.001649999875 | L8: 47034.03 | M8: 47034.0332 | N8: -0.003199726256 | P8: 3220.6 | Q8: 3220.599166 | R8: 0.0008337811869 | T8: 72899.47 | U8: 72899.47419 | V8: -0.004188237232 | X8: 0 | Y8: 0 | Z8: 0 | AB8: 132163.37 | AC8: 132163.3716 | AD8: -0.001566865918 | AF8: 0 | AG8: 0 | AH8: 0 | AJ8: 45302.18 | AK8: 45302.17687 | AL8: 0.003133585706 | AN8: 0 | AO8: 0 | AP8: 0 | AR8: 6656 | AS8: 6656 | AT8: 0 | AV8: 0 | AW8: 0 | AX8: 0 | AZ8: 0 | BA8: 0 | BB8: 0 | BD8: 0 | BE8: 0 | BF8: 0 | BH8: 1260016.23 | BI8: 1260016.227 | BJ8: 0.003362537827 | BL8: 0 | BM8: 0 | BN8: 0 | BP8: 1260016.23 | BQ8: 1260016.227 | BR8: 0.003362537827 | BV8: 0 | BX8: 149416.76 | BY8: 149416.7574 | BZ8: 0 | CB8: 6589.37 | CC8: 6589.37 | CD8: 0 | CF8: 1278816.63 | CH8: 1278817 | CI8: 0.0149207629 | CJ8: 1297899.04 | CL8: 1297899 | CM8: 0.01492192825
A9: 2094 | B9: Cobham Primary School | D9: Cobham Primary School | E9: 0 | F9: 1 | H9: 753085.38 | I9: 753085.3783 | J9: 0.001673713443 | L9: 18865.73 | M9: 18865.73128 | N9: -0.001276118473 | P9: 3371.32 | Q9: 3371.324743 | R9: -0.00474325469 | T9: 43534.88 | U9: 43534.88044 | V9: -0.0004352578762 | X9: 0 | Y9: 0 | Z9: 0 | AB9: 132163.37 | AC9: 132163.3716 | AD9: -0.001566865918 | AF9: 0 | AG9: 0 | AH9: 0 | AJ9: 0 | AK9: 0 | AL9: 0 | AN9: 0 | AO9: 0 | AP9: 0 | AR9: 17216 | AS9: 17216 | AT9: 0 | AV9: 0 | AW9: 0 | AX9: 0 | AZ9: 0 | BA9: 0 | BB9: 0 | BD9: 31208.96 | BE9: 31208.96365 | BF9: -0.00365221651 | BH9: 999445.65 | BI9: 999445.65 | BJ9: 0 | BL9: 0 | BM9: 0 | BN9: 0 | BP9: 999445.65 | BQ9: 999445.65 | BR9: 0 | BV9: 0 | BX9: 103767.51 | BY9: 103767.5124 | BZ9: 0 | CB9: 5020.25 | CC9: 5020.25 | CD9: 0 | CF9: 1004356.8 | CH9: 1004357 | CI9: 0.004913874006 | CJ9: 1009292.5 | CL9: 1009293 | CM9: 0.004914289424
A10: 2095 | B10: Cecil Road Primary and Nursery School | D10: Cecil Road Primary and Nursery School | E10: 0 | F10: 1 | H10: 1299510.12 | I10: 1299510.118 | J10: 0.002050919458 | L10: 121308.95 | M10: 121308.9467 | N10: 0.00325833328 | P10: 51605.04 | Q10: 51605.03677 | R10: 0.003230137911 | T10: 129085.35 | U10: 129085.3471 | V10: 0.002942440304 | X10: 2586.63 | Y10: 2586.625986 | Z10: 0.004013619912 | AB10: 132163.37 | AC10: 132163.3716 | AD10: -0.001566865918 | AF10: 0 | AG10: 0 | AH10: 0 | AJ10: 0 | AK10: 0 | AL10: 0 | AN10: 0 | AO10: 0 | AP10: 0 | AR10: 34048 | AS10: 34048 | AT10: 0 | AV10: 0 | AW10: 0 | AX10: 0 | AZ10: 0 | BA10: 0 | BB10: 0 | BD10: 0 | BE10: 0 | BF10: 0 | BH10: 1770307.45 | BI10: 1770307.446 | BJ10: 0.003928584978 | BL10: 0 | BM10: 0 | BN10: 0 | BP10: 1770307.45 | BQ10: 1770307.446 | BR10: 0.003928584978 | BV10: 0 | BX10: 260550.24 | BY10: 260550.2376 | BZ10: 0 | CB10: 8662.85 | CC10: 8662.85 | CD10: 0 | CF10: 1796351.34 | CH10: 1796351 | CI10: 0.014711509 | CJ10: 1822785.89 | CL10: 1822786 | CM10: 0.01471569031
A11: 2109 | B11: Higham Primary School | D11: Higham Primary School | E11: 0 | F11: 1 | H11: 735571.76 | I11: 735571.7649 | J11: -0.004876838066 | L11: 38724.65 | M11: 38724.65456 | N11: -0.00455582724 | P11: 1346.28 | Q11: 1346.277438 | R11: 0.002561732544 | T11: 86952.25 | U11: 86952.24751 | V11: 0.002485676596 | X11: 0 | Y11: 0 | Z11: 0 | AB11: 132163.37 | AC11: 132163.3716 | AD11: -0.001566865918 | AF11: 0 | AG11: 0 | AH11: 0 | AJ11: 0 | AK11: 0 | AL11: 0 | AN11: 0 | AO11: 0 | AP11: 0 | AR11: 22330 | AS11: 22330 | AT11: 0 | AV11: 0 | AW11: 0 | AX11: 0 | AZ11: 0 | BA11: 0 | BB11: 0 | BD11: 0 | BE11: 0 | BF11: 0 | BH11: 1017088.32 | BI11: 1017088.316 | BJ11: 0.004047877737 | BL11: 0 | BM11: 0 | BN11: 0 | BP11: 1017088.32 | BQ11: 1017088.316 | BR11: 0.004047877737 | BV11: 0 | BX11: 142743.09 | BY11: 142743.0874 | BZ11: 0 | CB11: 4903.5 | CC11: 4903.5 | CD11: 0 | CF11: 1032009.69 | CH11: 1032010 | CI11: 0.01467067689 | CJ11: 1047154.89 | CL11: 1047155 | CM11: 0.0146754436
A12: 2116 | B12: Lawn Primary School | D12: Lawn Primary School | E12: 0 | F12: 1 | H12: 725063.6 | I12: 725063.5968 | J12: 0.003192830947 | L12: 215485.07 | M12: 215485.0728 | N12: -0.002800680842 | P12: 39342.31 | Q12: 39342.30537 | R12: 0.004630058807 | T12: 98559.12 | U12: 98559.11996 | V12: 3.73673538e-05 | X12: 7155.7 | Y12: 7155.702546 | Z12: -0.002546263168 | AB12: 132163.37 | AC12: 132163.3716 | AD12: -0.001566865918 | AF12: 0 | AG12: 0 | AH12: 0 | AJ12: 0 | AK12: 0 | AL12: 0 | AN12: 0 | AO12: 0 | AP12: 0 | AR12: 20709 | AS12: 20709 | AT12: 0 | AV12: 0 | AW12: 0 | AX12: 0 | AZ12: 0 | BA12: 0 | BB12: 0 | BD12: 0 | BE12: 0 | BF12: 0 | BH12: 1238478.17 | BI12: 1238478.169 | BJ12: 0.0009464472532 | BL12: 0 | BM12: 0 | BN12: 0 | BP12: 1238478.17 | BQ12: 1238478.169 | BR12: 0.0009464472532 | BV12: 0 | BX12: 255919.77 | BY12: 255919.7729 | BZ12: 0 | CB12: 4833.45 | CC12: 4833.45 | CD12: 0 | CF12: 1256744.71 | CH12: 1256745 | CI12: 0.01474918283 | CJ12: 1275285.24 | CL12: 1275285 | CM12: 0.0147528212
A13: 2120 | B13: Bean Primary School | D13: Bean Primary School | E13: 0 | F13: 1 | H13: 679528.2 | I13: 679528.2018 | J13: -0.001838602824 | L13: 89008.69 | M13: 89008.68733 | N13: 0.002668341811 | P13: 13039.93 | Q13: 13039.93225 | R13: -0.002249987525 | T13: 64355.21 | U13: 64355.20714 | V13: 0.002859228742 | X13: 7892.04 | Y13: 7892.041331 | Z13: -0.0013307072 | AB13: 132163.37 | AC13: 132163.3716 | AD13: -0.001566865918 | AF13: 0 | AG13: 0 | AH13: 0 | AJ13: 36974.53 | AK13: 36974.52905 | AL13: 0.0009453027742 | AN13: 0 | AO13: 0 | AP13: 0 | AR13: 16093 | AS13: 16093 | AT13: 0 | AV13: 0 | AW13: 0 | AX13: 0 | AZ13: 0 | BA13: 0 | BB13: 0 | BD13: 0 | BE13: 0 | BF13: 0 | BH13: 1039054.97 | BI13: 1039054.971 | BJ13: -0.0005132900551 | BL13: 0 | BM13: 0 | BN13: 0 | BP13: 1039054.97 | BQ13: 1039054.971 | BR13: -0.0005132900551 | BV13: 0 | BX13: 155946.01 | BY13: 155946.009 | BZ13: 0 | CB13: 4699.77 | CC13: 4699.77125 | CD13: 0 | CF13: 1054399.4 | CH13: 1054399 | CI13: 0.01476767825 | CJ13: 1069974 | CL13: 1069974 | CM13: 0.01477106303
A14: 2128 | B14: Capel Primary School | D14: Capel Primary School | E14: 0 | F14: 1 | H14: 725063.6 | I14: 725063.5968 | J14: 0.003192830947 | L14: 61445.15 | M14: 61445.15084 | N14: -0.0008359792118 | P14: 1334.42 | Q14: 1334.417375 | R14: 0.00262487919 | T14: 52924.35 | U14: 52924.35013 | V14: -0.0001319101357 | X14: 0 | Y14: 0 | Z14: 0 | AB14: 132163.37 | AC14: 132163.3716 | AD14: -0.001566865918 | AF14: 0 | AG14: 0 | AH14: 0 | AJ14: 0 | AK14: 0 | AL14: 0 | AN14: 0 | AO14: 0 | AP14: 0 | AR14: 21457 | AS14: 21457 | AT14: 0 | AV14: 0 | AW14: 0 | AX14: 0 | AZ14: 0 | BA14: 0 | BB14: 0 | BD14: 0 | BE14: 0 | BF14: 0 | BH14: 994387.89 | BI14: 994387.8867 | BJ14: 0.0032829548 | BL14: 0 | BM14: 0 | BN14: 0 | BP14: 994387.89 | BQ14: 994387.8867 | BR14: 0.0032829548 | BV14: 0 | BX14: 119034.75 | BY14: 119034.75 | BZ14: 0 | CB14: 4833.45 | CC14: 4833.45 | CD14: 0 | CF14: 1008981.85 | CH14: 1008982 | CI14: 0.0146763285 | CJ14: 1023794.72 | CL14: 1023795 | CM14: 0.01468100739
A15: 2130 | B15: Dunton Green Primary School | D15: Dunton Green Primary School | E15: 0 | F15: 1 | H15: 560435.63 | I15: 560435.6304 | J15: -0.0003823528532 | L15: 68510.58 | M15: 68510.58108 | N15: -0.001079341891 | P15: 9088.16 | Q15: 9088.157252 | R15: 0.002747732999 | T15: 44301.23 | U15: 44301.23188 | V15: -0.001875892696 | X15: 4153.71 | Y15: 4153.705964 | Z15: 0.004036469929 | AB15: 132163.37 | AC15: 132163.3716 | AD15: -0.001566865918 | AF15: 0 | AG15: 0 | AH15: 0 | AJ15: 30699.48 | AK15: 30699.47543 | AL15: 0.004570490604 | AN15: 0 | AO15: 0 | AP15: 0 | AR15: 24576 | AS15: 24576 | AT15: 0 | AV15: 0 | AW15: 0 | AX15: 0 | AZ15: 0 | BA15: 0 | BB15: 0 | BD15: 0 | BE15: 0 | BF15: 0 | BH15: 873928.15 | BI15: 873928.1535 | BJ15: -0.003549759975 | BL15: 0 | BM15: 0 | BN15: 0 | BP15: 873928.15 | BQ15: 873928.1535 | BR15: -0.003549759975 | BV15: 0 | BX15: 109610.66 | BY15: 109610.6648 | BZ15: 0 | CB15: 3876.1 | CC15: 3876.1 | CD15: 0 | CF15: 886668.44 | CH15: 886668 | CI15: 0.01457818517 | CJ15: 899599.82 | CL15: 899600 | CM15: 0.01458423399
A16: 2132 | B16: Hadlow Primary School | D16: Hadlow Primary School | E16: 0 | F16: 1 | H16: 626987.36 | I16: 626987.3615 | J16: -0.001490257215 | L16: 113159.97 | M16: 113159.9701 | N16: -0.0001120319939 | P16: 3968.88 | Q16: 3968.884688 | R16: -0.004688118941 | T16: 79016.84 | U16: 79016.83941 | V16: 0.0005930586485 | X16: 0 | Y16: 0 | Z16: 0 | AB16: 132163.37 | AC16: 132163.3716 | AD16: -0.001566865918 | AF16: 0 | AG16: 0 | AH16: 0 | AJ16: 0 | AK16: 0 | AL16: 0 | AN16: 0 | AO16: 0 | AP16: 0 | AR16: 24326 | AS16: 24326 | AT16: 0 | AV16: 0 | AW16: 0 | AX16: 0 | AZ16: 0 | BA16: 0 | BB16: 0 | BD16: 0 | BE16: 0 | BF16: 0 | BH16: 979622.43 | BI16: 979622.4273 | BJ16: 0.002735784627 | BL16: 0 | BM16: 0 | BN16: 0 | BP16: 979622.43 | BQ16: 979622.4273 | BR16: 0.002735784627 | BV16: 0 | BX16: 168328.79 | BY16: 168328.7945 | BZ16: 0 | CB16: 4179.65 | CC16: 4179.65 | CD16: 0 | CF16: 993951.87 | CH16: 993952 | CI16: 0.01462751601 | CJ16: 1008496.26 | CL16: 1008496 | CM16: 0.01463289163
A17: 2136 | B17: Kemsing Primary School | D17: Kemsing Primary School | E17: 0 | F17: 1 | H17: 633992.81 | I17: 633992.8069 | J17: 0.003129963414 | L17: 37867.03 | M17: 37867.02944 | N17: 0.0005634446425 | P17: 4594.31 | Q17: 4594.311995 | R17: -0.001995320835 | T17: 60321.35 | U17: 60321.34782 | V17: 0.002176665555 | X17: 0 | Y17: 0 | Z17: 0 | AB17: 132163.37 | AC17: 132163.3716 | AD17: -0.001566865918 | AF17: 0 | AG17: 0 | AH17: 0 | AJ17: 32585.21 | AK17: 32585.20754 | AL17: 0.002461545759 | AN17: 0 | AO17: 0 | AP17: 0 | AR17: 21956 | AS17: 21956 | AT17: 0 | AV17: 0 | AW17: 0 | AX17: 0 | AZ17: 0 | BA17: 0 | BB17: 0 | BD17: 0 | BE17: 0 | BF17: 0 | BH17: 923480.08 | BI17: 923480.0752 | BJ17: 0.004769432591 | BL17: 0 | BM17: 0 | BN17: 0 | BP17: 923480.08 | BQ17: 923480.0752 | BR17: 0.004769432591 | BV17: 0 | BX17: 112824.43 | BY17: 112824.4342 | BZ17: 0 | CB17: 4384.84 | CC17: 4384.838125 | CD17: 0 | CF17: 937002.94 | CH17: 937003 | CI17: 0.0146433747 | CJ17: 950728.64 | CL17: 950729 | CM17: 0.01464851327
A18: 2137 | B18: Leigh Primary School | D18: Leigh Primary School | E18: 0 | F18: 1 | H18: 518402.96 | I18: 518402.9581 | J18: 0.001896323636 | L18: 43626.7 | M18: 43626.69628 | N18: 0.003723482099 | P18: 3228.08 | Q18: 3228.077338 | R18: 0.002662342597 | T18: 49570.7 | U18: 49570.6997 | V18: 0.0002977565309 | X18: 0 | Y18: 0 | Z18: 0 | AB18: 132163.37 | AC18: 132163.3716 | AD18: -0.001566865918 | AF18: 1349.39 | AG18: 1349.393569 | AH18: -0.003569366542 | AJ18: 28062.79 | AK18: 28062.79487 | AL18: -0.004870862285 | AN18: 0 | AO18: 0 | AP18: 0 | AR18: 10853 | AS18: 10853 | AT18: 0 | AV18: 0 | AW18: 0 | AX18: 0 | AZ18: 0 | BA18: 0 | BB18: 0 | BD18: 0 | BE18: 0 | BF18: 0 | BH18: 787256.99 | BI18: 787256.9914 | BJ18: -0.001427189913 | BL18: 0 | BM18: 0 | BN18: 0 | BP18: 787256.99 | BQ18: 787256.9914 | BR18: -0.001427189913 | BV18: 0 | BX18: 99507.43 | BY18: 99507.431 | BZ18: 0 | CB18: 3585.39 | CC18: 3585.3925 | CD18: 0 | CF18: 798903.05 | CH18: 798903 | CI18: 0.01479321073 | CJ18: 810723.8 | CL18: 810724 | CM18: 0.0147962259
A19: 2138 | B19: Otford Primary School | D19: Otford Primary School | E19: 0 | F19: 1 | H19: 1078838.59 | I19: 1078838.588 | J19: 0.001513970783 | L19: 57123.29 | M19: 57123.29058 | N19: -0.000582732544 | P19: 3927.38 | Q19: 3927.382241 | R19: -0.002241158244 | T19: 52837.45 | U19: 52837.44845 | V19: 0.001553089089 | X19: 0 | Y19: 0 | Z19: 0 | AB19: 132163.37 | AC19: 132163.3716 | AD19: -0.001566865918 | AF19: 0 | AG19: 0 | AH19: 0 | AJ19: 49683.38 | AK19: 49683.37805 | AL19: 0.001950361373 | AN19: 0 | AO19: 0 | AP19: 0 | AR19: 29440 | AS19: 29440 | AT19: 0 | AV19: 0 | AW19: 0 | AX19: 0 | AZ19: 0 | BA19: 0 | BB19: 0 | BD19: 32527.62 | BE19: 32527.62063 | BF19: -0.0006266645687 | BH19: 1436541.08 | BI19: 1436541.08 | BJ19: 0 | BL19: 18700.43 | BM19: 18700.4318 | BN19: -0.001797200581 | BP19: 1455241.51 | BQ19: 1455241.512 | BR19: -0.001797200413 | BV19: 0 | BX19: 159250.02 | BY19: 159250.0203 | BZ19: 0 | CB19: 7461.49 | CC19: 7461.4925 | CD19: 0 | CF19: 1461674.64 | CH19: 1461675 | CI19: 0.00442066018 | CJ19: 1468155.02 | CL19: 1468155 | CM19: 0.004433531117
A20: 2139 | B20: Pembury School | D20: Pembury School | E20: 0 | F20: 1 | H20: 1390580.91 | I20: 1390580.908 | J20: 0.002113786992 | L20: 61710.66 | M20: 61710.65761 | N20: 0.0023907836 | P20: 14645.39 | Q20: 14645.38999 | R20: 9.66931475e-06 | T20: 112299.2 | U20: 112299.1955 | V20: 0.004479628071 | X20: 0 | Y20: 0 | Z20: 0 | AB20: 132163.37 | AC20: 132163.3716 | AD20: -0.001566865918 | AF20: 0 | AG20: 0 | AH20: 0 | AJ20: 0 | AK20: 0 | AL20: 0 | AN20: 0 | AO20: 0 | AP20: 0 | AR20: 42496 | AS20: 42496 | AT20: 0 | AV20: 0 | AW20: 0 | AX20: 0 | AZ20: 0 | BA20: 0 | BB20: 0 | BD20: 102298.95 | BE20: 102298.9474 | BF20: 0.002572997866 | BH20: 1856194.47 | BI20: 1856194.47 | BJ20: 0 | BL20: 0 | BM20: 0 | BN20: 0 | BP20: 1856194.47 | BQ20: 1856194.47 | BR20: 0 | BV20: 0 | BX20: 254510.7 | BY20: 254510.6953 | BZ20: 0 | CB20: 9269.95 | CC20: 9269.95 | CD20: 0 | CF20: 1865262.96 | CH20: 1865263 | CI20: 0.004885527969 | CJ20: 1874376.8 | CL20: 1874377 | CM20: 0.004886088555
A21: 2142 | B21: Sandhurst Primary School | D21: Sandhurst Primary School | E21: 0 | F21: 1 | H21: 563938.35 | I21: 563938.3531 | J21: -0.003072242602 | L21: 45283.66 | M21: 45283.65521 | N21: 0.004786799393 | P21: 2788.33 | Q21: 2788.334814 | R21: -0.004813685276 | T21: 41037.37 | U21: 41037.37308 | V21: -0.003078473172 | X21: 3153.04 | Y21: 3153.040436 | Z21: -0.0004359523673 | AB21: 132163.37 | AC21: 132163.3716 | AD21: -0.001566865918 | AF21: 0 | AG21: 0 | AH21: 0 | AJ21: 0 | AK21: 0 | AL21: 0 | AN21: 0 | AO21: 0 | AP21: 0 | AR21: 21582 | AS21: 21582 | AT21: 0 | AV21: 0 | AW21: 0 | AX21: 0 | AZ21: 0 | BA21: 0 | BB21: 0 | BD21: 0 | BE21: 0 | BF21: 0 | BH21: 809946.13 | BI21: 809946.1282 | BJ21: 0.001819580095 | BL21: 5816.4 | BM21: 5816.395804 | BN21: 0.004195817024 | BP21: 815762.52 | BQ21: 815762.524 | BR21: -0.003984602867 | BV21: 0 | BX21: 94173.1 | BY21: 94173.102 | BZ21: 0 | CB21: 3759.35 | CC21: 3759.35 | CD21: 0 | CF21: 821771.59 | CH21: 821772 | CI21: 0.007366195233 | CJ21: 833774.43 | CL21: 833774 | CM21: 0.01460605373
A22: 2147 | B22: Weald Community Primary School | D22: Weald Community Primary School | E22: 0 | F22: 1 | H22: 388802.22 | I22: 388802.2186 | J22: 0.001422242669 | L22: 24662.63 | M22: 24662.62916 | N22: 0.0008415402226 | P22: 6018.7 | Q22: 6018.704943 | R22: -0.004942641608 | T22: 33725.03 | U22: 33725.03122 | V22: -0.001219557416 | X22: 6929.14 | Y22: 6929.136766 | Z22: 0.003233565759 | AB22: 132163.37 | AC22: 132163.3716 | AD22: -0.001566865918 | AF22: 29086.93 | AG22: 29086.92805 | AH22: 0.001949210062 | AJ22: 23302.05 | AK22: 23302.05076 | AL22: -0.0007605939827 | AN22: 0 | AO22: 0 | AP22: 0 | AR22: 15220 | AS22: 15220 | AT22: 0 | AV22: 0 | AW22: 0 | AX22: 0 | AZ22: 0 | BA22: 0 | BB22: 0 | BD22: 0 | BE22: 0 | BF22: 0 | BH22: 659910.07 | BI22: 659910.071 | BJ22: -0.001043100259 | BL22: 0 | BM22: 0 | BN22: 0 | BP22: 659910.07 | BQ22: 659910.071 | BR22: -0.001043100259 | BV22: 0 | BX22: 71803.43 | BY22: 71803.42804 | BZ22: 0 | CB22: 2689.04 | CC22: 2689.044375 | CD22: 0 | CF22: 669580.42 | CH22: 669580 | CI22: 0.01465404057 | CJ22: 679395.83 | CL22: 679396 | CM22: 0.01465904573
A23: 2148 | B23: Shoreham Village School | D23: Shoreham Village School | E23: 0 | F23: 1 | H23: 283720.54 | I23: 283720.5379 | J23: 0.002118933888 | L23: 26206.5 | M23: 26206.50188 | N23: -0.001876912058 | P23: 0 | Q23: 0 | R23: 0 | T23: 20753.04 | U23: 20753.03572 | V23: 0.004275092251 | X23: 0 | Y23: 0 | Z23: 0 | AB23: 132163.37 | AC23: 132163.3716 | AD23: -0.001566865918 | AF23: 51576.82 | AG23: 51576.82087 | AH23: -0.0008735656811 | AJ23: 19290.76 | AK23: 19290.76005 | AL23: -4.712440932e-05 | AN23: 0 | AO23: 0 | AP23: 0 | AR23: 14097 | AS23: 14097 | AT23: 0 | AV23: 0 | AW23: 0 | AX23: 0 | AZ23: 0 | BA23: 0 | BB23: 0 | BD23: 0 | BE23: 0 | BF23: 0 | BH23: 547808.03 | BI23: 547808.028 | BJ23: 0.002029558062 | BL23: 0 | BM23: 0 | BN23: 0 | BP23: 547808.03 | BQ23: 547808.028 | BR23: 0.002029558062 | BV23: 0 | BX23: 48632.88 | BY23: 48632.88213 | BZ23: 0 | CB23: 1962.28 | CC23: 1962.275625 | CD23: 0 | CF23: 555813.69 | CH23: 555814 | CI23: 0.0146139918 | CJ23: 563939.44 | CL23: 563939 | CM23: 0.01461955714
A24: 2155 | B24: Slade Primary School and Attached Unit for Children with Hearing Impairment | D24: Slade Primary School and Attached Unit for Children with Hearing Impairment | E24: 0 | F24: 1 | H24: 1460635.36 | I24: 1460635.362 | J24: -0.001684007002 | L24: 103700.06 | M24: 103700.0621 | N24: -0.002117439595 | P24: 39306.08 | Q24: 39306.07555 | R24: 0.00444930949 | T24: 149490.32 | U24: 149490.324 | V24: -0.003975624422 | X24: 0 | Y24: 0 | Z24: 0 | AB24: 132163.37 | AC24: 132163.3716 | AD24: -0.001566865918 | AF24: 0 | AG24: 0 | AH24: 0 | AJ24: 0 | AK24: 0 | AL24: 0 | AN24: 0 | AO24: 0 | AP24: 0 | AR24: 29952 | AS24: 29952 | AT24: 0 | AV24: 0 | AW24: 0 | AX24: 0 | AZ24: 0 | BA24: 0 | BB24: 0 | BD24: 19773.48 | BE24: 19773.47511 | BF24: 0.004894627393 | BH24: 1935020.67 | BI24: 1935020.67 | BJ24: 0 | BL24: 0 | BM24: 0 | BN24: 0 | BP24: 1935020.67 | BQ24: 1935020.67 | BR24: 0 | BV24: 0 | BX24: 284051.8 | BY24: 284051.7974 | BZ24: 0 | CB24: 9736.95 | CC24: 9736.95 | CD24: 0 | CF24: 1944546.01 | CH24: 1944546 | CI24: 0.004922603747 | CJ24: 1972230.24 | CL24: 1972230 | CM24: 0.01423686036
A25: 2156 | B25: Sussex Road Community Primary School | D25: Sussex Road Community Primary School | E25: 0 | F25: 1 | H25: 1453629.92 | I25: 1453629.916 | J25: 0.003695772262 | L25: 72153.92 | M25: 72153.92402 | N25: -0.004023205212 | P25: 20233.22 | Q25: 20233.21924 | R25: 0.000757210928 | T25: 91246.77 | U25: 91246.77442 | V25: -0.004417218923 | X25: 0 | Y25: 0 | Z25: 0 | AB25: 132163.37 | AC25: 132163.3716 | AD25: -0.001566865918 | AF25: 0 | AG25: 0 | AH25: 0 | AJ25: 0 | AK25: 0 | AL25: 0 | AN25: 0 | AO25: 0 | AP25: 0 | AR25: 44544 | AS25: 44544 | AT25: 0 | AV25: 0 | AW25: 0 | AX25: 0 | AZ25: 0 | BA25: 0 | BB25: 0 | BD25: 126504.44 | BE25: 126504.4444 | BF25: -0.004445693368 | BH25: 1940475.65 | BI25: 1940475.65 | BJ25: 0 | BL25: 1013.49 | BM25: 1013.492176 | BN25: -0.002176464992 | BP25: 1941489.14 | BQ25: 1941489.142 | BR25: -0.002176465234 | BV25: 0 | BX25: 254427.88 | BY25: 254427.8845 | BZ25: 0 | CB25: 9690.25 | CC25: 9690.25 | CD25: 0 | CF25: 1950303.14 | CH25: 1950303 | CI25: 0.004539813091 | CJ25: 1959482.36 | CL25: 1959482 | CM25: 0.004706560643
A26: 2161 | B26: Boughton Monchelsea Primary School | D26: Boughton Monchelsea Primary School | E26: 0 | F26: 1 | H26: 735571.76 | I26: 735571.7649 | J26: -0.004876838066 | L26: 66376.69 | M26: 66376.69331 | N26: -0.003309251755 | P26: 3403.3 | Q26: 3403.299111 | R26: 0.0008892959704 | T26: 82842.93 | U26: 82842.9339 | V26: -0.003903650329 | X26: 0 | Y26: 0 | Z26: 0 | AB26: 132163.37 | AC26: 132163.3716 | AD26: -0.001566865918 | AF26: 0 | AG26: 0 | AH26: 0 | AJ26: 0 | AK26: 0 | AL26: 0 | AN26: 0 | AO26: 0 | AP26: 0 | AR26: 22580 | AS26: 22580 | AT26: 0 | AV26: 0 | AW26: 0 | AX26: 0 | AZ26: 0 | BA26: 0 | BB26: 0 | BD26: 0 | BE26: 0 | BF26: 0 | BH26: 1042938.06 | BI26: 1042938.063 | BJ26: -0.002767310129 | BL26: 0 | BM26: 0 | BN26: 0 | BP26: 1042938.06 | BQ26: 1042938.063 | BR26: -0.002767310129 | BV26: 0 | BX26: 152593.53 | BY26: 152593.5299 | BZ26: 0 | CB26: 4903.5 | CC26: 4903.5 | CD26: 0 | CF26: 1058243.43 | CH26: 1058243 | CI26: 0.01467524082 | CJ26: 1073778.39 | CL26: 1073778 | CM26: 0.0146799494
A27: 2163 | B27: East Farleigh Primary School | D27: East Farleigh Primary School | E27: 0 | F27: 1 | H27: 735571.76 | I27: 735571.7649 | J27: -0.004876838066 | L27: 62443.26 | M27: 62443.25963 | N27: 0.0003683333562 | P27: 2707.51 | Q27: 2707.513515 | R27: -0.003514737874 | T27: 63214.48 | U27: 63214.47781 | V27: 0.002192222601 | X27: 0 | Y27: 0 | Z27: 0 | AB27: 132163.37 | AC27: 132163.3716 | AD27: -0.001566865918 | AF27: 0 | AG27: 0 | AH27: 0 | AJ27: 0 | AK27: 0 | AL27: 0 | AN27: 0 | AO27: 0 | AP27: 0 | AR27: 16717 | AS27: 16717 | AT27: 0 | AV27: 0 | AW27: 0 | AX27: 0 | AZ27: 0 | BA27: 0 | BB27: 0 | BD27: 0 | BE27: 0 | BF27: 0 | BH27: 1012817.39 | BI27: 1012817.387 | BJ27: 0.002602114226 | BL27: 0 | BM27: 0 | BN27: 0 | BP27: 1012817.39 | BQ27: 1012817.387 | BR27: 0.002602114226 | BV27: 0 | BX27: 130548.96 | BY27: 130548.9622 | BZ27: 0 | CB27: 4903.5 | CC27: 4903.5 | CD27: 0 | CF27: 1027758.89 | CH27: 1027759 | CI27: 0.01475241518 | CJ27: 1042924.52 | CL27: 1042925 | CM27: 0.01475601928
A28: 2164 | B28: East Peckham Primary School | D28: East Peckham Primary School | E28: 0 | F28: 1 | H28: 630490.08 | I28: 630490.0842 | J28: -0.004180146963 | L28: 67055.21 | M28: 67055.21062 | N28: -0.0006186352985 | P28: 3481.09 | Q28: 3481.088805 | R28: 0.001195337018 | T28: 56156.79 | U28: 56156.78974 | V28: 0.0002637599464 | X28: 188.8 | Y28: 188.8048165 | Z28: -0.004816524093 | AB28: 132163.37 | AC28: 132163.3716 | AD28: -0.001566865918 | AF28: 0 | AG28: 0 | AH28: 0 | AJ28: 0 | AK28: 0 | AL28: 0 | AN28: 0 | AO28: 0 | AP28: 0 | AR28: 20709 | AS28: 20709 | AT28: 0 | AV28: 0 | AW28: 0 | AX28: 0 | AZ28: 0 | BA28: 0 | BB28: 0 | BD28: 0 | BE28: 0 | BF28: 0 | BH28: 910244.35 | BI28: 910244.3497 | BJ28: 0.000276924693 | BL28: 0 | BM28: 0 | BN28: 0 | BP28: 910244.35 | BQ28: 910244.3497 | BR28: 0.000276924693 | BV28: 0 | BX28: 123958.76 | BY28: 123958.7627 | BZ28: 0 | CB28: 4203 | CC28: 4203 | CD28: 0 | CF28: 923587.38 | CH28: 923587 | CI28: 0.01465873453 | CJ28: 937130.56 | CL28: 937131 | CM28: 0.0146636694
A29: 2165 | B29: Headcorn Primary School | D29: Headcorn Primary School | E29: 0 | F29: 1 | H29: 1394083.63 | I29: 1394083.631 | J29: -0.0005761028733 | L29: 166723.5 | M29: 166723.5032 | N29: -0.003216549609 | P29: 8675.89 | Q29: 8675.892811 | R29: -0.002810850809 | T29: 85939.49 | U29: 85939.49008 | V29: -8.04021256e-05 | X29: 1057.31 | Y29: 1057.306973 | Z29: 0.003027465068 | AB29: 132163.37 | AC29: 132163.3716 | AD29: -0.001566865918 | AF29: 0 | AG29: 0 | AH29: 0 | AJ29: 0 | AK29: 0 | AL29: 0 | AN29: 0 | AO29: 0 | AP29: 0 | AR29: 40918 | AS29: 40918 | AT29: 0 | AV29: 0 | AW29: 0 | AX29: 0 | AZ29: 0 | BA29: 0 | BB29: 0 | BD29: 29623.78 | BE29: 29623.78478 | BF29: -0.004776693811 | BH29: 1859184.98 | BI29: 1859184.98 | BJ29: 0 | BL29: 0 | BM29: 0 | BN29: 0 | BP29: 1859184.98 | BQ29: 1859184.98 | BR29: 0 | BV29: 0 | BX29: 256821.36 | BY29: 256821.3595 | BZ29: 0 | CB29: 9293.3 | CC29: 9293.3 | CD29: 0 | CF29: 1868276.31 | CH29: 1868276 | CI29: 0.004889954522 | CJ29: 1883622.94 | CL29: 1883623 | CM29: 0.008214325642
A30: 2166 | B30: Hollingbourne Primary School | D30: Hollingbourne Primary School | E30: 0 | F30: 1 | H30: 329255.93 | I30: 329255.9328 | J30: -0.002849632292 | L30: 31659.22 | M30: 31659.22431 | N30: -0.004312464618 | P30: 657.07 | Q30: 657.0729872 | R30: -0.002987225541 | T30: 37897.26 | U30: 37897.25946 | V30: 0.0005409822188 | X30: 4115.95 | Y30: 4115.945 | Z30: 0.004999774769 | AB30: 132163.37 | AC30: 132163.3716 | AD30: -0.001566865918 | AF30: 37334.35 | AG30: 37334.34658 | AH30: 0.003419551133 | AJ30: 0 | AK30: 0 | AL30: 0 | AN30: 0 | AO30: 0 | AP30: 0 | AR30: 13723 | AS30: 13723 | AT30: 0 | AV30: 0 | AW30: 0 | AX30: 0 | AZ30: 0 | BA30: 0 | BB30: 0 | BD30: 0 | BE30: 0 | BF30: 0 | BH30: 586806.15 | BI30: 586806.1528 | BJ30: -0.002755880239 | BL30: 0 | BM30: 0 | BN30: 0 | BP30: 586806.15 | BQ30: 586806.1528 | BR30: -0.002755880239 | BV30: 0 | BX30: 71307.67 | BY30: 71307.66811 | BZ30: 0 | CB30: 2194.9 | CC30: 2194.9 | CD30: 0 | CF30: 595402.4 | CH30: 595402 | CI30: 0.01464921116 | CJ30: 604127.59 | CL30: 604128 | CM30: 0.01465427415
A31: 2167 | B31: Ightham Primary School | D31: Ightham Primary School | E31: 0 | F31: 1 | H31: 732069.04 | I31: 732069.0422 | J31: -0.002186948317 | L31: 10345.38 | M31: 10345.38187 | N31: -0.001871807031 | P31: 4741.93 | Q31: 4741.930094 | R31: -9.42476172e-05 | T31: 44579.78 | U31: 44579.78052 | V31: -0.0005153620732 | X31: 0 | Y31: 0 | Z31: 0 | AB31: 132163.37 | AC31: 132163.3716 | AD31: -0.001566865918 | AF31: 0 | AG31: 0 | AH31: 0 | AJ31: 0 | AK31: 0 | AL31: 0 | AN31: 0 | AO31: 0 | AP31: 0 | AR31: 21457 | AS31: 21457 | AT31: 0 | AV31: 0 | AW31: 0 | AX31: 0 | AZ31: 0 | BA31: 0 | BB31: 0 | BD31: 30919.08 | BE31: 30919.08376 | BF31: -0.003764769077 | BH31: 976275.59 | BI31: 976275.59 | BJ31: 0 | BL31: 0 | BM31: 0 | BN31: 0 | BP31: 976275.59 | BQ31: 976275.59 | BR31: 0 | BV31: 0 | BX31: 99696.45 | BY31: 99696.45433 | BZ31: 0 | CB31: 4880.15 | CC31: 4880.15 | CD31: 0 | CF31: 981049.68 | CH31: 981050 | CI31: 0.004890104852 | CJ31: 985847.65 | CL31: 985848 | CM31: 0.004890649371
A32: 2168 | B32: Lenham Primary School | D32: Lenham Primary School | E32: 0 | F32: 1 | H32: 728566.32 | I32: 728566.3195 | J32: 0.0005029413151 | L32: 52354.33 | M32: 52354.33479 | N32: -0.004785323836 | P32: 6101.68 | Q32: 6101.683747 | R32: -0.003747499167 | T32: 89234.28 | U32: 89234.27642 | V32: 0.00358009545 | X32: 0 | Y32: 0 | Z32: 0 | AB32: 132163.37 | AC32: 132163.3716 | AD32: -0.001566865918 | AF32: 0 | AG32: 0 | AH32: 0 | AJ32: 0 | AK32: 0 | AL32: 0 | AN32: 0 | AO32: 0 | AP32: 0 | AR32: 18837 | AS32: 18837 | AT32: 0 | AV32: 0 | AW32: 0 | AX32: 0 | AZ32: 0 | BA32: 0 | BB32: 0 | BD32: 0 | BE32: 0 | BF32: 0 | BH32: 1027256.99 | BI32: 1027256.986 | BJ32: 0.00398334791 | BL32: 0 | BM32: 0 | BN32: 0 | BP32: 1027256.99 | BQ32: 1027256.986 | BR32: 0.00398334791 | BV32: 0 | BX32: 149156.24 | BY32: 149156.2412 | BZ32: 0 | CB32: 4856.8 | CC32: 4856.8 | CD32: 0 | CF32: 1042383.29 | CH32: 1042383 | CI32: 0.01472494633 | CJ32: 1057736.48 | CL32: 1057736 | CM32: 0.01472892951
A33: 2169 | B33: Platts Heath Primary School | D33: Platts Heath Primary School | E33: 0 | F33: 1 | H33: 178638.86 | I33: 178638.8572 | J33: 0.002815625019 | L33: 23674.35 | M33: 23674.35395 | N33: -0.003946966463 | P33: 1232.89 | Q33: 1232.885618 | R33: 0.004381681858 | T33: 20515.22 | U33: 20515.21669 | V33: 0.003311186141 | X33: 0 | Y33: 0 | Z33: 0 | AB33: 132163.37 | AC33: 132163.3716 | AD33: -0.001566865918 | AF33: 13756.69 | AG33: 13756.69261 | AH33: -0.002608144852 | AJ33: 0 | AK33: 0 | AL33: 0 | AN33: 0 | AO33: 0 | AP33: 0 | AR33: 2345 | AS33: 2345 | AT33: 0 | AV33: 0 | AW33: 0 | AX33: 0 | AZ33: 0 | BA33: 0 | BB33: 0 | BD33: 0 | BE33: 0 | BF33: 0 | BH33: 372326.38 | BI33: 372326.3776 | BJ33: 0.002386515844 | BL33: 0 | BM33: 0 | BN33: 0 | BP33: 372326.38 | BQ33: 372326.3776 | BR33: 0.002386515844 | BV33: 0 | BX33: 40622.54 | BY33: 40622.53631 | BZ33: 0 | CB33: 1190.85 | CC33: 1190.85 | CD33: 0 | CF33: 377876.1 | CH33: 377876 | CI33: 0.01490553106 | CJ33: 383509.06 | CL33: 383509 | CM33: 0.01490689673
A34: 2171 | B34: Brunswick House Primary School | D34: Brunswick House Primary School | E34: 0 | F34: 1 | H34: 1478148.98 | I34: 1478148.975 | J34: 0.00486654439 | L34: 155203.37 | M34: 155203.3657 | N34: 0.004319860891 | P34: 45315.06 | Q34: 45315.05749 | R34: 0.002512411898 | T34: 171230.41 | U34: 171230.4079 | V34: 0.002080656559 | X34: 0 | Y34: 0 | Z34: 0 | AB34: 132163.37 | AC34: 132163.3716 | AD34: -0.001566865918 | AF34: 0 | AG34: 0 | AH34: 0 | AJ34: 0 | AK34: 0 | AL34: 0 | AN34: 0 | AO34: 0 | AP34: 0 | AR34: 66048 | AS34: 66048 | AT34: 0 | AV34: 0 | AW34: 0 | AX34: 0 | AZ34: 0 | BA34: 0 | BB34: 0 | BD34: 0 | BE34: 0 | BF34: 0 | BH34: 2048109.18 | BI34: 2048109.178 | BJ34: 0.002212607767 | BL34: 0 | BM34: 0 | BN34: 0 | BP34: 2048109.18 | BQ34: 2048109.178 | BR34: 0.002212607767 | BV34: 0 | BX34: 318027.27 | BY34: 318027.2672 | BZ34: 0 | CB34: 9853.7 | CC34: 9853.7 | CD34: 0 | CF34: 2077840.1 | CH34: 2077840 | CI34: 0.01451627801 | CJ34: 2108016.98 | CL34: 2108017 | CM34: 0.01452319647
A35: 2175 | B35: North Borough Junior School | D35: North Borough Junior School | E35: 0 | F35: 1 | H35: 1257477.45 | I35: 1257477.446 | J35: 0.004329595715 | L35: 174693.62 | M35: 174693.6232 | N35: -0.003205756831 | P35: 36551.43 | Q35: 36551.43245 | R35: -0.002448961248 | T35: 105190.36 | U35: 105190.3608 | V35: -0.0008276771405 | X35: 15638.84 | Y35: 15638.84007 | Z35: -7.350717533e-05 | AB35: 132163.37 | AC35: 132163.3716 | AD35: -0.001566865918 | AF35: 0 | AG35: 0 | AH35: 0 | AJ35: 0 | AK35: 0 | AL35: 0 | AN35: 0 | AO35: 0 | AP35: 0 | AR35: 23328 | AS35: 23328 | AT35: 0 | AV35: 0 | AW35: 0 | AX35: 0 | AZ35: 0 | BA35: 0 | BB35: 0 | BD35: 0 | BE35: 0 | BF35: 0 | BH35: 1745043.07 | BI35: 1745043.074 | BJ35: -0.003793172538 | BL35: 0 | BM35: 0 | BN35: 0 | BP35: 1745043.07 | BQ35: 1745043.074 | BR35: -0.003793172538 | BV35: 0 | BX35: 264194.84 | BY35: 264194.8442 | BZ35: 0 | CB35: 8382.65 | CC35: 8382.65 | CD35: 0 | CF35: 1770868.8 | CH35: 1770869 | CI35: 0.01479947779 | CJ35: 1797081.91 | CL35: 1797082 | CM35: 0.01480240095
A36: 2176 | B36: Park Way Primary School | D36: Park Way Primary School | E36: 0 | F36: 1 | H36: 1085844.03 | I36: 1085844.034 | J36: -0.003865808481 | L36: 168601.72 | M36: 168601.7178 | N36: 0.002202403324 | P36: 34226.38 | Q36: 34226.37687 | R36: 0.003133257509 | T36: 132502.2 | U36: 132502.1974 | V36: 0.002621039399 | X36: 3276.89 | Y36: 3276.893952 | Z36: -0.003951516872 | AB36: 132163.37 | AC36: 132163.3716 | AD36: -0.001566865918 | AF36: 0 | AG36: 0 | AH36: 0 | AJ36: 0 | AK36: 0 | AL36: 0 | AN36: 0 | AO36: 0 | AP36: 0 | AR36: 33280 | AS36: 33280 | AT36: 0 | AV36: 0 | AW36: 0 | AX36: 0 | AZ36: 0 | BA36: 0 | BB36: 0 | BD36: 0 | BE36: 0 | BF36: 0 | BH36: 1589894.59 | BI36: 1589894.591 | BJ36: -0.001427490963 | BL36: 0 | BM36: 0 | BN36: 0 | BP36: 1589894.59 | BQ36: 1589894.591 | BR36: -0.001427490963 | BV36: 0 | BX36: 277765.03 | BY36: 277765.0287 | BZ36: 0 | CB36: 7238.5 | CC36: 7238.5 | CD36: 0 | CF36: 1613243.81 | CH36: 1613244 | CI36: 0.01468601673 | CJ36: 1636943.27 | CL36: 1636943 | CM36: 0.01469056311
A37: 2185 | B37: Mereworth Community Primary School | D37: Mereworth Community Primary School | E37: 0 | F37: 1 | H37: 704047.26 | I37: 704047.2607 | J37: -0.0006678306963 | L37: 46606.82 | M37: 46606.81585 | N37: 0.004147755659 | P37: 2665.52 | Q37: 2665.519428 | R37: 0.0005724294806 | T37: 46581.86 | U37: 46581.86085 | V37: -0.0008458248049 | X37: 2775.43 | Y37: 2775.430803 | Z37: -0.0008029041869 | AB37: 132163.37 | AC37: 132163.3716 | AD37: -0.001566865918 | AF37: 0 | AG37: 0 | AH37: 0 | AJ37: 0 | AK37: 0 | AL37: 0 | AN37: 0 | AO37: 0 | AP37: 0 | AR37: 26368 | AS37: 26368 | AT37: 0 | AV37: 0 | AW37: 0 | AX37: 0 | AZ37: 0 | BA37: 0 | BB37: 0 | BD37: 0 | BE37: 0 | BF37: 0 | BH37: 961208.26 | BI37: 961208.2592 | BJ37: 0.0008367594564 | BL37: 0 | BM37: 0 | BN37: 0 | BP37: 961208.26 | BQ37: 961208.2592 | BR37: 0.0008367594564 | BV37: 0 | BX37: 106233.04 | BY37: 106233.0384 | BZ37: 0 | CB37: 4693.35 | CC37: 4693.35 | CD37: 0 | CF37: 975230.86 | CH37: 975231 | CI37: 0.01458851472 | CJ37: 989463.81 | CL37: 989464 | CM37: 0.01459444177
A38: 2187 | B38: Offham Primary School | D38: Offham Primary School | E38: 0 | F38: 1 | H38: 690036.37 | I38: 690036.3699 | J38: 9.172805585e-05 | L38: 29275.93 | M38: 29275.93477 | N38: -0.004771822638 | P38: 2737.62 | Q38: 2737.622733 | R38: -0.00273260921 | T38: 45238.72 | U38: 45238.72053 | V38: -0.0005303046419 | X38: 0 | Y38: 0 | Z38: 0 | AB38: 132163.37 | AC38: 132163.3716 | AD38: -0.001566865918 | AF38: 0 | AG38: 0 | AH38: 0 | AJ38: 0 | AK38: 0 | AL38: 0 | AN38: 0 | AO38: 0 | AP38: 0 | AR38: 23827 | AS38: 23827 | AT38: 0 | AV38: 0 | AW38: 0 | AX38: 0 | AZ38: 0 | BA38: 0 | BB38: 0 | BD38: 544.45 | BE38: 544.4504901 | BF38: -0.0004901257169 | BH38: 923823.47 | BI38: 923823.47 | BJ38: 0 | BL38: 6081.73 | BM38: 6081.731455 | BN38: -0.001455430738 | BP38: 929905.2 | BQ38: 929905.2015 | BR38: -0.001455430756 | BV38: 0 | BX38: 98023.57 | BY38: 98023.57253 | BZ38: 0 | CB38: 4599.95 | CC38: 4599.95 | CD38: 0 | CF38: 936770.8 | CH38: 936771 | CI38: 0.007383116616 | CJ38: 950464.96 | CL38: 950465 | CM38: 0.01461847444
A39: 2188 | B39: Plaxtol Primary School | D39: Plaxtol Primary School | E39: 0 | F39: 1 | H39: 297731.43 | I39: 297731.4286 | J39: 0.001359375077 | L39: 12695.16 | M39: 12695.15719 | N39: 0.002805593469 | P39: 666.42 | Q39: 666.4246586 | R39: -0.004658550346 | T39: 28251.89 | U39: 28251.88739 | V39: 0.00261074361 | X39: 0 | Y39: 0 | Z39: 0 | AB39: 132163.37 | AC39: 132163.3716 | AD39: -0.001566865918 | AF39: 44327.58 | AG39: 44327.57875 | AH39: 0.001246309017 | AJ39: 0 | AK39: 0 | AL39: 0 | AN39: 0 | AO39: 0 | AP39: 0 | AR39: 13847 | AS39: 13847 | AT39: 0 | AV39: 0 | AW39: 0 | AX39: 0 | AZ39: 0 | BA39: 0 | BB39: 0 | BD39: 0 | BE39: 0 | BF39: 0 | BH39: 529682.85 | BI39: 529682.8482 | BJ39: 0.001796604949 | BL39: 0 | BM39: 0 | BN39: 0 | BP39: 529682.85 | BQ39: 529682.8482 | BR39: 0.001796604949 | BV39: 0 | BX39: 49664.03 | BY39: 49664.02529 | BZ39: 0 | CB39: 1984.75 | CC39: 1984.75 | CD39: 0 | CF39: 537420.39 | CH39: 537420 | CI39: 0.01460787681 | CJ39: 545273.99 | CL39: 545274 | CM39: 0.01461351327
A40: 2189 | B40: Ryarsh Primary School | D40: Ryarsh Primary School | E40: 0 | F40: 1 | H40: 728566.32 | I40: 728566.3195 | J40: 0.0005029413151 | L40: 28138.8 | M40: 28138.80117 | N40: -0.001171025822 | P40: 2022.53 | Q40: 2022.532043 | R40: -0.002042932678 | T40: 38955.31 | U40: 38955.31471 | V40: -0.00471352812 | X40: 0 | Y40: 0 | Z40: 0 | AB40: 132163.37 | AC40: 132163.3716 | AD40: -0.001566865918 | AF40: 0 | AG40: 0 | AH40: 0 | AJ40: 0 | AK40: 0 | AL40: 0 | AN40: 0 | AO40: 0 | AP40: 0 | AR40: 21557 | AS40: 21557 | AT40: 0 | AV40: 0 | AW40: 0 | AX40: 0 | AZ40: 0 | BA40: 0 | BB40: 0 | BD40: 20403.74 | BE40: 20403.74101 | BF40: -0.001008588926 | BH40: 971807.08 | BI40: 971807.08 | BJ40: 0 | BL40: 0 | BM40: 0 | BN40: 0 | BP40: 971807.08 | BQ40: 971807.08 | BR40: 0 | BV40: 0 | BX40: 97108.56 | BY40: 97108.56138 | BZ40: 0 | CB40: 4856.8 | CC40: 4856.8 | CD40: 0 | CF40: 976558.33 | CH40: 976558 | CI40: 0.004889087657 | CJ40: 981333.34 | CL40: 981333 | CM40: 0.004889631119
A41: 2190 | B41: Shipbourne School | D41: Shipbourne School | E41: 0 | F41: 1 | H41: 203157.92 | I41: 203157.916 | J41: 0.003986397118 | L41: 12119.89 | M41: 12119.89252 | N41: -0.002519059706 | P41: 2492.63 | Q41: 2492.63149 | R41: -0.001489758682 | T41: 16682.68 | U41: 16682.67559 | V41: 0.00441494137 | X41: 4266.99 | Y41: 4266.988853 | Z41: 0.001146555451 | AB41: 132163.37 | AC41: 132163.3716 | AD41: -0.001566865918 | AF41: 0 | AG41: 0 | AH41: 0 | AJ41: 0 | AK41: 0 | AL41: 0 | AN41: 0 | AO41: 0 | AP41: 0 | AR41: 6737 | AS41: 6737 | AT41: 0 | AV41: 0 | AW41: 0 | AX41: 0 | AZ41: 0 | BA41: 0 | BB41: 0 | BD41: 0 | BE41: 0 | BF41: 0 | BH41: 377620.48 | BI41: 377620.476 | BJ41: 0.003972209641 | BL41: 0 | BM41: 0 | BN41: 0 | BP41: 377620.48 | BQ41: 377620.476 | BR41: 0.003972209641 | BV41: 0 | BX41: 35950.34 | BY41: 35950.34478 | BZ41: 0 | CB41: 1354.3 | CC41: 1354.3 | CD41: 0 | CF41: 383183.73 | CH41: 383184 | CI41: 0.01473239489 | CJ41: 388830.43 | CL41: 388830 | CM41: 0.01473627286
A42: 2192 | B42: Staplehurst School | D42: Staplehurst School | E42: 0 | F42: 1 | H42: 1366061.85 | I42: 1366061.849 | J42: 0.0009430150967 | L42: 106356.61 | M42: 106356.6087 | N42: 0.001320690892 | P42: 10524.22 | Q42: 10524.22197 | R42: -0.00196758576 | T42: 129808.52 | U42: 129808.5211 | V42: -0.00110624067 | X42: 13782.75 | Y42: 13782.75161 | Z42: -0.00160625886 | AB42: 132163.37 | AC42: 132163.3716 | AD42: -0.001566865918 | AF42: 0 | AG42: 0 | AH42: 0 | AJ42: 0 | AK42: 0 | AL42: 0 | AN42: 0 | AO42: 0 | AP42: 0 | AR42: 37632 | AS42: 37632 | AT42: 0 | AV42: 0 | AW42: 0 | AX42: 0 | AZ42: 0 | BA42: 0 | BB42: 0 | BD42: 23021.58 | BE42: 23021.57602 | BF42: 0.003983245195 | BH42: 1819350.9 | BI42: 1819350.9 | BJ42: 0 | BL42: 0 | BM42: 0 | BN42: 0 | BP42: 1819350.9 | BQ42: 1819350.9 | BR42: 0 | BV42: 0 | BX42: 265125.09 | BY42: 265125.0884 | BZ42: 0 | CB42: 9106.5 | CC42: 9106.5 | CD42: 0 | CF42: 1828259.49 | CH42: 1828259 | CI42: 0.004896576026 | CJ42: 1849485.95 | CL42: 1849486 | CM42: 0.01161020091
A43: 2193 | B43: Sutton Valence Primary School | D43: Sutton Valence Primary School | E43: 0 | F43: 1 | H43: 693539.09 | I43: 693539.0926 | J43: -0.002598161693 | L43: 72625.94 | M43: 72625.93606 | N43: 0.003935484594 | P43: 6837.85 | Q43: 6837.853009 | R43: -0.003009159433 | T43: 47942.11 | U43: 47942.11172 | V43: -0.001717365201 | X43: 3889.38 | Y43: 3889.37922 | Z43: 0.0007796036616 | AB43: 132163.37 | AC43: 132163.3716 | AD43: -0.001566865918 | AF43: 0 | AG43: 0 | AH43: 0 | AJ43: 0 | AK43: 0 | AL43: 0 | AN43: 0 | AO43: 0 | AP43: 0 | AR43: 19835 | AS43: 19835 | AT43: 0 | AV43: 0 | AW43: 0 | AX43: 0 | AZ43: 0 | BA43: 0 | BB43: 0 | BD43: 0 | BE43: 0 | BF43: 0 | BH43: 976832.74 | BI43: 976832.7442 | BJ43: -0.004176463932 | BL43: 0 | BM43: 0 | BN43: 0 | BP43: 976832.74 | BQ43: 976832.7442 | BR43: -0.004176463932 | BV43: 0 | BX43: 121001.65 | BY43: 121001.6498 | BZ43: 0 | CB43: 4623.3 | CC43: 4623.3 | CD43: 0 | CF43: 991187.71 | CH43: 991188 | CI43: 0.01469541834 | CJ43: 1005758 | CL43: 1005758 | CM43: 0.01469982916
A44: 2226 | B44: Eastling Primary School | D44: Eastling Primary School | E44: 0 | F44: 1 | H44: 339764.1 | I44: 339764.1009 | J44: -0.0009193014121 | L44: 30956.12 | M44: 30956.12304 | N44: -0.003042596229 | P44: 5821.82 | Q44: 5821.820932 | R44: -0.0009319363753 | T44: 28332.19 | U44: 28332.19 | V44: 3.232842573e-06 | X44: 6778.09 | Y44: 6778.092913 | Z44: -0.002913214977 | AB44: 132163.37 | AC44: 132163.3716 | AD44: -0.001566865918 | AF44: 39582.21 | AG44: 39582.21137 | AH44: -0.001368085286 | AJ44: 0 | AK44: 0 | AL44: 0 | AN44: 0 | AO44: 0 | AP44: 0 | AR44: 12974 | AS44: 12974 | AT44: 0 | AV44: 0 | AW44: 0 | AX44: 0 | AZ44: 0 | BA44: 0 | BB44: 0 | BD44: 0 | BE44: 0 | BF44: 0 | BH44: 596371.91 | BI44: 596371.9107 | BJ44: -0.0007387672085 | BL44: 0 | BM44: 0 | BN44: 0 | BP44: 596371.91 | BQ44: 596371.9107 | BR44: -0.0007387672085 | BV44: 0 | BX44: 64988.51 | BY44: 64988.50745 | BZ44: 0 | CB44: 2264.95 | CC44: 2264.95 | CD44: 0 | CF44: 605122.88 | CH44: 605123 | CI44: 0.01467367779 | CJ44: 614005.11 | CL44: 614005 | CM44: 0.01467839061
A45: 2227 | B45: Ethelbert Road Primary School | D45: Ethelbert Road Primary School | E45: 0 | F45: 1 | H45: 725063.6 | I45: 725063.5968 | J45: 0.003192830947 | L45: 22450.07 | M45: 22450.07271 | N45: -0.002714818067 | P45: 5458.98 | Q45: 5458.980171 | R45: -0.0001709487778 | T45: 45712.6 | U45: 45712.59547 | V45: 0.004533931395 | X45: 0 | Y45: 0 | Z45: 0 | AB45: 132163.37 | AC45: 132163.3716 | AD45: -0.001566865918 | AF45: 0 | AG45: 0 | AH45: 0 | AJ45: 0 | AK45: 0 | AL45: 0 | AN45: 0 | AO45: 0 | AP45: 0 | AR45: 11477 | AS45: 11477 | AT45: 0 | AV45: 0 | AW45: 0 | AX45: 0 | AZ45: 0 | BA45: 0 | BB45: 0 | BD45: 14832.95 | BE45: 14832.95327 | BF45: -0.003274129685 | BH45: 957158.57 | BI45: 957158.57 | BJ45: 0 | BL45: 0 | BM45: 0 | BN45: 0 | BP45: 957158.57 | BQ45: 957158.57 | BR45: 0 | BV45: 0 | BX45: 100348.78 | BY45: 100348.7848 | BZ45: 0 | CB45: 4833.45 | CC45: 4833.45 | CD45: 0 | CF45: 961886.98 | CH45: 961887 | CI45: 0.004940048753 | CJ45: 970460.52 | CL45: 970461 | CM45: 0.00891325091
A46: 2228 | B46: Davington Primary School | D46: Davington Primary School | E46: 0 | F46: 1 | H46: 1460635.36 | I46: 1460635.362 | J46: -0.001684007002 | L46: 218536.66 | M46: 218536.6583 | N46: 0.001665457938 | P46: 10165.36 | Q46: 10165.36437 | R46: -0.004366557881 | T46: 133745.19 | U46: 133745.1882 | V46: 0.001764252898 | X46: 0 | Y46: 0 | Z46: 0 | AB46: 132163.37 | AC46: 132163.3716 | AD46: -0.001566865918 | AF46: 0 | AG46: 0 | AH46: 0 | AJ46: 0 | AK46: 0 | AL46: 0 | AN46: 0 | AO46: 0 | AP46: 0 | AR46: 39424 | AS46: 39424 | AT46: 0 | AV46: 0 | AW46: 0 | AX46: 0 | AZ46: 0 | BA46: 0 | BB46: 0 | BD46: 0 | BE46: 0 | BF46: 0 | BH46: 1994669.94 | BI46: 1994669.944 | BJ46: -0.004187720129 | BL46: 0 | BM46: 0 | BN46: 0 | BP46: 1994669.94 | BQ46: 1994669.944 | BR46: -0.004187720129 | BV46: 0 | BX46: 328384.47 | BY46: 328384.4669 | BZ46: 0 | CB46: 9736.95 | CC46: 9736.95 | CD46: 0 | CF46: 2023998.63 | CH46: 2023999 | CI46: 0.01470352822 | CJ46: 2053767.25 | CL46: 2053767 | CM46: 0.01470782616
A47: 2231 | B47: Lower Halstow Primary School | D47: Lower Halstow Primary School | E47: 0 | F47: 1 | H47: 651506.42 | I47: 651506.4203 | J47: -0.0003194850869 | L47: 52349.73 | M47: 52349.72678 | N47: 0.003222728417 | P47: 3436.74 | Q47: 3436.743724 | R47: -0.003724348809 | T47: 73887.87 | U47: 73887.86957 | V47: 0.0004270144709 | X47: 1737 | Y47: 1737.004312 | Z47: -0.004312021673 | AB47: 132163.37 | AC47: 132163.3716 | AD47: -0.001566865918 | AF47: 0 | AG47: 0 | AH47: 0 | AJ47: 0 | AK47: 0 | AL47: 0 | AN47: 0 | AO47: 0 | AP47: 0 | AR47: 20833 | AS47: 20833 | AT47: 0 | AV47: 0 | AW47: 0 | AX47: 0 | AZ47: 0 | BA47: 0 | BB47: 0 | BD47: 0 | BE47: 0 | BF47: 0 | BH47: 935914.14 | BI47: 935914.1363 | BJ47: 0.003727021278 | BL47: 0 | BM47: 0 | BN47: 0 | BP47: 935914.14 | BQ47: 935914.1363 | BR47: 0.003727021278 | BV47: 0 | BX47: 135217.02 | BY47: 135217.02 | BZ47: 0 | CB47: 4343.1 | CC47: 4343.1 | CD47: 0 | CF47: 949640.35 | CH47: 949640 | CI47: 0.01466610365 | CJ47: 963572.46 | CL47: 963572 | CM47: 0.01467093305
A48: 2239 | B48: Rodmersham School | D48: Rodmersham School | E48: 0 | F48: 1 | H48: 472867.56 | I48: 472867.5631 | J48: -0.003135110193 | L48: 23153.17 | M48: 23153.17398 | N48: -0.003984686446 | P48: 2097.98 | Q48: 2097.977628 | R48: 0.002372189717 | T48: 33417.65 | U48: 33417.64796 | V48: 0.002041214815 | X48: 5569.74 | Y48: 5569.742087 | Z48: -0.002087460816 | AB48: 132163.37 | AC48: 132163.3716 | AD48: -0.001566865918 | AF48: 0 | AG48: 0 | AH48: 0 | AJ48: 0 | AK48: 0 | AL48: 0 | AN48: 0 | AO48: 0 | AP48: 0 | AR48: 5863 | AS48: 5863 | AT48: 0 | AV48: 0 | AW48: 0 | AX48: 0 | AZ48: 9100 | BA48: 9100 | BB48: 0 | BD48: 0 | BE48: 0 | BF48: 0 | BH48: 684232.48 | BI48: 684232.4764 | BJ48: 0.003639281145 | BL48: 0 | BM48: 0 | BN48: 0 | BP48: 684232.48 | BQ48: 684232.4764 | BR48: 0.003639281145 | BV48: 0 | BX48: 74131.44 | BY48: 74131.43993 | BZ48: 0 | CB48: 3152.25 | CC48: 3152.25 | CD48: 0 | CF48: 694271.52 | CH48: 694272 | CI48: 0.01467197771 | CJ48: 704461.15 | CL48: 704461 | CM48: 0.01467672187
A49: 2245 | B49: Rose Street Primary School | D49: Rose Street Primary School | E49: 0 | F49: 1 | H49: 1341542.79 | I49: 1341542.79 | J49: -0.0002277570311 | L49: 514635.71 | M49: 514635.712 | N49: -0.001998969004 | P49: 12344.97 | Q49: 12344.97234 | R49: -0.002335054858 | T49: 156450.08 | U49: 156450.0837 | V49: -0.00369795697 | X49: 12291.19 | Y49: 12291.19356 | Z49: -0.003555718522 | AB49: 132163.37 | AC49: 132163.3716 | AD49: -0.001566865918 | AF49: 0 | AG49: 0 | AH49: 0 | AJ49: 0 | AK49: 0 | AL49: 0 | AN49: 0 | AO49: 0 | AP49: 0 | AR49: 79872 | AS49: 79872 | AT49: 0 | AV49: 0 | AW49: 0 | AX49: 0 | AZ49: 0 | BA49: 0 | BB49: 0 | BD49: 0 | BE49: 0 | BF49: 0 | BH49: 2249300.12 | BI49: 2249300.123 | BJ49: -0.003382322378 | BL49: 0 | BM49: 0 | BN49: 0 | BP49: 2249300.12 | BQ49: 2249300.123 | BR49: -0.003382322378 | BV49: 0 | BX49: 515136.2 | BY49: 515136.2033 | BZ49: 0 | CB49: 8943.05 | CC49: 8943.05 | CD49: 0 | CF49: 2281841.55 | CH49: 2281842 | CI49: 0.01446735644 | CJ49: 2314871.09 | CL49: 2314871 | CM49: 0.01447494897
A50: 2254 | B50: Canterbury Road Primary School | D50: Canterbury Road Primary School | E50: 0 | F50: 1 | H50: 728566.32 | I50: 728566.3195 | J50: 0.0005029413151 | L50: 138304.44 | M50: 138304.4449 | N50: -0.004895995953 | P50: 14915.23 | Q50: 14915.22694 | R50: 0.003061668649 | T50: 92140.28 | U50: 92140.28474 | V50: -0.004741111581 | X50: 0 | Y50: 0 | Z50: 0 | AB50: 132163.37 | AC50: 132163.3716 | AD50: -0.001566865918 | AF50: 0 | AG50: 0 | AH50: 0 | AJ50: 0 | AK50: 0 | AL50: 0 | AN50: 0 | AO50: 0 | AP50: 0 | AR50: 29952 | AS50: 29952 | AT50: 0 | AV50: 0 | AW50: 0 | AX50: 0 | AZ50: 0 | BA50: 0 | BB50: 0 | BD50: 0 | BE50: 0 | BF50: 0 | BH50: 1136041.65 | BI50: 1136041.648 | BJ50: 0.002360636368 | BL50: 0 | BM50: 0 | BN50: 0 | BP50: 1136041.65 | BQ50: 1136041.648 | BR50: 0.002360636368 | BV50: 0 | BX50: 203795.03 | BY50: 203795.0281 | BZ50: 0 | CB50: 4856.8 | CC50: 4856.8 | CD50: 0 | CF50: 1152632.99 | CH50: 1152633 | CI50: 0.01460451947 | CJ50: 1169473.21 | CL50: 1169473 | CM50: 0.01461021864
A51: 2258 | B51: Blean Primary School | D51: Blean Primary School | E51: 0 | F51: 1 | H51: 1516678.92 | I51: 1516678.925 | J51: -0.004722242476 | L51: 69975.53 | M51: 69975.53473 | N51: -0.004732052257 | P51: 26266.82 | Q51: 26266.82156 | R51: -0.001556900672 | T51: 104267.65 | U51: 104267.6498 | V51: 0.0002471035405 | X51: 0 | Y51: 0 | Z51: 0 | AB51: 132163.37 | AC51: 132163.3716 | AD51: -0.001566865918 | AF51: 0 | AG51: 0 | AH51: 0 | AJ51: 0 | AK51: 0 | AL51: 0 | AN51: 0 | AO51: 0 | AP51: 0 | AR51: 37632 | AS51: 37632 | AT51: 0 | AV51: 0 | AW51: 0 | AX51: 0 | AZ51: 0 | BA51: 0 | BB51: 0 | BD51: 128812.53 | BE51: 128812.5277 | BF51: 0.002330957621 | BH51: 2015796.83 | BI51: 2015796.83 | BJ51: 0 | BL51: 0 | BM51: 0 | BN51: 0 | BP51: 2015796.83 | BQ51: 2015796.83 | BR51: 0 | BV51: 0 | BX51: 272331.35 | BY51: 272331.3474 | BZ51: 0 | CB51: 10110.55 | CC51: 10110.55 | CD51: 0 | CF51: 2025687.65 | CH51: 2025688 | CI51: 0.004906655201 | CJ51: 2035627.93 | CL51: 2035628 | CM51: 0.004907113888
A52: 2263 | B52: Herne Bay Infant School | D52: Herne Bay Infant School | E52: 0 | F52: 1 | H52: 928221.51 | I52: 928221.5128 | J52: -0.002820771886 | L52: 187418.28 | M52: 187418.2812 | N52: -0.001152745652 | P52: 11166.06 | Q52: 11166.06232 | R52: -0.002320357537 | T52: 133603.6 | U52: 133603.6049 | V52: -0.004937296326 | X52: 0 | Y52: 0 | Z52: 0 | AB52: 132163.37 | AC52: 132163.3716 | AD52: -0.001566865918 | AF52: 0 | AG52: 0 | AH52: 0 | AJ52: 0 | AK52: 0 | AL52: 0 | AN52: 0 | AO52: 0 | AP52: 0 | AR52: 15968 | AS52: 15968 | AT52: 0 | AV52: 0 | AW52: 0 | AX52: 0 | AZ52: 0 | BA52: 0 | BB52: 0 | BD52: 0 | BE52: 0 | BF52: 0 | BH52: 1408540.83 | BI52: 1408540.833 | BJ52: -0.002798037138 | BL52: 0 | BM52: 0 | BN52: 0 | BP52: 1408540.83 | BQ52: 1408540.833 | BR52: -0.002798037138 | BV52: 0 | BX52: 276803.7 | BY52: 276803.6997 | BZ52: 0 | CB52: 6187.75 | CC52: 6187.75 | CD52: 0 | CF52: 1429429.43 | CH52: 1429429 | CI52: 0.01482995503 | CJ52: 1450631.35 | CL52: 1450631 | CM52: 0.01483243562
A53: 2265 | B53: Hoath Primary School | D53: Hoath Primary School | E53: 0 | F53: 1 | H53: 364283.16 | I53: 364283.1597 | J53: 0.0002514706575 | L53: 34776.47 | M53: 34776.4705 | N53: -0.0005019509554 | P53: 677.96 | Q53: 677.9648608 | R53: -0.004860833242 | T53: 46521.73 | U53: 46521.729 | V53: 0.0009950022068 | X53: 1661.48 | Y53: 1661.482385 | Z53: -0.002385412026 | AB53: 132163.37 | AC53: 132163.3716 | AD53: -0.001566865918 | AF53: 0 | AG53: 0 | AH53: 0 | AJ53: 0 | AK53: 0 | AL53: 0 | AN53: 0 | AO53: 0 | AP53: 0 | AR53: 14346 | AS53: 14346 | AT53: 0 | AV53: 0 | AW53: 0 | AX53: 0 | AZ53: 0 | BA53: 0 | BB53: 0 | BD53: 0 | BE53: 0 | BF53: 0 | BH53: 594430.18 | BI53: 594430.1781 | BJ53: 0.001931410865 | BL53: 0 | BM53: 0 | BN53: 0 | BP53: 594430.18 | BQ53: 594430.1781 | BR53: 0.001931410865 | BV53: 0 | BX53: 83496.62 | BY53: 83496.61526 | BZ53: 0 | CB53: 2428.4 | CC53: 2428.4 | CD53: 0 | CF53: 603131.44 | CH53: 603131 | CI53: 0.0146379882 | CJ53: 611963.22 | CL53: 611963 | CM53: 0.01464320945
A54: 2268 | B54: Westmeads Community Infant School | D54: Westmeads Community Infant School | E54: 0 | F54: 1 | H54: 500889.34 | I54: 500889.3447 | J54: -0.004654227814 | L54: 40086.61 | M54: 40086.60597 | N54: 0.004033308818 | P54: 6842.55 | Q54: 6842.552564 | R54: -0.00256449219 | T54: 49007.65 | U54: 49007.65447 | V54: -0.004469974156 | X54: 0 | Y54: 0 | Z54: 0 | AB54: 132163.37 | AC54: 132163.3716 | AD54: -0.001566865918 | AF54: 0 | AG54: 0 | AH54: 0 | AJ54: 0 | AK54: 0 | AL54: 0 | AN54: 0 | AO54: 0 | AP54: 0 | AR54: 19711 | AS54: 19711 | AT54: 0 | AV54: 0 | AW54: 0 | AX54: 0 | AZ54: 0 | BA54: 0 | BB54: 0 | BD54: 0 | BE54: 0 | BF54: 0 | BH54: 748700.53 | BI54: 748700.5292 | BJ54: 0.0007777487626 | BL54: 0 | BM54: 0 | BN54: 0 | BP54: 748700.53 | BQ54: 748700.5292 | BR54: 0.0007777487626 | BV54: 0 | BX54: 92668.57 | BY54: 92668.57162 | BZ54: 0 | CB54: 3339.05 | CC54: 3339.05 | CD54: 0 | CF54: 759635.37 | CH54: 759635 | CI54: 0.01460509289 | CJ54: 770734.24 | CL54: 770734 | CM54: 0.01461078622
A55: 2269 | B55: Whitstable Junior School | D55: Whitstable Junior School | E55: 0 | F55: 1 | H55: 767096.27 | I55: 767096.2691 | J55: 0.0009141545743 | L55: 109172.45 | M55: 109172.4517 | N55: -0.001721379958 | P55: 3513.17 | Q55: 3513.172572 | R55: -0.002572447903 | T55: 70963.56 | U55: 70963.55533 | V55: 0.004668029986 | X55: 0 | Y55: 0 | Z55: 0 | AB55: 132163.37 | AC55: 132163.3716 | AD55: -0.001566865918 | AF55: 0 | AG55: 0 | AH55: 0 | AJ55: 0 | AK55: 0 | AL55: 0 | AN55: 0 | AO55: 0 | AP55: 0 | AR55: 18837 | AS55: 18837 | AT55: 0 | AV55: 0 | AW55: 0 | AX55: 0 | AZ55: 0 | BA55: 0 | BB55: 0 | BD55: 0 | BE55: 0 | BF55: 0 | BH55: 1101745.82 | BI55: 1101745.82 | BJ55: -0.000278509222 | BL55: 0 | BM55: 0 | BN55: 0 | BP55: 1101745.82 | BQ55: 1101745.82 | BR55: -0.000278509222 | BV55: 0 | BX55: 163815.11 | BY55: 163815.109 | BZ55: 0 | CB55: 5113.65 | CC55: 5113.65 | CD55: 0 | CF55: 1117989.45 | CH55: 1117989 | CI55: 0.01474353651 | CJ55: 1134476.74 | CL55: 1134477 | CM55: 0.01474726796
A56: 2270 | B56: Aldington Primary School | D56: Aldington Primary School | E56: 0 | F56: 1 | H56: 672522.76 | I56: 672522.7565 | J56: 0.003541176673 | L56: 29604.01 | M56: 29604.00522 | N56: 0.004784073637 | P56: 1358.47 | Q56: 1358.47368 | R56: -0.003679868481 | T56: 63533.99 | U56: 63533.99346 | V56: -0.003461081396 | X56: 0 | Y56: 0 | Z56: 0 | AB56: 132163.37 | AC56: 132163.3716 | AD56: -0.001566865918 | AF56: 0 | AG56: 0 | AH56: 0 | AJ56: 0 | AK56: 0 | AL56: 0 | AN56: 0 | AO56: 0 | AP56: 0 | AR56: 29952 | AS56: 29952 | AT56: 0 | AV56: 0 | AW56: 0 | AX56: 0 | AZ56: 0 | BA56: 0 | BB56: 0 | BD56: 0 | BE56: 0 | BF56: 0 | BH56: 929134.6 | BI56: 929134.6004 | BJ56: -0.000382565544 | BL56: 0 | BM56: 0 | BN56: 0 | BP56: 929134.6 | BQ56: 929134.6004 | BR56: -0.000382565544 | BV56: 0 | BX56: 111137.1 | BY56: 111137.0962 | BZ56: 0 | CB56: 4483.2 | CC56: 4483.2 | CD56: 0 | CF56: 942622.34 | CH56: 942622 | CI56: 0.01451645393 | CJ56: 956312.39 | CL56: 956312 | CM56: 0.0145233668
A57: 2275 | B57: Victoria Road Primary School | D57: Victoria Road Primary School | E57: 0 | F57: 1 | H57: 732069.04 | I57: 732069.0422 | J57: -0.002186948317 | L57: 86628.96 | M57: 86628.95996 | N57: 4.328083014e-05 | P57: 17515.03 | Q57: 17515.03386 | R57: -0.003856054263 | T57: 65396.59 | U57: 65396.59369 | V57: -0.003693919789 | X57: 0 | Y57: 0 | Z57: 0 | AB57: 132163.37 | AC57: 132163.3716 | AD57: -0.001566865918 | AF57: 0 | AG57: 0 | AH57: 0 | AJ57: 0 | AK57: 0 | AL57: 0 | AN57: 0 | AO57: 0 | AP57: 0 | AR57: 15095 | AS57: 15095 | AT57: 0 | AV57: 0 | AW57: 0 | AX57: 0 | AZ57: 0 | BA57: 0 | BB57: 0 | BD57: 0 | BE57: 0 | BF57: 0 | BH57: 1048868 | BI57: 1048868.001 | BJ57: -0.001260507619 | BL57: 0 | BM57: 0 | BN57: 0 | BP57: 1048868 | BQ57: 1048868.001 | BR57: -0.001260507619 | BV57: 0 | BX57: 145101.14 | BY57: 145101.137 | BZ57: 0 | CB57: 4880.15 | CC57: 4880.15 | CD57: 0 | CF57: 1064374.6 | CH57: 1064375 | CI57: 0.01478412796 | CJ57: 1080113.79 | CL57: 1080114 | CM57: 0.01478726569
A58: 2276 | B58: Willesborough Infant School | D58: Willesborough Infant School | E58: 0 | F58: 1 | H58: 1222450.22 | I58: 1222450.219 | J58: 0.00122849294 | L58: 83256.04 | M58: 83256.04058 | N58: -0.0005781896034 | P58: 71165.69 | Q58: 71165.68996 | R58: 4.358442675e-05 | T58: 109037.45 | U58: 109037.4519 | V58: -0.001869406624 | X58: 0 | Y58: 0 | Z58: 0 | AB58: 132163.37 | AC58: 132163.3716 | AD58: -0.001566865918 | AF58: 0 | AG58: 0 | AH58: 0 | AJ58: 0 | AK58: 0 | AL58: 0 | AN58: 0 | AO58: 0 | AP58: 0 | AR58: 23079 | AS58: 23079 | AT58: 0 | AV58: 0 | AW58: 0 | AX58: 0 | AZ58: 0 | BA58: 0 | BB58: 0 | BD58: 0 | BE58: 0 | BF58: 0 | BH58: 1641151.77 | BI58: 1641151.773 | BJ58: -0.002742384793 | BL58: 0 | BM58: 0 | BN58: 0 | BP58: 1641151.77 | BQ58: 1641151.773 | BR58: -0.002742384793 | BV58: 0 | BX58: 213935.64 | BY58: 213935.6379 | BZ58: 0 | CB58: 8149.15 | CC58: 8149.15 | CD58: 0 | CF58: 1665422.86 | CH58: 1665423 | CI58: 0.01478905709 | CJ58: 1690058.02 | CL58: 1690058 | CM58: 0.01479213513
A59: 2278 | B59: Bethersden Primary School | D59: Bethersden Primary School | E59: 0 | F59: 1 | H59: 420326.72 | I59: 420326.7228 | J59: -0.002786764642 | L59: 45406.58 | M59: 45406.57502 | N59: 0.004984374704 | P59: 1351.88 | Q59: 1351.879147 | R59: 0.0008525580668 | T59: 30229.59 | U59: 30229.5947 | V59: -0.004704501094 | X59: 1699.24 | Y59: 1699.243349 | Z59: -0.003348716848 | AB59: 132163.37 | AC59: 132163.3716 | AD59: -0.001566865918 | AF59: 22339.96 | AG59: 22339.9602 | AH59: -0.0002039572246 | AJ59: 0 | AK59: 0 | AL59: 0 | AN59: 0 | AO59: 0 | AP59: 0 | AR59: 10978 | AS59: 10978 | AT59: 0 | AV59: 0 | AW59: 0 | AX59: 0 | AZ59: 0 | BA59: 0 | BB59: 0 | BD59: 0 | BE59: 0 | BF59: 0 | BH59: 664495.35 | BI59: 664495.3468 | BJ59: 0.00322612701 | BL59: 0 | BM59: 0 | BN59: 0 | BP59: 664495.35 | BQ59: 664495.3468 | BR59: 0.00322612701 | BV59: 0 | BX59: 73426.66 | BY59: 73426.66169 | BZ59: 0 | CB59: 2802 | CC59: 2802 | CD59: 0 | CF59: 674298.11 | CH59: 674298 | CI59: 0.01475219243 | CJ59: 684247.91 | CL59: 684248 | CM59: 0.01475578806
A60: 2279 | B60: Brook Community Primary School | D60: Brook Community Primary School | E60: 0 | F60: 1 | H60: 262704.2 | I60: 262704.2017 | J60: -0.001741727872 | L60: 18654.31 | M60: 18654.30922 | N60: 0.0007840517173 | P60: 1919.72 | Q60: 1919.718091 | R60: 0.001909193208 | T60: 13953.86 | U60: 13953.85597 | V60: 0.004028766172 | X60: 9912.25 | Y60: 9912.252868 | Z60: -0.002867514942 | AB60: 132163.37 | AC60: 132163.3716 | AD60: -0.001566865918 | AF60: 56074.8 | AG60: 56074.79944 | AH60: 0.0005618791693 | AJ60: 0 | AK60: 0 | AL60: 0 | AN60: 0 | AO60: 0 | AP60: 0 | AR60: 8608 | AS60: 8608 | AT60: 0 | AV60: 0 | AW60: 0 | AX60: 0 | AZ60: 0 | BA60: 0 | BB60: 0 | BD60: 0 | BE60: 0 | BF60: 0 | BH60: 503990.51 | BI60: 503990.5089 | BJ60: 0.001107781485 | BL60: 0 | BM60: 0 | BN60: 0 | BP60: 503990.51 | BQ60: 503990.5089 | BR60: 0.001107781485 | BV60: 0 | BX60: 44050.03 | BY60: 44050.03208 | BZ60: 0 | CB60: 1751.25 | CC60: 1751.25 | CD60: 0 | CF60: 511421.25 | CH60: 511421 | CI60: 0.01474381159 | CJ60: 518963.45 | CL60: 518963 | CM60: 0.01474752956
A61: 2280 | B61: Challock Primary School | D61: Challock Primary School | E61: 0 | F61: 1 | H61: 735571.76 | I61: 735571.7649 | J61: -0.004876838066 | L61: 37687.21 | M61: 37687.21142 | N61: -0.001423364149 | P61: 2707.51 | Q61: 2707.513515 | R61: -0.003514737874 | T61: 49941.97 | U61: 49941.97237 | V61: -0.002373687392 | X61: 0 | Y61: 0 | Z61: 0 | AB61: 132163.37 | AC61: 132163.3716 | AD61: -0.001566865918 | AF61: 0 | AG61: 0 | AH61: 0 | AJ61: 0 | AK61: 0 | AL61: 0 | AN61: 0 | AO61: 0 | AP61: 0 | AR61: 19711 | AS61: 19711 | AT61: 0 | AV61: 0 | AW61: 0 | AX61: 0 | AZ61: 0 | BA61: 0 | BB61: 0 | BD61: 1315.27 | BE61: 1315.266245 | BF61: 0.003755493304 | BH61: 979098.1 | BI61: 979098.1 | BJ61: 0 | BL61: 0 | BM61: 0 | BN61: 0 | BP61: 979098.1 | BQ61: 979098.1 | BR61: 0 | BV61: 0 | BX61: 106584.04 | BY61: 106584.0424 | BZ61: 0 | CB61: 4903.5 | CC61: 4903.5 | CD61: 0 | CF61: 992153.91 | CH61: 992154 | CI61: 0.01333452695 | CJ61: 1006740.55 | CL61: 1006741 | CM61: 0.01470199316
A62: 2282 | B62: Great Chart Primary School | D62: Great Chart Primary School | E62: 0 | F62: 1 | H62: 1471143.53 | I62: 1471143.53 | J62: 0.0002463238779 | L62: 116331.3 | M62: 116331.301 | N62: -0.001014585054 | P62: 13689.68 | Q62: 13689.67507 | R62: 0.004925482635 | T62: 86965.55 | U62: 86965.55188 | V62: -0.001876714159 | X62: 0 | Y62: 0 | Z62: 0 | AB62: 132163.37 | AC62: 132163.3716 | AD62: -0.001566865918 | AF62: 0 | AG62: 0 | AH62: 0 | AJ62: 0 | AK62: 0 | AL62: 0 | AN62: 0 | AO62: 0 | AP62: 0 | AR62: 38400 | AS62: 38400 | AT62: 0 | AV62: 0 | AW62: 0 | AX62: 0 | AZ62: 0 | BA62: 0 | BB62: 0 | BD62: 98480.77 | BE62: 98480.77071 | BF62: -0.0007136415079 | BH62: 1957174.2 | BI62: 1957174.2 | BJ62: 0 | BL62: 0 | BM62: 0 | BN62: 0 | BP62: 1957174.2 | BQ62: 1957174.2 | BR62: 0 | BV62: 0 | BX62: 257655.31 | BY62: 257655.3074 | BZ62: 0 | CB62: 9807 | CC62: 9807 | CD62: 0 | CF62: 1966768.07 | CH62: 1966768 | CI62: 0.00490189887 | CJ62: 1976409.91 | CL62: 1976410 | CM62: 0.004902377737
A63: 2285 | B63: Mersham Primary School | D63: Mersham Primary School | E63: 0 | F63: 1 | H63: 598965.58 | I63: 598965.58 | J63: 2.886040602e-05 | L63: 47152.04 | M63: 47152.03621 | N63: 0.003789946306 | P63: 6820.76 | Q63: 6820.758377 | R63: 0.001623363462 | T63: 39951.72 | U63: 39951.72345 | V63: -0.003450488432 | X63: 2586.63 | Y63: 2586.625986 | Z63: 0.004013619909 | AB63: 132163.37 | AC63: 132163.3716 | AD63: -0.001566865918 | AF63: 0 | AG63: 0 | AH63: 0 | AJ63: 0 | AK63: 0 | AL63: 0 | AN63: 0 | AO63: 0 | AP63: 0 | AR63: 7859 | AS63: 7859 | AT63: 0 | AV63: 0 | AW63: 0 | AX63: 0 | AZ63: 0 | BA63: 0 | BB63: 0 | BD63: 0 | BE63: 0 | BF63: 0 | BH63: 835499.1 | BI63: 835499.0956 | BJ63: 0.004438435775 | BL63: 0 | BM63: 0 | BN63: 0 | BP63: 835499.1 | BQ63: 835499.0956 | BR63: 0.004438435775 | BV63: 0 | BX63: 94935.6 | BY63: 94935.59979 | BZ63: 0 | CB63: 3992.85 | CC63: 3992.85 | CD63: 0 | CF63: 847913.7 | CH63: 847914 | CI63: 0.01485890829 | CJ63: 860514.52 | CL63: 860515 | CM63: 0.01486096993
A64: 2289 | B64: Smeeth Community Primary School | D64: Smeeth Community Primary School | E64: 0 | F64: 1 | H64: 402813.11 | I64: 402813.1093 | J64: 0.0006626839167 | L64: 23025.82 | M64: 23025.81602 | N64: 0.003984055675 | P64: 0 | Q64: 0 | R64: 0 | T64: 23033.36 | U64: 23033.35701 | V64: 0.00298777398 | X64: 94.4 | Y64: 94.40240826 | Z64: -0.002408262047 | AB64: 132163.37 | AC64: 132163.3716 | AD64: -0.001566865918 | AF64: 0 | AG64: 0 | AH64: 0 | AJ64: 0 | AK64: 0 | AL64: 0 | AN64: 0 | AO64: 0 | AP64: 0 | AR64: 14845 | AS64: 14845 | AT64: 0 | AV64: 0 | AW64: 0 | AX64: 0 | AZ64: 0 | BA64: 0 | BB64: 0 | BD64: 0 | BE64: 0 | BF64: 0 | BH64: 595975.06 | BI64: 595975.0563 | BJ64: 0.003659385722 | BL64: 0 | BM64: 0 | BN64: 0 | BP64: 595975.06 | BQ64: 595975.0563 | BR64: 0.003659385722 | BV64: 0 | BX64: 54298.79 | BY64: 54298.78631 | BZ64: 0 | CB64: 2685.25 | CC64: 2685.25 | CD64: 0 | CF64: 604692.01 | CH64: 604692 | CI64: 0.01462637331 | CJ64: 613539.71 | CL64: 613540 | CM64: 0.01463174617
A65: 2298 | B65: Hawkinge Primary School | D65: Hawkinge Primary School | E65: 0 | F65: 1 | H65: 1373067.29 | I65: 1373067.294 | J65: -0.0044367644 | L65: 137547.26 | M65: 137547.2589 | N65: 0.001086939214 | P65: 6630.65 | Q65: 6630.645342 | R65: 0.004657784793 | T65: 134689.82 | U65: 134689.822 | V65: -0.001983043388 | X65: 0 | Y65: 0 | Z65: 0 | AB65: 132163.37 | AC65: 132163.3716 | AD65: -0.001566865918 | AF65: 0 | AG65: 0 | AH65: 0 | AJ65: 0 | AK65: 0 | AL65: 0 | AN65: 0 | AO65: 0 | AP65: 0 | AR65: 8243 | AS65: 8243 | AT65: 0 | AV65: 0 | AW65: 0 | AX65: 0 | AZ65: 0 | BA65: 0 | BB65: 0 | BD65: 6757.53 | BE65: 6757.527758 | BF65: 0.002241949552 | BH65: 1799098.92 | BI65: 1799098.92 | BJ65: 0 | BL65: 0 | BM65: 0 | BN65: 0 | BP65: 1799098.92 | BQ65: 1799098.92 | BR65: 0 | BV65: 0 | BX65: 277572.4 | BY65: 277572.4015 | BZ65: 0 | CB65: 9153.2 | CC65: 9153.2 | CD65: 0 | CF65: 1819102.87 | CH65: 1819103 | CI65: 0.01111887166 | CJ65: 1846265.77 | CL65: 1846266 | CM65: 0.01493203075
A66: 2300 | B66: Sellindge Primary School | D66: Sellindge Primary School | E66: 0 | F66: =IF(E66=D66,0,1) -> 1 | H66: 605971.03 | I66: 605971.0254 | J66: =H66-I66 -> 0.004649081035 | L66: 44836.23 | M66: 44836.22713 | N66: =L66-M66 -> 0.002867624658 | P66: 6970.24 | Q66: 6970.235685 | R66: =P66-Q66 -> 0.004314737313 | T66: 44043.24 | U66: 44043.24272 | V66: =T66-U66 -> -0.002718470249 | X66: 6249.44 | Y66: 6249.439427 | Z66: =X66-Y66 -> 0.0005730524863 | AB66: 132163.37 | AC66: 132163.3716 | AD66: =AB66-AC66 -> -0.001566865918 | AF66: 0 | AG66: 0 | AH66: =AF66-AG66 -> 0 | AJ66: 0 | AK66: 0 | AL66: =AJ66-AK66 -> 0 | AN66: 0 | AO66: 0 | AP66: =AN66-AO66 -> 0 | AR66: 20334 | AS66: 20334 | AT66: =AR66-AS66 -> 0 | AV66: 0 | AW66: 0 | AX66: =AV66-AW66 -> 0 | AZ66: 0 | BA66: 0 | BB66: =AZ66-BA66 -> 0 | BD66: 0 | BE66: 0 | BF66: =BD66-BE66 -> 0 | BH66: 860567.54 | BI66: 860567.5419 | BJ66: =BH66-BI66 -> -0.001880840748 | BL66: 0 | BM66: 0 | BN66: =BL66-BM66 -> 0 | BP66: 860567.54 | BQ66: 860567.5419 | BR66: =BP66-BQ66 -> -0.001880840748 | BV66: =BT66-BU66 -> 0 | BX66: 98971.13 | BY66: 98971.12663 | BZ66: =ROUND(BX66-BY66,0) -> 0 | CB66: 4039.55 | CC66: 4039.55 | CD66: 0 | CF66: 873171.05 | CH66: =ROUND(CF66-CG66,0) -> 873171 | CI66: 0.01464557691 | CJ66: 885963.6 | CL66: =ROUND(CJ66-CK66,0) -> 885964 | CM66: 0.01465068041
A67: 2312 | B67: River Primary School | D67: River Primary School | E67: 0 | F67: 1 | H67: 1439619.03 | I67: 1439619.026 | J67: 0.004455331247 | L67: 163621.01 | M67: 163621.0074 | N67: 0.0025966455 | P67: 6793.58 | Q67: 6793.577867 | R67: 0.002133350012 | T67: 133832.78 | U67: 133832.7791 | V67: 0.000881260552 | X67: 0 | Y67: 0 | Z67: 0 | AB67: 132163.37 | AC67: 132163.3716 | AD67: -0.001566865918 | AF67: 0 | AG67: 0 | AH67: 0 | AJ67: 0 | AK67: 0 | AL67: 0 | AN67: 0 | AO67: 0 | AP67: 0 | AR67: 40960 | AS67: 40960 | AT67: 0 | AV67: 0 | AW67: 0 | AX67: 0 | AZ67: 0 | BA67: 0 | BB67: 0 | BD67: 1627.85 | BE67: 1627.8485 | BF67: 0.00150027856 | BH67: 1918617.61 | BI67: 1918617.61 | BJ67: 0 | BL67: 0 | BM67: 0 | BN67: 0 | BP67: 1918617.61 | BQ67: 1918617.61 | BR67: 0 | BV67: 0 | BX67: 293727.76 | BY67: 293727.7635 | BZ67: 0 | CB67: 9596.85 | CC67: 9596.85 | CD67: =IF(E67="Recoupment Academy",0,ROUND(CB67-CC67,0)) -> 0 | CF67: 1945130.21 | CH67: 1945130 | CI67: 0.01381859515 | CJ67: 1973692.76 | CL67: 1973693 | CM67: 0.01468413264
A68: 2318 | B68: Langdon Primary School | D68: Langdon Primary School | E68: 0 | F68: 1 | H68: 308239.6 | I68: 308239.5967 | J68: 0.003289705899 | L68: 30618.12 | M68: 30618.12217 | N68: -0.002171929376 | P68: 2687.16 | Q68: 2687.15627 | R68: 0.003729733837 | T68: 35196.99 | U68: 35196.9939 | V68: -0.003896421622 | X68: 4455.79 | Y68: 4455.79367 | Z68: -0.003669968653 | AB68: 132163.37 | AC68: 132163.3716 | AD68: -0.001566865918 | AF68: 46329.18 | AG68: 46329.17921 | AH68: 0.0007850819893 | AJ68: 0 | AK68: 0 | AL68: 0 | AN68: 0 | AO68: 0 | AP68: 0 | AR68: 4990 | AS68: 4990 | AT68: 0 | AV68: 0 | AW68: 0 | AX68: 0 | AZ68: 0 | BA68: 0 | BB68: 0 | BD68: 0 | BE68: 0 | BF68: 0 | BH68: 564680.21 | BI68: 564680.2135 | BJ68: -0.003500663908 | BL68: 0 | BM68: 0 | BN68: 0 | BP68: 564680.21 | BQ68: 564680.2135 | BR68: -0.003500663908 | BV68: 0 | BX68: 69764.04 | BY68: 69764.04382 | BZ68: 0 | CB68: 2054.8 | CC68: 2054.8 | CD68: 0 | CF68: 573075.57 | CH68: 573076 | CI68: =(CF68-BQ68)/BQ68 -> 0.01486745294 | CJ68: 581596.85 | CL68: 581597 | CM68: =(CJ68-CF68)/CF68 -> 0.01486938276
A69: 2320 | B69: Eythorne Elvington Community Primary School | D69: Eythorne Elvington Community Primary School | E69: 0 | F69: 1 | H69: 346769.55 | I69: 346769.5463 | J69: 0.003700919158 | L69: 80274.93 | M69: 80274.92807 | N69: 0.001930111408 | P69: 652.7 | Q69: 652.7041509 | R69: -0.004150874312 | T69: 20793.81 | U69: 20793.81128 | V69: -0.001276549021 | X69: 5720.79 | Y69: 5720.785941 | Z69: 0.004059319967 | AB69: 132163.37 | AC69: 132163.3716 | AD69: -0.001566865918 | AF69: 38082.89 | AG69: 38082.88518 | AH69: 0.004820099755 | AJ69: 0 | AK69: 0 | AL69: 0 | AN69: 0 | AO69: 0 | AP69: 0 | AR69: 17340 | AS69: 17340 | AT69: 0 | AV69: 0 | AW69: 0 | AX69: 0 | AZ69: 0 | BA69: 0 | BB69: 0 | BD69: 0 | BE69: 0 | BF69: 0 | BH69: 641798.03 | BI69: 641798.0325 | BJ69: -0.002483838936 | BL69: 0 | BM69: 0 | BN69: 0 | BP69: 641798.03 | BQ69: 641798.0325 | BR69: -0.002483838936 | BV69: 0 | BX69: 82139.28 | BY69: 82139.27538 | BZ69: 0 | CB69: 2311.65 | CC69: 2311.65 | CD69: 0 | CF69: 651164.9 | CH69: 651165 | CI69: 0.01459472769 | CJ69: 660672.28 | CL69: 660672 | CM69: 0.01460057199
A70: 2321 | B70: Lydden Primary School | D70: Lydden Primary School | E70: 0 | F70: 1 | H70: 262704.2 | I70: 262704.2017 | J70: -0.001741727872 | L70: 24121.78 | M70: 24121.78203 | N70: -0.002027791787 | P70: 679.9 | Q70: 679.9001572 | R70: -0.0001571607394 | T70: 20280.72 | U70: 20280.71979 | V70: 0.0002119032906 | X70: 4248.11 | Y70: 4248.108372 | Z70: 0.001628207881 | AB70: 132163.37 | AC70: 132163.3716 | AD70: -0.001566865918 | AF70: 18084.12 | AG70: 18084.12282 | AH70: -0.002818793975 | AJ70: 0 | AK70: 0 | AL70: 0 | AN70: 0 | AO70: 0 | AP70: 0 | AR70: 9331 | AS70: 9331 | AT70: 0 | AV70: 0 | AW70: 0 | AX70: 0 | AZ70: 0 | BA70: 0 | BB70: 0 | BD70: 0 | BE70: 0 | BF70: 0 | BH70: 471613.21 | BI70: 471613.2065 | BJ70: 0.003527770808 | BL70: 0 | BM70: 0 | BN70: 0 | BP70: 471613.21 | BQ70: 471613.2065 | BR70: 0.003527770808 | BV70: 0 | BX70: 48890.06 | BY70: 48890.05796 | BZ70: 0 | CB70: 1751.25 | CC70: 1751.25 | CD70: 0 | CF70: 478547.44 | CH70: 478547 | CI70: 0.01470322169 | CJ70: 485585.69 | CL70: 485586 | CM70: 0.01470752827
A71: 2322 | B71: Preston Primary School | D71: Preston Primary School | E71: 0 | F71: 1 | H71: 416824 | I71: 416824.0001 | J71: -9.687489364e-05 | L71: 22692.05 | M71: 22692.04612 | N71: 0.003875827926 | P71: 697.39 | Q71: 697.3898447 | R71: 0.0001552947891 | T71: 34289.27 | U71: 34289.27056 | V71: -0.0005618843279 | X71: 811.86 | Y71: 811.8607111 | Z71: -0.0007110536035 | AB71: 132163.37 | AC71: 132163.3716 | AD71: -0.001566865918 | AF71: 23089.62 | AG71: 23089.6233 | AH71: -0.003298049753 | AJ71: 0 | AK71: 0 | AL71: 0 | AN71: 0 | AO71: 0 | AP71: 0 | AR71: 17964 | AS71: 17964 | AT71: 0 | AV71: 0 | AW71: 0 | AX71: 0 | AZ71: 0 | BA71: 0 | BB71: 0 | BD71: 0 | BE71: 0 | BF71: 0 | BH71: 648531.56 | BI71: 648531.5622 | BJ71: -0.00220360572 | BL71: 0 | BM71: 0 | BN71: 0 | BP71: 648531.56 | BQ71: 648531.5622 | BR71: -0.00220360572 | BV71: 0 | BX71: 67535.7 | BY71: 67535.7021 | BZ71: 0 | CB71: 2778.65 | CC71: 2778.65 | CD71: 0 | CF71: 657990.08 | CH71: 657990 | CI71: 0.01458451423 | CJ71: 667590.47 | CL71: 667590 | CM71: 0.01459047832
A72: 2326 | B72: Wingham Primary School | D72: Wingham Primary School | E72: 0 | F72: 1 | H72: 679528.2 | I72: 679528.2018 | J72: -0.001838602824 | L72: 55234.22 | M72: 55234.22339 | N72: -0.003393222694 | P72: 2745.25 | Q72: 2745.248895 | R72: 0.001105265778 | T72: 41924.89 | U72: 41924.88606 | V72: 0.003938540089 | X72: 0 | Y72: 0 | Z72: 0 | AB72: 132163.37 | AC72: 132163.3716 | AD72: -0.001566865918 | AF72: 0 | AG72: 0 | AH72: 0 | AJ72: 0 | AK72: 0 | AL72: 0 | AN72: 0 | AO72: 0 | AP72: 0 | AR72: 31232 | AS72: 31232 | AT72: 0 | AV72: 0 | AW72: 0 | AX72: 0 | AZ72: 0 | BA72: 0 | BB72: 0 | BD72: 0 | BE72: 0 | BF72: 0 | BH72: 942827.93 | BI72: 942827.9318 | BJ72: -0.001754885423 | BL72: 0 | BM72: 0 | BN72: 0 | BP72: 942827.93 | BQ72: 942827.9318 | BR72: -0.001754885423 | BV72: 0 | BX72: 102760.03 | BY72: 102760.0347 | BZ72: 0 | CB72: 4529.9 | CC72: 4529.9 | CD72: 0 | CF72: 956501.87 | CH72: 956502 | CI72: 0.0145031111 | CJ72: 970380.92 | CL72: 970381 | CM72: 0.01451021732
A73: 2328 | B73: St Mildred's Primary Infant School | D73: St Mildred's Primary Infant School | E73: 0 | F73: 1 | H73: 938729.68 | I73: 938729.6809 | J73: -0.0008904408896 | L73: 82036.68 | M73: 82036.67614 | N73: 0.003861861784 | P73: 21595.64 | Q73: 21595.64351 | R73: -0.003510409282 | T73: 108522.56 | U73: 108522.5562 | V73: 0.003815014468 | X73: 0 | Y73: 0 | Z73: 0 | AB73: 132163.37 | AC73: 132163.3716 | AD73: -0.001566865918 | AF73: 0 | AG73: 0 | AH73: 0 | AJ73: 0 | AK73: 0 | AL73: 0 | AN73: 0 | AO73: 0 | AP73: 0 | AR73: 24950 | AS73: 24950 | AT73: 0 | AV73: 0 | AW73: 0 | AX73: 0 | AZ73: 0 | BA73: 0 | BB73: 0 | BD73: 0 | BE73: 0 | BF73: 0 | BH73: 1307997.93 | BI73: 1307997.928 | BJ73: 0.001709160162 | BL73: 0 | BM73: 0 | BN73: 0 | BP73: 1307997.93 | BQ73: 1307997.928 | BR73: 0.001709160162 | BV73: 0 | BX73: 197031.99 | BY73: 197031.9924 | BZ73: 0 | CB73: 6257.8 | CC73: 6257.8 | CD73: 0 | CF73: 1327243.65 | CH73: 1327244 | CI73: 0.01471387782 | CJ73: 1346778.05 | CL73: 1346778 | CM73: 0.01471802107
A74: 2329 | B74: Callis Grange Nursery and Infant School | D74: Callis Grange Nursery and Infant School | E74: 0 | F74: 1 | H74: 893194.29 | I74: 893194.2859 | J74: 0.004078125232 | L74: 119099.46 | M74: 119099.455 | N74: 0.005034814239 | P74: 8358.55 | Q74: 8358.546565 | R74: 0.003435131253 | T74: 59014.22 | U74: 59014.22101 | V74: -0.001005409467 | X74: 0 | Y74: 0 | Z74: 0 | AB74: 132163.37 | AC74: 132163.3716 | AD74: -0.001566865918 | AF74: 0 | AG74: 0 | AH74: 0 | AJ74: 0 | AK74: 0 | AL74: 0 | AN74: 0 | AO74: 0 | AP74: 0 | AR74: 43520 | AS74: 43520 | AT74: 0 | AV74: 0 | AW74: 0 | AX74: 0 | AZ74: 0 | BA74: 0 | BB74: 0 | BD74: 0 | BE74: 0 | BF74: 0 | BH74: 1255349.88 | BI74: 1255349.88 | BJ74: -2.420460805e-05 | BL74: 0 | BM74: 0 | BN74: 0 | BP74: 1255349.88 | BQ74: 1255349.88 | BR74: -2.420460805e-05 | BV74: 0 | BX74: 167817.91 | BY74: 167817.9133 | BZ74: 0 | CB74: 5954.25 | CC74: 5954.25 | CD74: 0 | CF74: 1273527.33 | CH74: 1273527 | CI74: 0.01447998703 | CJ74: 1291977.44 | CL74: 1291977 | CM74: 0.01448740798
A75: 2337 | B75: St Crispin's Community Primary Infant School | D75: St Crispin's Community Primary Infant School | E75: 0 | F75: 1 | H75: 851161.61 | I75: 851161.6136 | J75: -0.003643198404 | L75: 106689.9 | M75: 106689.8984 | N75: 0.001623818884 | P75: 7980.23 | Q75: 7980.231882 | R75: -0.001882387794 | T75: 121867.61 | U75: 121867.6089 | V75: 0.001084213582 | X75: 0 | Y75: 0 | Z75: 0 | AB75: 132163.37 | AC75: 132163.3716 | AD75: -0.001566865918 | AF75: 0 | AG75: 0 | AH75: 0 | AJ75: 0 | AK75: 0 | AL75: 0 | AN75: 0 | AO75: 0 | AP75: 0 | AR75: 20085 | AS75: 20085 | AT75: 0 | AV75: 0 | AW75: 0 | AX75: 0 | AZ75: 0 | BA75: 0 | BB75: 0 | BD75: 0 | BE75: 0 | BF75: 0 | BH75: 1239947.72 | BI75: 1239947.724 | BJ75: -0.004384419648 | BL75: 0 | BM75: 0 | BN75: 0 | BP75: 1239947.72 | BQ75: 1239947.724 | BR75: -0.004384419648 | BV75: 0 | BX75: 219545.69 | BY75: 219545.6861 | BZ75: 0 | CB75: 5674.05 | CC75: 5674.05 | CD75: 0 | CF75: 1258245.67 | CH75: 1258246 | CI75: 0.01475702988 | CJ75: 1276818.08 | CL75: 1276818 | CM75: 0.01476055944
A76: 2340 | B76: Ellington Infant School | D76: Ellington Infant School | E76: 0 | F76: 1 | H76: 507894.79 | I76: 507894.79 | J76: -3.400724381e-05 | L76: 136652.4 | M76: 136652.4028 | N76: -0.002751410124 | P76: 8702.72 | Q76: 8702.722012 | R76: -0.002011657467 | T76: 76204.81 | U76: 76204.8144 | V76: -0.004400885096 | X76: 3115.28 | Y76: 3115.279473 | Z76: 0.000527352443 | AB76: 132163.37 | AC76: 132163.3716 | AD76: -0.001566865918 | AF76: 0 | AG76: 0 | AH76: 0 | AJ76: 0 | AK76: 0 | AL76: 0 | AN76: 0 | AO76: 0 | AP76: 0 | AR76: 27648 | AS76: 27648 | AT76: 0 | AV76: 0 | AW76: 0 | AX76: 0 | AZ76: 0 | BA76: 0 | BB76: 0 | BD76: 0 | BE76: 0 | BF76: 0 | BH76: 892381.38 | BI76: 892381.3802 | BJ76: -0.0002374734031 | BL76: 0 | BM76: 0 | BN76: 0 | BP76: 892381.38 | BQ76: 892381.3802 | BR76: -0.0002374734031 | BV76: 0 | BX76: 176163.79 | BY76: 176163.7877 | BZ76: 0 | CB76: 3385.75 | CC76: 3385.75 | CD76: 0 | CF76: 905352.38 | CH76: 905352 | CI76: 0.01453526491 | CJ76: 918517.95 | CL76: 918518 | CM76: 0.01454192897
A77: 2345 | B77: Priory Infant School | D77: Priory Infant School | E77: 0 | F77: 1 | H77: 476370.29 | I77: 476370.2858 | J77: 0.004175000067 | L77: 125358.53 | M77: 125358.5313 | N77: -0.001304643403 | P77: 11603.63 | Q77: 11603.62935 | R77: 0.0006511233623 | T77: 80606.78 | U77: 80606.7836 | V77: -0.003600116092 | X77: 792.98 | Y77: 792.9802294 | Z77: -0.0002294011953 | AB77: 132163.37 | AC77: 132163.3716 | AD77: -0.001566865918 | AF77: 0 | AG77: 0 | AH77: 0 | AJ77: 0 | AK77: 0 | AL77: 0 | AN77: 0 | AO77: 0 | AP77: 0 | AR77: 30976 | AS77: 30976 | AT77: 0 | AV77: 0 | AW77: 0 | AX77: 0 | AZ77: 0 | BA77: 0 | BB77: 0 | BD77: 0 | BE77: 0 | BF77: 0 | BH77: 857871.58 | BI77: 857871.5819 | BJ77: -0.001874903101 | BL77: 0 | BM77: 0 | BN77: 0 | BP77: 857871.58 | BQ77: 857871.5819 | BR77: -0.001874903101 | BV77: 0 | BX77: 171144.67 | BY77: 171144.6719 | BZ77: 0 | CB77: 3175.6 | CC77: 3175.6 | CD77: 0 | CF77: 870275.02 | CH77: 870275 | CI77: 0.0144583856 | CJ77: 882864.5 | CL77: 882865 | CM77: 0.01446609372
A78: 2431 | B78: Shears Green Junior School | D78: Shears Green Junior School | E78: 0 | F78: 1 | H78: 1737350.45 | I78: 1737350.454 | J78: -0.004185293801 | L78: 268176.59 | M78: 268176.5913 | N78: -0.00134566857 | P78: 14504.54 | Q78: 14504.53669 | R78: 0.00331390423 | T78: 85810.63 | U78: 85810.62531 | V78: 0.004691740323 | X78: 0 | Y78: 0 | Z78: 0 | AB78: 132163.37 | AC78: 132163.3716 | AD78: -0.001566865918 | AF78: 0 | AG78: 0 | AH78: 0 | AJ78: 0 | AK78: 0 | AL78: 0 | AN78: 0 | AO78: 0 | AP78: 0 | AR78: 21760 | AS78: 21760 | AT78: 0 | AV78: 0 | AW78: 0 | AX78: 0 | AZ78: 0 | BA78: 0 | BB78: 0 | BD78: 27975.38 | BE78: 27975.38091 | BF78: -0.0009078162584 | BH78: 2287740.96 | BI78: 2287740.96 | BJ78: 0 | BL78: 0 | BM78: 0 | BN78: 0 | BP78: 2287740.96 | BQ78: 2287740.96 | BR78: 0 | BV78: 0 | BX78: 322511.97 | BY78: 322511.9689 | BZ78: 0 | CB78: 11581.6 | CC78: 11581.6 | CD78: 0 | CF78: 2299070.86 | CH78: 2299071 | CI78: 0.00495244007 | CJ78: 2327409.3 | CL78: 2327409 | CM78: 0.01232604027
A79: 2434 | B79: West Minster Primary School | D79: West Minster Primary School | E79: 0 | F79: 1 | H79: 1607749.71 | I79: 1607749.715 | J79: -0.00465937471 | L79: 610754.08 | M79: 610754.0807 | N79: -0.0007028628606 | P79: 4614.17 | Q79: 4614.165977 | R79: 0.004022532115 | T79: 149330.02 | U79: 149330.0249 | V79: -0.004891553544 | X79: 0 | Y79: 0 | Z79: 0 | AB79: 132163.37 | AC79: 132163.3716 | AD79: -0.001566865918 | AF79: 0 | AG79: 0 | AH79: 0 | AJ79: 0 | AK79: 0 | AL79: 0 | AN79: 0 | AO79: 0 | AP79: 0 | AR79: 80384 | AS79: 80384 | AT79: 0 | AV79: 0 | AW79: 0 | AX79: 0 | AZ79: 0 | BA79: 0 | BB79: 0 | BD79: 0 | BE79: 0 | BF79: 0 | BH79: 2584995.36 | BI79: 2584995.358 | BJ79: 0.002201875206 | BL79: 0 | BM79: 0 | BN79: 0 | BP79: 2584995.36 | BQ79: 2584995.358 | BR79: 0.002201875206 | BV79: 0 | BX79: 560105.29 | BY79: 560105.289 | BZ79: 0 | CB79: 10717.65 | CC79: 10717.65 | CD79: 0 | CF79: 2622564.53 | CH79: 2622565 | CI79: 0.014533555 | CJ79: 2660697.24 | CL79: 2660697 | CM79: 0.01454023707
A80: 2454 | B80: Aycliffe Community Primary School | D80: Aycliffe Community Primary School | E80: 0 | F80: 1 | H80: 311742.32 | I80: 311742.3194 | J80: 0.0005998162669 | L80: 111252.25 | M80: 111252.2548 | N80: -0.00477840309 | P80: 3488.93 | Q80: 3488.929095 | R80: 0.0009052364203 | T80: 38361.72 | U80: 38361.72427 | V80: -0.004271936334 | X80: 5343.18 | Y80: 5343.176308 | Z80: 0.003692368097 | AB80: 132163.37 | AC80: 132163.3716 | AD80: -0.001566865918 | AF80: 20510.78 | AG80: 20510.78225 | AH80: -0.002254371469 | AJ80: 0 | AK80: 0 | AL80: 0 | AN80: 0 | AO80: 0 | AP80: 0 | AR80: 22829 | AS80: 22829 | AT80: 0 | AV80: 0 | AW80: 0 | AX80: 0 | AZ80: 0 | BA80: 0 | BB80: 0 | BD80: 0 | BE80: 0 | BF80: 0 | BH80: 645691.56 | BI80: 645691.5577 | BJ80: 0.00232584402 | BL80: 0 | BM80: 0 | BN80: 0 | BP80: 645691.56 | BQ80: 645691.5577 | BR80: 0.00232584402 | BV80: 0 | BX80: 116677.29 | BY80: 116677.2935 | BZ80: 0 | CB80: 2078.15 | CC80: 2078.15 | CD80: 0 | CF80: 655034.5 | CH80: 655035 | CI80: 0.01446966778 | CJ80: 664517.58 | CL80: 664518 | CM80: 0.01447722219
A81: 2459 | B81: Riverhead Infants' School | D81: Riverhead Infants' School | E81: 0 | F81: 1 | H81: 938729.68 | I81: 938729.6809 | J81: -0.0008904408896 | L81: 17184.19 | M81: 17184.18838 | N81: 0.001621049225 | P81: 11355.91 | Q81: 11355.91142 | R81: -0.001418956774 | T81: 72240.09 | U81: 72240.09432 | V81: -0.004316699182 | X81: 0 | Y81: 0 | Z81: 0 | AB81: 132163.37 | AC81: 132163.3716 | AD81: -0.001566865918 | AF81: 0 | AG81: 0 | AH81: 0 | AJ81: 43937.75 | AK81: 43937.74675 | AL81: 0.003253553245 | AN81: 0 | AO81: 0 | AP81: 0 | AR81: 38912 | AS81: 38912 | AT81: 0 | AV81: 0 | AW81: 0 | AX81: 0 | AZ81: 0 | BA81: 0 | BB81: 0 | BD81: 8749.69 | BE81: 8749.686682 | BF81: 0.003318360154 | BH81: 1263272.68 | BI81: 1263272.68 | BJ81: 0 | BL81: 0 | BM81: 0 | BN81: 0 | BP81: 1263272.68 | BQ81: 1263272.68 | BR81: 0 | BV81: 0 | BX81: 135338.86 | BY81: 135338.8571 | BZ81: 0 | CB81: 6492.47 | CC81: 6492.4675 | CD81: 0 | CF81: 1272757.16 | CH81: 1272757 | CI81: 0.007507864415 | CJ81: 1291264.84 | CL81: 1291265 | CM81: 0.0145414071
A82: 2465 | B82: Claremont Primary School | D82: Claremont Primary School | E82: 0 | F82: 1 | H82: 1530689.82 | I82: 1530689.815 | J82: 0.004518199014 | L82: 13442.51 | M82: 13442.50959 | N82: 0.0004068522594 | P82: 37086.87 | Q82: 37086.86588 | R82: 0.004122307211 | T82: 100705.89 | U82: 100705.8884 | V82: 0.001586621715 | X82: 0 | Y82: 0 | Z82: 0 | AB82: 132163.37 | AC82: 132163.3716 | AD82: -0.001566865918 | AF82: 0 | AG82: 0 | AH82: 0 | AJ82: 0 | AK82: 0 | AL82: 0 | AN82: 0 | AO82: 0 | AP82: 0 | AR82: 38656 | AS82: 38656 | AT82: 0 | AV82: 0 | AW82: 0 | AX82: 0 | AZ82: 0 | BA82: 0 | BB82: 0 | BD82: 182350.42 | BE82: 182350.4191 | BF82: 0.0009328856249 | BH82: 2035094.87 | BI82: 2035094.87 | BJ82: 0 | BL82: 0 | BM82: 0 | BN82: 0 | BP82: 2035094.87 | BQ82: 2035094.87 | BR82: 0 | BV82: 0 | BX82: 262025.19 | BY82: 262025.1887 | BZ82: 0 | CB82: 10203.95 | CC82: 10203.95 | CD82: 0 | CF82: 2045077.06 | CH82: 2045077 | CI82: 0.004905024403 | CJ82: 2055109.17 | CL82: 2055109 | CM82: 0.004905492412
A83: 2471 | B83: Whitfield Aspen School | D83: Whitfield Aspen School | E83: 0 | F83: 1 | H83: 2133158.12 | I83: 2133158.118 | J83: 0.001857169438 | L83: 395408.42 | M83: 395408.4204 | N83: -0.0004392621922 | P83: 11529.02 | Q83: 11529.01868 | R83: 0.001319681416 | T83: 355152.52 | U83: 355152.5173 | V83: 0.002741137927 | X83: 10967.82 | Y83: 10967.81798 | Z83: 0.002016577062 | AB83: 132163.37 | AC83: 132163.3716 | AD83: -0.001566865918 | AF83: 0 | AG83: 0 | AH83: 0 | AJ83: 0 | AK83: 0 | AL83: 0 | AN83: 79258.69 | AO83: 79258.6886 | AP83: 0.001396656313 | AR83: 65024 | AS83: 65024 | AT83: 0 | AV83: 0 | AW83: 0 | AX83: 0 | AZ83: 0 | BA83: 0 | BB83: 0 | BD83: 0 | BE83: 0 | BF83: 0 | BH83: 3182661.95 | BI83: 3182661.953 | BJ83: -0.002674906515 | BL83: 0 | BM83: 0 | BN83: 0 | BP83: 3182661.95 | BQ83: 3182661.953 | BR83: -0.002674906515 | BV83: 0 | BX83: 672744.15 | BY83: 672744.1476 | BZ83: 0 | CB83: 14220.15 | CC83: 14220.15 | CD83: 0 | CF83: 3228237.64 | CH83: 3228238 | CI83: 0.01431999 | CJ83: 3274496.97 | CL83: 3274497 | CM83: 0.01432959254
A84: 2474 | B84: St Paul's Infant School | D84: St Paul's Infant School | E84: 0 | F84: 1 | H84: 914210.62 | I84: 914210.6221 | J84: -0.002061213017 | L84: 104673.59 | M84: 104673.587 | N84: 0.003047358259 | P84: 48181.43 | Q84: 48181.43368 | R84: -0.003682721755 | T84: 154865.59 | U84: 154865.5922 | V84: -0.00222356306 | X84: 1264.99 | Y84: 1264.992271 | Z84: -0.002270711424 | AB84: 132163.37 | AC84: 132163.3716 | AD84: -0.001566865918 | AF84: 0 | AG84: 0 | AH84: 0 | AJ84: 0 | AK84: 0 | AL84: 0 | AN84: 0 | AO84: 0 | AP84: 0 | AR84: 11477 | AS84: 11477 | AT84: 0 | AV84: 0 | AW84: 0 | AX84: 0 | AZ84: 0 | BA84: 0 | BB84: 0 | BD84: 0 | BE84: 0 | BF84: 0 | BH84: 1366836.6 | BI84: 1366836.599 | BJ84: 0.001242283499 | BL84: 0 | BM84: 0 | BN84: 0 | BP84: 1366836.6 | BQ84: 1366836.599 | BR84: 0.001242283499 | BV84: 0 | BX84: 252471.86 | BY84: 252471.8609 | BZ84: 0 | CB84: 6094.35 | CC84: 6094.35 | CD84: 0 | CF84: 1387166.99 | CH84: 1387167 | CI84: 0.01487404658 | CJ84: 1407802.34 | CL84: 1407802 | CM84: 0.01487589465
A85: 2482 | B85: Langton Green Primary School | D85: Langton Green Primary School | E85: 0 | F85: 1 | H85: 1450127.19 | I85: 1450127.194 | J85: -0.003614338115 | L85: 32922.84 | M85: 32922.83988 | N85: 0.0001186110603 | P85: 7442.67 | Q85: 7442.665923 | R85: 0.00407679098 | T85: 80590.05 | U85: 80590.05269 | V85: -0.002693576229 | X85: 0 | Y85: 0 | Z85: 0 | AB85: 132163.37 | AC85: 132163.3716 | AD85: -0.001566865918 | AF85: 0 | AG85: 0 | AH85: 0 | AJ85: 0 | AK85: 0 | AL85: 0 | AN85: 0 | AO85: 0 | AP85: 0 | AR85: 39168 | AS85: 39168 | AT85: 0 | AV85: 0 | AW85: 0 | AX85: 0 | AZ85: 0 | BA85: 0 | BB85: 0 | BD85: 188117.02 | BE85: 188117.0163 | BF85: 0.003679378016 | BH85: 1930531.14 | BI85: 1930531.14 | BJ85: 0 | BL85: 0 | BM85: 0 | BN85: 0 | BP85: 1930531.14 | BQ85: 1930531.14 | BR85: 0 | BV85: 0 | BX85: 250286.88 | BY85: 250286.8786 | BZ85: 0 | CB85: 9666.9 | CC85: 9666.9 | CD85: 0 | CF85: 1939987.96 | CH85: 1939988 | CI85: 0.004898558642 | CJ85: 1949492.06 | CL85: 1949492 | CM85: 0.004899051023
A86: 2490 | B86: Bishops Down Primary and Nursery School | D86: Bishops Down Primary and Nursery School | E86: 0 | F86: 1 | H86: 711052.71 | I86: 711052.706 | J86: 0.003952389816 | L86: 44054.46 | M86: 44054.45719 | N86: 0.002811044775 | P86: 6654.06 | Q86: 6654.058638 | R86: 0.001362084881 | T86: 81314.97 | U86: 81314.96928 | V86: 0.0007200061373 | X86: 774.1 | Y86: 774.0997477 | Z86: 0.000252251207 | AB86: 132163.37 | AC86: 132163.3716 | AD86: -0.001566865918 | AF86: 0 | AG86: 0 | AH86: 0 | AJ86: 0 | AK86: 0 | AL86: 0 | AN86: 0 | AO86: 0 | AP86: 0 | AR86: 31232 | AS86: 31232 | AT86: 0 | AV86: 0 | AW86: 0 | AX86: 0 | AZ86: 0 | BA86: 0 | BB86: 0 | BD86: 0 | BE86: 0 | BF86: 0 | BH86: 1007245.66 | BI86: 1007245.662 | BJ86: -0.002469089115 | BL86: 0 | BM86: 0 | BN86: 0 | BP86: 1007245.66 | BQ86: 1007245.662 | BR86: -0.002469089115 | BV86: 0 | BX86: 139140.71 | BY86: 139140.7121 | BZ86: 0 | CB86: 4740.05 | CC86: 4740.05 | CD86: 0 | CF86: 1021885.87 | CH86: 1021886 | CI86: 0.01453489261 | CJ86: 1036745.68 | CL86: 1036746 | CM86: 0.01454155541
A87: 2509 | B87: Singlewell Primary School | D87: Singlewell Primary School | E87: 0 | F87: 1 | H87: 1383575.46 | I87: 1383575.463 | J87: -0.00250643352 | L87: 128180.77 | M87: 128180.77 | N87: 3.168905096e-05 | P87: 19263.71 | Q87: 19263.7064 | R87: 0.003595451948 | T87: 135582.23 | U87: 135582.232 | V87: -0.00199359472 | X87: 0 | Y87: 0 | Z87: 0 | AB87: 132163.37 | AC87: 132163.3716 | AD87: -0.001566865918 | AF87: 0 | AG87: 0 | AH87: 0 | AJ87: 0 | AK87: 0 | AL87: 0 | AN87: 0 | AO87: 0 | AP87: 0 | AR87: 51712 | AS87: 51712 | AT87: 0 | AV87: 0 | AW87: 0 | AX87: 0 | AZ87: 0 | BA87: 0 | BB87: 0 | BD87: 5795.91 | BE87: 5795.90756 | BF87: 0.002439752916 | BH87: 1856273.45 | BI87: 1856273.45 | BJ87: 0 | BL87: 0 | BM87: 0 | BN87: 0 | BP87: 1856273.45 | BQ87: 1856273.45 | BR87: 0 | BV87: 0 | BX87: 271682.89 | BY87: 271682.889 | BZ87: 0 | CB87: 9223.25 | CC87: 9223.25 | CD87: 0 | CF87: 1877459.03 | CH87: 1877459 | CI87: 0.01141296289 | CJ87: 1904845.23 | CL87: 1904845 | CM87: 0.01458684294
A88: 2510 | B88: Cheriton Primary School | D88: Cheriton Primary School | E88: 0 | F88: 1 | H88: 1355553.68 | I88: 1355553.681 | J88: -0.0009873160161 | L88: 150156.7 | M88: 150156.7034 | N88: -0.003428657597 | P88: 50418.46 | Q88: 50418.46435 | R88: -0.004348973678 | T88: 175384.82 | U88: 175384.8196 | V88: 0.0004291735531 | X88: 7344.51 | Y88: 7344.507363 | Z88: 0.002637212744 | AB88: 132163.37 | AC88: 132163.3716 | AD88: -0.001566865918 | AF88: 0 | AG88: 0 | AH88: 0 | AJ88: 0 | AK88: 0 | AL88: 0 | AN88: 0 | AO88: 0 | AP88: 0 | AR88: 8909 | AS88: 8909 | AT88: 0 | AV88: 0 | AW88: 0 | AX88: 0 | AZ88: 0 | BA88: 0 | BB88: 0 | BD88: 0 | BE88: 0 | BF88: 0 | BH88: 1879930.55 | BI88: 1879930.547 | BJ88: 0.002734573558 | BL88: 0 | BM88: 0 | BN88: 0 | BP88: 1879930.55 | BQ88: 1879930.547 | BR88: 0.002734573558 | BV88: 0 | BX88: 320358.74 | BY88: 320358.7413 | BZ88: 0 | CB88: 9036.45 | CC88: 9036.45 | CD88: 0 | CF88: 1907995.87 | CH88: 1907996 | CI88: 0.01492891467 | CJ88: 1936482.17 | CL88: 1936482 | CM88: 0.01492995894
A89: 2514 | B89: Brookfield Infant School | D89: Brookfield Infant School | E89: 0 | F89: 1 | H89: 630490.08 | I89: 630490.0842 | J89: -0.004180146963 | L89: 63937.96 | M89: 63937.96443 | N89: -0.004429148961 | P89: 4351.36 | Q89: 4351.361006 | R89: -0.001005828736 | T89: 62650.67 | U89: 62650.67389 | V89: -0.003886514045 | X89: 0 | Y89: 0 | Z89: 0 | AB89: 132163.37 | AC89: 132163.3716 | AD89: -0.001566865918 | AF89: 0 | AG89: 0 | AH89: 0 | AJ89: 0 | AK89: 0 | AL89: 0 | AN89: 0 | AO89: 0 | AP89: 0 | AR89: 20210 | AS89: 20210 | AT89: 0 | AV89: 0 | AW89: 0 | AX89: 0 | AZ89: 0 | BA89: 0 | BB89: 0 | BD89: 0 | BE89: 0 | BF89: 0 | BH89: 913803.46 | BI89: 913803.4551 | BJ89: 0.004931495409 | BL89: 0 | BM89: 0 | BN89: 0 | BP89: 913803.46 | BQ89: 913803.4551 | BR89: 0.004931495409 | BV89: 0 | BX89: 126789.24 | BY89: 126789.2434 | BZ89: 0 | CB89: 4203 | CC89: 4203 | CD89: 0 | CF89: 927207.36 | CH89: 927207 | CI89: 0.0146682581 | CJ89: 940812.32 | CL89: 940812 | CM89: 0.01467305005
A90: 2519 | B90: Vigo Village School | D90: Vigo Village School | E90: 0 | F90: 1 | H90: 430834.89 | I90: 430834.8909 | J90: -0.000856433704 | L90: 29948.18 | M90: 29948.18066 | N90: -0.0006627150069 | P90: 654.7 | Q90: 654.700188 | R90: -0.0001880329472 | T90: 42055.77 | U90: 42055.76831 | V90: 0.00168652038 | X90: 2473.34 | Y90: 2473.343096 | Z90: -0.003096465635 | AB90: 132163.37 | AC90: 132163.3716 | AD90: -0.001566865918 | AF90: 20090.97 | AG90: 20090.97092 | AH90: -0.0009216796425 | AJ90: 0 | AK90: 0 | AL90: 0 | AN90: 0 | AO90: 0 | AP90: 0 | AR90: 22081 | AS90: 22081 | AT90: 0 | AV90: 0 | AW90: 0 | AX90: 0 | AZ90: 0 | BA90: 0 | BB90: 0 | BD90: 0 | BE90: 0 | BF90: 0 | BH90: 680302.23 | BI90: 680302.2256 | BJ90: 0.004394327523 | BL90: 0 | BM90: 0 | BN90: 0 | BP90: 680302.23 | BQ90: 680302.2256 | BR90: 0.004394327523 | BV90: 0 | BX90: 79209.45 | BY90: 79209.44879 | BZ90: 0 | CB90: 2872.05 | CC90: 2872.05 | CD90: 0 | CF90: 690175.54 | CH90: 690176 | CI90: 0.01451312964 | CJ90: 700196.96 | CL90: 700197 | CM90: 0.0145201031
A91: 2520 | B91: Madginford Primary School | D91: Madginford Primary School | E91: 0 | F91: 1 | H91: 2196207.13 | I91: 2196207.127 | J91: 0.003439154942 | L91: 153443.25 | M91: 153443.2478 | N91: 0.002237397566 | P91: 20466.4 | Q91: 20466.40142 | R91: -0.001420518594 | T91: 144749.39 | U91: 144749.3892 | V91: 0.0008290475816 | X91: 0 | Y91: 0 | Z91: 0 | AB91: 132163.37 | AC91: 132163.3716 | AD91: -0.001566865918 | AF91: 0 | AG91: 0 | AH91: 0 | AJ91: 0 | AK91: 0 | AL91: 0 | AN91: 0 | AO91: 0 | AP91: 0 | AR91: 58880 | AS91: 58880 | AT91: 0 | AV91: 0 | AW91: 0 | AX91: 0 | AZ91: 0 | BA91: 0 | BB91: 0 | BD91: 217426.23 | BE91: 217426.2335 | BF91: -0.00351821573 | BH91: 2923335.77 | BI91: 2923335.77 | BJ91: 0 | BL91: 0 | BM91: 0 | BN91: 0 | BP91: 2923335.77 | BQ91: 2923335.77 | BR91: 0 | BV91: 0 | BX91: 430503.7 | BY91: 430503.6959 | BZ91: 0 | CB91: 14640.45 | CC91: 14640.45 | CD91: 0 | CF91: 2937658.05 | CH91: 2937658 | CI91: 0.004899293522 | CJ91: 2952051.94 | CL91: 2952052 | CM91: 0.00489978403
A92: 2524 | B92: Palmarsh Primary School | D92: Palmarsh Primary School | E92: 0 | F92: 1 | H92: 693539.09 | I92: 693539.0926 | J92: -0.002598161693 | L92: 83403.54 | M92: 83403.54434 | N92: -0.004341099295 | P92: 683.79 | Q92: 683.7853009 | R92: 0.004699084057 | T92: 74206.6 | U92: 74206.60305 | V92: -0.003052842323 | X92: 3889.38 | Y92: 3889.37922 | Z92: 0.0007796036616 | AB92: 132163.37 | AC92: 132163.3716 | AD92: -0.001566865918 | AF92: 0 | AG92: 0 | AH92: 0 | AJ92: 0 | AK92: 0 | AL92: 0 | AN92: 0 | AO92: 0 | AP92: 0 | AR92: 16218 | AS92: 16218 | AT92: 0 | AV92: 0 | AW92: 0 | AX92: 0 | AZ92: 0 | BA92: 0 | BB92: 0 | BD92: 0 | BE92: 0 | BF92: 0 | BH92: 1004103.78 | BI92: 1004103.776 | BJ92: 0.003919718554 | BL92: 0 | BM92: 0 | BN92: 0 | BP92: 1004103.78 | BQ92: 1004103.776 | BR92: 0.003919718554 | BV92: 0 | BX92: 152112.13 | BY92: 152112.1315 | BZ92: 0 | CB92: 4623.3 | CC92: 4623.3 | CD92: 0 | CF92: 1018922.06 | CH92: 1018922 | CI92: 0.01475772154 | CJ92: 1033962.62 | CL92: 1033963 | CM92: 0.0147612468
A93: 2525 | B93: Painters Ash Primary School | D93: Painters Ash Primary School | E93: 0 | F93: 1 | H93: 1411597.24 | I93: 1411597.244 | J93: -0.004025551258 | L93: 189948.9 | M93: 189948.9049 | N93: -0.004877140687 | P93: 29143.85 | Q93: 29143.8464 | R93: 0.003595710969 | T93: 121315.42 | U93: 121315.4201 | V93: -0.0001467242109 | X93: 2662.15 | Y93: 2662.147913 | Z93: 0.002087010286 | AB93: 132163.37 | AC93: 132163.3716 | AD93: -0.001566865918 | AF93: 0 | AG93: 0 | AH93: 0 | AJ93: 0 | AK93: 0 | AL93: 0 | AN93: 0 | AO93: 0 | AP93: 0 | AR93: 41728 | AS93: 41728 | AT93: 0 | AV93: 0 | AW93: 0 | AX93: 0 | AZ93: 0 | BA93: 0 | BB93: 0 | BD93: 0 | BE93: 0 | BF93: 0 | BH93: 1928558.93 | BI93: 1928558.935 | BJ93: -0.004933560733 | BL93: 0 | BM93: 0 | BN93: 0 | BP93: 1928558.93 | BQ93: 1928558.935 | BR93: -0.004933560733 | BV93: 0 | BX93: 294342.99 | BY93: 294342.9933 | BZ93: 0 | CB93: 9410.05 | CC93: 9410.05 | CD93: 0 | CF93: 1956861.4 | CH93: 1956861 | CI93: 0.01467544733 | CJ93: 1985588.4 | CL93: 1985588 | CM93: 0.01468014035
A94: 2530 | B94: Tunbury Primary School | D94: Tunbury Primary School | E94: 0 | F94: 1 | H94: 1975535.6 | I94: 1975535.597 | J94: 0.002902206266 | L94: 96909.97 | M94: 96909.97223 | N94: -0.002231507708 | P94: 7184.52 | Q94: 7184.522603 | R94: -0.00260283738 | T94: 122949.48 | U94: 122949.4777 | V94: 0.002309579417 | X94: 0 | Y94: 0 | Z94: 0 | AB94: 132163.37 | AC94: 132163.3716 | AD94: -0.001566865918 | AF94: 0 | AG94: 0 | AH94: 0 | AJ94: 0 | AK94: 0 | AL94: 0 | AN94: 0 | AO94: 0 | AP94: 0 | AR94: 46336 | AS94: 46336 | AT94: 0 | AV94: 0 | AW94: 0 | AX94: 0 | AZ94: 0 | BA94: 0 | BB94: 0 | BD94: 241896.7 | BE94: 241896.6988 | BF94: 0.001189425268 | BH94: 2622975.64 | BI94: 2622975.64 | BJ94: 0 | BL94: 0 | BM94: 0 | BN94: 0 | BP94: 2622975.64 | BQ94: 2622975.64 | BR94: 0 | BV94: 0 | BX94: 377388.81 | BY94: 377388.8056 | BZ94: 0 | CB94: 13169.4 | CC94: 13169.4 | CD94: 0 | CF94: 2635858.84 | CH94: 2635859 | CI94: 0.004911673522 | CJ94: 2648806.45 | CL94: 2648806 | CM94: 0.004912102956
A95: 2532 | B95: St Margaret's-at-Cliffe Primary School | D95: St Margaret's-at-Cliffe Primary School | E95: 0 | F95: 1 | H95: 619981.92 | I95: 619981.9161 | J95: 0.003889522282 | L95: 30066.18 | M95: 30066.18367 | N95: -0.003673042604 | P95: 1925.48 | Q95: 1925.477245 | R95: 0.002754920786 | T95: 33033.4 | U95: 33033.39813 | V95: 0.001873675661 | X95: 0 | Y95: 0 | Z95: 0 | AB95: 132163.37 | AC95: 132163.3716 | AD95: -0.001566865918 | AF95: 0 | AG95: 0 | AH95: 0 | AJ95: 0 | AK95: 0 | AL95: 0 | AN95: 0 | AO95: 0 | AP95: 0 | AR95: 18713 | AS95: 18713 | AT95: 0 | AV95: 0 | AW95: 0 | AX95: 0 | AZ95: 0 | BA95: 0 | BB95: 0 | BD95: 0 | BE95: 0 | BF95: 0 | BH95: 835883.35 | BI95: 835883.3467 | BJ95: 0.003278210177 | BL95: 3734.22 | BM95: 3734.218178 | BN95: 0.001822343357 | BP95: 839617.56 | BQ95: 839617.5649 | BR95: -0.004899446387 | BV95: 0 | BX95: 81962.45 | BY95: 81962.44919 | BZ95: 0 | CB95: 4132.95 | CC95: 4132.95 | CD95: 0 | CF95: 848140.9 | CH95: 848141 | CI95: 0.01015144925 | CJ95: 860582.32 | CL95: 860582 | CM95: 0.0146690485
A96: 2539 | B96: Stocks Green Primary School | D96: Stocks Green Primary School | E96: 0 | F96: 1 | H96: 749582.66 | I96: 749582.6556 | J96: 0.004363603075 | L96: 20950.45 | M96: 20950.45113 | N96: -0.001125238668 | P96: 7382.42 | Q96: 7382.417159 | R96: 0.002841282277 | T96: 42188.23 | U96: 42188.23074 | V96: -0.0007414482025 | X96: 151.04 | Y96: 151.0438532 | Z96: -0.003853219281 | AB96: 132163.37 | AC96: 132163.3716 | AD96: -0.001566865918 | AF96: 0 | AG96: 0 | AH96: 0 | AJ96: 0 | AK96: 0 | AL96: 0 | AN96: 0 | AO96: 0 | AP96: 0 | AR96: 23204 | AS96: 23204 | AT96: 0 | AV96: 0 | AW96: 0 | AX96: 0 | AZ96: 0 | BA96: 0 | BB96: 0 | BD96: 25242.97 | BE96: 25242.96992 | BF96: 8.188674474e-05 | BH96: 1000865.14 | BI96: 1000865.14 | BJ96: 0 | BL96: 0 | BM96: 0 | BN96: 0 | BP96: 1000865.14 | BQ96: 1000865.14 | BR96: 0 | BV96: 0 | BX96: 101245.38 | BY96: 101245.3838 | BZ96: 0 | CB96: 4996.9 | CC96: 4996.9 | CD96: 0 | CF96: 1005753.45 | CH96: 1005753 | CI96: 0.004884084583 | CJ96: 1010666.19 | CL96: 1010666 | CM96: 0.004884636488
A97: 2545 | B97: Sandgate Primary School | D97: Sandgate Primary School | E97: 0 | F97: 1 | H97: 1474646.25 | I97: 1474646.252 | J97: -0.002443565987 | L97: 86653.54 | M97: 86653.54392 | N97: -0.003917204216 | P97: 5412.88 | Q97: 5412.884162 | R97: -0.004161636627 | T97: 95622.27 | U97: 95622.26847 | V97: 0.001532714843 | X97: 0 | Y97: 0 | Z97: 0 | AB97: 132163.37 | AC97: 132163.3716 | AD97: -0.001566865918 | AF97: 0 | AG97: 0 | AH97: 0 | AJ97: 0 | AK97: 0 | AL97: 0 | AN97: 0 | AO97: 0 | AP97: 0 | AR97: 46592 | AS97: 46592 | AT97: 0 | AV97: 0 | AW97: 0 | AX97: 0 | AZ97: 0 | BA97: 0 | BB97: 0 | BD97: 128844.39 | BE97: 128844.3894 | BF97: 0.0005565576867 | BH97: 1969934.71 | BI97: 1969934.71 | BJ97: 0 | BL97: 0 | BM97: 0 | BN97: 0 | BP97: 1969934.71 | BQ97: 1969934.71 | BR97: 0 | BV97: 0 | BX97: 268550.55 | BY97: 268550.5524 | BZ97: 0 | CB97: 9830.35 | CC97: 9830.35 | CD97: 0 | CF97: 1979551.42 | CH97: 1979551 | CI97: 0.004881740471 | CJ97: 1989216.22 | CL97: 1989216 | CM97: 0.004882318238
A98: 2552 | B98: Sandling Primary School | D98: Sandling Primary School | E98: 0 | F98: 1 | H98: 1467640.81 | I98: 1467640.807 | J98: 0.00293621351 | L98: 36541.6 | M98: 36541.59886 | N98: 0.001135232611 | P98: 19261.71 | Q98: 19261.70768 | R98: 0.002319918065 | T98: 128529.23 | U98: 128529.2274 | V98: 0.002617535574 | X98: 0 | Y98: 0 | Z98: 0 | AB98: 132163.37 | AC98: 132163.3716 | AD98: -0.001566865918 | AF98: 0 | AG98: 0 | AH98: 0 | AJ98: 0 | AK98: 0 | AL98: 0 | AN98: 0 | AO98: 0 | AP98: 0 | AR98: 30720 | AS98: 30720 | AT98: 0 | AV98: 0 | AW98: 0 | AX98: 0 | AZ98: 0 | BA98: 0 | BB98: 0 | BD98: 130068.98 | BE98: 130068.9774 | BF98: 0.002557966029 | BH98: 1944925.69 | BI98: 1944925.69 | BJ98: 0 | BL98: 0 | BM98: 0 | BN98: 0 | BP98: 1944925.69 | BQ98: 1944925.69 | BR98: 0 | BV98: 0 | BX98: 276674.21 | BY98: 276674.2085 | BZ98: 0 | CB98: 9783.65 | CC98: 9783.65 | CD98: 0 | CF98: 1954496.72 | CH98: 1954497 | CI98: 0.004921026057 | CJ98: 1964115.6 | CL98: 1964116 | CM98: 0.004921410152
A99: 2559 | B99: Capel-le-Ferne Primary School | D99: Capel-le-Ferne Primary School | E99: 0 | F99: 1 | H99: 626987.36 | I99: 626987.3615 | J99: -0.001490257215 | L99: 68835.09 | M99: 68835.08936 | N99: 0.0006422573642 | P99: 0 | Q99: 0 | R99: 0 | T99: 55127.02 | U99: 55127.02074 | V99: -0.0007446107556 | X99: 0 | Y99: 0 | Z99: 0 | AB99: 132163.37 | AC99: 132163.3716 | AD99: -0.001566865918 | AF99: 0 | AG99: 0 | AH99: 0 | AJ99: 0 | AK99: 0 | AL99: 0 | AN99: 0 | AO99: 0 | AP99: 0 | AR99: 19336 | AS99: 19336 | AT99: 0 | AV99: 0 | AW99: 0 | AX99: 0 | AZ99: 0 | BA99: 0 | BB99: 0 | BD99: 0 | BE99: 0 | BF99: 0 | BH99: 902448.84 | BI99: 902448.8432 | BJ99: -0.003159476677 | BL99: 0 | BM99: 0 | BN99: 0 | BP99: 902448.84 | BQ99: 902448.8432 | BR99: -0.003159476677 | BV99: 0 | BX99: 123867.61 | BY99: 123867.6094 | BZ99: 0 | CB99: 4179.65 | CC99: 4179.65 | CD99: 0 | CF99: 915695.54 | CH99: 915696 | CI99: 0.01467861247 | CJ99: 929140.93 | CL99: 929141 | CM99: 0.01468325378
A100: 2562 | B100: Lunsford Primary School | D100: Lunsford Primary School | E100: 0 | F100: 1 | H100: 728566.32 | I100: 728566.3195 | J100: 0.0005029413151 | L100: 75546.51 | M100: 75546.51057 | N100: -0.0005701226182 | P100: 3389.82 | Q100: 3389.824304 | R100: -0.004304166198 | T100: 70823.77 | U100: 70823.76921 | V100: 0.0007941955992 | X100: 0 | Y100: 0 | Z100: 0 | AB100: 132163.37 | AC100: 132163.3716 | AD100: -0.001566865918 | AF100: 0 | AG100: 0 | AH100: 0 | AJ100: 0 | AK100: 0 | AL100: 0 | AN100: 0 | AO100: 0 | AP100: 0 | AR100: 15270 | AS100: 15270 | AT100: 0 | AV100: 0 | AW100: 0 | AX100: 0 | AZ100: 0 | BA100: 0 | BB100: 0 | BD100: 0 | BE100: 0 | BF100: 0 | BH100: 1025759.8 | BI100: 1025759.795 | BJ100: 0.004855982144 | BL100: 0 | BM100: 0 | BN100: 0 | BP100: 1025759.8 | BQ100: 1025759.795 | BR100: 0.004855982144 | BV100: 0 | BX100: 144956.51 | BY100: 144956.5054 | BZ100: 0 | CB100: 4856.8 | CC100: 4856.8 | CD100: 0 | CF100: 1040917.14 | CH100: 1040917 | CI100: 0.01477670009 | CJ100: 1056301.85 | CL100: 1056302 | CM100: 0.01477995645
A101: 2574 | B101: Downs View Infant School | D101: Downs View Infant School | E101: 0 | F101: 1 | H101: 798620.77 | I101: 798620.7733 | J101: -0.003294852795 | L101: 71244.32 | M101: 71244.31749 | N101: 0.002514736305 | P101: 14784.39 | Q101: 14784.38892 | R101: 0.001076666607 | T101: 75177.27 | U101: 75177.27148 | V101: -0.001475815196 | X101: 0 | Y101: 0 | Z101: 0 | AB101: 132163.37 | AC101: 132163.3716 | AD101: -0.001566865918 | AF101: 0 | AG101: 0 | AH101: 0 | AJ101: 0 | AK101: 0 | AL101: 0 | AN101: 0 | AO101: 0 | AP101: 0 | AR101: 27648 | AS101: 27648 | AT101: 0 | AV101: 0 | AW101: 0 | AX101: 0 | AZ101: 0 | BA101: 0 | BB101: 0 | BD101: 0 | BE101: 0 | BF101: 0 | BH101: 1119638.12 | BI101: 1119638.123 | BJ101: -0.002746130805 | BL101: 0 | BM101: 0 | BN101: 0 | BP101: 1119638.12 | BQ101: 1119638.123 | BR101: -0.002746130805 | BV101: 0 | BX101: 153848.7 | BY101: 153848.6984 | BZ101: 0 | CB101: 5323.8 | CC101: 5323.8 | CD101: 0 | CF101: 1136017.97 | CH101: 1136018 | CI101: 0.01462959051 | CJ101: 1152643.52 | CL101: 1152644 | CM101: 0.01463493575
A102: 2578 | B102: Kingswood Primary School | D102: Kingswood Primary School | E102: 0 | F102: 1 | H102: 462359.4 | I102: 462359.3951 | J102: 0.004934558936 | L102: 24964.9 | M102: 24964.89841 | N102: 0.001592008819 | P102: 3358.95 | Q102: 3358.945338 | R102: 0.004662167296 | T102: 54325.47 | U102: 54325.47173 | V102: -0.001725918679 | X102: 1019.55 | Y102: 1019.546009 | Z102: 0.003990769888 | AB102: 132163.37 | AC102: 132163.3716 | AD102: -0.001566865918 | AF102: 7439.28 | AG102: 7439.281714 | AH102: -0.00171422716 | AJ102: 0 | AK102: 0 | AL102: 0 | AN102: 0 | AO102: 0 | AP102: 0 | AR102: 16093 | AS102: 16093 | AT102: 0 | AV102: 0 | AW102: 0 | AX102: 0 | AZ102: 0 | BA102: 0 | BB102: 0 | BD102: 0 | BE102: 0 | BF102: 0 | BH102: 701723.91 | BI102: 701723.9098 | BJ102: 0.0001724931644 | BL102: 0 | BM102: 0 | BN102: 0 | BP102: 701723.91 | BQ102: 701723.9098 | BR102: 0.0001724931644 | BV102: 0 | BX102: 89898.59 | BY102: 89898.58963 | BZ102: 0 | CB102: 3082.2 | CC102: 3082.2 | CD102: 0 | CF102: 712008.37 | CH102: 712008 | CI102: 0.01465599223 | CJ102: 722447.1 | CL102: 722447 | CM102: 0.01466096529
A103: 2586 | B103: Senacre Wood Primary School | D103: Senacre Wood Primary School | E103: 0 | F103: 1 | H103: 725063.6 | I103: 725063.5968 | J103: 0.003192830947 | L103: 151815.79 | M103: 151815.7896 | N103: 0.0004214985238 | P103: 11534.79 | Q103: 11534.79426 | R103: -0.004259518875 | T103: 65298.98 | U103: 65298.97888 | V103: 0.001116738793 | X103: 547.53 | Y103: 547.5339679 | Z103: -0.003967919881 | AB103: 132163.37 | AC103: 132163.3716 | AD103: -0.001566865918 | AF103: 0 | AG103: 0 | AH103: 0 | AJ103: 0 | AK103: 0 | AL103: 0 | AN103: 0 | AO103: 0 | AP103: 0 | AR103: 21332 | AS103: 21332 | AT103: 0 | AV103: 0 | AW103: 0 | AX103: 0 | AZ103: 0 | BA103: 0 | BB103: 0 | BD103: 0 | BE103: 0 | BF103: 0 | BH103: 1107756.07 | BI103: 1107756.065 | BJ103: 0.004936763784 | BL103: 0 | BM103: 0 | BN103: 0 | BP103: 1107756.07 | BQ103: 1107756.065 | BR103: 0.004936763784 | BV103: 0 | BX103: 184258.76 | BY103: 184258.7576 | BZ103: 0 | CB103: 4833.45 | CC103: 4833.45 | CD103: 0 | CF103: 1124052.43 | CH103: 1124052 | CI103: 0.01471114937 | CJ103: 1140593.23 | CL103: 1140593 | CM103: 0.01471532783
A104: 2603 | B104: Bromstone Primary School, Broadstairs | D104: Bromstone Primary School, Broadstairs | E104: 0 | F104: 1 | H104: 1457132.64 | I104: 1457132.639 | J104: 0.00100588263 | L104: 321754.87 | M104: 321754.8748 | N104: -0.004826477321 | P104: 20338.95 | Q104: 20338.94582 | R104: 0.004175002785 | T104: 191100.42 | U104: 191100.4179 | V104: 0.002056594123 | X104: 981.79 | Y104: 981.7850459 | Z104: 0.004954074711 | AB104: 132163.37 | AC104: 132163.3716 | AD104: -0.001566865918 | AF104: 0 | AG104: 0 | AH104: 0 | AJ104: 0 | AK104: 0 | AL104: 0 | AN104: 0 | AO104: 0 | AP104: 0 | AR104: 45056 | AS104: 45056 | AT104: 0 | AV104: 0 | AW104: 0 | AX104: 0 | AZ104: 0 | BA104: 0 | BB104: 0 | BD104: 0 | BE104: 0 | BF104: 0 | BH104: 2168528.03 | BI104: 2168528.034 | BJ104: -0.004201788921 | BL104: 0 | BM104: 0 | BN104: 0 | BP104: 2168528.03 | BQ104: 2168528.034 | BR104: -0.004201788921 | BV104: 0 | BX104: 431858.5 | BY104: 431858.4985 | BZ104: 0 | CB104: 9713.6 | CC104: 9713.6 | CD104: 0 | CF104: 2200380.11 | CH104: 2200380 | CI104: 0.01468833942 | CJ104: 2232709.98 | CL104: 2232710 | CM104: 0.01469285686
A105: 2607 | B105: Parkside Community Primary School | D105: Parkside Community Primary School | E105: 0 | F105: 1 | H105: 577949.24 | I105: 577949.2438 | J105: -0.003831801354 | L105: 194366.76 | M105: 194366.7577 | N105: 0.002298833046 | P105: 28283.85 | Q105: 28283.84654 | R105: 0.003462113284 | T105: 113691.84 | U105: 113691.8434 | V105: -0.003361810086 | X105: 29359.15 | Y105: 29359.14897 | Z105: 0.001030503434 | AB105: 132163.37 | AC105: 132163.3716 | AD105: -0.001566865918 | AF105: 0 | AG105: 0 | AH105: 0 | AJ105: 0 | AK105: 0 | AL105: 0 | AN105: 0 | AO105: 0 | AP105: 0 | AR105: 20958 | AS105: 20958 | AT105: 0 | AV105: 0 | AW105: 0 | AX105: 0 | AZ105: 0 | BA105: 0 | BB105: 0 | BD105: 0 | BE105: 0 | BF105: 0 | BH105: 1096772.21 | BI105: 1096772.212 | BJ105: -0.001969027799 | BL105: 0 | BM105: 0 | BN105: 0 | BP105: 1096772.21 | BQ105: 1096772.212 | BR105: -0.001969027799 | BV105: 0 | BX105: 265130.95 | BY105: 265130.9545 | BZ105: 0 | CB105: 3852.75 | CC105: 3852.75 | CD105: 0 | CF105: 1112909.43 | CH105: 1112909 | CI105: 0.01471337243 | CJ105: 1129288.7 | CL105: 1129289 | CM105: 0.01471752288
A106: 2615 | B106: High Firs Primary School | D106: High Firs Primary School | E106: 0 | F106: 1 | H106: 732069.04 | I106: 732069.0422 | J106: -0.002186948317 | L106: 83423.12 | M106: 83423.1165 | N106: 0.003500988125 | P106: 10838.7 | Q106: 10838.69736 | R106: 0.002641719719 | T106: 77377.28 | U106: 77377.27673 | V106: 0.003265971915 | X106: 1441.82 | Y106: 1441.815243 | Z106: 0.004756890042 | AB106: 132163.37 | AC106: 132163.3716 | AD106: -0.001566865918 | AF106: 0 | AG106: 0 | AH106: 0 | AJ106: 38899.25 | AK106: 38899.24948 | AL106: 0.0005154408282 | AN106: 0 | AO106: 0 | AP106: 0 | AR106: 24950 | AS106: 24950 | AT106: 0 | AV106: 0 | AW106: 0 | AX106: 0 | AZ106: 0 | BA106: 0 | BB106: 0 | BD106: 0 | BE106: 0 | BF106: 0 | BH106: 1101162.57 | BI106: 1101162.569 | BJ106: 0.0009271963499 | BL106: 0 | BM106: 0 | BN106: 0 | BP106: 1101162.57 | BQ106: 1101162.569 | BR106: 0.0009271963499 | BV106: 0 | BX106: 167990.19 | BY106: 167990.1897 | BZ106: 0 | CB106: 5063.16 | CC106: 5063.155625 | CD106: 0 | CF106: 1117305.76 | CH106: 1117306 | CI106: 0.0146601341 | CJ106: 1133691.09 | CL106: 1133691 | CM106: 0.01466503672
A107: 2627 | B107: Sandwich Junior School | D107: Sandwich Junior School | E107: 0 | F107: 1 | H107: 746079.93 | I107: 746079.9329 | J107: -0.002946507186 | L107: 79199.69 | M107: 79199.6871 | N107: 0.002901820044 | P107: 7542.36 | Q107: 7542.359077 | R107: 0.0009232301927 | T107: 55786.12 | U107: 55786.1211 | V107: -0.001097434288 | X107: 207.69 | Y107: 207.6852982 | Z107: 0.004701823487 | AB107: 132163.37 | AC107: 132163.3716 | AD107: -0.001566865918 | AF107: 0 | AG107: 0 | AH107: 0 | AJ107: 0 | AK107: 0 | AL107: 0 | AN107: 0 | AO107: 0 | AP107: 0 | AR107: 28160 | AS107: 28160 | AT107: 0 | AV107: 0 | AW107: 0 | AX107: 0 | AZ107: 0 | BA107: 0 | BB107: 0 | BD107: 0 | BE107: 0 | BF107: 0 | BH107: 1049139.16 | BI107: 1049139.157 | BJ107: 0.002916066209 | BL107: 0 | BM107: 0 | BN107: 0 | BP107: 1049139.16 | BQ107: 1049139.157 | BR107: 0.002916066209 | BV107: 0 | BX107: 131810.68 | BY107: 131810.6815 | BZ107: 0 | CB107: 4973.55 | CC107: 4973.55 | CD107: 0 | CF107: 1064453.84 | CH107: 1064454 | CI107: 0.01459737997 | CJ107: 1079998.25 | CL107: 1079998 | CM107: 0.01460317903
A108: 2632 | B108: Sevenoaks Primary School | D108: Sevenoaks Primary School | E108: 0 | F108: 1 | H108: 2105136.34 | I108: 2105136.337 | J108: 0.003376286943 | L108: 121690.6 | M108: 121690.6044 | N108: -0.004400295249 | P108: 45249.73 | Q108: 45249.72559 | R108: 0.004405544962 | T108: 134931.43 | U108: 134931.4305 | V108: -0.0004799808084 | X108: 5607.5 | Y108: 5607.503051 | Z108: -0.00305076558 | AB108: 132163.37 | AC108: 132163.3716 | AD108: -0.001566865918 | AF108: 0 | AG108: 0 | AH108: 0 | AJ108: 95429.21 | AK108: 95429.21144 | AL108: -0.001439352825 | AN108: 0 | AO108: 0 | AP108: 0 | AR108: 75264 | AS108: 75264 | AT108: 0 | AV108: 0 | AW108: 0 | AX108: 0 | AZ108: 0 | BA108: 0 | BB108: 0 | BD108: 105466.33 | BE108: 105466.3268 | BF108: 0.003155428087 | BH108: 2820938.51 | BI108: 2820938.51 | BJ108: 0 | BL108: 0 | BM108: 0 | BN108: 0 | BP108: 2820938.51 | BQ108: 2820938.51 | BR108: 0 | BV108: 0 | BX108: 355151.5 | BY108: 355151.5026 | BZ108: 0 | CB108: 14559.6 | CC108: 14559.60063 | CD108: 0 | CF108: 2834666.88 | CH108: 2834667 | CI108: 0.004866596685 | CJ108: 2848463.9 | CL108: 2848464 | CM108: 0.004867245636
A109: 2643 | B109: Swalecliffe Community Primary School | D109: Swalecliffe Community Primary School | E109: 0 | F109: 1 | H109: 1912486.59 | I109: 1912486.589 | J109: 0.001320220996 | L109: 159565.49 | M109: 159565.4929 | N109: -0.002935573837 | P109: 1996.51 | Q109: 1996.506814 | R109: 0.003185560935 | T109: 172954.48 | U109: 172954.4844 | V109: -0.004384019907 | X109: 0 | Y109: 0 | Z109: 0 | AB109: 132163.37 | AC109: 132163.3716 | AD109: -0.001566865918 | AF109: 0 | AG109: 0 | AH109: 0 | AJ109: 0 | AK109: 0 | AL109: 0 | AN109: 0 | AO109: 0 | AP109: 0 | AR109: 59904 | AS109: 59904 | AT109: 0 | AV109: 0 | AW109: 0 | AX109: 0 | AZ109: 0 | BA109: 0 | BB109: 0 | BD109: 115240.02 | BE109: 115240.0156 | BF109: 0.004380677841 | BH109: 2554310.46 | BI109: 2554310.46 | BJ109: 0 | BL109: 0 | BM109: 0 | BN109: 0 | BP109: 2554310.46 | BQ109: 2554310.46 | BR109: 0 | BV109: 0 | BX109: 397447.84 | BY109: 397447.8396 | BZ109: 0 | CB109: 12749.1 | CC109: 12749.1 | CD109: 0 | CF109: 2566782.49 | CH109: 2566782 | CI109: 0.004882738491 | CJ109: 2579316.88 | CL109: 2579317 | CM109: 0.004883308207
A110: 2648 | B110: Aylesham Primary School | D110: Aylesham Primary School | E110: 0 | F110: 1 | H110: 1296007.4 | I110: 1296007.395 | J110: 0.00474080909 | L110: 260875.16 | M110: 260875.1551 | N110: 0.004918349208 | P110: 12434.99 | Q110: 12434.98694 | R110: 0.003060578863 | T110: 131846.39 | U110: 131846.3869 | V110: 0.003086514014 | X110: 12083.51 | Y110: 12083.50826 | Z110: 0.001742457975 | AB110: 132163.37 | AC110: 132163.3716 | AD110: -0.001566865918 | AF110: 0 | AG110: 0 | AH110: 0 | AJ110: 0 | AK110: 0 | AL110: 0 | AN110: 0 | AO110: 0 | AP110: 0 | AR110: 27136 | AS110: 27136 | AT110: 0 | AV110: 0 | AW110: 0 | AX110: 0 | AZ110: 0 | BA110: 0 | BB110: 0 | BD110: 0 | BE110: 0 | BF110: 0 | BH110: 1872546.8 | BI110: 1872546.804 | BJ110: -0.004018156556 | BL110: 0 | BM110: 0 | BN110: 0 | BP110: 1872546.8 | BQ110: 1872546.804 | BR110: -0.004018156556 | BV110: 0 | BX110: 341508.83 | BY110: 341508.8255 | BZ110: 0 | CB110: 8639.5 | CC110: 8639.5 | CD110: 0 | CF110: 1900227.97 | CH110: 1900228 | CI110: 0.01478262969 | CJ110: 1928324.35 | CL110: 1928324 | CM110: 0.01478579436
A111: 2651 | B111: Broadwater Down Primary School | D111: Broadwater Down Primary School | E111: 0 | F111: 1 | H111: 476370.29 | I111: 476370.2858 | J111: 0.004175000067 | L111: 77405.06 | M111: 77405.05798 | N111: 0.002017218416 | P111: 18911.04 | Q111: 18911.03891 | R111: 0.001094227551 | T111: 68122.15 | U111: 68122.1545 | V111: -0.004503680335 | X111: 14953.34 | Y111: 14953.34147 | Z111: -0.001468708238 | AB111: 132163.37 | AC111: 132163.3716 | AD111: -0.001566865918 | AF111: 0 | AG111: 0 | AH111: 0 | AJ111: 0 | AK111: 0 | AL111: 0 | AN111: 0 | AO111: 0 | AP111: 0 | AR111: 18837 | AS111: 18837 | AT111: 0 | AV111: 0 | AW111: 0 | AX111: 0 | AZ111: 0 | BA111: 0 | BB111: 0 | BD111: 0 | BE111: 0 | BF111: 0 | BH111: 806762.25 | BI111: 806762.2503 | BJ111: -0.0002528084442 | BL111: 0 | BM111: 0 | BN111: 0 | BP111: 806762.25 | BQ111: 806762.2503 | BR111: -0.0002528084442 | BV111: 0 | BX111: 140064.24 | BY111: 140064.2435 | BZ111: 0 | CB111: 3175.6 | CC111: 3175.6 | CD111: 0 | CF111: 818581.13 | CH111: 818581 | CI111: 0.01464976794 | CJ111: 830577.29 | CL111: 830577 | CM111: 0.01465482108
A112: 2653 | B112: West Borough Primary School | D112: West Borough Primary School | E112: 0 | F112: 1 | H112: 1579727.93 | I112: 1579727.933 | J112: -0.003140257206 | L112: 168162.33 | M112: 168162.3314 | N112: -0.001403401082 | P112: 52198.53 | Q112: 52198.52599 | R112: 0.004010897574 | T112: 112320.39 | U112: 112320.393 | V112: -0.003005140461 | X112: 0 | Y112: 0 | Z112: 0 | AB112: 132163.37 | AC112: 132163.3716 | AD112: -0.001566865918 | AF112: 0 | AG112: 0 | AH112: 0 | AJ112: 0 | AK112: 0 | AL112: 0 | AN112: 0 | AO112: 0 | AP112: 0 | AR112: 58368 | AS112: 58368 | AT112: 0 | AV112: 0 | AW112: 0 | AX112: 0 | AZ112: 0 | BA112: 0 | BB112: 0 | BD112: 15825.45 | BE112: 15825.4549 | BF112: -0.004895232949 | BH112: 2118766.01 | BI112: 2118766.01 | BJ112: 0 | BL112: 0 | BM112: 0 | BN112: 0 | BP112: 2118766.01 | BQ112: 2118766.01 | BR112: 0 | BV112: 0 | BX112: 281084.3 | BY112: 281084.2977 | BZ112: 0 | CB112: 10530.85 | CC112: 10530.85 | CD112: 0 | CF112: 2133609.14 | CH112: 2133609 | CI112: 0.007005554143 | CJ112: 2164737.76 | CL112: 2164738 | CM112: 0.01458965441
A113: 2662 | B113: Long Mead Community Primary School | D113: Long Mead Community Primary School | E113: 0 | F113: 1 | H113: 346769.55 | I113: 346769.5463 | J113: 0.003700919158 | L113: 97116.48 | M113: 97116.4775 | N113: 0.002500419025 | P113: 3829.2 | Q113: 3829.197685 | R113: 0.002314870715 | T113: 54131.62 | U113: 54131.62328 | V113: -0.003277110809 | X113: 11558.32 | Y113: 11558.32261 | Z113: -0.002614843363 | AB113: 132163.37 | AC113: 132163.3716 | AD113: -0.001566865918 | AF113: 0 | AG113: 0 | AH113: 0 | AJ113: 0 | AK113: 0 | AL113: 0 | AN113: 0 | AO113: 0 | AP113: 0 | AR113: 18463 | AS113: 18463 | AT113: 0 | AV113: 0 | AW113: 0 | AX113: 0 | AZ113: 0 | BA113: 0 | BB113: 0 | BD113: 0 | BE113: 0 | BF113: 0 | BH113: 664031.54 | BI113: 664031.5389 | BJ113: 0.001057388843 | BL113: 0 | BM113: 0 | BN113: 0 | BP113: 664031.54 | BQ113: 664031.5389 | BR113: 0.001057388843 | BV113: 0 | BX113: 128654.11 | BY113: 128654.1122 | BZ113: 0 | CB113: 2311.65 | CC113: 2311.65 | CD113: 0 | CF113: 673715.07 | CH113: 673715 | CI113: 0.01458293844 | CJ113: 683543.85 | CL113: 683544 | CM113: 0.01458892704
A114: 2674 | B114: King's Farm Primary School | D114: King's Farm Primary School | E114: 0 | F114: 1 | H114: 1411597.24 | I114: 1411597.244 | J114: -0.004025551258 | L114: 416624.38 | M114: 416624.3783 | N114: 0.001662262483 | P114: 28030.23 | Q114: 28030.2292 | R114: 0.0007994898915 | T114: 166240.27 | U114: 166240.2665 | V114: 0.003501352679 | X114: 16822.51 | Y114: 16822.50915 | Z114: 0.0008477033698 | AB114: 132163.37 | AC114: 132163.3716 | AD114: -0.001566865918 | AF114: 0 | AG114: 0 | AH114: 0 | AJ114: 0 | AK114: 0 | AL114: 0 | AN114: 0 | AO114: 0 | AP114: 0 | AR114: 43264 | AS114: 43264 | AT114: 0 | AV114: 0 | AW114: 0 | AX114: 0 | AZ114: 0 | BA114: 0 | BB114: 0 | BD114: 0 | BE114: 0 | BF114: 0 | BH114: 2214742 | BI114: 2214741.999 | BJ114: 0.001218391117 | BL114: 60225.83 | BM114: 60225.82891 | BN114: 0.001092563776 | BP114: 2274967.83 | BQ114: 2274967.828 | BR114: 0.002310954966 | BV114: 0 | BX114: 488890.2 | BY114: 488890.2026 | BZ114: 0 | CB114: 9410.05 | CC114: 9410.05 | CD114: 0 | CF114: 2285455.62 | CH114: 2285456 | CI114: 0.004610083793 | CJ114: 2295985.79 | CL114: 2295986 | CM114: 0.004607470785
A115: 2680 | B115: Kings Hill School Primary and Nursery | D115: Kings Hill School Primary and Nursery | E115: 0 | F115: 1 | H115: 1460635.36 | I115: 1460635.362 | J115: -0.001684007002 | L115: 55589.25 | M115: 55589.25145 | N115: -0.001448474177 | P115: 10165.36 | Q115: 10165.36437 | R115: -0.004366557881 | T115: 63079.9 | U115: 63079.90481 | V115: -0.00481026707 | X115: 0 | Y115: 0 | Z115: 0 | AB115: 132163.37 | AC115: 132163.3716 | AD115: -0.001566865918 | AF115: 0 | AG115: 0 | AH115: 0 | AJ115: 0 | AK115: 0 | AL115: 0 | AN115: 0 | AO115: 0 | AP115: 0 | AR115: 52224 | AS115: 52224 | AT115: 0 | AV115: 0 | AW115: 0 | AX115: 0 | AZ115: 0 | BA115: 0 | BB115: 0 | BD115: 183435.42 | BE115: 183435.4161 | BF115: 0.003876172006 | BH115: 1957292.67 | BI115: 1957292.67 | BJ115: 0 | BL115: 0 | BM115: 0 | BN115: 0 | BP115: 1957292.67 | BQ115: 1957292.67 | BR115: 0 | BV115: 0 | BX115: 241758.87 | BY115: 241758.8681 | BZ115: 0 | CB115: 9736.95 | CC115: 9736.95 | CD115: 0 | CF115: 1966818.01 | CH115: 1966818 | CI115: 0.004866589522 | CJ115: 1976390.98 | CL115: 1976391 | CM115: 0.00486723731
A116: 2682 | B116: New Ash Green Primary School | D116: New Ash Green Primary School | E116: 0 | F116: 1 | H116: 1376570.02 | I116: 1376570.017 | J116: 0.002873345977 | L116: 68284.41 | M116: 68284.40864 | N116: 0.001357119283 | P116: 2628.37 | Q116: 2628.372527 | R116: -0.002526863688 | T116: 156853.27 | U116: 156853.2718 | V116: -0.001769863535 | X116: 0 | Y116: 0 | Z116: 0 | AB116: 132163.37 | AC116: 132163.3716 | AD116: -0.001566865918 | AF116: 0 | AG116: 0 | AH116: 0 | AJ116: 65118.73 | AK116: 65118.72906 | AL116: 0.0009387577229 | AN116: 0 | AO116: 0 | AP116: 0 | AR116: 33792 | AS116: 33792 | AT116: 0 | AV116: 0 | AW116: 0 | AX116: 0 | AZ116: 0 | BA116: 0 | BB116: 0 | BD116: 0 | BE116: 0 | BF116: 0 | BH116: 1835410.17 | BI116: 1835410.171 | BJ116: -0.0006943698972 | BL116: 0 | BM116: 0 | BN116: 0 | BP116: 1835410.17 | BQ116: 1835410.171 | BR116: -0.0006943698972 | BV116: 0 | BX116: 266239.37 | BY116: 266239.3716 | BZ116: 0 | CB116: 9520.67 | CC116: 9520.670625 | CD116: 0 | CF116: 1862434.44 | CH116: 1862434 | CI116: 0.01472383107 | CJ116: 1889864.08 | CL116: 1889864 | CM116: 0.01472784191
A117: 2689 | B117: The Craylands School | D117: The Craylands School | E117: 0 | F117: 1 | H117: 1457132.64 | I117: 1457132.639 | J117: 0.00100588263 | L117: 194124.79 | M117: 194124.7856 | N117: 0.004426971573 | P117: 12135.19 | Q117: 12135.19226 | R117: -0.002257596117 | T117: 180678.19 | U117: 180678.1915 | V117: -0.001497417456 | X117: 0 | Y117: 0 | Z117: 0 | AB117: 132163.37 | AC117: 132163.3716 | AD117: -0.001566865918 | AF117: 0 | AG117: 0 | AH117: 0 | AJ117: 74108.78 | AK117: 74108.78175 | AL117: -0.001745838439 | AN117: 0 | AO117: 0 | AP117: 0 | AR117: 61952 | AS117: 61952 | AT117: 0 | AV117: 98886.05 | AW117: 98886.05 | AX117: 0 | AZ117: 0 | BA117: 0 | BB117: 0 | BD117: 0 | BE117: 0 | BF117: 0 | BH117: 2211181.01 | BI117: 2211181.012 | BJ117: -0.001634863671 | BL117: 0 | BM117: 0 | BN117: 0 | BP117: 2211181.01 | BQ117: 2211181.012 | BR117: -0.001634863671 | BV117: 0 | BX117: 371481.05 | BY117: 371481.049 | BZ117: 0 | CB117: 10077.86 | CC117: 10077.86 | CD117: 0 | CF117: 2241936.16 | CH117: 2241936 | CI117: 0.01390892388 | CJ117: 2273152.63 | CL117: 2273153 | CM117: 0.01392388889
A118: 2692 | B118: The Churchill School | D118: The Churchill School | E118: Recoupment Academy | F118: 1 | H118: 1264482.89 | I118: 1264482.891 | J118: -0.001050183782 | L118: 155772.41 | M118: 155772.4141 | N118: -0.004125477572 | P118: 8029.86 | Q118: 8029.859799 | R118: 0.0002013844132 | T118: 80270.81 | U118: 80270.81063 | V118: -0.0006299510133 | X118: 320.97 | Y118: 320.9681881 | Z118: 0.001811909057 | AB118: 132163.37 | AC118: 132163.3716 | AD118: -0.001566865918 | AF118: 0 | AG118: 0 | AH118: 0 | AJ118: 0 | AK118: 0 | AL118: 0 | AN118: 0 | AO118: 0 | AP118: 0 | AR118: 12595 | AS118: 12595 | AT118: 0 | AV118: 0 | AW118: 0 | AX118: 0 | AZ118: 0 | BA118: 0 | BB118: 0 | BD118: 8191.79 | BE118: 8191.794641 | BF118: -0.004640815386 | BH118: 1661827.11 | BI118: 1661827.11 | BJ118: 0 | BL118: 5859.15 | BM118: 5859.154327 | BN118: -0.00432706452 | BP118: 1667686.26 | BQ118: 1667686.264 | BR118: -0.004327064613 | BV118: 0 | BX118: 228108.66 | BY118: 228108.6645 | BZ118: 0 | CB118: 8429.35 | CC118: 0 | CD118: 0 | CF118: 1678250.92 | CH118: 1678251 | CI118: 0.006334917963 | CJ118: 1703235.76 | CL118: 1703236 | CM118: 0.01488742816
A119: 3010 | B119: St Pauls' Church of England Voluntary Controlled Primary School | D119: St Pauls' Church of England Voluntary Controlled Primary School | E119: 0 | F119: 1 | H119: 385299.5 | I119: 385299.4959 | J119: 0.004112132418 | L119: 25357.39 | M119: 25357.38541 | N119: 0.0045857814 | P119: 1357.87 | Q119: 1357.87152 | R119: -0.001519549395 | T119: 19723.14 | U119: 19723.13698 | V119: 0.003019426091 | X119: 0 | Y119: 0 | Z119: 0 | AB119: 132163.37 | AC119: 132163.3716 | AD119: -0.001566865918 | AF119: 0 | AG119: 0 | AH119: 0 | AJ119: 23126.54 | AK119: 23126.53532 | AL119: 0.004681600327 | AN119: 52806.35 | AO119: 52806.34712 | AP119: 0.002878417414 | AR119: 10729 | AS119: 10729 | AT119: 0 | AV119: 0 | AW119: 0 | AX119: 0 | AZ119: 0 | BA119: 0 | BB119: 0 | BD119: 0 | BE119: 0 | BF119: 0 | BH119: 650563.14 | BI119: 650563.1438 | BJ119: -0.003809057642 | BL119: 0 | BM119: 0 | BN119: 0 | BP119: 650563.14 | BQ119: 650563.1438 | BR119: -0.003809057642 | BV119: 0 | BX119: 54666.68 | BY119: 54666.6825 | BZ119: 0 | CB119: 2664.82 | CC119: 2664.81875 | CD119: 0 | CF119: 657358.62 | CH119: 657359 | CI119: 0.01044552901 | CJ119: 666265.97 | CL119: 666266 | CM119: 0.01355021404
A120: 3015 | B120: Fawkham Church of England Voluntary Controlled Primary School | D120: Fawkham Church of England Voluntary Controlled Primary School | E120: 0 | F120: 1 | H120: 339764.1 | I120: 339764.1009 | J120: -0.0009193014121 | L120: 5590.39 | M120: 5590.392614 | N120: -0.002614268107 | P120: 0 | Q120: 0 | R120: 0 | T120: 25743.54 | U120: 25743.53892 | V120: 0.001077644567 | X120: 0 | Y120: 0 | Z120: 0 | AB120: 132163.37 | AC120: 132163.3716 | AD120: -0.001566865918 | AF120: 6827.93 | AG120: 6827.931461 | AH120: -0.001460994707 | AJ120: 19128.35 | AK120: 19128.35008 | AL120: -8.064195936e-05 | AN120: 0 | AO120: 0 | AP120: 0 | AR120: 21083 | AS120: 21083 | AT120: 0 | AV120: 0 | AW120: 0 | AX120: 0 | AZ120: 0 | BA120: 0 | BB120: 0 | BD120: 0 | BE120: 0 | BF120: 0 | BH120: 550300.69 | BI120: 550300.6856 | BJ120: 0.004435572424 | BL120: 0 | BM120: 0 | BN120: 0 | BP120: 550300.69 | BQ120: 550300.6856 | BR120: 0.004435572424 | BV120: 0 | BX120: 46994.45 | BY120: 46994.44546 | BZ120: 0 | CB120: 2349.89 | CC120: 2349.885625 | CD120: 0 | CF120: 558238.95 | CH120: 558239 | CI120: 0.01442532173 | CJ120: 566296.29 | CL120: 566296 | CM120: 0.01443349662
